Workbook

Sheet Velkomst

Sheet Tabel 1 ØJ
A1: ='[1]Tabel 1 H DATA'!G1 -> Tabel 1. Forsikrede medlemmer
A3: ='[1]Tabel 1 H DATA'!G2 -> Østjylland
C5: ='[1]Tabel 1 H DATA'!I4 -> Mænd | E5: ='[1]Tabel 1 H DATA'!K4 -> Kvinder | G5: ='[1]Tabel 1 H DATA'!M4 -> I alt
A7: ='[1]Tabel 1 H DATA'!G6 -> Civ. ing. | C7: ='[1]Tabel 1 H DATA'!I6 -> 3178 | E7: ='[1]Tabel 1 H DATA'!K6 -> 1045 | G7: ='[1]Tabel 1 H DATA'!M6 -> 4223
A8: ='[1]Tabel 1 H DATA'!G7 -> Diplom ing. | C8: ='[1]Tabel 1 H DATA'!I7 -> 5811 | E8: ='[1]Tabel 1 H DATA'!K7 -> 1229 | G8: ='[1]Tabel 1 H DATA'!M7 -> 7040
A9: ='[1]Tabel 1 H DATA'!G8 -> Cand. Scient. Tek. | C9: ='[1]Tabel 1 H DATA'!I8 -> 1810 | E9: ='[1]Tabel 1 H DATA'!K8 -> 1199 | G9: ='[1]Tabel 1 H DATA'!M8 -> 3009
A10: ='[1]Tabel 1 H DATA'!G9 -> MA. Hum. | C10: ='[1]Tabel 1 H DATA'!I9 -> 2671 | E10: ='[1]Tabel 1 H DATA'!K9 -> 5602 | G10: ='[1]Tabel 1 H DATA'!M9 -> 8273
A11: ='[1]Tabel 1 H DATA'!G10 -> MA. Nat. | C11: ='[1]Tabel 1 H DATA'!I10 -> 1604 | E11: ='[1]Tabel 1 H DATA'!K10 -> 1308 | G11: ='[1]Tabel 1 H DATA'!M10 -> 2912
A12: ='[1]Tabel 1 H DATA'!G11 -> MA. Ph.d. | C12: ='[1]Tabel 1 H DATA'!I11 -> 331 | E12: ='[1]Tabel 1 H DATA'!K11 -> 255 | G12: ='[1]Tabel 1 H DATA'!M11 -> 586
A13: ='[1]Tabel 1 H DATA'!G12 -> MA. Samf. | C13: ='[1]Tabel 1 H DATA'!I12 -> 175 | E13: ='[1]Tabel 1 H DATA'!K12 -> 573 | G13: ='[1]Tabel 1 H DATA'!M12 -> 748
A14: ='[1]Tabel 1 H DATA'!G13 -> Øvrige Mag. | C14: ='[1]Tabel 1 H DATA'!I13 -> 209 | E14: ='[1]Tabel 1 H DATA'!K13 -> 362 | G14: ='[1]Tabel 1 H DATA'!M13 -> 571
A15: ='[1]Tabel 1 H DATA'!G14 -> Agronom | C15: ='[1]Tabel 1 H DATA'!I14 -> 187 | E15: ='[1]Tabel 1 H DATA'!K14 -> 158 | G15: ='[1]Tabel 1 H DATA'!M14 -> 345
A16: ='[1]Tabel 1 H DATA'!G15 -> Landsk. Arkt. | C16: ='[1]Tabel 1 H DATA'!I15 -> 11 | E16: ='[1]Tabel 1 H DATA'!K15 -> 29 | G16: ='[1]Tabel 1 H DATA'!M15 -> 40
A17: ='[1]Tabel 1 H DATA'!G16 -> Hortonom | C17: ='[1]Tabel 1 H DATA'!I16 -> 12 | E17: ='[1]Tabel 1 H DATA'!K16 -> 16 | G17: ='[1]Tabel 1 H DATA'!M16 -> 28
A18: ='[1]Tabel 1 H DATA'!G17 -> Forstkand. | C18: ='[1]Tabel 1 H DATA'!I17 -> 42 | E18: ='[1]Tabel 1 H DATA'!K17 -> 12 | G18: ='[1]Tabel 1 H DATA'!M17 -> 54
A19: ='[1]Tabel 1 H DATA'!G18 -> Jordbrugsakad. | C19: ='[1]Tabel 1 H DATA'!I18 -> 252 | E19: ='[1]Tabel 1 H DATA'!K18 -> 215 | G19: ='[1]Tabel 1 H DATA'!M18 -> 467
A20: ='[1]Tabel 1 H DATA'!G19 -> Mejeriing. | C20: ='[1]Tabel 1 H DATA'!I19 -> 55 | E20: ='[1]Tabel 1 H DATA'!K19 -> 28 | G20: ='[1]Tabel 1 H DATA'!M19 -> 83
A21: ='[1]Tabel 1 H DATA'!G20 -> Levn.m.kand. | C21: ='[1]Tabel 1 H DATA'!I20 -> 2 | E21: ='[1]Tabel 1 H DATA'!K20 -> 26 | G21: ='[1]Tabel 1 H DATA'!M20 -> 28
A22: ='[1]Tabel 1 H DATA'!G21 -> Dyrlæge | C22: ='[1]Tabel 1 H DATA'!I21 -> 47 | E22: ='[1]Tabel 1 H DATA'!K21 -> 190 | G22: ='[1]Tabel 1 H DATA'!M21 -> 237
A23: ='[1]Tabel 1 H DATA'!G22 -> Farmaceut | C23: ='[1]Tabel 1 H DATA'!I22 -> 71 | E23: ='[1]Tabel 1 H DATA'!K22 -> 254 | G23: ='[1]Tabel 1 H DATA'!M22 -> 325
A24: ='[1]Tabel 1 H DATA'!G23 -> Læge | C24: ='[1]Tabel 1 H DATA'!I23 -> 808 | E24: ='[1]Tabel 1 H DATA'!K23 -> 1844 | G24: ='[1]Tabel 1 H DATA'!M23 -> 2652
A25: ='[1]Tabel 1 H DATA'!G24 -> Tandlæge | C25: ='[1]Tabel 1 H DATA'!I24 -> 70 | E25: ='[1]Tabel 1 H DATA'!K24 -> 412 | G25: ='[1]Tabel 1 H DATA'!M24 -> 482
A26: ='[1]Tabel 1 H DATA'!G25 -> Arkitekt | C26: ='[1]Tabel 1 H DATA'!I25 -> 723 | E26: ='[1]Tabel 1 H DATA'!K25 -> 851 | G26: ='[1]Tabel 1 H DATA'!M25 -> 1574
A27: ='[1]Tabel 1 H DATA'!G26 -> Landinspek. | C27: ='[1]Tabel 1 H DATA'!I26 -> 98 | E27: ='[1]Tabel 1 H DATA'!K26 -> 38 | G27: ='[1]Tabel 1 H DATA'!M26 -> 136
A28: ='[1]Tabel 1 H DATA'!G27 -> Bibliotekar | C28: ='[1]Tabel 1 H DATA'!I27 -> 74 | E28: ='[1]Tabel 1 H DATA'!K27 -> 280 | G28: ='[1]Tabel 1 H DATA'!M27 -> 354
A29: ='[1]Tabel 1 H DATA'!G28 -> Musikudd. | C29: ='[1]Tabel 1 H DATA'!I28 -> 69 | E29: ='[1]Tabel 1 H DATA'!K28 -> 77 | G29: ='[1]Tabel 1 H DATA'!M28 -> 146
A30: ='[1]Tabel 1 H DATA'!G29 -> Teolog | C30: ='[1]Tabel 1 H DATA'!I29 -> 126 | E30: ='[1]Tabel 1 H DATA'!K29 -> 208 | G30: ='[1]Tabel 1 H DATA'!M29 -> 334
A31: ='[1]Tabel 1 H DATA'!G30 -> Psykolog | C31: ='[1]Tabel 1 H DATA'!I30 -> 316 | E31: ='[1]Tabel 1 H DATA'!K30 -> 1609 | G31: ='[1]Tabel 1 H DATA'!M30 -> 1925
A32: ='[1]Tabel 1 H DATA'!G31 -> Jurist | C32: ='[1]Tabel 1 H DATA'!I31 -> 831 | E32: ='[1]Tabel 1 H DATA'!K31 -> 1516 | G32: ='[1]Tabel 1 H DATA'!M31 -> 2347
A33: ='[1]Tabel 1 H DATA'!G32 -> Økonom | C33: ='[1]Tabel 1 H DATA'!I32 -> 928 | E33: ='[1]Tabel 1 H DATA'!K32 -> 520 | G33: ='[1]Tabel 1 H DATA'!M32 -> 1448
A34: ='[1]Tabel 1 H DATA'!G33 -> Samf. Adm. | C34: ='[1]Tabel 1 H DATA'!I33 -> 1384 | E34: ='[1]Tabel 1 H DATA'!K33 -> 1859 | G34: ='[1]Tabel 1 H DATA'!M33 -> 3243
A35: ='[1]Tabel 1 H DATA'!G34 -> Cand. Merc. | C35: ='[1]Tabel 1 H DATA'!I34 -> 3602 | E35: ='[1]Tabel 1 H DATA'!K34 -> 3255 | G35: ='[1]Tabel 1 H DATA'!M34 -> 6857
A36: ='[1]Tabel 1 H DATA'!G35 -> HA | C36: ='[1]Tabel 1 H DATA'!I35 -> 584 | E36: ='[1]Tabel 1 H DATA'!K35 -> 524 | G36: ='[1]Tabel 1 H DATA'!M35 -> 1108
A37: ='[1]Tabel 1 H DATA'!G36 -> HD | C37: ='[1]Tabel 1 H DATA'!I36 -> 471 | E37: ='[1]Tabel 1 H DATA'!K36 -> 396 | G37: ='[1]Tabel 1 H DATA'!M36 -> 867
A38: ='[1]Tabel 1 H DATA'!G37 -> Komm. og Sprog | C38: ='[1]Tabel 1 H DATA'!I37 -> 171 | E38: ='[1]Tabel 1 H DATA'!K37 -> 1131 | G38: ='[1]Tabel 1 H DATA'!M37 -> 1302
A39: ='[1]Tabel 1 H DATA'!G38 -> Bygningskonst. | C39: ='[1]Tabel 1 H DATA'!I38 -> 1925 | E39: ='[1]Tabel 1 H DATA'!K38 -> 318 | G39: ='[1]Tabel 1 H DATA'!M38 -> 2243
A40: ='[1]Tabel 1 H DATA'!G39 -> Cand. IT. | C40: ='[1]Tabel 1 H DATA'!I39 -> 502 | E40: ='[1]Tabel 1 H DATA'!K39 -> 447 | G40: ='[1]Tabel 1 H DATA'!M39 -> 949
A41: ='[1]Tabel 1 H DATA'!G40 -> Bac. Samf. | C41: ='[1]Tabel 1 H DATA'!I40 -> 97 | E41: ='[1]Tabel 1 H DATA'!K40 -> 99 | G41: ='[1]Tabel 1 H DATA'!M40 -> 196
A42: ='[1]Tabel 1 H DATA'!G41 -> Bac. Hum. | C42: ='[1]Tabel 1 H DATA'!I41 -> 316 | E42: ='[1]Tabel 1 H DATA'!K41 -> 526 | G42: ='[1]Tabel 1 H DATA'!M41 -> 842
A43: ='[1]Tabel 1 H DATA'!G42 -> Bac. Nat. | C43: ='[1]Tabel 1 H DATA'!I42 -> 483 | E43: ='[1]Tabel 1 H DATA'!K42 -> 173 | G43: ='[1]Tabel 1 H DATA'!M42 -> 656
A44: ='[1]Tabel 1 H DATA'!G43 -> Andre | C44: ='[1]Tabel 1 H DATA'!I43 -> 1618 | E44: ='[1]Tabel 1 H DATA'!K43 -> 1517 | G44: ='[1]Tabel 1 H DATA'!M43 -> 3135
A46: ='[1]Tabel 1 H DATA'!G45 -> Total | C46: ='[1]Tabel 1 H DATA'!I45 -> 31412 | E46: ='[1]Tabel 1 H DATA'!K45 -> 29886 | G46: ='[1]Tabel 1 H DATA'!M45 -> 61298
A48: ='[1]Tabel 1 H DATA'!G47 -> Ingeniører i alt | C48: ='[1]Tabel 1 H DATA'!I47 -> 8989 | E48: ='[1]Tabel 1 H DATA'!K47 -> 2274 | G48: ='[1]Tabel 1 H DATA'!M47 -> 11263
A49: ='[1]Tabel 1 H DATA'!G48 -> Magistre i alt | C49: ='[1]Tabel 1 H DATA'!I48 -> 4990 | E49: ='[1]Tabel 1 H DATA'!K48 -> 8100 | G49: ='[1]Tabel 1 H DATA'!M48 -> 13090
A50: ='[1]Tabel 1 H DATA'!G49 -> DJØF'ere i alt | C50: ='[1]Tabel 1 H DATA'!I49 -> 7329 | E50: ='[1]Tabel 1 H DATA'!K49 -> 7674 | G50: ='[1]Tabel 1 H DATA'!M49 -> 15003
A57: ='[1]Tabel 1 H DATA'!G60 -> Horsens
C59: ='[1]Tabel 1 H DATA'!I62 -> Mænd | E59: ='[1]Tabel 1 H DATA'!K62 -> Kvinder | G59: ='[1]Tabel 1 H DATA'!M62 -> I alt
A61: ='[1]Tabel 1 H DATA'!G64 -> Civ. ing. | C61: ='[1]Tabel 1 H DATA'!I64 -> 217 | E61: ='[1]Tabel 1 H DATA'!K64 -> 82 | G61: ='[1]Tabel 1 H DATA'!M64 -> 299
A62: ='[1]Tabel 1 H DATA'!G65 -> Diplom ing. | C62: ='[1]Tabel 1 H DATA'!I65 -> 721 | E62: ='[1]Tabel 1 H DATA'!K65 -> 229 | G62: ='[1]Tabel 1 H DATA'!M65 -> 950
A63: ='[1]Tabel 1 H DATA'!G66 -> Cand. Scient. Tek. | C63: ='[1]Tabel 1 H DATA'!I66 -> 80 | E63: ='[1]Tabel 1 H DATA'!K66 -> 59 | G63: ='[1]Tabel 1 H DATA'!M66 -> 139
A64: ='[1]Tabel 1 H DATA'!G67 -> MA. Hum. | C64: ='[1]Tabel 1 H DATA'!I67 -> 121 | E64: ='[1]Tabel 1 H DATA'!K67 -> 273 | G64: ='[1]Tabel 1 H DATA'!M67 -> 394
A65: ='[1]Tabel 1 H DATA'!G68 -> MA. Nat. | C65: ='[1]Tabel 1 H DATA'!I68 -> 63 | E65: ='[1]Tabel 1 H DATA'!K68 -> 72 | G65: ='[1]Tabel 1 H DATA'!M68 -> 135
A66: ='[1]Tabel 1 H DATA'!G69 -> MA. Ph.d. | C66: ='[1]Tabel 1 H DATA'!I69 -> 4 | E66: ='[1]Tabel 1 H DATA'!K69 -> 5 | G66: ='[1]Tabel 1 H DATA'!M69 -> 9
A67: ='[1]Tabel 1 H DATA'!G70 -> MA. Samf. | C67: ='[1]Tabel 1 H DATA'!I70 -> 8 | E67: ='[1]Tabel 1 H DATA'!K70 -> 24 | G67: ='[1]Tabel 1 H DATA'!M70 -> 32
A68: ='[1]Tabel 1 H DATA'!G71 -> Øvrige Mag. | C68: ='[1]Tabel 1 H DATA'!I71 -> 17 | E68: ='[1]Tabel 1 H DATA'!K71 -> 12 | G68: ='[1]Tabel 1 H DATA'!M71 -> 29
A69: ='[1]Tabel 1 H DATA'!G72 -> Agronom | C69: ='[1]Tabel 1 H DATA'!I72 -> 21 | E69: ='[1]Tabel 1 H DATA'!K72 -> 15 | G69: ='[1]Tabel 1 H DATA'!M72 -> 36
A70: ='[1]Tabel 1 H DATA'!G73 -> Landsk. Arkt. | C70: ='[1]Tabel 1 H DATA'!I73 -> 1 | E70: ='[1]Tabel 1 H DATA'!K73 -> 1 | G70: ='[1]Tabel 1 H DATA'!M73 -> 2
A71: ='[1]Tabel 1 H DATA'!G74 -> Hortonom | C71: ='[1]Tabel 1 H DATA'!I74 -> 0 | E71: ='[1]Tabel 1 H DATA'!K74 -> 1 | G71: ='[1]Tabel 1 H DATA'!M74 -> 1
A72: ='[1]Tabel 1 H DATA'!G75 -> Forstkand. | C72: ='[1]Tabel 1 H DATA'!I75 -> 6 | E72: ='[1]Tabel 1 H DATA'!K75 -> 0 | G72: ='[1]Tabel 1 H DATA'!M75 -> 6
A73: ='[1]Tabel 1 H DATA'!G76 -> Jordbrugsakad. | C73: ='[1]Tabel 1 H DATA'!I76 -> 28 | E73: ='[1]Tabel 1 H DATA'!K76 -> 17 | G73: ='[1]Tabel 1 H DATA'!M76 -> 45
A74: ='[1]Tabel 1 H DATA'!G77 -> Mejeriing. | C74: ='[1]Tabel 1 H DATA'!I77 -> 5 | E74: ='[1]Tabel 1 H DATA'!K77 -> 1 | G74: ='[1]Tabel 1 H DATA'!M77 -> 6
A75: ='[1]Tabel 1 H DATA'!G78 -> Levn.m.kand. | C75: ='[1]Tabel 1 H DATA'!I78 -> 0 | E75: ='[1]Tabel 1 H DATA'!K78 -> 1 | G75: ='[1]Tabel 1 H DATA'!M78 -> 1
A76: ='[1]Tabel 1 H DATA'!G79 -> Dyrlæge | C76: ='[1]Tabel 1 H DATA'!I79 -> 5 | E76: ='[1]Tabel 1 H DATA'!K79 -> 17 | G76: ='[1]Tabel 1 H DATA'!M79 -> 22
A77: ='[1]Tabel 1 H DATA'!G80 -> Farmaceut | C77: ='[1]Tabel 1 H DATA'!I80 -> 6 | E77: ='[1]Tabel 1 H DATA'!K80 -> 17 | G77: ='[1]Tabel 1 H DATA'!M80 -> 23
A78: ='[1]Tabel 1 H DATA'!G81 -> Læge | C78: ='[1]Tabel 1 H DATA'!I81 -> 23 | E78: ='[1]Tabel 1 H DATA'!K81 -> 66 | G78: ='[1]Tabel 1 H DATA'!M81 -> 89
A79: ='[1]Tabel 1 H DATA'!G82 -> Tandlæge | C79: ='[1]Tabel 1 H DATA'!I82 -> 5 | E79: ='[1]Tabel 1 H DATA'!K82 -> 19 | G79: ='[1]Tabel 1 H DATA'!M82 -> 24
A80: ='[1]Tabel 1 H DATA'!G83 -> Arkitekt | C80: ='[1]Tabel 1 H DATA'!I83 -> 34 | E80: ='[1]Tabel 1 H DATA'!K83 -> 34 | G80: ='[1]Tabel 1 H DATA'!M83 -> 68
A81: ='[1]Tabel 1 H DATA'!G84 -> Landinspek. | C81: ='[1]Tabel 1 H DATA'!I84 -> 14 | E81: ='[1]Tabel 1 H DATA'!K84 -> 6 | G81: ='[1]Tabel 1 H DATA'!M84 -> 20
A82: ='[1]Tabel 1 H DATA'!G85 -> Bibliotekar | C82: ='[1]Tabel 1 H DATA'!I85 -> 6 | E82: ='[1]Tabel 1 H DATA'!K85 -> 28 | G82: ='[1]Tabel 1 H DATA'!M85 -> 34
A83: ='[1]Tabel 1 H DATA'!G86 -> Musikudd. | C83: ='[1]Tabel 1 H DATA'!I86 -> 3 | E83: ='[1]Tabel 1 H DATA'!K86 -> 5 | G83: ='[1]Tabel 1 H DATA'!M86 -> 8
A84: ='[1]Tabel 1 H DATA'!G87 -> Teolog | C84: ='[1]Tabel 1 H DATA'!I87 -> 9 | E84: ='[1]Tabel 1 H DATA'!K87 -> 7 | G84: ='[1]Tabel 1 H DATA'!M87 -> 16
A85: ='[1]Tabel 1 H DATA'!G88 -> Psykolog | C85: ='[1]Tabel 1 H DATA'!I88 -> 16 | E85: ='[1]Tabel 1 H DATA'!K88 -> 77 | G85: ='[1]Tabel 1 H DATA'!M88 -> 93
A86: ='[1]Tabel 1 H DATA'!G89 -> Jurist | C86: ='[1]Tabel 1 H DATA'!I89 -> 44 | E86: ='[1]Tabel 1 H DATA'!K89 -> 100 | G86: ='[1]Tabel 1 H DATA'!M89 -> 144
A87: ='[1]Tabel 1 H DATA'!G90 -> Økonom | C87: ='[1]Tabel 1 H DATA'!I90 -> 32 | E87: ='[1]Tabel 1 H DATA'!K90 -> 34 | G87: ='[1]Tabel 1 H DATA'!M90 -> 66
A88: ='[1]Tabel 1 H DATA'!G91 -> Samf. Adm. | C88: ='[1]Tabel 1 H DATA'!I91 -> 74 | E88: ='[1]Tabel 1 H DATA'!K91 -> 99 | G88: ='[1]Tabel 1 H DATA'!M91 -> 173
A89: ='[1]Tabel 1 H DATA'!G92 -> Cand. Merc. | C89: ='[1]Tabel 1 H DATA'!I92 -> 212 | E89: ='[1]Tabel 1 H DATA'!K92 -> 240 | G89: ='[1]Tabel 1 H DATA'!M92 -> 452
A90: ='[1]Tabel 1 H DATA'!G93 -> HA | C90: ='[1]Tabel 1 H DATA'!I93 -> 52 | E90: ='[1]Tabel 1 H DATA'!K93 -> 45 | G90: ='[1]Tabel 1 H DATA'!M93 -> 97
A91: ='[1]Tabel 1 H DATA'!G94 -> HD | C91: ='[1]Tabel 1 H DATA'!I94 -> 38 | E91: ='[1]Tabel 1 H DATA'!K94 -> 24 | G91: ='[1]Tabel 1 H DATA'!M94 -> 62
A92: ='[1]Tabel 1 H DATA'!G95 -> Komm. og Sprog | C92: ='[1]Tabel 1 H DATA'!I95 -> 10 | E92: ='[1]Tabel 1 H DATA'!K95 -> 71 | G92: ='[1]Tabel 1 H DATA'!M95 -> 81
A93: ='[1]Tabel 1 H DATA'!G96 -> Bygningskonst. | C93: ='[1]Tabel 1 H DATA'!I96 -> 386 | E93: ='[1]Tabel 1 H DATA'!K96 -> 80 | G93: ='[1]Tabel 1 H DATA'!M96 -> 466
A94: ='[1]Tabel 1 H DATA'!G97 -> Cand. IT. | C94: ='[1]Tabel 1 H DATA'!I97 -> 19 | E94: ='[1]Tabel 1 H DATA'!K97 -> 19 | G94: ='[1]Tabel 1 H DATA'!M97 -> 38
A95: ='[1]Tabel 1 H DATA'!G98 -> Bac. Samf. | C95: ='[1]Tabel 1 H DATA'!I98 -> 9 | E95: ='[1]Tabel 1 H DATA'!K98 -> 6 | G95: ='[1]Tabel 1 H DATA'!M98 -> 15
A96: ='[1]Tabel 1 H DATA'!G99 -> Bac. Hum. | C96: ='[1]Tabel 1 H DATA'!I99 -> 12 | E96: ='[1]Tabel 1 H DATA'!K99 -> 27 | G96: ='[1]Tabel 1 H DATA'!M99 -> 39
A97: ='[1]Tabel 1 H DATA'!G100 -> Bac. Nat. | C97: ='[1]Tabel 1 H DATA'!I100 -> 96 | E97: ='[1]Tabel 1 H DATA'!K100 -> 23 | G97: ='[1]Tabel 1 H DATA'!M100 -> 119
A98: ='[1]Tabel 1 H DATA'!G101 -> Andre | C98: ='[1]Tabel 1 H DATA'!I101 -> 143 | E98: ='[1]Tabel 1 H DATA'!K101 -> 102 | G98: ='[1]Tabel 1 H DATA'!M101 -> 245
A100: ='[1]Tabel 1 H DATA'!G104 -> Total | C100: ='[1]Tabel 1 H DATA'!I104 -> 2512 | E100: ='[1]Tabel 1 H DATA'!K104 -> 1921 | G100: ='[1]Tabel 1 H DATA'!M104 -> 4433
A102: ='[1]Tabel 1 H DATA'!G231 -> Ingeniører i alt | C102: ='[1]Tabel 1 H DATA'!I231 -> 938 | E102: ='[1]Tabel 1 H DATA'!K231 -> 311 | G102: ='[1]Tabel 1 H DATA'!M231 -> 1249
A103: ='[1]Tabel 1 H DATA'!G232 -> Magistre i alt | C103: ='[1]Tabel 1 H DATA'!I232 -> 213 | E103: ='[1]Tabel 1 H DATA'!K232 -> 386 | G103: ='[1]Tabel 1 H DATA'!M232 -> 599
A104: ='[1]Tabel 1 H DATA'!G233 -> DJØF'ere i alt | C104: ='[1]Tabel 1 H DATA'!I233 -> 414 | E104: ='[1]Tabel 1 H DATA'!K233 -> 518 | G104: ='[1]Tabel 1 H DATA'!M233 -> 932
A111: ='[1]Tabel 1 H DATA'!G241 -> Syddjurs
C113: ='[1]Tabel 1 H DATA'!I243 -> Mænd | E113: ='[1]Tabel 1 H DATA'!K243 -> Kvinder | G113: ='[1]Tabel 1 H DATA'!M243 -> I alt
A115: ='[1]Tabel 1 H DATA'!G245 -> Civ. ing. | C115: ='[1]Tabel 1 H DATA'!I245 -> 62 | E115: ='[1]Tabel 1 H DATA'!K245 -> 85 | G115: ='[1]Tabel 1 H DATA'!M245 -> 147
A116: ='[1]Tabel 1 H DATA'!G246 -> Diplom ing. | C116: ='[1]Tabel 1 H DATA'!I246 -> 0 | E116: ='[1]Tabel 1 H DATA'!K246 -> 0 | G116: ='[1]Tabel 1 H DATA'!M246 -> 0
A117: ='[1]Tabel 1 H DATA'!G247 -> Cand. Scient. Tek. | C117: ='[1]Tabel 1 H DATA'!I247 -> 200 | E117: ='[1]Tabel 1 H DATA'!K247 -> 229 | G117: ='[1]Tabel 1 H DATA'!M247 -> 429
A118: ='[1]Tabel 1 H DATA'!G248 -> MA. Hum. | C118: ='[1]Tabel 1 H DATA'!I248 -> 33 | E118: ='[1]Tabel 1 H DATA'!K248 -> 69 | G118: ='[1]Tabel 1 H DATA'!M248 -> 102
A119: ='[1]Tabel 1 H DATA'!G249 -> MA. Nat. | C119: ='[1]Tabel 1 H DATA'!I249 -> 72 | E119: ='[1]Tabel 1 H DATA'!K249 -> 249 | G119: ='[1]Tabel 1 H DATA'!M249 -> 321
A120: ='[1]Tabel 1 H DATA'!G250 -> MA. Ph.d. | C120: ='[1]Tabel 1 H DATA'!I250 -> 69 | E120: ='[1]Tabel 1 H DATA'!K250 -> 115 | G120: ='[1]Tabel 1 H DATA'!M250 -> 184
A121: ='[1]Tabel 1 H DATA'!G251 -> MA. Samf. | C121: ='[1]Tabel 1 H DATA'!I251 -> 12 | E121: ='[1]Tabel 1 H DATA'!K251 -> 23 | G121: ='[1]Tabel 1 H DATA'!M251 -> 35
A122: ='[1]Tabel 1 H DATA'!G252 -> Øvrige Mag. | C122: ='[1]Tabel 1 H DATA'!I252 -> 3 | E122: ='[1]Tabel 1 H DATA'!K252 -> 22 | G122: ='[1]Tabel 1 H DATA'!M252 -> 25
A123: ='[1]Tabel 1 H DATA'!G253 -> Agronom | C123: ='[1]Tabel 1 H DATA'!I253 -> 7 | E123: ='[1]Tabel 1 H DATA'!K253 -> 21 | G123: ='[1]Tabel 1 H DATA'!M253 -> 28
A124: ='[1]Tabel 1 H DATA'!G254 -> Landsk. Arkt. | C124: ='[1]Tabel 1 H DATA'!I254 -> 15 | E124: ='[1]Tabel 1 H DATA'!K254 -> 28 | G124: ='[1]Tabel 1 H DATA'!M254 -> 43
A125: ='[1]Tabel 1 H DATA'!G255 -> Hortonom | C125: ='[1]Tabel 1 H DATA'!I255 -> 0 | E125: ='[1]Tabel 1 H DATA'!K255 -> 4 | G125: ='[1]Tabel 1 H DATA'!M255 -> 4
A126: ='[1]Tabel 1 H DATA'!G256 -> Forstkand. | C126: ='[1]Tabel 1 H DATA'!I256 -> 2 | E126: ='[1]Tabel 1 H DATA'!K256 -> 4 | G126: ='[1]Tabel 1 H DATA'!M256 -> 6
A127: ='[1]Tabel 1 H DATA'!G257 -> Jordbrugsakad. | C127: ='[1]Tabel 1 H DATA'!I257 -> 24 | E127: ='[1]Tabel 1 H DATA'!K257 -> 57 | G127: ='[1]Tabel 1 H DATA'!M257 -> 81
A128: ='[1]Tabel 1 H DATA'!G258 -> Mejeriing. | C128: ='[1]Tabel 1 H DATA'!I258 -> 2 | E128: ='[1]Tabel 1 H DATA'!K258 -> 3 | G128: ='[1]Tabel 1 H DATA'!M258 -> 5
A129: ='[1]Tabel 1 H DATA'!G259 -> Levn.m.kand. | C129: ='[1]Tabel 1 H DATA'!I259 -> 0 | E129: ='[1]Tabel 1 H DATA'!K259 -> 0 | G129: ='[1]Tabel 1 H DATA'!M259 -> 0
A130: ='[1]Tabel 1 H DATA'!G260 -> Dyrlæge | C130: ='[1]Tabel 1 H DATA'!I260 -> 3 | E130: ='[1]Tabel 1 H DATA'!K260 -> 10 | G130: ='[1]Tabel 1 H DATA'!M260 -> 13
A131: ='[1]Tabel 1 H DATA'!G261 -> Farmaceut | C131: ='[1]Tabel 1 H DATA'!I261 -> 2 | E131: ='[1]Tabel 1 H DATA'!K261 -> 9 | G131: ='[1]Tabel 1 H DATA'!M261 -> 11
A132: ='[1]Tabel 1 H DATA'!G262 -> Læge | C132: ='[1]Tabel 1 H DATA'!I262 -> 13 | E132: ='[1]Tabel 1 H DATA'!K262 -> 51 | G132: ='[1]Tabel 1 H DATA'!M262 -> 64
A133: ='[1]Tabel 1 H DATA'!G263 -> Tandlæge | C133: ='[1]Tabel 1 H DATA'!I263 -> 2 | E133: ='[1]Tabel 1 H DATA'!K263 -> 17 | G133: ='[1]Tabel 1 H DATA'!M263 -> 19
A134: ='[1]Tabel 1 H DATA'!G264 -> Arkitekt | C134: ='[1]Tabel 1 H DATA'!I264 -> 25 | E134: ='[1]Tabel 1 H DATA'!K264 -> 73 | G134: ='[1]Tabel 1 H DATA'!M264 -> 98
A135: ='[1]Tabel 1 H DATA'!G265 -> Landinspek. | C135: ='[1]Tabel 1 H DATA'!I265 -> 2 | E135: ='[1]Tabel 1 H DATA'!K265 -> 5 | G135: ='[1]Tabel 1 H DATA'!M265 -> 7
A136: ='[1]Tabel 1 H DATA'!G266 -> Bibliotekar | C136: ='[1]Tabel 1 H DATA'!I266 -> 2 | E136: ='[1]Tabel 1 H DATA'!K266 -> 14 | G136: ='[1]Tabel 1 H DATA'!M266 -> 16
A137: ='[1]Tabel 1 H DATA'!G267 -> Musikudd. | C137: ='[1]Tabel 1 H DATA'!I267 -> 3 | E137: ='[1]Tabel 1 H DATA'!K267 -> 6 | G137: ='[1]Tabel 1 H DATA'!M267 -> 9
A138: ='[1]Tabel 1 H DATA'!G268 -> Teolog | C138: ='[1]Tabel 1 H DATA'!I268 -> 4 | E138: ='[1]Tabel 1 H DATA'!K268 -> 19 | G138: ='[1]Tabel 1 H DATA'!M268 -> 23
A139: ='[1]Tabel 1 H DATA'!G269 -> Psykolog | C139: ='[1]Tabel 1 H DATA'!I269 -> 10 | E139: ='[1]Tabel 1 H DATA'!K269 -> 66 | G139: ='[1]Tabel 1 H DATA'!M269 -> 76
A140: ='[1]Tabel 1 H DATA'!G270 -> Jurist | C140: ='[1]Tabel 1 H DATA'!I270 -> 15 | E140: ='[1]Tabel 1 H DATA'!K270 -> 50 | G140: ='[1]Tabel 1 H DATA'!M270 -> 65
A141: ='[1]Tabel 1 H DATA'!G271 -> Økonom | C141: ='[1]Tabel 1 H DATA'!I271 -> 16 | E141: ='[1]Tabel 1 H DATA'!K271 -> 26 | G141: ='[1]Tabel 1 H DATA'!M271 -> 42
A142: ='[1]Tabel 1 H DATA'!G272 -> Samf. Adm. | C142: ='[1]Tabel 1 H DATA'!I272 -> 25 | E142: ='[1]Tabel 1 H DATA'!K272 -> 72 | G142: ='[1]Tabel 1 H DATA'!M272 -> 97
A143: ='[1]Tabel 1 H DATA'!G273 -> Cand. Merc. | C143: ='[1]Tabel 1 H DATA'!I273 -> 64 | E143: ='[1]Tabel 1 H DATA'!K273 -> 125 | G143: ='[1]Tabel 1 H DATA'!M273 -> 189
A144: ='[1]Tabel 1 H DATA'!G274 -> HA | C144: ='[1]Tabel 1 H DATA'!I274 -> 14 | E144: ='[1]Tabel 1 H DATA'!K274 -> 38 | G144: ='[1]Tabel 1 H DATA'!M274 -> 52
A145: ='[1]Tabel 1 H DATA'!G275 -> HD | C145: ='[1]Tabel 1 H DATA'!I275 -> 12 | E145: ='[1]Tabel 1 H DATA'!K275 -> 25 | G145: ='[1]Tabel 1 H DATA'!M275 -> 37
A146: ='[1]Tabel 1 H DATA'!G276 -> Komm. og Sprog | C146: ='[1]Tabel 1 H DATA'!I276 -> 4 | E146: ='[1]Tabel 1 H DATA'!K276 -> 41 | G146: ='[1]Tabel 1 H DATA'!M276 -> 45
A147: ='[1]Tabel 1 H DATA'!G277 -> Bygningskonst. | C147: ='[1]Tabel 1 H DATA'!I277 -> 61 | E147: ='[1]Tabel 1 H DATA'!K277 -> 74 | G147: ='[1]Tabel 1 H DATA'!M277 -> 135
A148: ='[1]Tabel 1 H DATA'!G278 -> Cand. IT. | C148: ='[1]Tabel 1 H DATA'!I278 -> 13 | E148: ='[1]Tabel 1 H DATA'!K278 -> 21 | G148: ='[1]Tabel 1 H DATA'!M278 -> 34
A149: ='[1]Tabel 1 H DATA'!G279 -> Bac. Samf. | C149: ='[1]Tabel 1 H DATA'!I279 -> 1 | E149: ='[1]Tabel 1 H DATA'!K279 -> 1 | G149: ='[1]Tabel 1 H DATA'!M279 -> 2
A150: ='[1]Tabel 1 H DATA'!G280 -> Bac. Hum. | C150: ='[1]Tabel 1 H DATA'!I280 -> 12 | E150: ='[1]Tabel 1 H DATA'!K280 -> 19 | G150: ='[1]Tabel 1 H DATA'!M280 -> 31
A151: ='[1]Tabel 1 H DATA'!G281 -> Bac. Nat. | C151: ='[1]Tabel 1 H DATA'!I281 -> 10 | E151: ='[1]Tabel 1 H DATA'!K281 -> 15 | G151: ='[1]Tabel 1 H DATA'!M281 -> 25
A152: ='[1]Tabel 1 H DATA'!G282 -> Andre | C152: ='[1]Tabel 1 H DATA'!I282 -> 52 | E152: ='[1]Tabel 1 H DATA'!K282 -> 102 | G152: ='[1]Tabel 1 H DATA'!M282 -> 154
A154: ='[1]Tabel 1 H DATA'!G284 -> Total | C154: ='[1]Tabel 1 H DATA'!I284 -> 842 | E154: ='[1]Tabel 1 H DATA'!K284 -> 1731 | G154: ='[1]Tabel 1 H DATA'!M284 -> 2573
A156: ='[1]Tabel 1 H DATA'!G286 -> Ingeniører i alt | C156: ='[1]Tabel 1 H DATA'!I286 -> 62 | E156: ='[1]Tabel 1 H DATA'!K286 -> 85 | G156: ='[1]Tabel 1 H DATA'!M286 -> 147
A157: ='[1]Tabel 1 H DATA'!G287 -> Magistre i alt | C157: ='[1]Tabel 1 H DATA'!I287 -> 189 | E157: ='[1]Tabel 1 H DATA'!K287 -> 478 | G157: ='[1]Tabel 1 H DATA'!M287 -> 667
A158: ='[1]Tabel 1 H DATA'!G288 -> DJØF'ere i alt | C158: ='[1]Tabel 1 H DATA'!I288 -> 134 | E158: ='[1]Tabel 1 H DATA'!K288 -> 311 | G158: ='[1]Tabel 1 H DATA'!M288 -> 445
A165: ='[1]Tabel 1 H DATA'!G296 -> Norddjurs
C167: ='[1]Tabel 1 H DATA'!I298 -> Mænd | E167: ='[1]Tabel 1 H DATA'!K298 -> Kvinder | G167: ='[1]Tabel 1 H DATA'!M298 -> I alt
A169: ='[1]Tabel 1 H DATA'!G300 -> Civ. ing. | C169: ='[1]Tabel 1 H DATA'!I300 -> 15 | E169: ='[1]Tabel 1 H DATA'!K300 -> 23 | G169: ='[1]Tabel 1 H DATA'!M300 -> 38
A170: ='[1]Tabel 1 H DATA'!G301 -> Diplom ing. | C170: ='[1]Tabel 1 H DATA'!I301 -> 74 | E170: ='[1]Tabel 1 H DATA'!K301 -> 96 | G170: ='[1]Tabel 1 H DATA'!M301 -> 170
A171: ='[1]Tabel 1 H DATA'!G302 -> Cand. Scient. Tek. | C171: ='[1]Tabel 1 H DATA'!I302 -> 12 | E171: ='[1]Tabel 1 H DATA'!K302 -> 18 | G171: ='[1]Tabel 1 H DATA'!M302 -> 30
A172: ='[1]Tabel 1 H DATA'!G303 -> MA. Hum. | C172: ='[1]Tabel 1 H DATA'!I303 -> 25 | E172: ='[1]Tabel 1 H DATA'!K303 -> 73 | G172: ='[1]Tabel 1 H DATA'!M303 -> 98
A173: ='[1]Tabel 1 H DATA'!G304 -> MA. Nat. | C173: ='[1]Tabel 1 H DATA'!I304 -> 18 | E173: ='[1]Tabel 1 H DATA'!K304 -> 32 | G173: ='[1]Tabel 1 H DATA'!M304 -> 50
A174: ='[1]Tabel 1 H DATA'!G305 -> MA. Ph.d. | C174: ='[1]Tabel 1 H DATA'!I305 -> 4 | E174: ='[1]Tabel 1 H DATA'!K305 -> 7 | G174: ='[1]Tabel 1 H DATA'!M305 -> 11
A175: ='[1]Tabel 1 H DATA'!G306 -> MA. Samf. | C175: ='[1]Tabel 1 H DATA'!I306 -> 1 | E175: ='[1]Tabel 1 H DATA'!K306 -> 2 | G175: ='[1]Tabel 1 H DATA'!M306 -> 3
A176: ='[1]Tabel 1 H DATA'!G307 -> Øvrige Mag. | C176: ='[1]Tabel 1 H DATA'!I307 -> 1 | E176: ='[1]Tabel 1 H DATA'!K307 -> 5 | G176: ='[1]Tabel 1 H DATA'!M307 -> 6
A177: ='[1]Tabel 1 H DATA'!G308 -> Agronom | C177: ='[1]Tabel 1 H DATA'!I308 -> 4 | E177: ='[1]Tabel 1 H DATA'!K308 -> 8 | G177: ='[1]Tabel 1 H DATA'!M308 -> 12
A178: ='[1]Tabel 1 H DATA'!G309 -> Landsk. Arkt. | C178: ='[1]Tabel 1 H DATA'!I309 -> 0 | E178: ='[1]Tabel 1 H DATA'!K309 -> 0 | G178: ='[1]Tabel 1 H DATA'!M309 -> 0
A179: ='[1]Tabel 1 H DATA'!G310 -> Hortonom | C179: ='[1]Tabel 1 H DATA'!I310 -> 1 | E179: ='[1]Tabel 1 H DATA'!K310 -> 1 | G179: ='[1]Tabel 1 H DATA'!M310 -> 2
A180: ='[1]Tabel 1 H DATA'!G311 -> Forstkand. | C180: ='[1]Tabel 1 H DATA'!I311 -> 2 | E180: ='[1]Tabel 1 H DATA'!K311 -> 2 | G180: ='[1]Tabel 1 H DATA'!M311 -> 4
A181: ='[1]Tabel 1 H DATA'!G312 -> Jordbrugsakad. | C181: ='[1]Tabel 1 H DATA'!I312 -> 7 | E181: ='[1]Tabel 1 H DATA'!K312 -> 11 | G181: ='[1]Tabel 1 H DATA'!M312 -> 18
A182: ='[1]Tabel 1 H DATA'!G313 -> Mejeriing. | C182: ='[1]Tabel 1 H DATA'!I313 -> 0 | E182: ='[1]Tabel 1 H DATA'!K313 -> 0 | G182: ='[1]Tabel 1 H DATA'!M313 -> 0
A183: ='[1]Tabel 1 H DATA'!G314 -> Levn.m.kand. | C183: ='[1]Tabel 1 H DATA'!I314 -> 0 | E183: ='[1]Tabel 1 H DATA'!K314 -> 2 | G183: ='[1]Tabel 1 H DATA'!M314 -> 2
A184: ='[1]Tabel 1 H DATA'!G315 -> Dyrlæge | C184: ='[1]Tabel 1 H DATA'!I315 -> 0 | E184: ='[1]Tabel 1 H DATA'!K315 -> 8 | G184: ='[1]Tabel 1 H DATA'!M315 -> 8
A185: ='[1]Tabel 1 H DATA'!G316 -> Farmaceut | C185: ='[1]Tabel 1 H DATA'!I316 -> 2 | E185: ='[1]Tabel 1 H DATA'!K316 -> 3 | G185: ='[1]Tabel 1 H DATA'!M316 -> 5
A186: ='[1]Tabel 1 H DATA'!G317 -> Læge | C186: ='[1]Tabel 1 H DATA'!I317 -> 2 | E186: ='[1]Tabel 1 H DATA'!K317 -> 3 | G186: ='[1]Tabel 1 H DATA'!M317 -> 5
A187: ='[1]Tabel 1 H DATA'!G318 -> Tandlæge | C187: ='[1]Tabel 1 H DATA'!I318 -> 0 | E187: ='[1]Tabel 1 H DATA'!K318 -> 5 | G187: ='[1]Tabel 1 H DATA'!M318 -> 5
A188: ='[1]Tabel 1 H DATA'!G319 -> Arkitekt | C188: ='[1]Tabel 1 H DATA'!I319 -> 4 | E188: ='[1]Tabel 1 H DATA'!K319 -> 9 | G188: ='[1]Tabel 1 H DATA'!M319 -> 13
A189: ='[1]Tabel 1 H DATA'!G320 -> Landinspek. | C189: ='[1]Tabel 1 H DATA'!I320 -> 2 | E189: ='[1]Tabel 1 H DATA'!K320 -> 2 | G189: ='[1]Tabel 1 H DATA'!M320 -> 4
A190: ='[1]Tabel 1 H DATA'!G321 -> Bibliotekar | C190: ='[1]Tabel 1 H DATA'!I321 -> 1 | E190: ='[1]Tabel 1 H DATA'!K321 -> 6 | G190: ='[1]Tabel 1 H DATA'!M321 -> 7
A191: ='[1]Tabel 1 H DATA'!G322 -> Musikudd. | C191: ='[1]Tabel 1 H DATA'!I322 -> 2 | E191: ='[1]Tabel 1 H DATA'!K322 -> 3 | G191: ='[1]Tabel 1 H DATA'!M322 -> 5
A192: ='[1]Tabel 1 H DATA'!G323 -> Teolog | C192: ='[1]Tabel 1 H DATA'!I323 -> 5 | E192: ='[1]Tabel 1 H DATA'!K323 -> 12 | G192: ='[1]Tabel 1 H DATA'!M323 -> 17
A193: ='[1]Tabel 1 H DATA'!G324 -> Psykolog | C193: ='[1]Tabel 1 H DATA'!I324 -> 1 | E193: ='[1]Tabel 1 H DATA'!K324 -> 14 | G193: ='[1]Tabel 1 H DATA'!M324 -> 15
A194: ='[1]Tabel 1 H DATA'!G325 -> Jurist | C194: ='[1]Tabel 1 H DATA'!I325 -> 4 | E194: ='[1]Tabel 1 H DATA'!K325 -> 9 | G194: ='[1]Tabel 1 H DATA'!M325 -> 13
A195: ='[1]Tabel 1 H DATA'!G326 -> Økonom | C195: ='[1]Tabel 1 H DATA'!I326 -> 4 | E195: ='[1]Tabel 1 H DATA'!K326 -> 6 | G195: ='[1]Tabel 1 H DATA'!M326 -> 10
A196: ='[1]Tabel 1 H DATA'!G327 -> Samf. Adm. | C196: ='[1]Tabel 1 H DATA'!I327 -> 13 | E196: ='[1]Tabel 1 H DATA'!K327 -> 20 | G196: ='[1]Tabel 1 H DATA'!M327 -> 33
A197: ='[1]Tabel 1 H DATA'!G328 -> Cand. Merc. | C197: ='[1]Tabel 1 H DATA'!I328 -> 20 | E197: ='[1]Tabel 1 H DATA'!K328 -> 40 | G197: ='[1]Tabel 1 H DATA'!M328 -> 60
A198: ='[1]Tabel 1 H DATA'!G329 -> HA | C198: ='[1]Tabel 1 H DATA'!I329 -> 8 | E198: ='[1]Tabel 1 H DATA'!K329 -> 15 | G198: ='[1]Tabel 1 H DATA'!M329 -> 23
A199: ='[1]Tabel 1 H DATA'!G330 -> HD | C199: ='[1]Tabel 1 H DATA'!I330 -> 8 | E199: ='[1]Tabel 1 H DATA'!K330 -> 11 | G199: ='[1]Tabel 1 H DATA'!M330 -> 19
A200: ='[1]Tabel 1 H DATA'!G331 -> Komm. og Sprog | C200: ='[1]Tabel 1 H DATA'!I331 -> 1 | E200: ='[1]Tabel 1 H DATA'!K331 -> 12 | G200: ='[1]Tabel 1 H DATA'!M331 -> 13
A201: ='[1]Tabel 1 H DATA'!G332 -> Bygningskonst. | C201: ='[1]Tabel 1 H DATA'!I332 -> 30 | E201: ='[1]Tabel 1 H DATA'!K332 -> 33 | G201: ='[1]Tabel 1 H DATA'!M332 -> 63
A202: ='[1]Tabel 1 H DATA'!G333 -> Cand. IT. | C202: ='[1]Tabel 1 H DATA'!I333 -> 1 | E202: ='[1]Tabel 1 H DATA'!K333 -> 2 | G202: ='[1]Tabel 1 H DATA'!M333 -> 3
A203: ='[1]Tabel 1 H DATA'!G334 -> Bac. Samf. | C203: ='[1]Tabel 1 H DATA'!I334 -> 1 | E203: ='[1]Tabel 1 H DATA'!K334 -> 3 | G203: ='[1]Tabel 1 H DATA'!M334 -> 4
A204: ='[1]Tabel 1 H DATA'!G335 -> Bac. Hum. | C204: ='[1]Tabel 1 H DATA'!I335 -> 2 | E204: ='[1]Tabel 1 H DATA'!K335 -> 9 | G204: ='[1]Tabel 1 H DATA'!M335 -> 11
A205: ='[1]Tabel 1 H DATA'!G336 -> Bac. Nat. | C205: ='[1]Tabel 1 H DATA'!I336 -> 1 | E205: ='[1]Tabel 1 H DATA'!K336 -> 3 | G205: ='[1]Tabel 1 H DATA'!M336 -> 4
A206: ='[1]Tabel 1 H DATA'!G337 -> Andre | C206: ='[1]Tabel 1 H DATA'!I337 -> 24 | E206: ='[1]Tabel 1 H DATA'!K337 -> 37 | G206: ='[1]Tabel 1 H DATA'!M337 -> 61
A208: ='[1]Tabel 1 H DATA'!G339 -> Total | C208: ='[1]Tabel 1 H DATA'!I339 -> 293 | E208: ='[1]Tabel 1 H DATA'!K339 -> 534 | G208: ='[1]Tabel 1 H DATA'!M339 -> 827
A210: ='[1]Tabel 1 H DATA'!G341 -> Ingeniører i alt | C210: ='[1]Tabel 1 H DATA'!I341 -> 89 | E210: ='[1]Tabel 1 H DATA'!K341 -> 119 | G210: ='[1]Tabel 1 H DATA'!M341 -> 208
A211: ='[1]Tabel 1 H DATA'!G342 -> Magistre i alt | C211: ='[1]Tabel 1 H DATA'!I342 -> 49 | E211: ='[1]Tabel 1 H DATA'!K342 -> 119 | G211: ='[1]Tabel 1 H DATA'!M342 -> 168
A212: ='[1]Tabel 1 H DATA'!G343 -> DJØF'ere i alt | C212: ='[1]Tabel 1 H DATA'!I343 -> 49 | E212: ='[1]Tabel 1 H DATA'!K343 -> 90 | G212: ='[1]Tabel 1 H DATA'!M343 -> 139
A219: ='[1]Tabel 1 H DATA'!G351 -> Favrskov
C221: ='[1]Tabel 1 H DATA'!I353 -> Mænd | E221: ='[1]Tabel 1 H DATA'!K353 -> Kvinder | G221: ='[1]Tabel 1 H DATA'!M353 -> I alt
A223: ='[1]Tabel 1 H DATA'!G355 -> Civ. ing. | C223: ='[1]Tabel 1 H DATA'!I355 -> 215 | E223: ='[1]Tabel 1 H DATA'!K355 -> 66 | G223: ='[1]Tabel 1 H DATA'!M355 -> 281
A224: ='[1]Tabel 1 H DATA'!G356 -> Diplom ing. | C224: ='[1]Tabel 1 H DATA'!I356 -> 356 | E224: ='[1]Tabel 1 H DATA'!K356 -> 59 | G224: ='[1]Tabel 1 H DATA'!M356 -> 415
A225: ='[1]Tabel 1 H DATA'!G357 -> Cand. Scient. Tek. | C225: ='[1]Tabel 1 H DATA'!I357 -> 68 | E225: ='[1]Tabel 1 H DATA'!K357 -> 62 | G225: ='[1]Tabel 1 H DATA'!M357 -> 130
A226: ='[1]Tabel 1 H DATA'!G358 -> MA. Hum. | C226: ='[1]Tabel 1 H DATA'!I358 -> 88 | E226: ='[1]Tabel 1 H DATA'!K358 -> 249 | G226: ='[1]Tabel 1 H DATA'!M358 -> 337
A227: ='[1]Tabel 1 H DATA'!G359 -> MA. Nat. | C227: ='[1]Tabel 1 H DATA'!I359 -> 97 | E227: ='[1]Tabel 1 H DATA'!K359 -> 77 | G227: ='[1]Tabel 1 H DATA'!M359 -> 174
A228: ='[1]Tabel 1 H DATA'!G360 -> MA. Ph.d. | C228: ='[1]Tabel 1 H DATA'!I360 -> 11 | E228: ='[1]Tabel 1 H DATA'!K360 -> 8 | G228: ='[1]Tabel 1 H DATA'!M360 -> 19
A229: ='[1]Tabel 1 H DATA'!G361 -> MA. Samf. | C229: ='[1]Tabel 1 H DATA'!I361 -> 6 | E229: ='[1]Tabel 1 H DATA'!K361 -> 13 | G229: ='[1]Tabel 1 H DATA'!M361 -> 19
A230: ='[1]Tabel 1 H DATA'!G362 -> Øvrige Mag. | C230: ='[1]Tabel 1 H DATA'!I362 -> 9 | E230: ='[1]Tabel 1 H DATA'!K362 -> 13 | G230: ='[1]Tabel 1 H DATA'!M362 -> 22
A231: ='[1]Tabel 1 H DATA'!G363 -> Agronom | C231: ='[1]Tabel 1 H DATA'!I363 -> 30 | E231: ='[1]Tabel 1 H DATA'!K363 -> 21 | G231: ='[1]Tabel 1 H DATA'!M363 -> 51
A232: ='[1]Tabel 1 H DATA'!G364 -> Landsk. Arkt. | C232: ='[1]Tabel 1 H DATA'!I364 -> 1 | E232: ='[1]Tabel 1 H DATA'!K364 -> 2 | G232: ='[1]Tabel 1 H DATA'!M364 -> 3
A233: ='[1]Tabel 1 H DATA'!G365 -> Hortonom | C233: ='[1]Tabel 1 H DATA'!I365 -> 2 | E233: ='[1]Tabel 1 H DATA'!K365 -> 2 | G233: ='[1]Tabel 1 H DATA'!M365 -> 4
A234: ='[1]Tabel 1 H DATA'!G366 -> Forstkand. | C234: ='[1]Tabel 1 H DATA'!I366 -> 4 | E234: ='[1]Tabel 1 H DATA'!K366 -> 1 | G234: ='[1]Tabel 1 H DATA'!M366 -> 5
A235: ='[1]Tabel 1 H DATA'!G367 -> Jordbrugsakad. | C235: ='[1]Tabel 1 H DATA'!I367 -> 37 | E235: ='[1]Tabel 1 H DATA'!K367 -> 26 | G235: ='[1]Tabel 1 H DATA'!M367 -> 63
A236: ='[1]Tabel 1 H DATA'!G368 -> Mejeriing. | C236: ='[1]Tabel 1 H DATA'!I368 -> 3 | E236: ='[1]Tabel 1 H DATA'!K368 -> 1 | G236: ='[1]Tabel 1 H DATA'!M368 -> 4
A237: ='[1]Tabel 1 H DATA'!G369 -> Levn.m.kand. | C237: ='[1]Tabel 1 H DATA'!I369 -> 0 | E237: ='[1]Tabel 1 H DATA'!K369 -> 1 | G237: ='[1]Tabel 1 H DATA'!M369 -> 1
A238: ='[1]Tabel 1 H DATA'!G370 -> Dyrlæge | C238: ='[1]Tabel 1 H DATA'!I370 -> 2 | E238: ='[1]Tabel 1 H DATA'!K370 -> 21 | G238: ='[1]Tabel 1 H DATA'!M370 -> 23
A239: ='[1]Tabel 1 H DATA'!G371 -> Farmaceut | C239: ='[1]Tabel 1 H DATA'!I371 -> 1 | E239: ='[1]Tabel 1 H DATA'!K371 -> 9 | G239: ='[1]Tabel 1 H DATA'!M371 -> 10
A240: ='[1]Tabel 1 H DATA'!G372 -> Læge | C240: ='[1]Tabel 1 H DATA'!I372 -> 33 | E240: ='[1]Tabel 1 H DATA'!K372 -> 86 | G240: ='[1]Tabel 1 H DATA'!M372 -> 119
A241: ='[1]Tabel 1 H DATA'!G373 -> Tandlæge | C241: ='[1]Tabel 1 H DATA'!I373 -> 3 | E241: ='[1]Tabel 1 H DATA'!K373 -> 19 | G241: ='[1]Tabel 1 H DATA'!M373 -> 22
A242: ='[1]Tabel 1 H DATA'!G374 -> Arkitekt | C242: ='[1]Tabel 1 H DATA'!I374 -> 15 | E242: ='[1]Tabel 1 H DATA'!K374 -> 21 | G242: ='[1]Tabel 1 H DATA'!M374 -> 36
A243: ='[1]Tabel 1 H DATA'!G375 -> Landinspek. | C243: ='[1]Tabel 1 H DATA'!I375 -> 10 | E243: ='[1]Tabel 1 H DATA'!K375 -> 2 | G243: ='[1]Tabel 1 H DATA'!M375 -> 12
... 330 more rows

Sheet Tabel 2 ØJ
A1: ='[1]Tabel 2 H DATA'!I1 -> Tabel 2. Antal bruttoledighedsberørte og gennemsnitlig antal ledige brutto
A3: ='[1]Tabel 2 H DATA'!I3 -> Østjylland
C5: ='[1]Tabel 2 H DATA'!K5 -> Mænd | F5: ='[1]Tabel 2 H DATA'!N5 -> Kvinder | I5: ='[1]Tabel 2 H DATA'!Q5 -> I alt
C6: ='[1]Tabel 2 H DATA'!K6 -> Ledigheds- berørte | D6: ='[1]Tabel 2 H DATA'!L6 -> Gns. brutto- ledighed | F6: ='[1]Tabel 2 H DATA'!N6 -> Ledigheds- berørte | G6: ='[1]Tabel 2 H DATA'!O6 -> Gns. brutto- ledighed | I6: ='[1]Tabel 2 H DATA'!Q6 -> Ledigheds- berørte | J6: ='[1]Tabel 2 H DATA'!R6 -> Gns. brutto- ledighed
A9: ='[1]Tabel 2 H DATA'!I9 -> Civ. ing. | C9: ='[1]Tabel 2 H DATA'!K9 -> 115 | D9: ='[1]Tabel 2 H DATA'!L9 -> 104.3310672 | F9: ='[1]Tabel 2 H DATA'!N9 -> 57 | G9: ='[1]Tabel 2 H DATA'!O9 -> 51.78631572 | I9: ='[1]Tabel 2 H DATA'!Q9 -> 172 | J9: ='[1]Tabel 2 H DATA'!R9 -> 156.1173829
A10: ='[1]Tabel 2 H DATA'!I10 -> Diplom ing. | C10: ='[1]Tabel 2 H DATA'!K10 -> 223 | D10: ='[1]Tabel 2 H DATA'!L10 -> 202.3832096 | F10: ='[1]Tabel 2 H DATA'!N10 -> 66 | G10: ='[1]Tabel 2 H DATA'!O10 -> 56.95939625 | I10: ='[1]Tabel 2 H DATA'!Q10 -> 289 | J10: ='[1]Tabel 2 H DATA'!R10 -> 259.3426059
A11: ='[1]Tabel 2 H DATA'!I11 -> Cand. Scient. Tek. | C11: ='[1]Tabel 2 H DATA'!K11 -> 165 | D11: ='[1]Tabel 2 H DATA'!L11 -> 149.0463419 | F11: ='[1]Tabel 2 H DATA'!N11 -> 121 | G11: ='[1]Tabel 2 H DATA'!O11 -> 105.6433606 | I11: ='[1]Tabel 2 H DATA'!Q11 -> 286 | J11: ='[1]Tabel 2 H DATA'!R11 -> 254.6897025
A12: ='[1]Tabel 2 H DATA'!I12 -> MA. Hum. | C12: ='[1]Tabel 2 H DATA'!K12 -> 400 | D12: ='[1]Tabel 2 H DATA'!L12 -> 364.063494 | F12: ='[1]Tabel 2 H DATA'!N12 -> 806 | G12: ='[1]Tabel 2 H DATA'!O12 -> 705.4306742 | I12: ='[1]Tabel 2 H DATA'!Q12 -> 1206 | J12: ='[1]Tabel 2 H DATA'!R12 -> 1069.494168
A13: ='[1]Tabel 2 H DATA'!I13 -> MA. Nat. | C13: ='[1]Tabel 2 H DATA'!K13 -> 66 | D13: ='[1]Tabel 2 H DATA'!L13 -> 59.69375663 | F13: ='[1]Tabel 2 H DATA'!N13 -> 64 | G13: ='[1]Tabel 2 H DATA'!O13 -> 53.12418138 | I13: ='[1]Tabel 2 H DATA'!Q13 -> 130 | J13: ='[1]Tabel 2 H DATA'!R13 -> 112.817938
A14: ='[1]Tabel 2 H DATA'!I14 -> MA. Ph.d. | C14: ='[1]Tabel 2 H DATA'!K14 -> 12 | D14: ='[1]Tabel 2 H DATA'!L14 -> 11.72269694 | F14: ='[1]Tabel 2 H DATA'!N14 -> 15 | G14: ='[1]Tabel 2 H DATA'!O14 -> 14.18199963 | I14: ='[1]Tabel 2 H DATA'!Q14 -> 27 | J14: ='[1]Tabel 2 H DATA'!R14 -> 25.90469656
A15: ='[1]Tabel 2 H DATA'!I15 -> MA. Samf. | C15: ='[1]Tabel 2 H DATA'!K15 -> 45 | D15: ='[1]Tabel 2 H DATA'!L15 -> 42.44495728 | F15: ='[1]Tabel 2 H DATA'!N15 -> 92 | G15: ='[1]Tabel 2 H DATA'!O15 -> 82.01833718 | I15: ='[1]Tabel 2 H DATA'!Q15 -> 137 | J15: ='[1]Tabel 2 H DATA'!R15 -> 124.4632945
A16: ='[1]Tabel 2 H DATA'!I16 -> Øvrige Mag. | C16: ='[1]Tabel 2 H DATA'!K16 -> 25 | D16: ='[1]Tabel 2 H DATA'!L16 -> 21.99089378 | F16: ='[1]Tabel 2 H DATA'!N16 -> 50 | G16: ='[1]Tabel 2 H DATA'!O16 -> 43.90881307 | I16: ='[1]Tabel 2 H DATA'!Q16 -> 75 | J16: ='[1]Tabel 2 H DATA'!R16 -> 65.89970685
A17: ='[1]Tabel 2 H DATA'!I17 -> Agronom | C17: ='[1]Tabel 2 H DATA'!K17 -> 5 | D17: ='[1]Tabel 2 H DATA'!L17 -> 3.601322273 | F17: ='[1]Tabel 2 H DATA'!N17 -> 8 | G17: ='[1]Tabel 2 H DATA'!O17 -> 7.029252167 | I17: ='[1]Tabel 2 H DATA'!Q17 -> 13 | J17: ='[1]Tabel 2 H DATA'!R17 -> 10.63057444
A18: ='[1]Tabel 2 H DATA'!I18 -> Landsk. Arkt. | C18: ='[1]Tabel 2 H DATA'!K18 -> 0 | D18: ='[1]Tabel 2 H DATA'!L18 -> 0 | F18: ='[1]Tabel 2 H DATA'!N18 -> 1 | G18: ='[1]Tabel 2 H DATA'!O18 -> 0.9998128859 | I18: ='[1]Tabel 2 H DATA'!Q18 -> 1 | J18: ='[1]Tabel 2 H DATA'!R18 -> 0.9998128859
A19: ='[1]Tabel 2 H DATA'!I19 -> Hortonom | C19: ='[1]Tabel 2 H DATA'!K19 -> 0 | D19: ='[1]Tabel 2 H DATA'!L19 -> 0 | F19: ='[1]Tabel 2 H DATA'!N19 -> 0 | G19: ='[1]Tabel 2 H DATA'!O19 -> 0 | I19: ='[1]Tabel 2 H DATA'!Q19 -> 0 | J19: ='[1]Tabel 2 H DATA'!R19 -> 0
A20: ='[1]Tabel 2 H DATA'!I20 -> Forstkand. | C20: ='[1]Tabel 2 H DATA'!K20 -> 2 | D20: ='[1]Tabel 2 H DATA'!L20 -> 1.999625772 | F20: ='[1]Tabel 2 H DATA'!N20 -> 0 | G20: ='[1]Tabel 2 H DATA'!O20 -> 0 | I20: ='[1]Tabel 2 H DATA'!Q20 -> 2 | J20: ='[1]Tabel 2 H DATA'!R20 -> 1.999625772
A21: ='[1]Tabel 2 H DATA'!I21 -> Jordbrugsakad. | C21: ='[1]Tabel 2 H DATA'!K21 -> 7 | D21: ='[1]Tabel 2 H DATA'!L21 -> 5.600948045 | F21: ='[1]Tabel 2 H DATA'!N21 -> 9 | G21: ='[1]Tabel 2 H DATA'!O21 -> 8.029065053 | I21: ='[1]Tabel 2 H DATA'!Q21 -> 16 | J21: ='[1]Tabel 2 H DATA'!R21 -> 13.6300131
A22: ='[1]Tabel 2 H DATA'!I22 -> Mejeriing. | C22: ='[1]Tabel 2 H DATA'!K22 -> 3 | D22: ='[1]Tabel 2 H DATA'!L22 -> 2.307116572 | F22: ='[1]Tabel 2 H DATA'!N22 -> 0 | G22: ='[1]Tabel 2 H DATA'!O22 -> 0 | I22: ='[1]Tabel 2 H DATA'!Q22 -> 3 | J22: ='[1]Tabel 2 H DATA'!R22 -> 2.307116572
A23: ='[1]Tabel 2 H DATA'!I23 -> Levn.m.kand. | C23: ='[1]Tabel 2 H DATA'!K23 -> 1 | D23: ='[1]Tabel 2 H DATA'!L23 -> 0.7840079835 | F23: ='[1]Tabel 2 H DATA'!N23 -> 1 | G23: ='[1]Tabel 2 H DATA'!O23 -> 0.9998128859 | I23: ='[1]Tabel 2 H DATA'!Q23 -> 2 | J23: ='[1]Tabel 2 H DATA'!R23 -> 1.783820869
A24: ='[1]Tabel 2 H DATA'!I24 -> Dyrlæge | C24: ='[1]Tabel 2 H DATA'!K24 -> 0 | D24: ='[1]Tabel 2 H DATA'!L24 -> 0 | F24: ='[1]Tabel 2 H DATA'!N24 -> 0 | G24: ='[1]Tabel 2 H DATA'!O24 -> 0 | I24: ='[1]Tabel 2 H DATA'!Q24 -> 0 | J24: ='[1]Tabel 2 H DATA'!R24 -> 0
A25: ='[1]Tabel 2 H DATA'!I25 -> Farmaceut | C25: ='[1]Tabel 2 H DATA'!K25 -> 6 | D25: ='[1]Tabel 2 H DATA'!L25 -> 5.860412898 | F25: ='[1]Tabel 2 H DATA'!N25 -> 15 | G25: ='[1]Tabel 2 H DATA'!O25 -> 12.6800973 | I25: ='[1]Tabel 2 H DATA'!Q25 -> 21 | J25: ='[1]Tabel 2 H DATA'!R25 -> 18.5405102
A26: ='[1]Tabel 2 H DATA'!I26 -> Læge | C26: ='[1]Tabel 2 H DATA'!K26 -> 13 | D26: ='[1]Tabel 2 H DATA'!L26 -> 11.41770099 | F26: ='[1]Tabel 2 H DATA'!N26 -> 48 | G26: ='[1]Tabel 2 H DATA'!O26 -> 39.75488056 | I26: ='[1]Tabel 2 H DATA'!Q26 -> 61 | J26: ='[1]Tabel 2 H DATA'!R26 -> 51.17258155
A27: ='[1]Tabel 2 H DATA'!I27 -> Tandlæge | C27: ='[1]Tabel 2 H DATA'!K27 -> 2 | D27: ='[1]Tabel 2 H DATA'!L27 -> 1.122684463 | F27: ='[1]Tabel 2 H DATA'!N27 -> 7 | G27: ='[1]Tabel 2 H DATA'!O27 -> 4.669743654 | I27: ='[1]Tabel 2 H DATA'!Q27 -> 9 | J27: ='[1]Tabel 2 H DATA'!R27 -> 5.792428117
A28: ='[1]Tabel 2 H DATA'!I28 -> Arkitekt | C28: ='[1]Tabel 2 H DATA'!K28 -> 54 | D28: ='[1]Tabel 2 H DATA'!L28 -> 49.04946049 | F28: ='[1]Tabel 2 H DATA'!N28 -> 90 | G28: ='[1]Tabel 2 H DATA'!O28 -> 79.9083141 | I28: ='[1]Tabel 2 H DATA'!Q28 -> 144 | J28: ='[1]Tabel 2 H DATA'!R28 -> 128.9577746
A29: ='[1]Tabel 2 H DATA'!I29 -> Landinspek. | C29: ='[1]Tabel 2 H DATA'!K29 -> 0 | D29: ='[1]Tabel 2 H DATA'!L29 -> 0 | F29: ='[1]Tabel 2 H DATA'!N29 -> 1 | G29: ='[1]Tabel 2 H DATA'!O29 -> 0.9998128859 | I29: ='[1]Tabel 2 H DATA'!Q29 -> 1 | J29: ='[1]Tabel 2 H DATA'!R29 -> 0.9998128859
A30: ='[1]Tabel 2 H DATA'!I30 -> Bibliotekar | C30: ='[1]Tabel 2 H DATA'!K30 -> 3 | D30: ='[1]Tabel 2 H DATA'!L30 -> 2.499220358 | F30: ='[1]Tabel 2 H DATA'!N30 -> 17 | G30: ='[1]Tabel 2 H DATA'!O30 -> 14.74957899 | I30: ='[1]Tabel 2 H DATA'!Q30 -> 20 | J30: ='[1]Tabel 2 H DATA'!R30 -> 17.24879935
A31: ='[1]Tabel 2 H DATA'!I31 -> Musikudd. | C31: ='[1]Tabel 2 H DATA'!K31 -> 4 | D31: ='[1]Tabel 2 H DATA'!L31 -> 3.237697249 | F31: ='[1]Tabel 2 H DATA'!N31 -> 6 | G31: ='[1]Tabel 2 H DATA'!O31 -> 5.274122123 | I31: ='[1]Tabel 2 H DATA'!Q31 -> 10 | J31: ='[1]Tabel 2 H DATA'!R31 -> 8.511819373
A32: ='[1]Tabel 2 H DATA'!I32 -> Teolog | C32: ='[1]Tabel 2 H DATA'!K32 -> 14 | D32: ='[1]Tabel 2 H DATA'!L32 -> 11.99401235 | F32: ='[1]Tabel 2 H DATA'!N32 -> 10 | G32: ='[1]Tabel 2 H DATA'!O32 -> 9.779829102 | I32: ='[1]Tabel 2 H DATA'!Q32 -> 24 | J32: ='[1]Tabel 2 H DATA'!R32 -> 21.77384145
A33: ='[1]Tabel 2 H DATA'!I33 -> Psykolog | C33: ='[1]Tabel 2 H DATA'!K33 -> 22 | D33: ='[1]Tabel 2 H DATA'!L33 -> 19.3207759 | F33: ='[1]Tabel 2 H DATA'!N33 -> 119 | G33: ='[1]Tabel 2 H DATA'!O33 -> 101.8081457 | I33: ='[1]Tabel 2 H DATA'!Q33 -> 141 | J33: ='[1]Tabel 2 H DATA'!R33 -> 121.1289216
A34: ='[1]Tabel 2 H DATA'!I34 -> Jurist | C34: ='[1]Tabel 2 H DATA'!K34 -> 27 | D34: ='[1]Tabel 2 H DATA'!L34 -> 26.08869207 | F34: ='[1]Tabel 2 H DATA'!N34 -> 40 | G34: ='[1]Tabel 2 H DATA'!O34 -> 35.50926215 | I34: ='[1]Tabel 2 H DATA'!Q34 -> 67 | J34: ='[1]Tabel 2 H DATA'!R34 -> 61.59795422
A35: ='[1]Tabel 2 H DATA'!I35 -> Økonom | C35: ='[1]Tabel 2 H DATA'!K35 -> 33 | D35: ='[1]Tabel 2 H DATA'!L35 -> 30.27942369 | F35: ='[1]Tabel 2 H DATA'!N35 -> 14 | G35: ='[1]Tabel 2 H DATA'!O35 -> 13.32626458 | I35: ='[1]Tabel 2 H DATA'!Q35 -> 47 | J35: ='[1]Tabel 2 H DATA'!R35 -> 43.60568827
A36: ='[1]Tabel 2 H DATA'!I36 -> Samf. Adm. | C36: ='[1]Tabel 2 H DATA'!K36 -> 121 | D36: ='[1]Tabel 2 H DATA'!L36 -> 108.6902015 | F36: ='[1]Tabel 2 H DATA'!N36 -> 167 | G36: ='[1]Tabel 2 H DATA'!O36 -> 143.2844758 | I36: ='[1]Tabel 2 H DATA'!Q36 -> 288 | J36: ='[1]Tabel 2 H DATA'!R36 -> 251.9746772
A37: ='[1]Tabel 2 H DATA'!I37 -> Cand. Merc. | C37: ='[1]Tabel 2 H DATA'!K37 -> 155 | D37: ='[1]Tabel 2 H DATA'!L37 -> 143.3848937 | F37: ='[1]Tabel 2 H DATA'!N37 -> 157 | G37: ='[1]Tabel 2 H DATA'!O37 -> 138.4357263 | I37: ='[1]Tabel 2 H DATA'!Q37 -> 312 | J37: ='[1]Tabel 2 H DATA'!R37 -> 281.82062
A38: ='[1]Tabel 2 H DATA'!I38 -> HA | C38: ='[1]Tabel 2 H DATA'!K38 -> 51 | D38: ='[1]Tabel 2 H DATA'!L38 -> 46.01509387 | F38: ='[1]Tabel 2 H DATA'!N38 -> 49 | G38: ='[1]Tabel 2 H DATA'!O38 -> 43.19777958 | I38: ='[1]Tabel 2 H DATA'!Q38 -> 100 | J38: ='[1]Tabel 2 H DATA'!R38 -> 89.21287345
A39: ='[1]Tabel 2 H DATA'!I39 -> HD | C39: ='[1]Tabel 2 H DATA'!K39 -> 25 | D39: ='[1]Tabel 2 H DATA'!L39 -> 22.22353895 | F39: ='[1]Tabel 2 H DATA'!N39 -> 30 | G39: ='[1]Tabel 2 H DATA'!O39 -> 23.73043099 | I39: ='[1]Tabel 2 H DATA'!Q39 -> 55 | J39: ='[1]Tabel 2 H DATA'!R39 -> 45.95396994
A40: ='[1]Tabel 2 H DATA'!I40 -> Komm. og Sprog | C40: ='[1]Tabel 2 H DATA'!K40 -> 32 | D40: ='[1]Tabel 2 H DATA'!L40 -> 28.1962203 | F40: ='[1]Tabel 2 H DATA'!N40 -> 96 | G40: ='[1]Tabel 2 H DATA'!O40 -> 84.40154681 | I40: ='[1]Tabel 2 H DATA'!Q40 -> 128 | J40: ='[1]Tabel 2 H DATA'!R40 -> 112.5977671
A41: ='[1]Tabel 2 H DATA'!I41 -> Bygningskonst. | C41: ='[1]Tabel 2 H DATA'!K41 -> 111 | D41: ='[1]Tabel 2 H DATA'!L41 -> 99.28491237 | F41: ='[1]Tabel 2 H DATA'!N41 -> 37 | G41: ='[1]Tabel 2 H DATA'!O41 -> 32.37653589 | I41: ='[1]Tabel 2 H DATA'!Q41 -> 148 | J41: ='[1]Tabel 2 H DATA'!R41 -> 131.6614483
A42: ='[1]Tabel 2 H DATA'!I42 -> Cand. IT. | C42: ='[1]Tabel 2 H DATA'!K42 -> 38 | D42: ='[1]Tabel 2 H DATA'!L42 -> 33.62439968 | F42: ='[1]Tabel 2 H DATA'!N42 -> 43 | G42: ='[1]Tabel 2 H DATA'!O42 -> 37.54256845 | I42: ='[1]Tabel 2 H DATA'!Q42 -> 81 | J42: ='[1]Tabel 2 H DATA'!R42 -> 71.16696813
A43: ='[1]Tabel 2 H DATA'!I43 -> Bac. Samf. | C43: ='[1]Tabel 2 H DATA'!K43 -> 8 | D43: ='[1]Tabel 2 H DATA'!L43 -> 7.998503087 | F43: ='[1]Tabel 2 H DATA'!N43 -> 15 | G43: ='[1]Tabel 2 H DATA'!O43 -> 13.26389322 | I43: ='[1]Tabel 2 H DATA'!Q43 -> 23 | J43: ='[1]Tabel 2 H DATA'!R43 -> 21.26239631
A44: ='[1]Tabel 2 H DATA'!I44 -> Bac. Hum. | C44: ='[1]Tabel 2 H DATA'!K44 -> 63 | D44: ='[1]Tabel 2 H DATA'!L44 -> 54.42774278 | F44: ='[1]Tabel 2 H DATA'!N44 -> 152 | G44: ='[1]Tabel 2 H DATA'!O44 -> 127.5219859 | I44: ='[1]Tabel 2 H DATA'!Q44 -> 215 | J44: ='[1]Tabel 2 H DATA'!R44 -> 181.9497287
A45: ='[1]Tabel 2 H DATA'!I45 -> Bac. Nat. | C45: ='[1]Tabel 2 H DATA'!K45 -> 83 | D45: ='[1]Tabel 2 H DATA'!L45 -> 72.42936444 | F45: ='[1]Tabel 2 H DATA'!N45 -> 38 | G45: ='[1]Tabel 2 H DATA'!O45 -> 34.22877815 | I45: ='[1]Tabel 2 H DATA'!Q45 -> 121 | J45: ='[1]Tabel 2 H DATA'!R45 -> 106.6581426
A46: ='[1]Tabel 2 H DATA'!I46 -> Andre | C46: ='[1]Tabel 2 H DATA'!K46 -> 115 | D46: ='[1]Tabel 2 H DATA'!L46 -> 102.0152186 | F46: ='[1]Tabel 2 H DATA'!N46 -> 173 | G46: ='[1]Tabel 2 H DATA'!O46 -> 153.983035 | I46: ='[1]Tabel 2 H DATA'!Q46 -> 288 | J46: ='[1]Tabel 2 H DATA'!R46 -> 255.9982536
A48: ='[1]Tabel 2 H DATA'!I48 -> Total | C48: ='[1]Tabel 2 H DATA'!K48 -> 2042 | D48: ='[1]Tabel 2 H DATA'!L48 -> 1843.52866 | F48: ='[1]Tabel 2 H DATA'!N48 -> 2605 | G48: ='[1]Tabel 2 H DATA'!O48 -> 2272.508763 | I48: ='[1]Tabel 2 H DATA'!Q48 -> 4647 | J48: ='[1]Tabel 2 H DATA'!R48 -> 4116.037423
A50: ='[1]Tabel 2 H DATA'!I50 -> Ingeniører i alt | C50: ='[1]Tabel 2 H DATA'!K50 -> 338 | D50: ='[1]Tabel 2 H DATA'!L50 -> 306.7142768 | F50: ='[1]Tabel 2 H DATA'!N50 -> 123 | G50: ='[1]Tabel 2 H DATA'!O50 -> 108.745712 | I50: ='[1]Tabel 2 H DATA'!Q50 -> 461 | J50: ='[1]Tabel 2 H DATA'!R50 -> 415.4599888
A51: ='[1]Tabel 2 H DATA'!I51 -> Magistre i alt | C51: ='[1]Tabel 2 H DATA'!K51 -> 548 | D51: ='[1]Tabel 2 H DATA'!L51 -> 499.9157987 | F51: ='[1]Tabel 2 H DATA'!N51 -> 1027 | G51: ='[1]Tabel 2 H DATA'!O51 -> 898.6640055 | I51: ='[1]Tabel 2 H DATA'!Q51 -> 1575 | J51: ='[1]Tabel 2 H DATA'!R51 -> 1398.579804
A52: ='[1]Tabel 2 H DATA'!I52 -> DJØF'ere i alt | C52: ='[1]Tabel 2 H DATA'!K52 -> 387 | D52: ='[1]Tabel 2 H DATA'!L52 -> 354.4583047 | F52: ='[1]Tabel 2 H DATA'!N52 -> 427 | G52: ='[1]Tabel 2 H DATA'!O52 -> 373.7535084 | I52: ='[1]Tabel 2 H DATA'!Q52 -> 814 | J52: ='[1]Tabel 2 H DATA'!R52 -> 728.2118131
A57: ='[1]Tabel 2 H DATA'!I54 -> Horsens
C59: ='[1]Tabel 2 H DATA'!K56 -> Mænd | F59: ='[1]Tabel 2 H DATA'!N56 -> Kvinder | I59: ='[1]Tabel 2 H DATA'!Q56 -> I alt
C60: ='[1]Tabel 2 H DATA'!K57 -> Ledigheds- berørte | D60: ='[1]Tabel 2 H DATA'!L57 -> Gns. brutto- ledighed | F60: ='[1]Tabel 2 H DATA'!N57 -> Ledigheds- berørte | G60: ='[1]Tabel 2 H DATA'!O57 -> Gns. brutto- ledighed | I60: ='[1]Tabel 2 H DATA'!Q57 -> Ledigheds- berørte | J60: ='[1]Tabel 2 H DATA'!R57 -> Gns. brutto- ledighed
A63: ='[1]Tabel 2 H DATA'!I60 -> Civ. ing. | C63: ='[1]Tabel 2 H DATA'!K60 -> 6 | D63: ='[1]Tabel 2 H DATA'!L60 -> 5.998877316 | F63: ='[1]Tabel 2 H DATA'!N60 -> 7 | G63: ='[1]Tabel 2 H DATA'!O60 -> 6.398677727 | I63: ='[1]Tabel 2 H DATA'!Q60 -> 13 | J63: ='[1]Tabel 2 H DATA'!R60 -> 12.39755504
A64: ='[1]Tabel 2 H DATA'!I61 -> Diplom ing. | C64: ='[1]Tabel 2 H DATA'!K61 -> 18 | D64: ='[1]Tabel 2 H DATA'!L61 -> 16.53714214 | F64: ='[1]Tabel 2 H DATA'!N61 -> 17 | G64: ='[1]Tabel 2 H DATA'!O61 -> 13.92877191 | I64: ='[1]Tabel 2 H DATA'!Q61 -> 35 | J64: ='[1]Tabel 2 H DATA'!R61 -> 30.46591405
A65: ='[1]Tabel 2 H DATA'!I62 -> Cand. Scient. Tek. | C65: ='[1]Tabel 2 H DATA'!K62 -> 4 | D65: ='[1]Tabel 2 H DATA'!L62 -> 3.902575937 | F65: ='[1]Tabel 2 H DATA'!N62 -> 3 | G65: ='[1]Tabel 2 H DATA'!O62 -> 2.812324581 | I65: ='[1]Tabel 2 H DATA'!Q62 -> 7 | J65: ='[1]Tabel 2 H DATA'!R62 -> 6.714900518
A66: ='[1]Tabel 2 H DATA'!I63 -> MA. Hum. | C66: ='[1]Tabel 2 H DATA'!K63 -> 10 | D66: ='[1]Tabel 2 H DATA'!L63 -> 7.759620782 | F66: ='[1]Tabel 2 H DATA'!N63 -> 31 | G66: ='[1]Tabel 2 H DATA'!O63 -> 26.22279049 | I66: ='[1]Tabel 2 H DATA'!Q63 -> 41 | J66: ='[1]Tabel 2 H DATA'!R63 -> 33.98241128
A67: ='[1]Tabel 2 H DATA'!I64 -> MA. Nat. | C67: ='[1]Tabel 2 H DATA'!K64 -> 0 | D67: ='[1]Tabel 2 H DATA'!L64 -> 0 | F67: ='[1]Tabel 2 H DATA'!N64 -> 2 | G67: ='[1]Tabel 2 H DATA'!O64 -> 1.999625772 | I67: ='[1]Tabel 2 H DATA'!Q64 -> 2 | J67: ='[1]Tabel 2 H DATA'!R64 -> 1.999625772
A68: ='[1]Tabel 2 H DATA'!I65 -> MA. Ph.d. | C68: ='[1]Tabel 2 H DATA'!K65 -> 0 | D68: ='[1]Tabel 2 H DATA'!L65 -> 0 | F68: ='[1]Tabel 2 H DATA'!N65 -> 0 | G68: ='[1]Tabel 2 H DATA'!O65 -> 0 | I68: ='[1]Tabel 2 H DATA'!Q65 -> 0 | J68: ='[1]Tabel 2 H DATA'!R65 -> 0
A69: ='[1]Tabel 2 H DATA'!I66 -> MA. Samf. | C69: ='[1]Tabel 2 H DATA'!K66 -> 0 | D69: ='[1]Tabel 2 H DATA'!L66 -> 0 | F69: ='[1]Tabel 2 H DATA'!N66 -> 2 | G69: ='[1]Tabel 2 H DATA'!O66 -> 1.999625772 | I69: ='[1]Tabel 2 H DATA'!Q66 -> 2 | J69: ='[1]Tabel 2 H DATA'!R66 -> 1.999625772
A70: ='[1]Tabel 2 H DATA'!I67 -> Øvrige Mag. | C70: ='[1]Tabel 2 H DATA'!K67 -> 3 | D70: ='[1]Tabel 2 H DATA'!L67 -> 1.97155866 | F70: ='[1]Tabel 2 H DATA'!N67 -> 0 | G70: ='[1]Tabel 2 H DATA'!O67 -> 0 | I70: ='[1]Tabel 2 H DATA'!Q67 -> 3 | J70: ='[1]Tabel 2 H DATA'!R67 -> 1.97155866
A71: ='[1]Tabel 2 H DATA'!I68 -> Agronom | C71: ='[1]Tabel 2 H DATA'!K68 -> 1 | D71: ='[1]Tabel 2 H DATA'!L68 -> 0.9998128859 | F71: ='[1]Tabel 2 H DATA'!N68 -> 1 | G71: ='[1]Tabel 2 H DATA'!O68 -> 0.9998128859 | I71: ='[1]Tabel 2 H DATA'!Q68 -> 2 | J71: ='[1]Tabel 2 H DATA'!R68 -> 1.999625772
A72: ='[1]Tabel 2 H DATA'!I69 -> Landsk. Arkt. | C72: ='[1]Tabel 2 H DATA'!K69 -> 0 | D72: ='[1]Tabel 2 H DATA'!L69 -> 0 | F72: ='[1]Tabel 2 H DATA'!N69 -> 0 | G72: ='[1]Tabel 2 H DATA'!O69 -> 0 | I72: ='[1]Tabel 2 H DATA'!Q69 -> 0 | J72: ='[1]Tabel 2 H DATA'!R69 -> 0
A73: ='[1]Tabel 2 H DATA'!I70 -> Hortonom | C73: ='[1]Tabel 2 H DATA'!K70 -> 0 | D73: ='[1]Tabel 2 H DATA'!L70 -> 0 | F73: ='[1]Tabel 2 H DATA'!N70 -> 0 | G73: ='[1]Tabel 2 H DATA'!O70 -> 0 | I73: ='[1]Tabel 2 H DATA'!Q70 -> 0 | J73: ='[1]Tabel 2 H DATA'!R70 -> 0
A74: ='[1]Tabel 2 H DATA'!I71 -> Forstkand. | C74: ='[1]Tabel 2 H DATA'!K71 -> 0 | D74: ='[1]Tabel 2 H DATA'!L71 -> 0 | F74: ='[1]Tabel 2 H DATA'!N71 -> 0 | G74: ='[1]Tabel 2 H DATA'!O71 -> 0 | I74: ='[1]Tabel 2 H DATA'!Q71 -> 0 | J74: ='[1]Tabel 2 H DATA'!R71 -> 0
A75: ='[1]Tabel 2 H DATA'!I72 -> Jordbrugsakad. | C75: ='[1]Tabel 2 H DATA'!K72 -> 1 | D75: ='[1]Tabel 2 H DATA'!L72 -> 0.9998128859 | F75: ='[1]Tabel 2 H DATA'!N72 -> 1 | G75: ='[1]Tabel 2 H DATA'!O72 -> 0.9998128859 | I75: ='[1]Tabel 2 H DATA'!Q72 -> 2 | J75: ='[1]Tabel 2 H DATA'!R72 -> 1.999625772
A76: ='[1]Tabel 2 H DATA'!I73 -> Mejeriing. | C76: ='[1]Tabel 2 H DATA'!K73 -> 0 | D76: ='[1]Tabel 2 H DATA'!L73 -> 0 | F76: ='[1]Tabel 2 H DATA'!N73 -> 0 | G76: ='[1]Tabel 2 H DATA'!O73 -> 0 | I76: ='[1]Tabel 2 H DATA'!Q73 -> 0 | J76: ='[1]Tabel 2 H DATA'!R73 -> 0
A77: ='[1]Tabel 2 H DATA'!I74 -> Levn.m.kand. | C77: ='[1]Tabel 2 H DATA'!K74 -> 0 | D77: ='[1]Tabel 2 H DATA'!L74 -> 0 | F77: ='[1]Tabel 2 H DATA'!N74 -> 0 | G77: ='[1]Tabel 2 H DATA'!O74 -> 0 | I77: ='[1]Tabel 2 H DATA'!Q74 -> 0 | J77: ='[1]Tabel 2 H DATA'!R74 -> 0
A78: ='[1]Tabel 2 H DATA'!I75 -> Dyrlæge | C78: ='[1]Tabel 2 H DATA'!K75 -> 0 | D78: ='[1]Tabel 2 H DATA'!L75 -> 0 | F78: ='[1]Tabel 2 H DATA'!N75 -> 0 | G78: ='[1]Tabel 2 H DATA'!O75 -> 0 | I78: ='[1]Tabel 2 H DATA'!Q75 -> 0 | J78: ='[1]Tabel 2 H DATA'!R75 -> 0
A79: ='[1]Tabel 2 H DATA'!I76 -> Farmaceut | C79: ='[1]Tabel 2 H DATA'!K76 -> 2 | D79: ='[1]Tabel 2 H DATA'!L76 -> 1.999625772 | F79: ='[1]Tabel 2 H DATA'!N76 -> 2 | G79: ='[1]Tabel 2 H DATA'!O76 -> 1.999625772 | I79: ='[1]Tabel 2 H DATA'!Q76 -> 4 | J79: ='[1]Tabel 2 H DATA'!R76 -> 3.999251544
A80: ='[1]Tabel 2 H DATA'!I77 -> Læge | C80: ='[1]Tabel 2 H DATA'!K77 -> 0 | D80: ='[1]Tabel 2 H DATA'!L77 -> 0 | F80: ='[1]Tabel 2 H DATA'!N77 -> 2 | G80: ='[1]Tabel 2 H DATA'!O77 -> 1.166344415 | I80: ='[1]Tabel 2 H DATA'!Q77 -> 2 | J80: ='[1]Tabel 2 H DATA'!R77 -> 1.166344415
A81: ='[1]Tabel 2 H DATA'!I78 -> Tandlæge | C81: ='[1]Tabel 2 H DATA'!K78 -> 0 | D81: ='[1]Tabel 2 H DATA'!L78 -> 0 | F81: ='[1]Tabel 2 H DATA'!N78 -> 0 | G81: ='[1]Tabel 2 H DATA'!O78 -> 0 | I81: ='[1]Tabel 2 H DATA'!Q78 -> 0 | J81: ='[1]Tabel 2 H DATA'!R78 -> 0
A82: ='[1]Tabel 2 H DATA'!I79 -> Arkitekt | C82: ='[1]Tabel 2 H DATA'!K79 -> 1 | D82: ='[1]Tabel 2 H DATA'!L79 -> 0.9998128859 | F82: ='[1]Tabel 2 H DATA'!N79 -> 2 | G82: ='[1]Tabel 2 H DATA'!O79 -> 1.97155866 | I82: ='[1]Tabel 2 H DATA'!Q79 -> 3 | J82: ='[1]Tabel 2 H DATA'!R79 -> 2.971371546
A83: ='[1]Tabel 2 H DATA'!I80 -> Landinspek. | C83: ='[1]Tabel 2 H DATA'!K80 -> 0 | D83: ='[1]Tabel 2 H DATA'!L80 -> 0 | F83: ='[1]Tabel 2 H DATA'!N80 -> 0 | G83: ='[1]Tabel 2 H DATA'!O80 -> 0 | I83: ='[1]Tabel 2 H DATA'!Q80 -> 0 | J83: ='[1]Tabel 2 H DATA'!R80 -> 0
A84: ='[1]Tabel 2 H DATA'!I81 -> Bibliotekar | C84: ='[1]Tabel 2 H DATA'!K81 -> 0 | D84: ='[1]Tabel 2 H DATA'!L81 -> 0 | F84: ='[1]Tabel 2 H DATA'!N81 -> 0 | G84: ='[1]Tabel 2 H DATA'!O81 -> 0 | I84: ='[1]Tabel 2 H DATA'!Q81 -> 0 | J84: ='[1]Tabel 2 H DATA'!R81 -> 0
A85: ='[1]Tabel 2 H DATA'!I82 -> Musikudd. | C85: ='[1]Tabel 2 H DATA'!K82 -> 1 | D85: ='[1]Tabel 2 H DATA'!L82 -> 0.9998128859 | F85: ='[1]Tabel 2 H DATA'!N82 -> 0 | G85: ='[1]Tabel 2 H DATA'!O82 -> 0 | I85: ='[1]Tabel 2 H DATA'!Q82 -> 1 | J85: ='[1]Tabel 2 H DATA'!R82 -> 0.9998128859
A86: ='[1]Tabel 2 H DATA'!I83 -> Teolog | C86: ='[1]Tabel 2 H DATA'!K83 -> 0 | D86: ='[1]Tabel 2 H DATA'!L83 -> 0 | F86: ='[1]Tabel 2 H DATA'!N83 -> 0 | G86: ='[1]Tabel 2 H DATA'!O83 -> 0 | I86: ='[1]Tabel 2 H DATA'!Q83 -> 0 | J86: ='[1]Tabel 2 H DATA'!R83 -> 0
A87: ='[1]Tabel 2 H DATA'!I84 -> Psykolog | C87: ='[1]Tabel 2 H DATA'!K84 -> 1 | D87: ='[1]Tabel 2 H DATA'!L84 -> 0.9998128859 | F87: ='[1]Tabel 2 H DATA'!N84 -> 5 | G87: ='[1]Tabel 2 H DATA'!O84 -> 4.768290401 | I87: ='[1]Tabel 2 H DATA'!Q84 -> 6 | J87: ='[1]Tabel 2 H DATA'!R84 -> 5.768103287
A88: ='[1]Tabel 2 H DATA'!I85 -> Jurist | C88: ='[1]Tabel 2 H DATA'!K85 -> 1 | D88: ='[1]Tabel 2 H DATA'!L85 -> 0.8613484688 | F88: ='[1]Tabel 2 H DATA'!N85 -> 0 | G88: ='[1]Tabel 2 H DATA'!O85 -> 0 | I88: ='[1]Tabel 2 H DATA'!Q85 -> 1 | J88: ='[1]Tabel 2 H DATA'!R85 -> 0.8613484688
A89: ='[1]Tabel 2 H DATA'!I86 -> Økonom | C89: ='[1]Tabel 2 H DATA'!K86 -> 0 | D89: ='[1]Tabel 2 H DATA'!L86 -> 0 | F89: ='[1]Tabel 2 H DATA'!N86 -> 0 | G89: ='[1]Tabel 2 H DATA'!O86 -> 0 | I89: ='[1]Tabel 2 H DATA'!Q86 -> 0 | J89: ='[1]Tabel 2 H DATA'!R86 -> 0
A90: ='[1]Tabel 2 H DATA'!I87 -> Samf. Adm. | C90: ='[1]Tabel 2 H DATA'!K87 -> 3 | D90: ='[1]Tabel 2 H DATA'!L87 -> 2.999438658 | F90: ='[1]Tabel 2 H DATA'!N87 -> 13 | G90: ='[1]Tabel 2 H DATA'!O87 -> 11.85617165 | I90: ='[1]Tabel 2 H DATA'!Q87 -> 16 | J90: ='[1]Tabel 2 H DATA'!R87 -> 14.8556103
A91: ='[1]Tabel 2 H DATA'!I88 -> Cand. Merc. | C91: ='[1]Tabel 2 H DATA'!K88 -> 7 | D91: ='[1]Tabel 2 H DATA'!L88 -> 6.998690201 | F91: ='[1]Tabel 2 H DATA'!N88 -> 11 | G91: ='[1]Tabel 2 H DATA'!O88 -> 8.947171459 | I91: ='[1]Tabel 2 H DATA'!Q88 -> 18 | J91: ='[1]Tabel 2 H DATA'!R88 -> 15.94586166
A92: ='[1]Tabel 2 H DATA'!I89 -> HA | C92: ='[1]Tabel 2 H DATA'!K89 -> 6 | D92: ='[1]Tabel 2 H DATA'!L89 -> 5.718829913 | F92: ='[1]Tabel 2 H DATA'!N89 -> 7 | G92: ='[1]Tabel 2 H DATA'!O89 -> 6.157300568 | I92: ='[1]Tabel 2 H DATA'!Q89 -> 13 | J92: ='[1]Tabel 2 H DATA'!R89 -> 11.87613048
A93: ='[1]Tabel 2 H DATA'!I90 -> HD | C93: ='[1]Tabel 2 H DATA'!K90 -> 3 | D93: ='[1]Tabel 2 H DATA'!L90 -> 2.999438658 | F93: ='[1]Tabel 2 H DATA'!N90 -> 1 | G93: ='[1]Tabel 2 H DATA'!O90 -> 0.9998128859 | I93: ='[1]Tabel 2 H DATA'!Q90 -> 4 | J93: ='[1]Tabel 2 H DATA'!R90 -> 3.999251544
A94: ='[1]Tabel 2 H DATA'!I91 -> Komm. og Sprog | C94: ='[1]Tabel 2 H DATA'!K91 -> 2 | D94: ='[1]Tabel 2 H DATA'!L91 -> 1.999625772 | F94: ='[1]Tabel 2 H DATA'!N91 -> 2 | G94: ='[1]Tabel 2 H DATA'!O91 -> 1.999625772 | I94: ='[1]Tabel 2 H DATA'!Q91 -> 4 | J94: ='[1]Tabel 2 H DATA'!R91 -> 3.999251544
A95: ='[1]Tabel 2 H DATA'!I92 -> Bygningskonst. | C95: ='[1]Tabel 2 H DATA'!K92 -> 18 | D95: ='[1]Tabel 2 H DATA'!L92 -> 16.70517059 | F95: ='[1]Tabel 2 H DATA'!N92 -> 15 | G95: ='[1]Tabel 2 H DATA'!O92 -> 12.71670929 | I95: ='[1]Tabel 2 H DATA'!Q92 -> 33 | J95: ='[1]Tabel 2 H DATA'!R92 -> 29.42187987
A96: ='[1]Tabel 2 H DATA'!I93 -> Cand. IT. | C96: ='[1]Tabel 2 H DATA'!K93 -> 1 | D96: ='[1]Tabel 2 H DATA'!L93 -> 0.9998128859 | F96: ='[1]Tabel 2 H DATA'!N93 -> 4 | G96: ='[1]Tabel 2 H DATA'!O93 -> 3.075531716 | I96: ='[1]Tabel 2 H DATA'!Q93 -> 5 | J96: ='[1]Tabel 2 H DATA'!R93 -> 4.075344602
A97: ='[1]Tabel 2 H DATA'!I94 -> Bac. Samf. | C97: ='[1]Tabel 2 H DATA'!K94 -> 1 | D97: ='[1]Tabel 2 H DATA'!L94 -> 0.9998128859 | F97: ='[1]Tabel 2 H DATA'!N94 -> 1 | G97: ='[1]Tabel 2 H DATA'!O94 -> 0.9998128859 | I97: ='[1]Tabel 2 H DATA'!Q94 -> 2 | J97: ='[1]Tabel 2 H DATA'!R94 -> 1.999625772
A98: ='[1]Tabel 2 H DATA'!I95 -> Bac. Hum. | C98: ='[1]Tabel 2 H DATA'!K95 -> 1 | D98: ='[1]Tabel 2 H DATA'!L95 -> 0.9998128859 | F98: ='[1]Tabel 2 H DATA'!N95 -> 6 | G98: ='[1]Tabel 2 H DATA'!O95 -> 5.227967317 | I98: ='[1]Tabel 2 H DATA'!Q95 -> 7 | J98: ='[1]Tabel 2 H DATA'!R95 -> 6.227780203
A99: ='[1]Tabel 2 H DATA'!I96 -> Bac. Nat. | C99: ='[1]Tabel 2 H DATA'!K96 -> 26 | D99: ='[1]Tabel 2 H DATA'!L96 -> 22.01397118 | F99: ='[1]Tabel 2 H DATA'!N96 -> 6 | G99: ='[1]Tabel 2 H DATA'!O96 -> 5.998877316 | I99: ='[1]Tabel 2 H DATA'!Q96 -> 32 | J99: ='[1]Tabel 2 H DATA'!R96 -> 28.0128485
A100: ='[1]Tabel 2 H DATA'!I97 -> Andre | C100: ='[1]Tabel 2 H DATA'!K97 -> 14 | D100: ='[1]Tabel 2 H DATA'!L97 -> 11.37528847 | F100: ='[1]Tabel 2 H DATA'!N97 -> 16 | G100: ='[1]Tabel 2 H DATA'!O97 -> 14.9653839 | I100: ='[1]Tabel 2 H DATA'!Q97 -> 30 | J100: ='[1]Tabel 2 H DATA'!R97 -> 26.34067236
A102: ='[1]Tabel 2 H DATA'!I99 -> Total | C102: ='[1]Tabel 2 H DATA'!K99 -> 130 | D102: ='[1]Tabel 2 H DATA'!L99 -> 116.8398927 | F102: ='[1]Tabel 2 H DATA'!N99 -> 156 | G102: ='[1]Tabel 2 H DATA'!O99 -> 137.2118131 | I102: ='[1]Tabel 2 H DATA'!Q99 -> 286 | J102: ='[1]Tabel 2 H DATA'!R99 -> 254.0517059
A104: ='[1]Tabel 2 H DATA'!I101 -> Ingeniører i alt | C104: ='[1]Tabel 2 H DATA'!K101 -> 24 | D104: ='[1]Tabel 2 H DATA'!L101 -> 22.53601946 | F104: ='[1]Tabel 2 H DATA'!N101 -> 24 | G104: ='[1]Tabel 2 H DATA'!O101 -> 20.32744964 | I104: ='[1]Tabel 2 H DATA'!Q101 -> 48 | J104: ='[1]Tabel 2 H DATA'!R101 -> 42.86346909
A105: ='[1]Tabel 2 H DATA'!I102 -> Magistre i alt | C105: ='[1]Tabel 2 H DATA'!K102 -> 13 | D105: ='[1]Tabel 2 H DATA'!L102 -> 9.731179442 | F105: ='[1]Tabel 2 H DATA'!N102 -> 35 | G105: ='[1]Tabel 2 H DATA'!O102 -> 30.22204204 | I105: ='[1]Tabel 2 H DATA'!Q102 -> 48 | J105: ='[1]Tabel 2 H DATA'!R102 -> 39.95322148
A106: ='[1]Tabel 2 H DATA'!I103 -> DJØF'ere i alt | C106: ='[1]Tabel 2 H DATA'!K103 -> 17 | D106: ='[1]Tabel 2 H DATA'!L103 -> 16.57830724 | F106: ='[1]Tabel 2 H DATA'!N103 -> 31 | G106: ='[1]Tabel 2 H DATA'!O103 -> 26.96064367 | I106: ='[1]Tabel 2 H DATA'!Q103 -> 48 | J106: ='[1]Tabel 2 H DATA'!R103 -> 43.53895091
A111: ='[1]Tabel 2 H DATA'!I106 -> Syddjurs
C113: ='[1]Tabel 2 H DATA'!K108 -> Mænd | F113: ='[1]Tabel 2 H DATA'!N108 -> Kvinder | I113: ='[1]Tabel 2 H DATA'!Q108 -> I alt
C114: ='[1]Tabel 2 H DATA'!K109 -> Ledigheds- berørte | D114: ='[1]Tabel 2 H DATA'!L109 -> Gns. brutto- ledighed | F114: ='[1]Tabel 2 H DATA'!N109 -> Ledigheds- berørte | G114: ='[1]Tabel 2 H DATA'!O109 -> Gns. brutto- ledighed | I114: ='[1]Tabel 2 H DATA'!Q109 -> Ledigheds- berørte | J114: ='[1]Tabel 2 H DATA'!R109 -> Gns. brutto- ledighed
A117: ='[1]Tabel 2 H DATA'!I112 -> Civ. ing. | C117: ='[1]Tabel 2 H DATA'!K112 -> 2 | D117: ='[1]Tabel 2 H DATA'!L112 -> 1.999625772 | F117: ='[1]Tabel 2 H DATA'!N112 -> 1 | G117: ='[1]Tabel 2 H DATA'!O112 -> 0.9998128859 | I117: ='[1]Tabel 2 H DATA'!Q112 -> 3 | J117: ='[1]Tabel 2 H DATA'!R112 -> 2.999438658
A118: ='[1]Tabel 2 H DATA'!I113 -> Diplom ing. | C118: ='[1]Tabel 2 H DATA'!K113 -> 3 | D118: ='[1]Tabel 2 H DATA'!L113 -> 2.380091062 | F118: ='[1]Tabel 2 H DATA'!N113 -> 1 | G118: ='[1]Tabel 2 H DATA'!O113 -> 0.4459552174 | I118: ='[1]Tabel 2 H DATA'!Q113 -> 4 | J118: ='[1]Tabel 2 H DATA'!R113 -> 2.82604628
A119: ='[1]Tabel 2 H DATA'!I114 -> Cand. Scient. Tek. | C119: ='[1]Tabel 2 H DATA'!K114 -> 2 | D119: ='[1]Tabel 2 H DATA'!L114 -> 1.953470966 | F119: ='[1]Tabel 2 H DATA'!N114 -> 3 | G119: ='[1]Tabel 2 H DATA'!O114 -> 2.999438658 | I119: ='[1]Tabel 2 H DATA'!Q114 -> 5 | J119: ='[1]Tabel 2 H DATA'!R114 -> 4.952909624
A120: ='[1]Tabel 2 H DATA'!I115 -> MA. Hum. | C120: ='[1]Tabel 2 H DATA'!K115 -> 8 | D120: ='[1]Tabel 2 H DATA'!L115 -> 7.15648974 | F120: ='[1]Tabel 2 H DATA'!N115 -> 21 | G120: ='[1]Tabel 2 H DATA'!O115 -> 17.51200649 | I120: ='[1]Tabel 2 H DATA'!Q115 -> 29 | J120: ='[1]Tabel 2 H DATA'!R115 -> 24.66849623
A121: ='[1]Tabel 2 H DATA'!I116 -> MA. Nat. | C121: ='[1]Tabel 2 H DATA'!K116 -> 3 | D121: ='[1]Tabel 2 H DATA'!L116 -> 2.722509823 | F121: ='[1]Tabel 2 H DATA'!N116 -> 3 | G121: ='[1]Tabel 2 H DATA'!O116 -> 2.450570698 | I121: ='[1]Tabel 2 H DATA'!Q116 -> 6 | J121: ='[1]Tabel 2 H DATA'!R116 -> 5.173080521
A122: ='[1]Tabel 2 H DATA'!I117 -> MA. Ph.d. | C122: ='[1]Tabel 2 H DATA'!K117 -> 1 | D122: ='[1]Tabel 2 H DATA'!L117 -> 0.9998128859 | F122: ='[1]Tabel 2 H DATA'!N117 -> 1 | G122: ='[1]Tabel 2 H DATA'!O117 -> 0.9998128859 | I122: ='[1]Tabel 2 H DATA'!Q117 -> 2 | J122: ='[1]Tabel 2 H DATA'!R117 -> 1.999625772
A123: ='[1]Tabel 2 H DATA'!I118 -> MA. Samf. | C123: ='[1]Tabel 2 H DATA'!K118 -> 1 | D123: ='[1]Tabel 2 H DATA'!L118 -> 0.9998128859 | F123: ='[1]Tabel 2 H DATA'!N118 -> 4 | G123: ='[1]Tabel 2 H DATA'!O118 -> 3.56265203 | I123: ='[1]Tabel 2 H DATA'!Q118 -> 5 | J123: ='[1]Tabel 2 H DATA'!R118 -> 4.562464916
A124: ='[1]Tabel 2 H DATA'!I119 -> Øvrige Mag. | C124: ='[1]Tabel 2 H DATA'!K119 -> 1 | D124: ='[1]Tabel 2 H DATA'!L119 -> 0.9998128859 | F124: ='[1]Tabel 2 H DATA'!N119 -> 2 | G124: ='[1]Tabel 2 H DATA'!O119 -> 1.500031186 | I124: ='[1]Tabel 2 H DATA'!Q119 -> 3 | J124: ='[1]Tabel 2 H DATA'!R119 -> 2.499844072
A125: ='[1]Tabel 2 H DATA'!I120 -> Agronom | C125: ='[1]Tabel 2 H DATA'!K120 -> 0 | D125: ='[1]Tabel 2 H DATA'!L120 -> 0 | F125: ='[1]Tabel 2 H DATA'!N120 -> 0 | G125: ='[1]Tabel 2 H DATA'!O120 -> 0 | I125: ='[1]Tabel 2 H DATA'!Q120 -> 0 | J125: ='[1]Tabel 2 H DATA'!R120 -> 0
A126: ='[1]Tabel 2 H DATA'!I121 -> Landsk. Arkt. | C126: ='[1]Tabel 2 H DATA'!K121 -> 0 | D126: ='[1]Tabel 2 H DATA'!L121 -> 0 | F126: ='[1]Tabel 2 H DATA'!N121 -> 0 | G126: ='[1]Tabel 2 H DATA'!O121 -> 0 | I126: ='[1]Tabel 2 H DATA'!Q121 -> 0 | J126: ='[1]Tabel 2 H DATA'!R121 -> 0
A127: ='[1]Tabel 2 H DATA'!I122 -> Hortonom | C127: ='[1]Tabel 2 H DATA'!K122 -> 0 | D127: ='[1]Tabel 2 H DATA'!L122 -> 0 | F127: ='[1]Tabel 2 H DATA'!N122 -> 0 | G127: ='[1]Tabel 2 H DATA'!O122 -> 0 | I127: ='[1]Tabel 2 H DATA'!Q122 -> 0 | J127: ='[1]Tabel 2 H DATA'!R122 -> 0
A128: ='[1]Tabel 2 H DATA'!I123 -> Forstkand. | C128: ='[1]Tabel 2 H DATA'!K123 -> 1 | D128: ='[1]Tabel 2 H DATA'!L123 -> 0.9998128859 | F128: ='[1]Tabel 2 H DATA'!N123 -> 0 | G128: ='[1]Tabel 2 H DATA'!O123 -> 0 | I128: ='[1]Tabel 2 H DATA'!Q123 -> 1 | J128: ='[1]Tabel 2 H DATA'!R123 -> 0.9998128859
A129: ='[1]Tabel 2 H DATA'!I124 -> Jordbrugsakad. | C129: ='[1]Tabel 2 H DATA'!K124 -> 1 | D129: ='[1]Tabel 2 H DATA'!L124 -> 0.9998128859 | F129: ='[1]Tabel 2 H DATA'!N124 -> 0 | G129: ='[1]Tabel 2 H DATA'!O124 -> 0 | I129: ='[1]Tabel 2 H DATA'!Q124 -> 1 | J129: ='[1]Tabel 2 H DATA'!R124 -> 0.9998128859
A130: ='[1]Tabel 2 H DATA'!I125 -> Mejeriing. | C130: ='[1]Tabel 2 H DATA'!K125 -> 1 | D130: ='[1]Tabel 2 H DATA'!L125 -> 0.3074908002 | F130: ='[1]Tabel 2 H DATA'!N125 -> 0 | G130: ='[1]Tabel 2 H DATA'!O125 -> 0 | I130: ='[1]Tabel 2 H DATA'!Q125 -> 1 | J130: ='[1]Tabel 2 H DATA'!R125 -> 0.3074908002
A131: ='[1]Tabel 2 H DATA'!I126 -> Levn.m.kand. | C131: ='[1]Tabel 2 H DATA'!K126 -> 0 | D131: ='[1]Tabel 2 H DATA'!L126 -> 0 | F131: ='[1]Tabel 2 H DATA'!N126 -> 0 | G131: ='[1]Tabel 2 H DATA'!O126 -> 0 | I131: ='[1]Tabel 2 H DATA'!Q126 -> 0 | J131: ='[1]Tabel 2 H DATA'!R126 -> 0
A132: ='[1]Tabel 2 H DATA'!I127 -> Dyrlæge | C132: ='[1]Tabel 2 H DATA'!K127 -> 0 | D132: ='[1]Tabel 2 H DATA'!L127 -> 0 | F132: ='[1]Tabel 2 H DATA'!N127 -> 0 | G132: ='[1]Tabel 2 H DATA'!O127 -> 0 | I132: ='[1]Tabel 2 H DATA'!Q127 -> 0 | J132: ='[1]Tabel 2 H DATA'!R127 -> 0
A133: ='[1]Tabel 2 H DATA'!I128 -> Farmaceut | C133: ='[1]Tabel 2 H DATA'!K128 -> 0 | D133: ='[1]Tabel 2 H DATA'!L128 -> 0 | F133: ='[1]Tabel 2 H DATA'!N128 -> 0 | G133: ='[1]Tabel 2 H DATA'!O128 -> 0 | I133: ='[1]Tabel 2 H DATA'!Q128 -> 0 | J133: ='[1]Tabel 2 H DATA'!R128 -> 0
A134: ='[1]Tabel 2 H DATA'!I129 -> Læge | C134: ='[1]Tabel 2 H DATA'!K129 -> 0 | D134: ='[1]Tabel 2 H DATA'!L129 -> 0 | F134: ='[1]Tabel 2 H DATA'!N129 -> 2 | G134: ='[1]Tabel 2 H DATA'!O129 -> 1.999625772 | I134: ='[1]Tabel 2 H DATA'!Q129 -> 2 | J134: ='[1]Tabel 2 H DATA'!R129 -> 1.999625772
A135: ='[1]Tabel 2 H DATA'!I130 -> Tandlæge | C135: ='[1]Tabel 2 H DATA'!K130 -> 0 | D135: ='[1]Tabel 2 H DATA'!L130 -> 0 | F135: ='[1]Tabel 2 H DATA'!N130 -> 0 | G135: ='[1]Tabel 2 H DATA'!O130 -> 0 | I135: ='[1]Tabel 2 H DATA'!Q130 -> 0 | J135: ='[1]Tabel 2 H DATA'!R130 -> 0
A136: ='[1]Tabel 2 H DATA'!I131 -> Arkitekt | C136: ='[1]Tabel 2 H DATA'!K131 -> 0 | D136: ='[1]Tabel 2 H DATA'!L131 -> 0 | F136: ='[1]Tabel 2 H DATA'!N131 -> 6 | G136: ='[1]Tabel 2 H DATA'!O131 -> 5.747520738 | I136: ='[1]Tabel 2 H DATA'!Q131 -> 6 | J136: ='[1]Tabel 2 H DATA'!R131 -> 5.747520738
A137: ='[1]Tabel 2 H DATA'!I132 -> Landinspek. | C137: ='[1]Tabel 2 H DATA'!K132 -> 0 | D137: ='[1]Tabel 2 H DATA'!L132 -> 0 | F137: ='[1]Tabel 2 H DATA'!N132 -> 0 | G137: ='[1]Tabel 2 H DATA'!O132 -> 0 | I137: ='[1]Tabel 2 H DATA'!Q132 -> 0 | J137: ='[1]Tabel 2 H DATA'!R132 -> 0
A138: ='[1]Tabel 2 H DATA'!I133 -> Bibliotekar | C138: ='[1]Tabel 2 H DATA'!K133 -> 0 | D138: ='[1]Tabel 2 H DATA'!L133 -> 0 | F138: ='[1]Tabel 2 H DATA'!N133 -> 2 | G138: ='[1]Tabel 2 H DATA'!O133 -> 1.999625772 | I138: ='[1]Tabel 2 H DATA'!Q133 -> 2 | J138: ='[1]Tabel 2 H DATA'!R133 -> 1.999625772
A139: ='[1]Tabel 2 H DATA'!I134 -> Musikudd. | C139: ='[1]Tabel 2 H DATA'!K134 -> 0 | D139: ='[1]Tabel 2 H DATA'!L134 -> 0 | F139: ='[1]Tabel 2 H DATA'!N134 -> 0 | G139: ='[1]Tabel 2 H DATA'!O134 -> 0 | I139: ='[1]Tabel 2 H DATA'!Q134 -> 0 | J139: ='[1]Tabel 2 H DATA'!R134 -> 0
A140: ='[1]Tabel 2 H DATA'!I135 -> Teolog | C140: ='[1]Tabel 2 H DATA'!K135 -> 0 | D140: ='[1]Tabel 2 H DATA'!L135 -> 0 | F140: ='[1]Tabel 2 H DATA'!N135 -> 1 | G140: ='[1]Tabel 2 H DATA'!O135 -> 0.9998128859 | I140: ='[1]Tabel 2 H DATA'!Q135 -> 1 | J140: ='[1]Tabel 2 H DATA'!R135 -> 0.9998128859
A141: ='[1]Tabel 2 H DATA'!I136 -> Psykolog | C141: ='[1]Tabel 2 H DATA'!K136 -> 0 | D141: ='[1]Tabel 2 H DATA'!L136 -> 0 | F141: ='[1]Tabel 2 H DATA'!N136 -> 3 | G141: ='[1]Tabel 2 H DATA'!O136 -> 1.791305433 | I141: ='[1]Tabel 2 H DATA'!Q136 -> 3 | J141: ='[1]Tabel 2 H DATA'!R136 -> 1.791305433
A142: ='[1]Tabel 2 H DATA'!I137 -> Jurist | C142: ='[1]Tabel 2 H DATA'!K137 -> 0 | D142: ='[1]Tabel 2 H DATA'!L137 -> 0 | F142: ='[1]Tabel 2 H DATA'!N137 -> 0 | G142: ='[1]Tabel 2 H DATA'!O137 -> 0 | I142: ='[1]Tabel 2 H DATA'!Q137 -> 0 | J142: ='[1]Tabel 2 H DATA'!R137 -> 0
A143: ='[1]Tabel 2 H DATA'!I138 -> Økonom | C143: ='[1]Tabel 2 H DATA'!K138 -> 2 | D143: ='[1]Tabel 2 H DATA'!L138 -> 1.999625772 | F143: ='[1]Tabel 2 H DATA'!N138 -> 0 | G143: ='[1]Tabel 2 H DATA'!O138 -> 0 | I143: ='[1]Tabel 2 H DATA'!Q138 -> 2 | J143: ='[1]Tabel 2 H DATA'!R138 -> 1.999625772
A144: ='[1]Tabel 2 H DATA'!I139 -> Samf. Adm. | C144: ='[1]Tabel 2 H DATA'!K139 -> 3 | D144: ='[1]Tabel 2 H DATA'!L139 -> 1.922909 | F144: ='[1]Tabel 2 H DATA'!N139 -> 4 | G144: ='[1]Tabel 2 H DATA'!O139 -> 3.768477515 | I144: ='[1]Tabel 2 H DATA'!Q139 -> 7 | J144: ='[1]Tabel 2 H DATA'!R139 -> 5.691386515
A145: ='[1]Tabel 2 H DATA'!I140 -> Cand. Merc. | C145: ='[1]Tabel 2 H DATA'!K140 -> 5 | D145: ='[1]Tabel 2 H DATA'!L140 -> 4.537516372 | F145: ='[1]Tabel 2 H DATA'!N140 -> 2 | G145: ='[1]Tabel 2 H DATA'!O140 -> 1.125803031 | I145: ='[1]Tabel 2 H DATA'!Q140 -> 7 | J145: ='[1]Tabel 2 H DATA'!R140 -> 5.663319404
A146: ='[1]Tabel 2 H DATA'!I141 -> HA | C146: ='[1]Tabel 2 H DATA'!K141 -> 1 | D146: ='[1]Tabel 2 H DATA'!L141 -> 0.9998128859 | F146: ='[1]Tabel 2 H DATA'!N141 -> 2 | G146: ='[1]Tabel 2 H DATA'!O141 -> 1.50252604 | I146: ='[1]Tabel 2 H DATA'!Q141 -> 3 | J146: ='[1]Tabel 2 H DATA'!R141 -> 2.502338926
A147: ='[1]Tabel 2 H DATA'!I142 -> HD | C147: ='[1]Tabel 2 H DATA'!K142 -> 1 | D147: ='[1]Tabel 2 H DATA'!L142 -> 0.9998128859 | F147: ='[1]Tabel 2 H DATA'!N142 -> 0 | G147: ='[1]Tabel 2 H DATA'!O142 -> 0 | I147: ='[1]Tabel 2 H DATA'!Q142 -> 1 | J147: ='[1]Tabel 2 H DATA'!R142 -> 0.9998128859
A148: ='[1]Tabel 2 H DATA'!I143 -> Komm. og Sprog | C148: ='[1]Tabel 2 H DATA'!K143 -> 1 | D148: ='[1]Tabel 2 H DATA'!L143 -> 0.9998128859 | F148: ='[1]Tabel 2 H DATA'!N143 -> 3 | G148: ='[1]Tabel 2 H DATA'!O143 -> 2.860974241 | I148: ='[1]Tabel 2 H DATA'!Q143 -> 4 | J148: ='[1]Tabel 2 H DATA'!R143 -> 3.860787127
A149: ='[1]Tabel 2 H DATA'!I144 -> Bygningskonst. | C149: ='[1]Tabel 2 H DATA'!K144 -> 1 | D149: ='[1]Tabel 2 H DATA'!L144 -> 1 | F149: ='[1]Tabel 2 H DATA'!N144 -> 0 | G149: ='[1]Tabel 2 H DATA'!O144 -> 0 | I149: ='[1]Tabel 2 H DATA'!Q144 -> 1 | J149: ='[1]Tabel 2 H DATA'!R144 -> 1
A150: ='[1]Tabel 2 H DATA'!I145 -> Cand. IT. | C150: ='[1]Tabel 2 H DATA'!K145 -> 1 | D150: ='[1]Tabel 2 H DATA'!L145 -> 0.9998128859 | F150: ='[1]Tabel 2 H DATA'!N145 -> 0 | G150: ='[1]Tabel 2 H DATA'!O145 -> 0 | I150: ='[1]Tabel 2 H DATA'!Q145 -> 1 | J150: ='[1]Tabel 2 H DATA'!R145 -> 0.9998128859
A151: ='[1]Tabel 2 H DATA'!I146 -> Bac. Samf. | C151: ='[1]Tabel 2 H DATA'!K146 -> 0 | D151: ='[1]Tabel 2 H DATA'!L146 -> 0 | F151: ='[1]Tabel 2 H DATA'!N146 -> 0 | G151: ='[1]Tabel 2 H DATA'!O146 -> 0 | I151: ='[1]Tabel 2 H DATA'!Q146 -> 0 | J151: ='[1]Tabel 2 H DATA'!R146 -> 0
A152: ='[1]Tabel 2 H DATA'!I147 -> Bac. Hum. | C152: ='[1]Tabel 2 H DATA'!K147 -> 1 | D152: ='[1]Tabel 2 H DATA'!L147 -> 0.9998128859 | F152: ='[1]Tabel 2 H DATA'!N147 -> 3 | G152: ='[1]Tabel 2 H DATA'!O147 -> 2.899644483 | I152: ='[1]Tabel 2 H DATA'!Q147 -> 4 | J152: ='[1]Tabel 2 H DATA'!R147 -> 3.899457369
A153: ='[1]Tabel 2 H DATA'!I148 -> Bac. Nat. | C153: ='[1]Tabel 2 H DATA'!K148 -> 1 | D153: ='[1]Tabel 2 H DATA'!L148 -> 0.9998128859 | F153: ='[1]Tabel 2 H DATA'!N148 -> 0 | G153: ='[1]Tabel 2 H DATA'!O148 -> 0 | I153: ='[1]Tabel 2 H DATA'!Q148 -> 1 | J153: ='[1]Tabel 2 H DATA'!R148 -> 0.9998128859
A154: ='[1]Tabel 2 H DATA'!I149 -> Andre | C154: ='[1]Tabel 2 H DATA'!K149 -> 5 | D154: ='[1]Tabel 2 H DATA'!L149 -> 4.749578993 | F154: ='[1]Tabel 2 H DATA'!N149 -> 5 | G154: ='[1]Tabel 2 H DATA'!O149 -> 4.502588411 | I154: ='[1]Tabel 2 H DATA'!Q149 -> 10 | J154: ='[1]Tabel 2 H DATA'!R149 -> 9.252167405
A156: ='[1]Tabel 2 H DATA'!I151 -> Total | C156: ='[1]Tabel 2 H DATA'!K151 -> 45 | D156: ='[1]Tabel 2 H DATA'!L151 -> 40.72743716 | F156: ='[1]Tabel 2 H DATA'!N151 -> 69 | G156: ='[1]Tabel 2 H DATA'!O151 -> 59.66818437 | I156: ='[1]Tabel 2 H DATA'!Q151 -> 114 | J156: ='[1]Tabel 2 H DATA'!R151 -> 100.3956215
A158: ='[1]Tabel 2 H DATA'!I153 -> Ingeniører i alt | C158: ='[1]Tabel 2 H DATA'!K153 -> 5 | D158: ='[1]Tabel 2 H DATA'!L153 -> 4.379716834 | F158: ='[1]Tabel 2 H DATA'!N153 -> 2 | G158: ='[1]Tabel 2 H DATA'!O153 -> 1.445768103 | I158: ='[1]Tabel 2 H DATA'!Q153 -> 7 | J158: ='[1]Tabel 2 H DATA'!R153 -> 5.825484937
A159: ='[1]Tabel 2 H DATA'!I154 -> Magistre i alt | C159: ='[1]Tabel 2 H DATA'!K154 -> 14 | D159: ='[1]Tabel 2 H DATA'!L154 -> 12.87843822 | F159: ='[1]Tabel 2 H DATA'!N154 -> 31 | G159: ='[1]Tabel 2 H DATA'!O154 -> 26.02507329 | I159: ='[1]Tabel 2 H DATA'!Q154 -> 45 | J159: ='[1]Tabel 2 H DATA'!R154 -> 38.90351151
A160: ='[1]Tabel 2 H DATA'!I155 -> DJØF'ere i alt | C160: ='[1]Tabel 2 H DATA'!K155 -> 11 | D160: ='[1]Tabel 2 H DATA'!L155 -> 9.45986403 | F160: ='[1]Tabel 2 H DATA'!N155 -> 8 | G160: ='[1]Tabel 2 H DATA'!O155 -> 6.396806586 | I160: ='[1]Tabel 2 H DATA'!Q155 -> 19 | J160: ='[1]Tabel 2 H DATA'!R155 -> 15.85667062
A165: ='[1]Tabel 2 H DATA'!I158 -> Norddjurs
C167: ='[1]Tabel 2 H DATA'!K160 -> Mænd | F167: ='[1]Tabel 2 H DATA'!N160 -> Kvinder | I167: ='[1]Tabel 2 H DATA'!Q160 -> I alt
C168: ='[1]Tabel 2 H DATA'!K161 -> Ledigheds- berørte | D168: ='[1]Tabel 2 H DATA'!L161 -> Gns. brutto- ledighed | F168: ='[1]Tabel 2 H DATA'!N161 -> Ledigheds- berørte | G168: ='[1]Tabel 2 H DATA'!O161 -> Gns. brutto- ledighed | I168: ='[1]Tabel 2 H DATA'!Q161 -> Ledigheds- berørte | J168: ='[1]Tabel 2 H DATA'!R161 -> Gns. brutto- ledighed
A171: ='[1]Tabel 2 H DATA'!I164 -> Civ. ing. | C171: ='[1]Tabel 2 H DATA'!K164 -> 0 | D171: ='[1]Tabel 2 H DATA'!L164 -> 0 | F171: ='[1]Tabel 2 H DATA'!N164 -> 0 | G171: ='[1]Tabel 2 H DATA'!O164 -> 0 | I171: ='[1]Tabel 2 H DATA'!Q164 -> 0 | J171: ='[1]Tabel 2 H DATA'!R164 -> 0
A172: ='[1]Tabel 2 H DATA'!I165 -> Diplom ing. | C172: ='[1]Tabel 2 H DATA'!K165 -> 1 | D172: ='[1]Tabel 2 H DATA'!L165 -> 0.9998128859 | F172: ='[1]Tabel 2 H DATA'!N165 -> 0 | G172: ='[1]Tabel 2 H DATA'!O165 -> 0 | I172: ='[1]Tabel 2 H DATA'!Q165 -> 1 | J172: ='[1]Tabel 2 H DATA'!R165 -> 0.9998128859
A173: ='[1]Tabel 2 H DATA'!I166 -> Cand. Scient. Tek. | C173: ='[1]Tabel 2 H DATA'!K166 -> 1 | D173: ='[1]Tabel 2 H DATA'!L166 -> 0.9998128859 | F173: ='[1]Tabel 2 H DATA'!N166 -> 0 | G173: ='[1]Tabel 2 H DATA'!O166 -> 0 | I173: ='[1]Tabel 2 H DATA'!Q166 -> 1 | J173: ='[1]Tabel 2 H DATA'!R166 -> 0.9998128859
A174: ='[1]Tabel 2 H DATA'!I167 -> MA. Hum. | C174: ='[1]Tabel 2 H DATA'!K167 -> 1 | D174: ='[1]Tabel 2 H DATA'!L167 -> 0.9998128859 | F174: ='[1]Tabel 2 H DATA'!N167 -> 2 | G174: ='[1]Tabel 2 H DATA'!O167 -> 1.354705919 | I174: ='[1]Tabel 2 H DATA'!Q167 -> 3 | J174: ='[1]Tabel 2 H DATA'!R167 -> 2.354518805
A175: ='[1]Tabel 2 H DATA'!I168 -> MA. Nat. | C175: ='[1]Tabel 2 H DATA'!K168 -> 1 | D175: ='[1]Tabel 2 H DATA'!L168 -> 0.9998128859 | F175: ='[1]Tabel 2 H DATA'!N168 -> 2 | G175: ='[1]Tabel 2 H DATA'!O168 -> 1.475706356 | I175: ='[1]Tabel 2 H DATA'!Q168 -> 3 | J175: ='[1]Tabel 2 H DATA'!R168 -> 2.475519242
A176: ='[1]Tabel 2 H DATA'!I169 -> MA. Ph.d. | C176: ='[1]Tabel 2 H DATA'!K169 -> 1 | D176: ='[1]Tabel 2 H DATA'!L169 -> 0.9998128859 | F176: ='[1]Tabel 2 H DATA'!N169 -> 0 | G176: ='[1]Tabel 2 H DATA'!O169 -> 0 | I176: ='[1]Tabel 2 H DATA'!Q169 -> 1 | J176: ='[1]Tabel 2 H DATA'!R169 -> 0.9998128859
A177: ='[1]Tabel 2 H DATA'!I170 -> MA. Samf. | C177: ='[1]Tabel 2 H DATA'!K170 -> 0 | D177: ='[1]Tabel 2 H DATA'!L170 -> 0 | F177: ='[1]Tabel 2 H DATA'!N170 -> 0 | G177: ='[1]Tabel 2 H DATA'!O170 -> 0 | I177: ='[1]Tabel 2 H DATA'!Q170 -> 0 | J177: ='[1]Tabel 2 H DATA'!R170 -> 0
A178: ='[1]Tabel 2 H DATA'!I171 -> Øvrige Mag. | C178: ='[1]Tabel 2 H DATA'!K171 -> 0 | D178: ='[1]Tabel 2 H DATA'!L171 -> 0 | F178: ='[1]Tabel 2 H DATA'!N171 -> 1 | G178: ='[1]Tabel 2 H DATA'!O171 -> 0.9998128859 | I178: ='[1]Tabel 2 H DATA'!Q171 -> 1 | J178: ='[1]Tabel 2 H DATA'!R171 -> 0.9998128859
A179: ='[1]Tabel 2 H DATA'!I172 -> Agronom | C179: ='[1]Tabel 2 H DATA'!K172 -> 0 | D179: ='[1]Tabel 2 H DATA'!L172 -> 0 | F179: ='[1]Tabel 2 H DATA'!N172 -> 0 | G179: ='[1]Tabel 2 H DATA'!O172 -> 0 | I179: ='[1]Tabel 2 H DATA'!Q172 -> 0 | J179: ='[1]Tabel 2 H DATA'!R172 -> 0
A180: ='[1]Tabel 2 H DATA'!I173 -> Landsk. Arkt. | C180: ='[1]Tabel 2 H DATA'!K173 -> 0 | D180: ='[1]Tabel 2 H DATA'!L173 -> 0 | F180: ='[1]Tabel 2 H DATA'!N173 -> 0 | G180: ='[1]Tabel 2 H DATA'!O173 -> 0 | I180: ='[1]Tabel 2 H DATA'!Q173 -> 0 | J180: ='[1]Tabel 2 H DATA'!R173 -> 0
A181: ='[1]Tabel 2 H DATA'!I174 -> Hortonom | C181: ='[1]Tabel 2 H DATA'!K174 -> 0 | D181: ='[1]Tabel 2 H DATA'!L174 -> 0 | F181: ='[1]Tabel 2 H DATA'!N174 -> 0 | G181: ='[1]Tabel 2 H DATA'!O174 -> 0 | I181: ='[1]Tabel 2 H DATA'!Q174 -> 0 | J181: ='[1]Tabel 2 H DATA'!R174 -> 0
A182: ='[1]Tabel 2 H DATA'!I175 -> Forstkand. | C182: ='[1]Tabel 2 H DATA'!K175 -> 0 | D182: ='[1]Tabel 2 H DATA'!L175 -> 0 | F182: ='[1]Tabel 2 H DATA'!N175 -> 0 | G182: ='[1]Tabel 2 H DATA'!O175 -> 0 | I182: ='[1]Tabel 2 H DATA'!Q175 -> 0 | J182: ='[1]Tabel 2 H DATA'!R175 -> 0
A183: ='[1]Tabel 2 H DATA'!I176 -> Jordbrugsakad. | C183: ='[1]Tabel 2 H DATA'!K176 -> 0 | D183: ='[1]Tabel 2 H DATA'!L176 -> 0 | F183: ='[1]Tabel 2 H DATA'!N176 -> 0 | G183: ='[1]Tabel 2 H DATA'!O176 -> 0 | I183: ='[1]Tabel 2 H DATA'!Q176 -> 0 | J183: ='[1]Tabel 2 H DATA'!R176 -> 0
A184: ='[1]Tabel 2 H DATA'!I177 -> Mejeriing. | C184: ='[1]Tabel 2 H DATA'!K177 -> 0 | D184: ='[1]Tabel 2 H DATA'!L177 -> 0 | F184: ='[1]Tabel 2 H DATA'!N177 -> 0 | G184: ='[1]Tabel 2 H DATA'!O177 -> 0 | I184: ='[1]Tabel 2 H DATA'!Q177 -> 0 | J184: ='[1]Tabel 2 H DATA'!R177 -> 0
A185: ='[1]Tabel 2 H DATA'!I178 -> Levn.m.kand. | C185: ='[1]Tabel 2 H DATA'!K178 -> 0 | D185: ='[1]Tabel 2 H DATA'!L178 -> 0 | F185: ='[1]Tabel 2 H DATA'!N178 -> 0 | G185: ='[1]Tabel 2 H DATA'!O178 -> 0 | I185: ='[1]Tabel 2 H DATA'!Q178 -> 0 | J185: ='[1]Tabel 2 H DATA'!R178 -> 0
A186: ='[1]Tabel 2 H DATA'!I179 -> Dyrlæge | C186: ='[1]Tabel 2 H DATA'!K179 -> 0 | D186: ='[1]Tabel 2 H DATA'!L179 -> 0 | F186: ='[1]Tabel 2 H DATA'!N179 -> 0 | G186: ='[1]Tabel 2 H DATA'!O179 -> 0 | I186: ='[1]Tabel 2 H DATA'!Q179 -> 0 | J186: ='[1]Tabel 2 H DATA'!R179 -> 0
A187: ='[1]Tabel 2 H DATA'!I180 -> Farmaceut | C187: ='[1]Tabel 2 H DATA'!K180 -> 0 | D187: ='[1]Tabel 2 H DATA'!L180 -> 0 | F187: ='[1]Tabel 2 H DATA'!N180 -> 0 | G187: ='[1]Tabel 2 H DATA'!O180 -> 0 | I187: ='[1]Tabel 2 H DATA'!Q180 -> 0 | J187: ='[1]Tabel 2 H DATA'!R180 -> 0
A188: ='[1]Tabel 2 H DATA'!I181 -> Læge | C188: ='[1]Tabel 2 H DATA'!K181 -> 0 | D188: ='[1]Tabel 2 H DATA'!L181 -> 0 | F188: ='[1]Tabel 2 H DATA'!N181 -> 0 | G188: ='[1]Tabel 2 H DATA'!O181 -> 0 | I188: ='[1]Tabel 2 H DATA'!Q181 -> 0 | J188: ='[1]Tabel 2 H DATA'!R181 -> 0
A189: ='[1]Tabel 2 H DATA'!I182 -> Tandlæge | C189: ='[1]Tabel 2 H DATA'!K182 -> 0 | D189: ='[1]Tabel 2 H DATA'!L182 -> 0 | F189: ='[1]Tabel 2 H DATA'!N182 -> 0 | G189: ='[1]Tabel 2 H DATA'!O182 -> 0 | I189: ='[1]Tabel 2 H DATA'!Q182 -> 0 | J189: ='[1]Tabel 2 H DATA'!R182 -> 0
A190: ='[1]Tabel 2 H DATA'!I183 -> Arkitekt | C190: ='[1]Tabel 2 H DATA'!K183 -> 0 | D190: ='[1]Tabel 2 H DATA'!L183 -> 0 | F190: ='[1]Tabel 2 H DATA'!N183 -> 1 | G190: ='[1]Tabel 2 H DATA'!O183 -> 0.735982037 | I190: ='[1]Tabel 2 H DATA'!Q183 -> 1 | J190: ='[1]Tabel 2 H DATA'!R183 -> 0.735982037
A191: ='[1]Tabel 2 H DATA'!I184 -> Landinspek. | C191: ='[1]Tabel 2 H DATA'!K184 -> 0 | D191: ='[1]Tabel 2 H DATA'!L184 -> 0 | F191: ='[1]Tabel 2 H DATA'!N184 -> 0 | G191: ='[1]Tabel 2 H DATA'!O184 -> 0 | I191: ='[1]Tabel 2 H DATA'!Q184 -> 0 | J191: ='[1]Tabel 2 H DATA'!R184 -> 0
A192: ='[1]Tabel 2 H DATA'!I185 -> Bibliotekar | C192: ='[1]Tabel 2 H DATA'!K185 -> 0 | D192: ='[1]Tabel 2 H DATA'!L185 -> 0 | F192: ='[1]Tabel 2 H DATA'!N185 -> 0 | G192: ='[1]Tabel 2 H DATA'!O185 -> 0 | I192: ='[1]Tabel 2 H DATA'!Q185 -> 0 | J192: ='[1]Tabel 2 H DATA'!R185 -> 0
A193: ='[1]Tabel 2 H DATA'!I186 -> Musikudd. | C193: ='[1]Tabel 2 H DATA'!K186 -> 0 | D193: ='[1]Tabel 2 H DATA'!L186 -> 0 | F193: ='[1]Tabel 2 H DATA'!N186 -> 0 | G193: ='[1]Tabel 2 H DATA'!O186 -> 0 | I193: ='[1]Tabel 2 H DATA'!Q186 -> 0 | J193: ='[1]Tabel 2 H DATA'!R186 -> 0
A194: ='[1]Tabel 2 H DATA'!I187 -> Teolog | C194: ='[1]Tabel 2 H DATA'!K187 -> 0 | D194: ='[1]Tabel 2 H DATA'!L187 -> 0 | F194: ='[1]Tabel 2 H DATA'!N187 -> 1 | G194: ='[1]Tabel 2 H DATA'!O187 -> 0.8326576436 | I194: ='[1]Tabel 2 H DATA'!Q187 -> 1 | J194: ='[1]Tabel 2 H DATA'!R187 -> 0.8326576436
A195: ='[1]Tabel 2 H DATA'!I188 -> Psykolog | C195: ='[1]Tabel 2 H DATA'!K188 -> 0 | D195: ='[1]Tabel 2 H DATA'!L188 -> 0 | F195: ='[1]Tabel 2 H DATA'!N188 -> 2 | G195: ='[1]Tabel 2 H DATA'!O188 -> 1.999625772 | I195: ='[1]Tabel 2 H DATA'!Q188 -> 2 | J195: ='[1]Tabel 2 H DATA'!R188 -> 1.999625772
A196: ='[1]Tabel 2 H DATA'!I189 -> Jurist | C196: ='[1]Tabel 2 H DATA'!K189 -> 0 | D196: ='[1]Tabel 2 H DATA'!L189 -> 0 | F196: ='[1]Tabel 2 H DATA'!N189 -> 0 | G196: ='[1]Tabel 2 H DATA'!O189 -> 0 | I196: ='[1]Tabel 2 H DATA'!Q189 -> 0 | J196: ='[1]Tabel 2 H DATA'!R189 -> 0
A197: ='[1]Tabel 2 H DATA'!I190 -> Økonom | C197: ='[1]Tabel 2 H DATA'!K190 -> 0 | D197: ='[1]Tabel 2 H DATA'!L190 -> 0 | F197: ='[1]Tabel 2 H DATA'!N190 -> 0 | G197: ='[1]Tabel 2 H DATA'!O190 -> 0 | I197: ='[1]Tabel 2 H DATA'!Q190 -> 0 | J197: ='[1]Tabel 2 H DATA'!R190 -> 0
A198: ='[1]Tabel 2 H DATA'!I191 -> Samf. Adm. | C198: ='[1]Tabel 2 H DATA'!K191 -> 1 | D198: ='[1]Tabel 2 H DATA'!L191 -> 0.3393001934 | F198: ='[1]Tabel 2 H DATA'!N191 -> 0 | G198: ='[1]Tabel 2 H DATA'!O191 -> 0 | I198: ='[1]Tabel 2 H DATA'!Q191 -> 1 | J198: ='[1]Tabel 2 H DATA'!R191 -> 0.3393001934
A199: ='[1]Tabel 2 H DATA'!I192 -> Cand. Merc. | C199: ='[1]Tabel 2 H DATA'!K192 -> 0 | D199: ='[1]Tabel 2 H DATA'!L192 -> 0 | F199: ='[1]Tabel 2 H DATA'!N192 -> 0 | G199: ='[1]Tabel 2 H DATA'!O192 -> 0 | I199: ='[1]Tabel 2 H DATA'!Q192 -> 0 | J199: ='[1]Tabel 2 H DATA'!R192 -> 0
A200: ='[1]Tabel 2 H DATA'!I193 -> HA | C200: ='[1]Tabel 2 H DATA'!K193 -> 0 | D200: ='[1]Tabel 2 H DATA'!L193 -> 0 | F200: ='[1]Tabel 2 H DATA'!N193 -> 0 | G200: ='[1]Tabel 2 H DATA'!O193 -> 0 | I200: ='[1]Tabel 2 H DATA'!Q193 -> 0 | J200: ='[1]Tabel 2 H DATA'!R193 -> 0
A201: ='[1]Tabel 2 H DATA'!I194 -> HD | C201: ='[1]Tabel 2 H DATA'!K194 -> 0 | D201: ='[1]Tabel 2 H DATA'!L194 -> 0 | F201: ='[1]Tabel 2 H DATA'!N194 -> 0 | G201: ='[1]Tabel 2 H DATA'!O194 -> 0 | I201: ='[1]Tabel 2 H DATA'!Q194 -> 0 | J201: ='[1]Tabel 2 H DATA'!R194 -> 0
A202: ='[1]Tabel 2 H DATA'!I195 -> Komm. og Sprog | C202: ='[1]Tabel 2 H DATA'!K195 -> 0 | D202: ='[1]Tabel 2 H DATA'!L195 -> 0 | F202: ='[1]Tabel 2 H DATA'!N195 -> 0 | G202: ='[1]Tabel 2 H DATA'!O195 -> 0 | I202: ='[1]Tabel 2 H DATA'!Q195 -> 0 | J202: ='[1]Tabel 2 H DATA'!R195 -> 0
A203: ='[1]Tabel 2 H DATA'!I196 -> Bygningskonst. | C203: ='[1]Tabel 2 H DATA'!K196 -> 2 | D203: ='[1]Tabel 2 H DATA'!L196 -> 2 | F203: ='[1]Tabel 2 H DATA'!N196 -> 0 | G203: ='[1]Tabel 2 H DATA'!O196 -> 0 | I203: ='[1]Tabel 2 H DATA'!Q196 -> 2 | J203: ='[1]Tabel 2 H DATA'!R196 -> 2
A204: ='[1]Tabel 2 H DATA'!I197 -> Cand. IT. | C204: ='[1]Tabel 2 H DATA'!K197 -> 0 | D204: ='[1]Tabel 2 H DATA'!L197 -> 0 | F204: ='[1]Tabel 2 H DATA'!N197 -> 0 | G204: ='[1]Tabel 2 H DATA'!O197 -> 0 | I204: ='[1]Tabel 2 H DATA'!Q197 -> 0 | J204: ='[1]Tabel 2 H DATA'!R197 -> 0
A205: ='[1]Tabel 2 H DATA'!I198 -> Bac. Samf. | C205: ='[1]Tabel 2 H DATA'!K198 -> 0 | D205: ='[1]Tabel 2 H DATA'!L198 -> 0 | F205: ='[1]Tabel 2 H DATA'!N198 -> 1 | G205: ='[1]Tabel 2 H DATA'!O198 -> 0.3998004117 | I205: ='[1]Tabel 2 H DATA'!Q198 -> 1 | J205: ='[1]Tabel 2 H DATA'!R198 -> 0.3998004117
A206: ='[1]Tabel 2 H DATA'!I199 -> Bac. Hum. | C206: ='[1]Tabel 2 H DATA'!K199 -> 1 | D206: ='[1]Tabel 2 H DATA'!L199 -> 0.9998128859 | F206: ='[1]Tabel 2 H DATA'!N199 -> 2 | G206: ='[1]Tabel 2 H DATA'!O199 -> 1.999625772 | I206: ='[1]Tabel 2 H DATA'!Q199 -> 3 | J206: ='[1]Tabel 2 H DATA'!R199 -> 2.999438658
A207: ='[1]Tabel 2 H DATA'!I200 -> Bac. Nat. | C207: ='[1]Tabel 2 H DATA'!K200 -> 0 | D207: ='[1]Tabel 2 H DATA'!L200 -> 0 | F207: ='[1]Tabel 2 H DATA'!N200 -> 0 | G207: ='[1]Tabel 2 H DATA'!O200 -> 0 | I207: ='[1]Tabel 2 H DATA'!Q200 -> 0 | J207: ='[1]Tabel 2 H DATA'!R200 -> 0
A208: ='[1]Tabel 2 H DATA'!I201 -> Andre | C208: ='[1]Tabel 2 H DATA'!K201 -> 2 | D208: ='[1]Tabel 2 H DATA'!L201 -> 1.959084388 | F208: ='[1]Tabel 2 H DATA'!N201 -> 1 | G208: ='[1]Tabel 2 H DATA'!O201 -> 0.9998128859 | I208: ='[1]Tabel 2 H DATA'!Q201 -> 3 | J208: ='[1]Tabel 2 H DATA'!R201 -> 2.958897274
A210: ='[1]Tabel 2 H DATA'!I203 -> Total | C210: ='[1]Tabel 2 H DATA'!K203 -> 11 | D210: ='[1]Tabel 2 H DATA'!L203 -> 10.2972619 | F210: ='[1]Tabel 2 H DATA'!N203 -> 13 | G210: ='[1]Tabel 2 H DATA'!O203 -> 10.79772968 | I210: ='[1]Tabel 2 H DATA'!Q203 -> 24 | J210: ='[1]Tabel 2 H DATA'!R203 -> 21.09499158
A212: ='[1]Tabel 2 H DATA'!I205 -> Ingeniører i alt | C212: ='[1]Tabel 2 H DATA'!K205 -> 1 | D212: ='[1]Tabel 2 H DATA'!L205 -> 0.9998128859 | F212: ='[1]Tabel 2 H DATA'!N205 -> 0 | G212: ='[1]Tabel 2 H DATA'!O205 -> 0 | I212: ='[1]Tabel 2 H DATA'!Q205 -> 1 | J212: ='[1]Tabel 2 H DATA'!R205 -> 0.9998128859
A213: ='[1]Tabel 2 H DATA'!I206 -> Magistre i alt | C213: ='[1]Tabel 2 H DATA'!K206 -> 3 | D213: ='[1]Tabel 2 H DATA'!L206 -> 2.999438658 | F213: ='[1]Tabel 2 H DATA'!N206 -> 5 | G213: ='[1]Tabel 2 H DATA'!O206 -> 3.830225161 | I213: ='[1]Tabel 2 H DATA'!Q206 -> 8 | J213: ='[1]Tabel 2 H DATA'!R206 -> 6.829663818
A214: ='[1]Tabel 2 H DATA'!I207 -> DJØF'ere i alt | C214: ='[1]Tabel 2 H DATA'!K207 -> 1 | D214: ='[1]Tabel 2 H DATA'!L207 -> 0.3393001934 | F214: ='[1]Tabel 2 H DATA'!N207 -> 0 | G214: ='[1]Tabel 2 H DATA'!O207 -> 0 | I214: ='[1]Tabel 2 H DATA'!Q207 -> 1 | J214: ='[1]Tabel 2 H DATA'!R207 -> 0.3393001934
A219: ='[1]Tabel 2 H DATA'!I210 -> Favrskov
C221: ='[1]Tabel 2 H DATA'!K212 -> Mænd | F221: ='[1]Tabel 2 H DATA'!N212 -> Kvinder | I221: ='[1]Tabel 2 H DATA'!Q212 -> I alt
C222: ='[1]Tabel 2 H DATA'!K213 -> Ledigheds- berørte | D222: ='[1]Tabel 2 H DATA'!L213 -> Gns. brutto- ledighed | F222: ='[1]Tabel 2 H DATA'!N213 -> Ledigheds- berørte | G222: ='[1]Tabel 2 H DATA'!O213 -> Gns. brutto- ledighed | I222: ='[1]Tabel 2 H DATA'!Q213 -> Ledigheds- berørte | J222: ='[1]Tabel 2 H DATA'!R213 -> Gns. brutto- ledighed
A225: ='[1]Tabel 2 H DATA'!I216 -> Civ. ing. | C225: ='[1]Tabel 2 H DATA'!K216 -> 1 | D225: ='[1]Tabel 2 H DATA'!L216 -> 0.9998128859 | F225: ='[1]Tabel 2 H DATA'!N216 -> 3 | G225: ='[1]Tabel 2 H DATA'!O216 -> 2.498596644 | I225: ='[1]Tabel 2 H DATA'!Q216 -> 4 | J225: ='[1]Tabel 2 H DATA'!R216 -> 3.49840953
A226: ='[1]Tabel 2 H DATA'!I217 -> Diplom ing. | C226: ='[1]Tabel 2 H DATA'!K217 -> 3 | D226: ='[1]Tabel 2 H DATA'!L217 -> 2.355766232 | F226: ='[1]Tabel 2 H DATA'!N217 -> 2 | G226: ='[1]Tabel 2 H DATA'!O217 -> 1.999625772 | I226: ='[1]Tabel 2 H DATA'!Q217 -> 5 | J226: ='[1]Tabel 2 H DATA'!R217 -> 4.355392004
A227: ='[1]Tabel 2 H DATA'!I218 -> Cand. Scient. Tek. | C227: ='[1]Tabel 2 H DATA'!K218 -> 2 | D227: ='[1]Tabel 2 H DATA'!L218 -> 1.90731616 | F227: ='[1]Tabel 2 H DATA'!N218 -> 2 | G227: ='[1]Tabel 2 H DATA'!O218 -> 1.445768103 | I227: ='[1]Tabel 2 H DATA'!Q218 -> 4 | J227: ='[1]Tabel 2 H DATA'!R218 -> 3.353084264
A228: ='[1]Tabel 2 H DATA'!I219 -> MA. Hum. | C228: ='[1]Tabel 2 H DATA'!K219 -> 5 | D228: ='[1]Tabel 2 H DATA'!L219 -> 4.860600012 | F228: ='[1]Tabel 2 H DATA'!N219 -> 22 | G228: ='[1]Tabel 2 H DATA'!O219 -> 19.17420321 | I228: ='[1]Tabel 2 H DATA'!Q219 -> 27 | J228: ='[1]Tabel 2 H DATA'!R219 -> 24.03480322
A229: ='[1]Tabel 2 H DATA'!I220 -> MA. Nat. | C229: ='[1]Tabel 2 H DATA'!K220 -> 1 | D229: ='[1]Tabel 2 H DATA'!L220 -> 0.9998128859 | F229: ='[1]Tabel 2 H DATA'!N220 -> 3 | G229: ='[1]Tabel 2 H DATA'!O220 -> 2.812324581 | I229: ='[1]Tabel 2 H DATA'!Q220 -> 4 | J229: ='[1]Tabel 2 H DATA'!R220 -> 3.812137466
A230: ='[1]Tabel 2 H DATA'!I221 -> MA. Ph.d. | C230: ='[1]Tabel 2 H DATA'!K221 -> 1 | D230: ='[1]Tabel 2 H DATA'!L221 -> 0.9998128859 | F230: ='[1]Tabel 2 H DATA'!N221 -> 2 | G230: ='[1]Tabel 2 H DATA'!O221 -> 1.999625772 | I230: ='[1]Tabel 2 H DATA'!Q221 -> 3 | J230: ='[1]Tabel 2 H DATA'!R221 -> 2.999438658
A231: ='[1]Tabel 2 H DATA'!I222 -> MA. Samf. | C231: ='[1]Tabel 2 H DATA'!K222 -> 1 | D231: ='[1]Tabel 2 H DATA'!L222 -> 0.9998128859 | F231: ='[1]Tabel 2 H DATA'!N222 -> 0 | G231: ='[1]Tabel 2 H DATA'!O222 -> 0 | I231: ='[1]Tabel 2 H DATA'!Q222 -> 1 | J231: ='[1]Tabel 2 H DATA'!R222 -> 0.9998128859
A232: ='[1]Tabel 2 H DATA'!I223 -> Øvrige Mag. | C232: ='[1]Tabel 2 H DATA'!K223 -> 0 | D232: ='[1]Tabel 2 H DATA'!L223 -> 0 | F232: ='[1]Tabel 2 H DATA'!N223 -> 2 | G232: ='[1]Tabel 2 H DATA'!O223 -> 1.999625772 | I232: ='[1]Tabel 2 H DATA'!Q223 -> 2 | J232: ='[1]Tabel 2 H DATA'!R223 -> 1.999625772
A233: ='[1]Tabel 2 H DATA'!I224 -> Agronom | C233: ='[1]Tabel 2 H DATA'!K224 -> 1 | D233: ='[1]Tabel 2 H DATA'!L224 -> 0.3998004117 | F233: ='[1]Tabel 2 H DATA'!N224 -> 0 | G233: ='[1]Tabel 2 H DATA'!O224 -> 0 | I233: ='[1]Tabel 2 H DATA'!Q224 -> 1 | J233: ='[1]Tabel 2 H DATA'!R224 -> 0.3998004117
A234: ='[1]Tabel 2 H DATA'!I225 -> Landsk. Arkt. | C234: ='[1]Tabel 2 H DATA'!K225 -> 0 | D234: ='[1]Tabel 2 H DATA'!L225 -> 0 | F234: ='[1]Tabel 2 H DATA'!N225 -> 0 | G234: ='[1]Tabel 2 H DATA'!O225 -> 0 | I234: ='[1]Tabel 2 H DATA'!Q225 -> 0 | J234: ='[1]Tabel 2 H DATA'!R225 -> 0
A235: ='[1]Tabel 2 H DATA'!I226 -> Hortonom | C235: ='[1]Tabel 2 H DATA'!K226 -> 0 | D235: ='[1]Tabel 2 H DATA'!L226 -> 0 | F235: ='[1]Tabel 2 H DATA'!N226 -> 0 | G235: ='[1]Tabel 2 H DATA'!O226 -> 0 | I235: ='[1]Tabel 2 H DATA'!Q226 -> 0 | J235: ='[1]Tabel 2 H DATA'!R226 -> 0
A236: ='[1]Tabel 2 H DATA'!I227 -> Forstkand. | C236: ='[1]Tabel 2 H DATA'!K227 -> 0 | D236: ='[1]Tabel 2 H DATA'!L227 -> 0 | F236: ='[1]Tabel 2 H DATA'!N227 -> 0 | G236: ='[1]Tabel 2 H DATA'!O227 -> 0 | I236: ='[1]Tabel 2 H DATA'!Q227 -> 0 | J236: ='[1]Tabel 2 H DATA'!R227 -> 0
A237: ='[1]Tabel 2 H DATA'!I228 -> Jordbrugsakad. | C237: ='[1]Tabel 2 H DATA'!K228 -> 1 | D237: ='[1]Tabel 2 H DATA'!L228 -> 0.3998004117 | F237: ='[1]Tabel 2 H DATA'!N228 -> 0 | G237: ='[1]Tabel 2 H DATA'!O228 -> 0 | I237: ='[1]Tabel 2 H DATA'!Q228 -> 1 | J237: ='[1]Tabel 2 H DATA'!R228 -> 0.3998004117
A238: ='[1]Tabel 2 H DATA'!I229 -> Mejeriing. | C238: ='[1]Tabel 2 H DATA'!K229 -> 0 | D238: ='[1]Tabel 2 H DATA'!L229 -> 0 | F238: ='[1]Tabel 2 H DATA'!N229 -> 0 | G238: ='[1]Tabel 2 H DATA'!O229 -> 0 | I238: ='[1]Tabel 2 H DATA'!Q229 -> 0 | J238: ='[1]Tabel 2 H DATA'!R229 -> 0
A239: ='[1]Tabel 2 H DATA'!I230 -> Levn.m.kand. | C239: ='[1]Tabel 2 H DATA'!K230 -> 0 | D239: ='[1]Tabel 2 H DATA'!L230 -> 0 | F239: ='[1]Tabel 2 H DATA'!N230 -> 0 | G239: ='[1]Tabel 2 H DATA'!O230 -> 0 | I239: ='[1]Tabel 2 H DATA'!Q230 -> 0 | J239: ='[1]Tabel 2 H DATA'!R230 -> 0
A240: ='[1]Tabel 2 H DATA'!I231 -> Dyrlæge | C240: ='[1]Tabel 2 H DATA'!K231 -> 0 | D240: ='[1]Tabel 2 H DATA'!L231 -> 0 | F240: ='[1]Tabel 2 H DATA'!N231 -> 0 | G240: ='[1]Tabel 2 H DATA'!O231 -> 0 | I240: ='[1]Tabel 2 H DATA'!Q231 -> 0 | J240: ='[1]Tabel 2 H DATA'!R231 -> 0
... 341 more rows

Sheet Tabel 3 ØJ
A1: Tabel 3. Ledige i procent af forsikrede
A3: Østjylland
C5: Mænd | F5: Kvinder | I5: I alt
C6: Ledigheds- berørte | D6: Gns. brutto- ledighed | F6: Ledigheds- berørte | G6: Gns. brutto- ledighed | I6: Ledigheds- berørte | J6: Gns. brutto- ledighed
A9: Civ. ing. | C9: =IF(OR('Tabel 1 ØJ'!C7<5,'Tabel 2 ØJ'!C9<0.5),"-",IFERROR('Tabel 2 ØJ'!C9/'Tabel 1 ØJ'!C7*100,"-")) -> 3.618628068 | D9: =IF(OR('Tabel 1 ØJ'!C7<5,'Tabel 2 ØJ'!D9<0.5),"-",IFERROR('Tabel 2 ØJ'!D9/'Tabel 1 ØJ'!C7*100,"-")) -> 3.282915896 | F9: =IF(OR('Tabel 1 ØJ'!E7<5,'Tabel 2 ØJ'!F9<0.5),"-",IFERROR('Tabel 2 ØJ'!F9/'Tabel 1 ØJ'!E7*100,"-")) -> 5.454545455 | G9: =IF(OR('Tabel 1 ØJ'!E7<5,'Tabel 2 ØJ'!G9<0.5),"-",IFERROR('Tabel 2 ØJ'!G9/'Tabel 1 ØJ'!E7*100,"-")) -> 4.955628299 | I9: =IF(OR('Tabel 1 ØJ'!G7<5,'Tabel 2 ØJ'!I9<0.5),"-",IFERROR('Tabel 2 ØJ'!I9/'Tabel 1 ØJ'!G7*100,"-")) -> 4.072933933 | J9: =IF(OR('Tabel 1 ØJ'!G7<5,'Tabel 2 ØJ'!J9<0.5),"-",IFERROR('Tabel 2 ØJ'!J9/'Tabel 1 ØJ'!G7*100,"-")) -> 3.696835967
A10: Diplom ing. | C10: =IF(OR('Tabel 1 ØJ'!C8<5,'Tabel 2 ØJ'!C10<0.5),"-",IFERROR('Tabel 2 ØJ'!C10/'Tabel 1 ØJ'!C8*100,"-")) -> 3.837549475 | D10: =IF(OR('Tabel 1 ØJ'!C8<5,'Tabel 2 ØJ'!D10<0.5),"-",IFERROR('Tabel 2 ØJ'!D10/'Tabel 1 ØJ'!C8*100,"-")) -> 3.482760448 | F10: =IF(OR('Tabel 1 ØJ'!E8<5,'Tabel 2 ØJ'!F10<0.5),"-",IFERROR('Tabel 2 ØJ'!F10/'Tabel 1 ØJ'!E8*100,"-")) -> 5.370219691 | G10: =IF(OR('Tabel 1 ØJ'!E8<5,'Tabel 2 ØJ'!G10<0.5),"-",IFERROR('Tabel 2 ØJ'!G10/'Tabel 1 ØJ'!E8*100,"-")) -> 4.634613201 | I10: =IF(OR('Tabel 1 ØJ'!G8<5,'Tabel 2 ØJ'!I10<0.5),"-",IFERROR('Tabel 2 ØJ'!I10/'Tabel 1 ØJ'!G8*100,"-")) -> 4.105113636 | J10: =IF(OR('Tabel 1 ØJ'!G8<5,'Tabel 2 ØJ'!J10<0.5),"-",IFERROR('Tabel 2 ØJ'!J10/'Tabel 1 ØJ'!G8*100,"-")) -> 3.683843833
A11: Cand. Scient. Tek. | C11: =IF(OR('Tabel 1 ØJ'!C9<5,'Tabel 2 ØJ'!C11<0.5),"-",IFERROR('Tabel 2 ØJ'!C11/'Tabel 1 ØJ'!C9*100,"-")) -> 9.116022099 | D11: =IF(OR('Tabel 1 ØJ'!C9<5,'Tabel 2 ØJ'!D11<0.5),"-",IFERROR('Tabel 2 ØJ'!D11/'Tabel 1 ØJ'!C9*100,"-")) -> 8.234604526 | F11: =IF(OR('Tabel 1 ØJ'!E9<5,'Tabel 2 ØJ'!F11<0.5),"-",IFERROR('Tabel 2 ØJ'!F11/'Tabel 1 ØJ'!E9*100,"-")) -> 10.09174312 | G11: =IF(OR('Tabel 1 ØJ'!E9<5,'Tabel 2 ØJ'!G11<0.5),"-",IFERROR('Tabel 2 ØJ'!G11/'Tabel 1 ØJ'!E9*100,"-")) -> 8.810955844 | I11: =IF(OR('Tabel 1 ØJ'!G9<5,'Tabel 2 ØJ'!I11<0.5),"-",IFERROR('Tabel 2 ØJ'!I11/'Tabel 1 ØJ'!G9*100,"-")) -> 9.504818877 | J11: =IF(OR('Tabel 1 ØJ'!G9<5,'Tabel 2 ØJ'!J11<0.5),"-",IFERROR('Tabel 2 ØJ'!J11/'Tabel 1 ØJ'!G9*100,"-")) -> 8.464263958
A12: MA. Hum. | C12: =IF(OR('Tabel 1 ØJ'!C10<5,'Tabel 2 ØJ'!C12<0.5),"-",IFERROR('Tabel 2 ØJ'!C12/'Tabel 1 ØJ'!C10*100,"-")) -> 14.97566455 | D12: =IF(OR('Tabel 1 ØJ'!C10<5,'Tabel 2 ØJ'!D12<0.5),"-",IFERROR('Tabel 2 ØJ'!D12/'Tabel 1 ØJ'!C10*100,"-")) -> 13.6302319 | F12: =IF(OR('Tabel 1 ØJ'!E10<5,'Tabel 2 ØJ'!F12<0.5),"-",IFERROR('Tabel 2 ØJ'!F12/'Tabel 1 ØJ'!E10*100,"-")) -> 14.38771867 | G12: =IF(OR('Tabel 1 ØJ'!E10<5,'Tabel 2 ØJ'!G12<0.5),"-",IFERROR('Tabel 2 ØJ'!G12/'Tabel 1 ØJ'!E10*100,"-")) -> 12.59247901 | I12: =IF(OR('Tabel 1 ØJ'!G10<5,'Tabel 2 ØJ'!I12<0.5),"-",IFERROR('Tabel 2 ØJ'!I12/'Tabel 1 ØJ'!G10*100,"-")) -> 14.5775414 | J12: =IF(OR('Tabel 1 ØJ'!G10<5,'Tabel 2 ØJ'!J12<0.5),"-",IFERROR('Tabel 2 ØJ'!J12/'Tabel 1 ØJ'!G10*100,"-")) -> 12.9275253
A13: MA. Nat. | C13: =IF(OR('Tabel 1 ØJ'!C11<5,'Tabel 2 ØJ'!C13<0.5),"-",IFERROR('Tabel 2 ØJ'!C13/'Tabel 1 ØJ'!C11*100,"-")) -> 4.114713217 | D13: =IF(OR('Tabel 1 ØJ'!C11<5,'Tabel 2 ØJ'!D13<0.5),"-",IFERROR('Tabel 2 ØJ'!D13/'Tabel 1 ØJ'!C11*100,"-")) -> 3.721555899 | F13: =IF(OR('Tabel 1 ØJ'!E11<5,'Tabel 2 ØJ'!F13<0.5),"-",IFERROR('Tabel 2 ØJ'!F13/'Tabel 1 ØJ'!E11*100,"-")) -> 4.892966361 | G13: =IF(OR('Tabel 1 ØJ'!E11<5,'Tabel 2 ØJ'!G13<0.5),"-",IFERROR('Tabel 2 ØJ'!G13/'Tabel 1 ØJ'!E11*100,"-")) -> 4.061481757 | I13: =IF(OR('Tabel 1 ØJ'!G11<5,'Tabel 2 ØJ'!I13<0.5),"-",IFERROR('Tabel 2 ØJ'!I13/'Tabel 1 ØJ'!G11*100,"-")) -> 4.464285714 | J13: =IF(OR('Tabel 1 ØJ'!G11<5,'Tabel 2 ØJ'!J13<0.5),"-",IFERROR('Tabel 2 ØJ'!J13/'Tabel 1 ØJ'!G11*100,"-")) -> 3.874242376
A14: MA. Ph.d. | C14: =IF(OR('Tabel 1 ØJ'!C12<5,'Tabel 2 ØJ'!C14<0.5),"-",IFERROR('Tabel 2 ØJ'!C14/'Tabel 1 ØJ'!C12*100,"-")) -> 3.625377644 | D14: =IF(OR('Tabel 1 ØJ'!C12<5,'Tabel 2 ØJ'!D14<0.5),"-",IFERROR('Tabel 2 ØJ'!D14/'Tabel 1 ØJ'!C12*100,"-")) -> 3.541600283 | F14: =IF(OR('Tabel 1 ØJ'!E12<5,'Tabel 2 ØJ'!F14<0.5),"-",IFERROR('Tabel 2 ØJ'!F14/'Tabel 1 ØJ'!E12*100,"-")) -> 5.882352941 | G14: =IF(OR('Tabel 1 ØJ'!E12<5,'Tabel 2 ØJ'!G14<0.5),"-",IFERROR('Tabel 2 ØJ'!G14/'Tabel 1 ØJ'!E12*100,"-")) -> 5.561568481 | I14: =IF(OR('Tabel 1 ØJ'!G12<5,'Tabel 2 ØJ'!I14<0.5),"-",IFERROR('Tabel 2 ØJ'!I14/'Tabel 1 ØJ'!G12*100,"-")) -> 4.607508532 | J14: =IF(OR('Tabel 1 ØJ'!G12<5,'Tabel 2 ØJ'!J14<0.5),"-",IFERROR('Tabel 2 ØJ'!J14/'Tabel 1 ØJ'!G12*100,"-")) -> 4.420596683
A15: MA. Samf. | C15: =IF(OR('Tabel 1 ØJ'!C13<5,'Tabel 2 ØJ'!C15<0.5),"-",IFERROR('Tabel 2 ØJ'!C15/'Tabel 1 ØJ'!C13*100,"-")) -> 25.71428571 | D15: =IF(OR('Tabel 1 ØJ'!C13<5,'Tabel 2 ØJ'!D15<0.5),"-",IFERROR('Tabel 2 ØJ'!D15/'Tabel 1 ØJ'!C13*100,"-")) -> 24.2542613 | F15: =IF(OR('Tabel 1 ØJ'!E13<5,'Tabel 2 ØJ'!F15<0.5),"-",IFERROR('Tabel 2 ØJ'!F15/'Tabel 1 ØJ'!E13*100,"-")) -> 16.05584642 | G15: =IF(OR('Tabel 1 ØJ'!E13<5,'Tabel 2 ØJ'!G15<0.5),"-",IFERROR('Tabel 2 ØJ'!G15/'Tabel 1 ØJ'!E13*100,"-")) -> 14.31384593 | I15: =IF(OR('Tabel 1 ØJ'!G13<5,'Tabel 2 ØJ'!I15<0.5),"-",IFERROR('Tabel 2 ØJ'!I15/'Tabel 1 ØJ'!G13*100,"-")) -> 18.31550802 | J15: =IF(OR('Tabel 1 ØJ'!G13<5,'Tabel 2 ØJ'!J15<0.5),"-",IFERROR('Tabel 2 ØJ'!J15/'Tabel 1 ØJ'!G13*100,"-")) -> 16.63947787
A16: Øvrige Mag. | C16: =IF(OR('Tabel 1 ØJ'!C14<5,'Tabel 2 ØJ'!C16<0.5),"-",IFERROR('Tabel 2 ØJ'!C16/'Tabel 1 ØJ'!C14*100,"-")) -> 11.96172249 | D16: =IF(OR('Tabel 1 ØJ'!C14<5,'Tabel 2 ØJ'!D16<0.5),"-",IFERROR('Tabel 2 ØJ'!D16/'Tabel 1 ØJ'!C14*100,"-")) -> 10.52195875 | F16: =IF(OR('Tabel 1 ØJ'!E14<5,'Tabel 2 ØJ'!F16<0.5),"-",IFERROR('Tabel 2 ØJ'!F16/'Tabel 1 ØJ'!E14*100,"-")) -> 13.8121547 | G16: =IF(OR('Tabel 1 ØJ'!E14<5,'Tabel 2 ØJ'!G16<0.5),"-",IFERROR('Tabel 2 ØJ'!G16/'Tabel 1 ØJ'!E14*100,"-")) -> 12.12950637 | I16: =IF(OR('Tabel 1 ØJ'!G14<5,'Tabel 2 ØJ'!I16<0.5),"-",IFERROR('Tabel 2 ØJ'!I16/'Tabel 1 ØJ'!G14*100,"-")) -> 13.13485114 | J16: =IF(OR('Tabel 1 ØJ'!G14<5,'Tabel 2 ØJ'!J16<0.5),"-",IFERROR('Tabel 2 ØJ'!J16/'Tabel 1 ØJ'!G14*100,"-")) -> 11.54110453
A17: Agronom | C17: =IF(OR('Tabel 1 ØJ'!C15<5,'Tabel 2 ØJ'!C17<0.5),"-",IFERROR('Tabel 2 ØJ'!C17/'Tabel 1 ØJ'!C15*100,"-")) -> 2.673796791 | D17: =IF(OR('Tabel 1 ØJ'!C15<5,'Tabel 2 ØJ'!D17<0.5),"-",IFERROR('Tabel 2 ØJ'!D17/'Tabel 1 ØJ'!C15*100,"-")) -> 1.925840788 | F17: =IF(OR('Tabel 1 ØJ'!E15<5,'Tabel 2 ØJ'!F17<0.5),"-",IFERROR('Tabel 2 ØJ'!F17/'Tabel 1 ØJ'!E15*100,"-")) -> 5.063291139 | G17: =IF(OR('Tabel 1 ØJ'!E15<5,'Tabel 2 ØJ'!G17<0.5),"-",IFERROR('Tabel 2 ØJ'!G17/'Tabel 1 ØJ'!E15*100,"-")) -> 4.448893777 | I17: =IF(OR('Tabel 1 ØJ'!G15<5,'Tabel 2 ØJ'!I17<0.5),"-",IFERROR('Tabel 2 ØJ'!I17/'Tabel 1 ØJ'!G15*100,"-")) -> 3.768115942 | J17: =IF(OR('Tabel 1 ØJ'!G15<5,'Tabel 2 ØJ'!J17<0.5),"-",IFERROR('Tabel 2 ØJ'!J17/'Tabel 1 ØJ'!G15*100,"-")) -> 3.081325925
A18: Landsk. Arkt. | C18: =IF(OR('Tabel 1 ØJ'!C16<5,'Tabel 2 ØJ'!C18<0.5),"-",IFERROR('Tabel 2 ØJ'!C18/'Tabel 1 ØJ'!C16*100,"-")) -> - | D18: =IF(OR('Tabel 1 ØJ'!C16<5,'Tabel 2 ØJ'!D18<0.5),"-",IFERROR('Tabel 2 ØJ'!D18/'Tabel 1 ØJ'!C16*100,"-")) -> - | F18: =IF(OR('Tabel 1 ØJ'!E16<5,'Tabel 2 ØJ'!F18<0.5),"-",IFERROR('Tabel 2 ØJ'!F18/'Tabel 1 ØJ'!E16*100,"-")) -> 3.448275862 | G18: =IF(OR('Tabel 1 ØJ'!E16<5,'Tabel 2 ØJ'!G18<0.5),"-",IFERROR('Tabel 2 ØJ'!G18/'Tabel 1 ØJ'!E16*100,"-")) -> 3.447630641 | I18: =IF(OR('Tabel 1 ØJ'!G16<5,'Tabel 2 ØJ'!I18<0.5),"-",IFERROR('Tabel 2 ØJ'!I18/'Tabel 1 ØJ'!G16*100,"-")) -> 2.5 | J18: =IF(OR('Tabel 1 ØJ'!G16<5,'Tabel 2 ØJ'!J18<0.5),"-",IFERROR('Tabel 2 ØJ'!J18/'Tabel 1 ØJ'!G16*100,"-")) -> 2.499532215
A19: Hortonom | C19: =IF(OR('Tabel 1 ØJ'!C17<5,'Tabel 2 ØJ'!C19<0.5),"-",IFERROR('Tabel 2 ØJ'!C19/'Tabel 1 ØJ'!C17*100,"-")) -> - | D19: =IF(OR('Tabel 1 ØJ'!C17<5,'Tabel 2 ØJ'!D19<0.5),"-",IFERROR('Tabel 2 ØJ'!D19/'Tabel 1 ØJ'!C17*100,"-")) -> - | F19: =IF(OR('Tabel 1 ØJ'!E17<5,'Tabel 2 ØJ'!F19<0.5),"-",IFERROR('Tabel 2 ØJ'!F19/'Tabel 1 ØJ'!E17*100,"-")) -> - | G19: =IF(OR('Tabel 1 ØJ'!E17<5,'Tabel 2 ØJ'!G19<0.5),"-",IFERROR('Tabel 2 ØJ'!G19/'Tabel 1 ØJ'!E17*100,"-")) -> - | I19: =IF(OR('Tabel 1 ØJ'!G17<5,'Tabel 2 ØJ'!I19<0.5),"-",IFERROR('Tabel 2 ØJ'!I19/'Tabel 1 ØJ'!G17*100,"-")) -> - | J19: =IF(OR('Tabel 1 ØJ'!G17<5,'Tabel 2 ØJ'!J19<0.5),"-",IFERROR('Tabel 2 ØJ'!J19/'Tabel 1 ØJ'!G17*100,"-")) -> -
A20: Forstkand. | C20: =IF(OR('Tabel 1 ØJ'!C18<5,'Tabel 2 ØJ'!C20<0.5),"-",IFERROR('Tabel 2 ØJ'!C20/'Tabel 1 ØJ'!C18*100,"-")) -> 4.761904762 | D20: =IF(OR('Tabel 1 ØJ'!C18<5,'Tabel 2 ØJ'!D20<0.5),"-",IFERROR('Tabel 2 ØJ'!D20/'Tabel 1 ØJ'!C18*100,"-")) -> 4.761013742 | F20: =IF(OR('Tabel 1 ØJ'!E18<5,'Tabel 2 ØJ'!F20<0.5),"-",IFERROR('Tabel 2 ØJ'!F20/'Tabel 1 ØJ'!E18*100,"-")) -> - | G20: =IF(OR('Tabel 1 ØJ'!E18<5,'Tabel 2 ØJ'!G20<0.5),"-",IFERROR('Tabel 2 ØJ'!G20/'Tabel 1 ØJ'!E18*100,"-")) -> - | I20: =IF(OR('Tabel 1 ØJ'!G18<5,'Tabel 2 ØJ'!I20<0.5),"-",IFERROR('Tabel 2 ØJ'!I20/'Tabel 1 ØJ'!G18*100,"-")) -> 3.703703704 | J20: =IF(OR('Tabel 1 ØJ'!G18<5,'Tabel 2 ØJ'!J20<0.5),"-",IFERROR('Tabel 2 ØJ'!J20/'Tabel 1 ØJ'!G18*100,"-")) -> 3.703010689
A21: Jordbrugsakad. | C21: =IF(OR('Tabel 1 ØJ'!C19<5,'Tabel 2 ØJ'!C21<0.5),"-",IFERROR('Tabel 2 ØJ'!C21/'Tabel 1 ØJ'!C19*100,"-")) -> 2.777777778 | D21: =IF(OR('Tabel 1 ØJ'!C19<5,'Tabel 2 ØJ'!D21<0.5),"-",IFERROR('Tabel 2 ØJ'!D21/'Tabel 1 ØJ'!C19*100,"-")) -> 2.22259843 | F21: =IF(OR('Tabel 1 ØJ'!E19<5,'Tabel 2 ØJ'!F21<0.5),"-",IFERROR('Tabel 2 ØJ'!F21/'Tabel 1 ØJ'!E19*100,"-")) -> 4.186046512 | G21: =IF(OR('Tabel 1 ØJ'!E19<5,'Tabel 2 ØJ'!G21<0.5),"-",IFERROR('Tabel 2 ØJ'!G21/'Tabel 1 ØJ'!E19*100,"-")) -> 3.734448862 | I21: =IF(OR('Tabel 1 ØJ'!G19<5,'Tabel 2 ØJ'!I21<0.5),"-",IFERROR('Tabel 2 ØJ'!I21/'Tabel 1 ØJ'!G19*100,"-")) -> 3.426124197 | J21: =IF(OR('Tabel 1 ØJ'!G19<5,'Tabel 2 ØJ'!J21<0.5),"-",IFERROR('Tabel 2 ØJ'!J21/'Tabel 1 ØJ'!G19*100,"-")) -> 2.918632355
A22: Mejeriing. | C22: =IF(OR('Tabel 1 ØJ'!C20<5,'Tabel 2 ØJ'!C22<0.5),"-",IFERROR('Tabel 2 ØJ'!C22/'Tabel 1 ØJ'!C20*100,"-")) -> 5.454545455 | D22: =IF(OR('Tabel 1 ØJ'!C20<5,'Tabel 2 ØJ'!D22<0.5),"-",IFERROR('Tabel 2 ØJ'!D22/'Tabel 1 ØJ'!C20*100,"-")) -> 4.194757404 | F22: =IF(OR('Tabel 1 ØJ'!E20<5,'Tabel 2 ØJ'!F22<0.5),"-",IFERROR('Tabel 2 ØJ'!F22/'Tabel 1 ØJ'!E20*100,"-")) -> - | G22: =IF(OR('Tabel 1 ØJ'!E20<5,'Tabel 2 ØJ'!G22<0.5),"-",IFERROR('Tabel 2 ØJ'!G22/'Tabel 1 ØJ'!E20*100,"-")) -> - | I22: =IF(OR('Tabel 1 ØJ'!G20<5,'Tabel 2 ØJ'!I22<0.5),"-",IFERROR('Tabel 2 ØJ'!I22/'Tabel 1 ØJ'!G20*100,"-")) -> 3.614457831 | J22: =IF(OR('Tabel 1 ØJ'!G20<5,'Tabel 2 ØJ'!J22<0.5),"-",IFERROR('Tabel 2 ØJ'!J22/'Tabel 1 ØJ'!G20*100,"-")) -> 2.779658521
A23: Levn.m.kand. | C23: =IF(OR('Tabel 1 ØJ'!C21<5,'Tabel 2 ØJ'!C23<0.5),"-",IFERROR('Tabel 2 ØJ'!C23/'Tabel 1 ØJ'!C21*100,"-")) -> - | D23: =IF(OR('Tabel 1 ØJ'!C21<5,'Tabel 2 ØJ'!D23<0.5),"-",IFERROR('Tabel 2 ØJ'!D23/'Tabel 1 ØJ'!C21*100,"-")) -> - | F23: =IF(OR('Tabel 1 ØJ'!E21<5,'Tabel 2 ØJ'!F23<0.5),"-",IFERROR('Tabel 2 ØJ'!F23/'Tabel 1 ØJ'!E21*100,"-")) -> 3.846153846 | G23: =IF(OR('Tabel 1 ØJ'!E21<5,'Tabel 2 ØJ'!G23<0.5),"-",IFERROR('Tabel 2 ØJ'!G23/'Tabel 1 ØJ'!E21*100,"-")) -> 3.845434177 | I23: =IF(OR('Tabel 1 ØJ'!G21<5,'Tabel 2 ØJ'!I23<0.5),"-",IFERROR('Tabel 2 ØJ'!I23/'Tabel 1 ØJ'!G21*100,"-")) -> 7.142857143 | J23: =IF(OR('Tabel 1 ØJ'!G21<5,'Tabel 2 ØJ'!J23<0.5),"-",IFERROR('Tabel 2 ØJ'!J23/'Tabel 1 ØJ'!G21*100,"-")) -> 6.370788819
A24: Dyrlæge | C24: =IF(OR('Tabel 1 ØJ'!C22<5,'Tabel 2 ØJ'!C24<0.5),"-",IFERROR('Tabel 2 ØJ'!C24/'Tabel 1 ØJ'!C22*100,"-")) -> - | D24: =IF(OR('Tabel 1 ØJ'!C22<5,'Tabel 2 ØJ'!D24<0.5),"-",IFERROR('Tabel 2 ØJ'!D24/'Tabel 1 ØJ'!C22*100,"-")) -> - | F24: =IF(OR('Tabel 1 ØJ'!E22<5,'Tabel 2 ØJ'!F24<0.5),"-",IFERROR('Tabel 2 ØJ'!F24/'Tabel 1 ØJ'!E22*100,"-")) -> - | G24: =IF(OR('Tabel 1 ØJ'!E22<5,'Tabel 2 ØJ'!G24<0.5),"-",IFERROR('Tabel 2 ØJ'!G24/'Tabel 1 ØJ'!E22*100,"-")) -> - | I24: =IF(OR('Tabel 1 ØJ'!G22<5,'Tabel 2 ØJ'!I24<0.5),"-",IFERROR('Tabel 2 ØJ'!I24/'Tabel 1 ØJ'!G22*100,"-")) -> - | J24: =IF(OR('Tabel 1 ØJ'!G22<5,'Tabel 2 ØJ'!J24<0.5),"-",IFERROR('Tabel 2 ØJ'!J24/'Tabel 1 ØJ'!G22*100,"-")) -> -
A25: Farmaceut | C25: =IF(OR('Tabel 1 ØJ'!C23<5,'Tabel 2 ØJ'!C25<0.5),"-",IFERROR('Tabel 2 ØJ'!C25/'Tabel 1 ØJ'!C23*100,"-")) -> 8.450704225 | D25: =IF(OR('Tabel 1 ØJ'!C23<5,'Tabel 2 ØJ'!D25<0.5),"-",IFERROR('Tabel 2 ØJ'!D25/'Tabel 1 ØJ'!C23*100,"-")) -> 8.254102674 | F25: =IF(OR('Tabel 1 ØJ'!E23<5,'Tabel 2 ØJ'!F25<0.5),"-",IFERROR('Tabel 2 ØJ'!F25/'Tabel 1 ØJ'!E23*100,"-")) -> 5.905511811 | G25: =IF(OR('Tabel 1 ØJ'!E23<5,'Tabel 2 ØJ'!G25<0.5),"-",IFERROR('Tabel 2 ØJ'!G25/'Tabel 1 ØJ'!E23*100,"-")) -> 4.992164291 | I25: =IF(OR('Tabel 1 ØJ'!G23<5,'Tabel 2 ØJ'!I25<0.5),"-",IFERROR('Tabel 2 ØJ'!I25/'Tabel 1 ØJ'!G23*100,"-")) -> 6.461538462 | J25: =IF(OR('Tabel 1 ØJ'!G23<5,'Tabel 2 ØJ'!J25<0.5),"-",IFERROR('Tabel 2 ØJ'!J25/'Tabel 1 ØJ'!G23*100,"-")) -> 5.704772369
A26: Læge | C26: =IF(OR('Tabel 1 ØJ'!C24<5,'Tabel 2 ØJ'!C26<0.5),"-",IFERROR('Tabel 2 ØJ'!C26/'Tabel 1 ØJ'!C24*100,"-")) -> 1.608910891 | D26: =IF(OR('Tabel 1 ØJ'!C24<5,'Tabel 2 ØJ'!D26<0.5),"-",IFERROR('Tabel 2 ØJ'!D26/'Tabel 1 ØJ'!C24*100,"-")) -> 1.413081806 | F26: =IF(OR('Tabel 1 ØJ'!E24<5,'Tabel 2 ØJ'!F26<0.5),"-",IFERROR('Tabel 2 ØJ'!F26/'Tabel 1 ØJ'!E24*100,"-")) -> 2.603036876 | G26: =IF(OR('Tabel 1 ØJ'!E24<5,'Tabel 2 ØJ'!G26<0.5),"-",IFERROR('Tabel 2 ØJ'!G26/'Tabel 1 ØJ'!E24*100,"-")) -> 2.155904586 | I26: =IF(OR('Tabel 1 ØJ'!G24<5,'Tabel 2 ØJ'!I26<0.5),"-",IFERROR('Tabel 2 ØJ'!I26/'Tabel 1 ØJ'!G24*100,"-")) -> 2.30015083 | J26: =IF(OR('Tabel 1 ØJ'!G24<5,'Tabel 2 ØJ'!J26<0.5),"-",IFERROR('Tabel 2 ØJ'!J26/'Tabel 1 ØJ'!G24*100,"-")) -> 1.929584523
A27: Tandlæge | C27: =IF(OR('Tabel 1 ØJ'!C25<5,'Tabel 2 ØJ'!C27<0.5),"-",IFERROR('Tabel 2 ØJ'!C27/'Tabel 1 ØJ'!C25*100,"-")) -> 2.857142857 | D27: =IF(OR('Tabel 1 ØJ'!C25<5,'Tabel 2 ØJ'!D27<0.5),"-",IFERROR('Tabel 2 ØJ'!D27/'Tabel 1 ØJ'!C25*100,"-")) -> 1.603834948 | F27: =IF(OR('Tabel 1 ØJ'!E25<5,'Tabel 2 ØJ'!F27<0.5),"-",IFERROR('Tabel 2 ØJ'!F27/'Tabel 1 ØJ'!E25*100,"-")) -> 1.699029126 | G27: =IF(OR('Tabel 1 ØJ'!E25<5,'Tabel 2 ØJ'!G27<0.5),"-",IFERROR('Tabel 2 ØJ'!G27/'Tabel 1 ØJ'!E25*100,"-")) -> 1.133432926 | I27: =IF(OR('Tabel 1 ØJ'!G25<5,'Tabel 2 ØJ'!I27<0.5),"-",IFERROR('Tabel 2 ØJ'!I27/'Tabel 1 ØJ'!G25*100,"-")) -> 1.867219917 | J27: =IF(OR('Tabel 1 ØJ'!G25<5,'Tabel 2 ØJ'!J27<0.5),"-",IFERROR('Tabel 2 ØJ'!J27/'Tabel 1 ØJ'!G25*100,"-")) -> 1.201748572
A28: Arkitekt | C28: =IF(OR('Tabel 1 ØJ'!C26<5,'Tabel 2 ØJ'!C28<0.5),"-",IFERROR('Tabel 2 ØJ'!C28/'Tabel 1 ØJ'!C26*100,"-")) -> 7.468879668 | D28: =IF(OR('Tabel 1 ØJ'!C26<5,'Tabel 2 ØJ'!D28<0.5),"-",IFERROR('Tabel 2 ØJ'!D28/'Tabel 1 ØJ'!C26*100,"-")) -> 6.784157744 | F28: =IF(OR('Tabel 1 ØJ'!E26<5,'Tabel 2 ØJ'!F28<0.5),"-",IFERROR('Tabel 2 ØJ'!F28/'Tabel 1 ØJ'!E26*100,"-")) -> 10.57579318 | G28: =IF(OR('Tabel 1 ØJ'!E26<5,'Tabel 2 ØJ'!G28<0.5),"-",IFERROR('Tabel 2 ØJ'!G28/'Tabel 1 ØJ'!E26*100,"-")) -> 9.389931152 | I28: =IF(OR('Tabel 1 ØJ'!G26<5,'Tabel 2 ØJ'!I28<0.5),"-",IFERROR('Tabel 2 ØJ'!I28/'Tabel 1 ØJ'!G26*100,"-")) -> 9.14866582 | J28: =IF(OR('Tabel 1 ØJ'!G26<5,'Tabel 2 ØJ'!J28<0.5),"-",IFERROR('Tabel 2 ØJ'!J28/'Tabel 1 ØJ'!G26*100,"-")) -> 8.192997115
A29: Landinspek. | C29: =IF(OR('Tabel 1 ØJ'!C27<5,'Tabel 2 ØJ'!C29<0.5),"-",IFERROR('Tabel 2 ØJ'!C29/'Tabel 1 ØJ'!C27*100,"-")) -> - | D29: =IF(OR('Tabel 1 ØJ'!C27<5,'Tabel 2 ØJ'!D29<0.5),"-",IFERROR('Tabel 2 ØJ'!D29/'Tabel 1 ØJ'!C27*100,"-")) -> - | F29: =IF(OR('Tabel 1 ØJ'!E27<5,'Tabel 2 ØJ'!F29<0.5),"-",IFERROR('Tabel 2 ØJ'!F29/'Tabel 1 ØJ'!E27*100,"-")) -> 2.631578947 | G29: =IF(OR('Tabel 1 ØJ'!E27<5,'Tabel 2 ØJ'!G29<0.5),"-",IFERROR('Tabel 2 ØJ'!G29/'Tabel 1 ØJ'!E27*100,"-")) -> 2.631086542 | I29: =IF(OR('Tabel 1 ØJ'!G27<5,'Tabel 2 ØJ'!I29<0.5),"-",IFERROR('Tabel 2 ØJ'!I29/'Tabel 1 ØJ'!G27*100,"-")) -> 0.7352941176 | J29: =IF(OR('Tabel 1 ØJ'!G27<5,'Tabel 2 ØJ'!J29<0.5),"-",IFERROR('Tabel 2 ØJ'!J29/'Tabel 1 ØJ'!G27*100,"-")) -> 0.7351565338
A30: Bibliotekar | C30: =IF(OR('Tabel 1 ØJ'!C28<5,'Tabel 2 ØJ'!C30<0.5),"-",IFERROR('Tabel 2 ØJ'!C30/'Tabel 1 ØJ'!C28*100,"-")) -> 4.054054054 | D30: =IF(OR('Tabel 1 ØJ'!C28<5,'Tabel 2 ØJ'!D30<0.5),"-",IFERROR('Tabel 2 ØJ'!D30/'Tabel 1 ØJ'!C28*100,"-")) -> 3.377324808 | F30: =IF(OR('Tabel 1 ØJ'!E28<5,'Tabel 2 ØJ'!F30<0.5),"-",IFERROR('Tabel 2 ØJ'!F30/'Tabel 1 ØJ'!E28*100,"-")) -> 6.071428571 | G30: =IF(OR('Tabel 1 ØJ'!E28<5,'Tabel 2 ØJ'!G30<0.5),"-",IFERROR('Tabel 2 ØJ'!G30/'Tabel 1 ØJ'!E28*100,"-")) -> 5.267706783 | I30: =IF(OR('Tabel 1 ØJ'!G28<5,'Tabel 2 ØJ'!I30<0.5),"-",IFERROR('Tabel 2 ØJ'!I30/'Tabel 1 ØJ'!G28*100,"-")) -> 5.649717514 | J30: =IF(OR('Tabel 1 ØJ'!G28<5,'Tabel 2 ØJ'!J30<0.5),"-",IFERROR('Tabel 2 ØJ'!J30/'Tabel 1 ØJ'!G28*100,"-")) -> 4.87254219
A31: Musikudd. | C31: =IF(OR('Tabel 1 ØJ'!C29<5,'Tabel 2 ØJ'!C31<0.5),"-",IFERROR('Tabel 2 ØJ'!C31/'Tabel 1 ØJ'!C29*100,"-")) -> 5.797101449 | D31: =IF(OR('Tabel 1 ØJ'!C29<5,'Tabel 2 ØJ'!D31<0.5),"-",IFERROR('Tabel 2 ØJ'!D31/'Tabel 1 ØJ'!C29*100,"-")) -> 4.692314854 | F31: =IF(OR('Tabel 1 ØJ'!E29<5,'Tabel 2 ØJ'!F31<0.5),"-",IFERROR('Tabel 2 ØJ'!F31/'Tabel 1 ØJ'!E29*100,"-")) -> 7.792207792 | G31: =IF(OR('Tabel 1 ØJ'!E29<5,'Tabel 2 ØJ'!G31<0.5),"-",IFERROR('Tabel 2 ØJ'!G31/'Tabel 1 ØJ'!E29*100,"-")) -> 6.849509251 | I31: =IF(OR('Tabel 1 ØJ'!G29<5,'Tabel 2 ØJ'!I31<0.5),"-",IFERROR('Tabel 2 ØJ'!I31/'Tabel 1 ØJ'!G29*100,"-")) -> 6.849315068 | J31: =IF(OR('Tabel 1 ØJ'!G29<5,'Tabel 2 ØJ'!J31<0.5),"-",IFERROR('Tabel 2 ØJ'!J31/'Tabel 1 ØJ'!G29*100,"-")) -> 5.830013269
A32: Teolog | C32: =IF(OR('Tabel 1 ØJ'!C30<5,'Tabel 2 ØJ'!C32<0.5),"-",IFERROR('Tabel 2 ØJ'!C32/'Tabel 1 ØJ'!C30*100,"-")) -> 11.11111111 | D32: =IF(OR('Tabel 1 ØJ'!C30<5,'Tabel 2 ØJ'!D32<0.5),"-",IFERROR('Tabel 2 ØJ'!D32/'Tabel 1 ØJ'!C30*100,"-")) -> 9.51905742 | F32: =IF(OR('Tabel 1 ØJ'!E30<5,'Tabel 2 ØJ'!F32<0.5),"-",IFERROR('Tabel 2 ØJ'!F32/'Tabel 1 ØJ'!E30*100,"-")) -> 4.807692308 | G32: =IF(OR('Tabel 1 ØJ'!E30<5,'Tabel 2 ØJ'!G32<0.5),"-",IFERROR('Tabel 2 ØJ'!G32/'Tabel 1 ØJ'!E30*100,"-")) -> 4.701840915 | I32: =IF(OR('Tabel 1 ØJ'!G30<5,'Tabel 2 ØJ'!I32<0.5),"-",IFERROR('Tabel 2 ØJ'!I32/'Tabel 1 ØJ'!G30*100,"-")) -> 7.185628743 | J32: =IF(OR('Tabel 1 ØJ'!G30<5,'Tabel 2 ØJ'!J32<0.5),"-",IFERROR('Tabel 2 ØJ'!J32/'Tabel 1 ØJ'!G30*100,"-")) -> 6.519114207
A33: Psykolog | C33: =IF(OR('Tabel 1 ØJ'!C31<5,'Tabel 2 ØJ'!C33<0.5),"-",IFERROR('Tabel 2 ØJ'!C33/'Tabel 1 ØJ'!C31*100,"-")) -> 6.962025316 | D33: =IF(OR('Tabel 1 ØJ'!C31<5,'Tabel 2 ØJ'!D33<0.5),"-",IFERROR('Tabel 2 ØJ'!D33/'Tabel 1 ØJ'!C31*100,"-")) -> 6.114169589 | F33: =IF(OR('Tabel 1 ØJ'!E31<5,'Tabel 2 ØJ'!F33<0.5),"-",IFERROR('Tabel 2 ØJ'!F33/'Tabel 1 ØJ'!E31*100,"-")) -> 7.395898073 | G33: =IF(OR('Tabel 1 ØJ'!E31<5,'Tabel 2 ØJ'!G33<0.5),"-",IFERROR('Tabel 2 ØJ'!G33/'Tabel 1 ØJ'!E31*100,"-")) -> 6.327417383 | I33: =IF(OR('Tabel 1 ØJ'!G31<5,'Tabel 2 ØJ'!I33<0.5),"-",IFERROR('Tabel 2 ØJ'!I33/'Tabel 1 ØJ'!G31*100,"-")) -> 7.324675325 | J33: =IF(OR('Tabel 1 ØJ'!G31<5,'Tabel 2 ØJ'!J33<0.5),"-",IFERROR('Tabel 2 ØJ'!J33/'Tabel 1 ØJ'!G31*100,"-")) -> 6.292411512
A34: Jurist | C34: =IF(OR('Tabel 1 ØJ'!C32<5,'Tabel 2 ØJ'!C34<0.5),"-",IFERROR('Tabel 2 ØJ'!C34/'Tabel 1 ØJ'!C32*100,"-")) -> 3.249097473 | D34: =IF(OR('Tabel 1 ØJ'!C32<5,'Tabel 2 ØJ'!D34<0.5),"-",IFERROR('Tabel 2 ØJ'!D34/'Tabel 1 ØJ'!C32*100,"-")) -> 3.139433462 | F34: =IF(OR('Tabel 1 ØJ'!E32<5,'Tabel 2 ØJ'!F34<0.5),"-",IFERROR('Tabel 2 ØJ'!F34/'Tabel 1 ØJ'!E32*100,"-")) -> 2.638522427 | G34: =IF(OR('Tabel 1 ØJ'!E32<5,'Tabel 2 ØJ'!G34<0.5),"-",IFERROR('Tabel 2 ØJ'!G34/'Tabel 1 ØJ'!E32*100,"-")) -> 2.342299614 | I34: =IF(OR('Tabel 1 ØJ'!G32<5,'Tabel 2 ØJ'!I34<0.5),"-",IFERROR('Tabel 2 ØJ'!I34/'Tabel 1 ØJ'!G32*100,"-")) -> 2.854708138 | J34: =IF(OR('Tabel 1 ØJ'!G32<5,'Tabel 2 ØJ'!J34<0.5),"-",IFERROR('Tabel 2 ØJ'!J34/'Tabel 1 ØJ'!G32*100,"-")) -> 2.624540018
A35: Økonom | C35: =IF(OR('Tabel 1 ØJ'!C33<5,'Tabel 2 ØJ'!C35<0.5),"-",IFERROR('Tabel 2 ØJ'!C35/'Tabel 1 ØJ'!C33*100,"-")) -> 3.556034483 | D35: =IF(OR('Tabel 1 ØJ'!C33<5,'Tabel 2 ØJ'!D35<0.5),"-",IFERROR('Tabel 2 ØJ'!D35/'Tabel 1 ØJ'!C33*100,"-")) -> 3.262868932 | F35: =IF(OR('Tabel 1 ØJ'!E33<5,'Tabel 2 ØJ'!F35<0.5),"-",IFERROR('Tabel 2 ØJ'!F35/'Tabel 1 ØJ'!E33*100,"-")) -> 2.692307692 | G35: =IF(OR('Tabel 1 ØJ'!E33<5,'Tabel 2 ØJ'!G35<0.5),"-",IFERROR('Tabel 2 ØJ'!G35/'Tabel 1 ØJ'!E33*100,"-")) -> 2.562743188 | I35: =IF(OR('Tabel 1 ØJ'!G33<5,'Tabel 2 ØJ'!I35<0.5),"-",IFERROR('Tabel 2 ØJ'!I35/'Tabel 1 ØJ'!G33*100,"-")) -> 3.245856354 | J35: =IF(OR('Tabel 1 ØJ'!G33<5,'Tabel 2 ØJ'!J35<0.5),"-",IFERROR('Tabel 2 ØJ'!J35/'Tabel 1 ØJ'!G33*100,"-")) -> 3.01144256
A36: Samf. Adm. | C36: =IF(OR('Tabel 1 ØJ'!C34<5,'Tabel 2 ØJ'!C36<0.5),"-",IFERROR('Tabel 2 ØJ'!C36/'Tabel 1 ØJ'!C34*100,"-")) -> 8.742774566 | D36: =IF(OR('Tabel 1 ØJ'!C34<5,'Tabel 2 ØJ'!D36<0.5),"-",IFERROR('Tabel 2 ØJ'!D36/'Tabel 1 ØJ'!C34*100,"-")) -> 7.853338256 | F36: =IF(OR('Tabel 1 ØJ'!E34<5,'Tabel 2 ØJ'!F36<0.5),"-",IFERROR('Tabel 2 ØJ'!F36/'Tabel 1 ØJ'!E34*100,"-")) -> 8.983324368 | G36: =IF(OR('Tabel 1 ØJ'!E34<5,'Tabel 2 ØJ'!G36<0.5),"-",IFERROR('Tabel 2 ØJ'!G36/'Tabel 1 ØJ'!E34*100,"-")) -> 7.707610316 | I36: =IF(OR('Tabel 1 ØJ'!G34<5,'Tabel 2 ØJ'!I36<0.5),"-",IFERROR('Tabel 2 ØJ'!I36/'Tabel 1 ØJ'!G34*100,"-")) -> 8.88066605 | J36: =IF(OR('Tabel 1 ØJ'!G34<5,'Tabel 2 ØJ'!J36<0.5),"-",IFERROR('Tabel 2 ØJ'!J36/'Tabel 1 ØJ'!G34*100,"-")) -> 7.76980195
A37: Cand. Merc. | C37: =IF(OR('Tabel 1 ØJ'!C35<5,'Tabel 2 ØJ'!C37<0.5),"-",IFERROR('Tabel 2 ØJ'!C37/'Tabel 1 ØJ'!C35*100,"-")) -> 4.303164908 | D37: =IF(OR('Tabel 1 ØJ'!C35<5,'Tabel 2 ØJ'!D37<0.5),"-",IFERROR('Tabel 2 ØJ'!D37/'Tabel 1 ØJ'!C35*100,"-")) -> 3.980702211 | F37: =IF(OR('Tabel 1 ØJ'!E35<5,'Tabel 2 ØJ'!F37<0.5),"-",IFERROR('Tabel 2 ØJ'!F37/'Tabel 1 ØJ'!E35*100,"-")) -> 4.823348694 | G37: =IF(OR('Tabel 1 ØJ'!E35<5,'Tabel 2 ØJ'!G37<0.5),"-",IFERROR('Tabel 2 ØJ'!G37/'Tabel 1 ØJ'!E35*100,"-")) -> 4.253017706 | I37: =IF(OR('Tabel 1 ØJ'!G35<5,'Tabel 2 ØJ'!I37<0.5),"-",IFERROR('Tabel 2 ØJ'!I37/'Tabel 1 ØJ'!G35*100,"-")) -> 4.550094794 | J37: =IF(OR('Tabel 1 ØJ'!G35<5,'Tabel 2 ØJ'!J37<0.5),"-",IFERROR('Tabel 2 ØJ'!J37/'Tabel 1 ØJ'!G35*100,"-")) -> 4.109969666
A38: HA | C38: =IF(OR('Tabel 1 ØJ'!C36<5,'Tabel 2 ØJ'!C38<0.5),"-",IFERROR('Tabel 2 ØJ'!C38/'Tabel 1 ØJ'!C36*100,"-")) -> 8.732876712 | D38: =IF(OR('Tabel 1 ØJ'!C36<5,'Tabel 2 ØJ'!D38<0.5),"-",IFERROR('Tabel 2 ØJ'!D38/'Tabel 1 ØJ'!C36*100,"-")) -> 7.879296895 | F38: =IF(OR('Tabel 1 ØJ'!E36<5,'Tabel 2 ØJ'!F38<0.5),"-",IFERROR('Tabel 2 ØJ'!F38/'Tabel 1 ØJ'!E36*100,"-")) -> 9.351145038 | G38: =IF(OR('Tabel 1 ØJ'!E36<5,'Tabel 2 ØJ'!G38<0.5),"-",IFERROR('Tabel 2 ØJ'!G38/'Tabel 1 ØJ'!E36*100,"-")) -> 8.243851065 | I38: =IF(OR('Tabel 1 ØJ'!G36<5,'Tabel 2 ØJ'!I38<0.5),"-",IFERROR('Tabel 2 ØJ'!I38/'Tabel 1 ØJ'!G36*100,"-")) -> 9.025270758 | J38: =IF(OR('Tabel 1 ØJ'!G36<5,'Tabel 2 ØJ'!J38<0.5),"-",IFERROR('Tabel 2 ØJ'!J38/'Tabel 1 ØJ'!G36*100,"-")) -> 8.05170338
A39: HD | C39: =IF(OR('Tabel 1 ØJ'!C37<5,'Tabel 2 ØJ'!C39<0.5),"-",IFERROR('Tabel 2 ØJ'!C39/'Tabel 1 ØJ'!C37*100,"-")) -> 5.307855626 | D39: =IF(OR('Tabel 1 ØJ'!C37<5,'Tabel 2 ØJ'!D39<0.5),"-",IFERROR('Tabel 2 ØJ'!D39/'Tabel 1 ØJ'!C37*100,"-")) -> 4.71837345 | F39: =IF(OR('Tabel 1 ØJ'!E37<5,'Tabel 2 ØJ'!F39<0.5),"-",IFERROR('Tabel 2 ØJ'!F39/'Tabel 1 ØJ'!E37*100,"-")) -> 7.575757576 | G39: =IF(OR('Tabel 1 ØJ'!E37<5,'Tabel 2 ØJ'!G39<0.5),"-",IFERROR('Tabel 2 ØJ'!G39/'Tabel 1 ØJ'!E37*100,"-")) -> 5.992533077 | I39: =IF(OR('Tabel 1 ØJ'!G37<5,'Tabel 2 ØJ'!I39<0.5),"-",IFERROR('Tabel 2 ØJ'!I39/'Tabel 1 ØJ'!G37*100,"-")) -> 6.343713956 | J39: =IF(OR('Tabel 1 ØJ'!G37<5,'Tabel 2 ØJ'!J39<0.5),"-",IFERROR('Tabel 2 ØJ'!J39/'Tabel 1 ØJ'!G37*100,"-")) -> 5.300342553
A40: Komm. og Sprog | C40: =IF(OR('Tabel 1 ØJ'!C38<5,'Tabel 2 ØJ'!C40<0.5),"-",IFERROR('Tabel 2 ØJ'!C40/'Tabel 1 ØJ'!C38*100,"-")) -> 18.71345029 | D40: =IF(OR('Tabel 1 ØJ'!C38<5,'Tabel 2 ØJ'!D40<0.5),"-",IFERROR('Tabel 2 ØJ'!D40/'Tabel 1 ØJ'!C38*100,"-")) -> 16.48901772 | F40: =IF(OR('Tabel 1 ØJ'!E38<5,'Tabel 2 ØJ'!F40<0.5),"-",IFERROR('Tabel 2 ØJ'!F40/'Tabel 1 ØJ'!E38*100,"-")) -> 8.48806366 | G40: =IF(OR('Tabel 1 ØJ'!E38<5,'Tabel 2 ØJ'!G40<0.5),"-",IFERROR('Tabel 2 ØJ'!G40/'Tabel 1 ØJ'!E38*100,"-")) -> 7.4625594 | I40: =IF(OR('Tabel 1 ØJ'!G38<5,'Tabel 2 ØJ'!I40<0.5),"-",IFERROR('Tabel 2 ØJ'!I40/'Tabel 1 ØJ'!G38*100,"-")) -> 9.831029186 | J40: =IF(OR('Tabel 1 ØJ'!G38<5,'Tabel 2 ØJ'!J40<0.5),"-",IFERROR('Tabel 2 ØJ'!J40/'Tabel 1 ØJ'!G38*100,"-")) -> 8.64806199
A41: Bygningskonst. | C41: =IF(OR('Tabel 1 ØJ'!C39<5,'Tabel 2 ØJ'!C41<0.5),"-",IFERROR('Tabel 2 ØJ'!C41/'Tabel 1 ØJ'!C39*100,"-")) -> 5.766233766 | D41: =IF(OR('Tabel 1 ØJ'!C39<5,'Tabel 2 ØJ'!D41<0.5),"-",IFERROR('Tabel 2 ØJ'!D41/'Tabel 1 ØJ'!C39*100,"-")) -> 5.157657785 | F41: =IF(OR('Tabel 1 ØJ'!E39<5,'Tabel 2 ØJ'!F41<0.5),"-",IFERROR('Tabel 2 ØJ'!F41/'Tabel 1 ØJ'!E39*100,"-")) -> 11.63522013 | G41: =IF(OR('Tabel 1 ØJ'!E39<5,'Tabel 2 ØJ'!G41<0.5),"-",IFERROR('Tabel 2 ØJ'!G41/'Tabel 1 ØJ'!E39*100,"-")) -> 10.1813006 | I41: =IF(OR('Tabel 1 ØJ'!G39<5,'Tabel 2 ØJ'!I41<0.5),"-",IFERROR('Tabel 2 ØJ'!I41/'Tabel 1 ØJ'!G39*100,"-")) -> 6.59830584 | J41: =IF(OR('Tabel 1 ØJ'!G39<5,'Tabel 2 ØJ'!J41<0.5),"-",IFERROR('Tabel 2 ØJ'!J41/'Tabel 1 ØJ'!G39*100,"-")) -> 5.869881777
A42: Cand. IT. | C42: =IF(OR('Tabel 1 ØJ'!C40<5,'Tabel 2 ØJ'!C42<0.5),"-",IFERROR('Tabel 2 ØJ'!C42/'Tabel 1 ØJ'!C40*100,"-")) -> 7.569721116 | D42: =IF(OR('Tabel 1 ØJ'!C40<5,'Tabel 2 ØJ'!D42<0.5),"-",IFERROR('Tabel 2 ØJ'!D42/'Tabel 1 ØJ'!C40*100,"-")) -> 6.698087585 | F42: =IF(OR('Tabel 1 ØJ'!E40<5,'Tabel 2 ØJ'!F42<0.5),"-",IFERROR('Tabel 2 ØJ'!F42/'Tabel 1 ØJ'!E40*100,"-")) -> 9.619686801 | G42: =IF(OR('Tabel 1 ØJ'!E40<5,'Tabel 2 ØJ'!G42<0.5),"-",IFERROR('Tabel 2 ØJ'!G42/'Tabel 1 ØJ'!E40*100,"-")) -> 8.398784889 | I42: =IF(OR('Tabel 1 ØJ'!G40<5,'Tabel 2 ØJ'!I42<0.5),"-",IFERROR('Tabel 2 ØJ'!I42/'Tabel 1 ØJ'!G40*100,"-")) -> 8.535300316 | J42: =IF(OR('Tabel 1 ØJ'!G40<5,'Tabel 2 ØJ'!J42<0.5),"-",IFERROR('Tabel 2 ØJ'!J42/'Tabel 1 ØJ'!G40*100,"-")) -> 7.499153649
A43: Bac. Samf. | C43: =IF(OR('Tabel 1 ØJ'!C41<5,'Tabel 2 ØJ'!C43<0.5),"-",IFERROR('Tabel 2 ØJ'!C43/'Tabel 1 ØJ'!C41*100,"-")) -> 8.24742268 | D43: =IF(OR('Tabel 1 ØJ'!C41<5,'Tabel 2 ØJ'!D43<0.5),"-",IFERROR('Tabel 2 ØJ'!D43/'Tabel 1 ØJ'!C41*100,"-")) -> 8.245879472 | F43: =IF(OR('Tabel 1 ØJ'!E41<5,'Tabel 2 ØJ'!F43<0.5),"-",IFERROR('Tabel 2 ØJ'!F43/'Tabel 1 ØJ'!E41*100,"-")) -> 15.15151515 | G43: =IF(OR('Tabel 1 ØJ'!E41<5,'Tabel 2 ØJ'!G43<0.5),"-",IFERROR('Tabel 2 ØJ'!G43/'Tabel 1 ØJ'!E41*100,"-")) -> 13.39787194 | I43: =IF(OR('Tabel 1 ØJ'!G41<5,'Tabel 2 ØJ'!I43<0.5),"-",IFERROR('Tabel 2 ØJ'!I43/'Tabel 1 ØJ'!G41*100,"-")) -> 11.73469388 | J43: =IF(OR('Tabel 1 ØJ'!G41<5,'Tabel 2 ØJ'!J43<0.5),"-",IFERROR('Tabel 2 ØJ'!J43/'Tabel 1 ØJ'!G41*100,"-")) -> 10.84816138
A44: Bac. Hum. | C44: =IF(OR('Tabel 1 ØJ'!C42<5,'Tabel 2 ØJ'!C44<0.5),"-",IFERROR('Tabel 2 ØJ'!C44/'Tabel 1 ØJ'!C42*100,"-")) -> 19.93670886 | D44: =IF(OR('Tabel 1 ØJ'!C42<5,'Tabel 2 ØJ'!D44<0.5),"-",IFERROR('Tabel 2 ØJ'!D44/'Tabel 1 ØJ'!C42*100,"-")) -> 17.22396923 | F44: =IF(OR('Tabel 1 ØJ'!E42<5,'Tabel 2 ØJ'!F44<0.5),"-",IFERROR('Tabel 2 ØJ'!F44/'Tabel 1 ØJ'!E42*100,"-")) -> 28.8973384 | G44: =IF(OR('Tabel 1 ØJ'!E42<5,'Tabel 2 ØJ'!G44<0.5),"-",IFERROR('Tabel 2 ØJ'!G44/'Tabel 1 ØJ'!E42*100,"-")) -> 24.24372356 | I44: =IF(OR('Tabel 1 ØJ'!G42<5,'Tabel 2 ØJ'!I44<0.5),"-",IFERROR('Tabel 2 ØJ'!I44/'Tabel 1 ØJ'!G42*100,"-")) -> 25.53444181 | J44: =IF(OR('Tabel 1 ØJ'!G42<5,'Tabel 2 ØJ'!J44<0.5),"-",IFERROR('Tabel 2 ØJ'!J44/'Tabel 1 ØJ'!G42*100,"-")) -> 21.60923144
A45: Bac. Nat. | C45: =IF(OR('Tabel 1 ØJ'!C43<5,'Tabel 2 ØJ'!C45<0.5),"-",IFERROR('Tabel 2 ØJ'!C45/'Tabel 1 ØJ'!C43*100,"-")) -> 17.18426501 | D45: =IF(OR('Tabel 1 ØJ'!C43<5,'Tabel 2 ØJ'!D45<0.5),"-",IFERROR('Tabel 2 ØJ'!D45/'Tabel 1 ØJ'!C43*100,"-")) -> 14.99572763 | F45: =IF(OR('Tabel 1 ØJ'!E43<5,'Tabel 2 ØJ'!F45<0.5),"-",IFERROR('Tabel 2 ØJ'!F45/'Tabel 1 ØJ'!E43*100,"-")) -> 21.96531792 | G45: =IF(OR('Tabel 1 ØJ'!E43<5,'Tabel 2 ØJ'!G45<0.5),"-",IFERROR('Tabel 2 ØJ'!G45/'Tabel 1 ØJ'!E43*100,"-")) -> 19.78542089 | I45: =IF(OR('Tabel 1 ØJ'!G43<5,'Tabel 2 ØJ'!I45<0.5),"-",IFERROR('Tabel 2 ØJ'!I45/'Tabel 1 ØJ'!G43*100,"-")) -> 18.44512195 | J45: =IF(OR('Tabel 1 ØJ'!G43<5,'Tabel 2 ØJ'!J45<0.5),"-",IFERROR('Tabel 2 ØJ'!J45/'Tabel 1 ØJ'!G43*100,"-")) -> 16.2588632
A46: Andre | C46: =IF(OR('Tabel 1 ØJ'!C44<5,'Tabel 2 ØJ'!C46<0.5),"-",IFERROR('Tabel 2 ØJ'!C46/'Tabel 1 ØJ'!C44*100,"-")) -> 7.107540173 | D46: =IF(OR('Tabel 1 ØJ'!C44<5,'Tabel 2 ØJ'!D46<0.5),"-",IFERROR('Tabel 2 ØJ'!D46/'Tabel 1 ØJ'!C44*100,"-")) -> 6.305019692 | F46: =IF(OR('Tabel 1 ØJ'!E44<5,'Tabel 2 ØJ'!F46<0.5),"-",IFERROR('Tabel 2 ØJ'!F46/'Tabel 1 ØJ'!E44*100,"-")) -> 11.40408701 | G46: =IF(OR('Tabel 1 ØJ'!E44<5,'Tabel 2 ØJ'!G46<0.5),"-",IFERROR('Tabel 2 ØJ'!G46/'Tabel 1 ØJ'!E44*100,"-")) -> 10.1504967 | I46: =IF(OR('Tabel 1 ØJ'!G44<5,'Tabel 2 ØJ'!I46<0.5),"-",IFERROR('Tabel 2 ØJ'!I46/'Tabel 1 ØJ'!G44*100,"-")) -> 9.186602871 | J46: =IF(OR('Tabel 1 ØJ'!G44<5,'Tabel 2 ØJ'!J46<0.5),"-",IFERROR('Tabel 2 ØJ'!J46/'Tabel 1 ØJ'!G44*100,"-")) -> 8.165813512
A48: Total | C48: =IF(OR('Tabel 1 ØJ'!C46<5,'Tabel 2 ØJ'!C48<0.5),"-",IFERROR('Tabel 2 ØJ'!C48/'Tabel 1 ØJ'!C46*100,"-")) -> 6.500700369 | D48: =IF(OR('Tabel 1 ØJ'!C46<5,'Tabel 2 ØJ'!D48<0.5),"-",IFERROR('Tabel 2 ØJ'!D48/'Tabel 1 ØJ'!C46*100,"-")) -> 5.868867502 | F48: =IF(OR('Tabel 1 ØJ'!E46<5,'Tabel 2 ØJ'!F48<0.5),"-",IFERROR('Tabel 2 ØJ'!F48/'Tabel 1 ØJ'!E46*100,"-")) -> 8.716455866 | G48: =IF(OR('Tabel 1 ØJ'!E46<5,'Tabel 2 ØJ'!G48<0.5),"-",IFERROR('Tabel 2 ØJ'!G48/'Tabel 1 ØJ'!E46*100,"-")) -> 7.603924122 | I48: =IF(OR('Tabel 1 ØJ'!G46<5,'Tabel 2 ØJ'!I48<0.5),"-",IFERROR('Tabel 2 ØJ'!I48/'Tabel 1 ØJ'!G46*100,"-")) -> 7.580997749 | J48: =IF(OR('Tabel 1 ØJ'!G46<5,'Tabel 2 ØJ'!J48<0.5),"-",IFERROR('Tabel 2 ØJ'!J48/'Tabel 1 ØJ'!G46*100,"-")) -> 6.714798889
A50: Ingeniører i alt | C50: =IF(OR('Tabel 1 ØJ'!C48<5,'Tabel 2 ØJ'!C50<0.5),"-",IFERROR('Tabel 2 ØJ'!C50/'Tabel 1 ØJ'!C48*100,"-")) -> 3.760151296 | D50: =IF(OR('Tabel 1 ØJ'!C48<5,'Tabel 2 ØJ'!D50<0.5),"-",IFERROR('Tabel 2 ØJ'!D50/'Tabel 1 ØJ'!C48*100,"-")) -> 3.412106762 | F50: =IF(OR('Tabel 1 ØJ'!E48<5,'Tabel 2 ØJ'!F50<0.5),"-",IFERROR('Tabel 2 ØJ'!F50/'Tabel 1 ØJ'!E48*100,"-")) -> 5.408970976 | G50: =IF(OR('Tabel 1 ØJ'!E48<5,'Tabel 2 ØJ'!G50<0.5),"-",IFERROR('Tabel 2 ØJ'!G50/'Tabel 1 ØJ'!E48*100,"-")) -> 4.782133332 | I50: =IF(OR('Tabel 1 ØJ'!G48<5,'Tabel 2 ØJ'!I50<0.5),"-",IFERROR('Tabel 2 ØJ'!I50/'Tabel 1 ØJ'!G48*100,"-")) -> 4.093048033 | J50: =IF(OR('Tabel 1 ØJ'!G48<5,'Tabel 2 ØJ'!J50<0.5),"-",IFERROR('Tabel 2 ØJ'!J50/'Tabel 1 ØJ'!G48*100,"-")) -> 3.688715163
A51: Magistre i alt | C51: =IF(OR('Tabel 1 ØJ'!C49<5,'Tabel 2 ØJ'!C51<0.5),"-",IFERROR('Tabel 2 ØJ'!C51/'Tabel 1 ØJ'!C49*100,"-")) -> 10.98196393 | D51: =IF(OR('Tabel 1 ØJ'!C49<5,'Tabel 2 ØJ'!D51<0.5),"-",IFERROR('Tabel 2 ØJ'!D51/'Tabel 1 ØJ'!C49*100,"-")) -> 10.01835268 | F51: =IF(OR('Tabel 1 ØJ'!E49<5,'Tabel 2 ØJ'!F51<0.5),"-",IFERROR('Tabel 2 ØJ'!F51/'Tabel 1 ØJ'!E49*100,"-")) -> 12.67901235 | G51: =IF(OR('Tabel 1 ØJ'!E49<5,'Tabel 2 ØJ'!G51<0.5),"-",IFERROR('Tabel 2 ØJ'!G51/'Tabel 1 ØJ'!E49*100,"-")) -> 11.09461735 | I51: =IF(OR('Tabel 1 ØJ'!G49<5,'Tabel 2 ØJ'!I51<0.5),"-",IFERROR('Tabel 2 ØJ'!I51/'Tabel 1 ØJ'!G49*100,"-")) -> 12.03208556 | J51: =IF(OR('Tabel 1 ØJ'!G49<5,'Tabel 2 ØJ'!J51<0.5),"-",IFERROR('Tabel 2 ØJ'!J51/'Tabel 1 ØJ'!G49*100,"-")) -> 10.68433769
A52: DJØF'ere i alt | C52: =IF(OR('Tabel 1 ØJ'!C50<5,'Tabel 2 ØJ'!C52<0.5),"-",IFERROR('Tabel 2 ØJ'!C52/'Tabel 1 ØJ'!C50*100,"-")) -> 5.280392959 | D52: =IF(OR('Tabel 1 ØJ'!C50<5,'Tabel 2 ØJ'!D52<0.5),"-",IFERROR('Tabel 2 ØJ'!D52/'Tabel 1 ØJ'!C50*100,"-")) -> 4.836380198 | F52: =IF(OR('Tabel 1 ØJ'!E50<5,'Tabel 2 ØJ'!F52<0.5),"-",IFERROR('Tabel 2 ØJ'!F52/'Tabel 1 ØJ'!E50*100,"-")) -> 5.564242898 | G52: =IF(OR('Tabel 1 ØJ'!E50<5,'Tabel 2 ØJ'!G52<0.5),"-",IFERROR('Tabel 2 ØJ'!G52/'Tabel 1 ØJ'!E50*100,"-")) -> 4.87038713 | I52: =IF(OR('Tabel 1 ØJ'!G50<5,'Tabel 2 ØJ'!I52<0.5),"-",IFERROR('Tabel 2 ØJ'!I52/'Tabel 1 ØJ'!G50*100,"-")) -> 5.42558155 | J52: =IF(OR('Tabel 1 ØJ'!G50<5,'Tabel 2 ØJ'!J52<0.5),"-",IFERROR('Tabel 2 ØJ'!J52/'Tabel 1 ØJ'!G50*100,"-")) -> 4.853774666
A57: Horsens
C59: Mænd | F59: Kvinder | I59: I alt
C60: Ledigheds- berørte | D60: Gns. brutto- ledighed | F60: Ledigheds- berørte | G60: Gns. brutto- ledighed | I60: Ledigheds- berørte | J60: Gns. brutto- ledighed
A63: Civ. ing. | C63: =IF(OR('Tabel 1 ØJ'!C61<5,'Tabel 2 ØJ'!C63<0.5),"-",IFERROR('Tabel 2 ØJ'!C63/'Tabel 1 ØJ'!C61*100,"-")) -> 2.764976959 | D63: =IF(OR('Tabel 1 ØJ'!C61<5,'Tabel 2 ØJ'!D63<0.5),"-",IFERROR('Tabel 2 ØJ'!D63/'Tabel 1 ØJ'!C61*100,"-")) -> 2.764459592 | F63: =IF(OR('Tabel 1 ØJ'!E61<5,'Tabel 2 ØJ'!F63<0.5),"-",IFERROR('Tabel 2 ØJ'!F63/'Tabel 1 ØJ'!E61*100,"-")) -> 8.536585366 | G63: =IF(OR('Tabel 1 ØJ'!E61<5,'Tabel 2 ØJ'!G63<0.5),"-",IFERROR('Tabel 2 ØJ'!G63/'Tabel 1 ØJ'!E61*100,"-")) -> 7.803265521 | I63: =IF(OR('Tabel 1 ØJ'!G61<5,'Tabel 2 ØJ'!I63<0.5),"-",IFERROR('Tabel 2 ØJ'!I63/'Tabel 1 ØJ'!G61*100,"-")) -> 4.347826087 | J63: =IF(OR('Tabel 1 ØJ'!G61<5,'Tabel 2 ØJ'!J63<0.5),"-",IFERROR('Tabel 2 ØJ'!J63/'Tabel 1 ØJ'!G61*100,"-")) -> 4.146339479
A64: Diplom ing. | C64: =IF(OR('Tabel 1 ØJ'!C62<5,'Tabel 2 ØJ'!C64<0.5),"-",IFERROR('Tabel 2 ØJ'!C64/'Tabel 1 ØJ'!C62*100,"-")) -> 2.496532594 | D64: =IF(OR('Tabel 1 ØJ'!C62<5,'Tabel 2 ØJ'!D64<0.5),"-",IFERROR('Tabel 2 ØJ'!D64/'Tabel 1 ØJ'!C62*100,"-")) -> 2.293639687 | F64: =IF(OR('Tabel 1 ØJ'!E62<5,'Tabel 2 ØJ'!F64<0.5),"-",IFERROR('Tabel 2 ØJ'!F64/'Tabel 1 ØJ'!E62*100,"-")) -> 7.423580786 | G64: =IF(OR('Tabel 1 ØJ'!E62<5,'Tabel 2 ØJ'!G64<0.5),"-",IFERROR('Tabel 2 ØJ'!G64/'Tabel 1 ØJ'!E62*100,"-")) -> 6.082433148 | I64: =IF(OR('Tabel 1 ØJ'!G62<5,'Tabel 2 ØJ'!I64<0.5),"-",IFERROR('Tabel 2 ØJ'!I64/'Tabel 1 ØJ'!G62*100,"-")) -> 3.684210526 | J64: =IF(OR('Tabel 1 ØJ'!G62<5,'Tabel 2 ØJ'!J64<0.5),"-",IFERROR('Tabel 2 ØJ'!J64/'Tabel 1 ØJ'!G62*100,"-")) -> 3.206938321
A65: Cand. Scient. Tek. | C65: =IF(OR('Tabel 1 ØJ'!C63<5,'Tabel 2 ØJ'!C65<0.5),"-",IFERROR('Tabel 2 ØJ'!C65/'Tabel 1 ØJ'!C63*100,"-")) -> 5 | D65: =IF(OR('Tabel 1 ØJ'!C63<5,'Tabel 2 ØJ'!D65<0.5),"-",IFERROR('Tabel 2 ØJ'!D65/'Tabel 1 ØJ'!C63*100,"-")) -> 4.878219921 | F65: =IF(OR('Tabel 1 ØJ'!E63<5,'Tabel 2 ØJ'!F65<0.5),"-",IFERROR('Tabel 2 ØJ'!F65/'Tabel 1 ØJ'!E63*100,"-")) -> 5.084745763 | G65: =IF(OR('Tabel 1 ØJ'!E63<5,'Tabel 2 ØJ'!G65<0.5),"-",IFERROR('Tabel 2 ØJ'!G65/'Tabel 1 ØJ'!E63*100,"-")) -> 4.766651831 | I65: =IF(OR('Tabel 1 ØJ'!G63<5,'Tabel 2 ØJ'!I65<0.5),"-",IFERROR('Tabel 2 ØJ'!I65/'Tabel 1 ØJ'!G63*100,"-")) -> 5.035971223 | J65: =IF(OR('Tabel 1 ØJ'!G63<5,'Tabel 2 ØJ'!J65<0.5),"-",IFERROR('Tabel 2 ØJ'!J65/'Tabel 1 ØJ'!G63*100,"-")) -> 4.830863682
A66: MA. Hum. | C66: =IF(OR('Tabel 1 ØJ'!C64<5,'Tabel 2 ØJ'!C66<0.5),"-",IFERROR('Tabel 2 ØJ'!C66/'Tabel 1 ØJ'!C64*100,"-")) -> 8.26446281 | D66: =IF(OR('Tabel 1 ØJ'!C64<5,'Tabel 2 ØJ'!D66<0.5),"-",IFERROR('Tabel 2 ØJ'!D66/'Tabel 1 ØJ'!C64*100,"-")) -> 6.412909737 | F66: =IF(OR('Tabel 1 ØJ'!E64<5,'Tabel 2 ØJ'!F66<0.5),"-",IFERROR('Tabel 2 ØJ'!F66/'Tabel 1 ØJ'!E64*100,"-")) -> 11.35531136 | G66: =IF(OR('Tabel 1 ØJ'!E64<5,'Tabel 2 ØJ'!G66<0.5),"-",IFERROR('Tabel 2 ØJ'!G66/'Tabel 1 ØJ'!E64*100,"-")) -> 9.605417764 | I66: =IF(OR('Tabel 1 ØJ'!G64<5,'Tabel 2 ØJ'!I66<0.5),"-",IFERROR('Tabel 2 ØJ'!I66/'Tabel 1 ØJ'!G64*100,"-")) -> 10.40609137 | J66: =IF(OR('Tabel 1 ØJ'!G64<5,'Tabel 2 ØJ'!J66<0.5),"-",IFERROR('Tabel 2 ØJ'!J66/'Tabel 1 ØJ'!G64*100,"-")) -> 8.624977481
A67: MA. Nat. | C67: =IF(OR('Tabel 1 ØJ'!C65<5,'Tabel 2 ØJ'!C67<0.5),"-",IFERROR('Tabel 2 ØJ'!C67/'Tabel 1 ØJ'!C65*100,"-")) -> - | D67: =IF(OR('Tabel 1 ØJ'!C65<5,'Tabel 2 ØJ'!D67<0.5),"-",IFERROR('Tabel 2 ØJ'!D67/'Tabel 1 ØJ'!C65*100,"-")) -> - | F67: =IF(OR('Tabel 1 ØJ'!E65<5,'Tabel 2 ØJ'!F67<0.5),"-",IFERROR('Tabel 2 ØJ'!F67/'Tabel 1 ØJ'!E65*100,"-")) -> 2.777777778 | G67: =IF(OR('Tabel 1 ØJ'!E65<5,'Tabel 2 ØJ'!G67<0.5),"-",IFERROR('Tabel 2 ØJ'!G67/'Tabel 1 ØJ'!E65*100,"-")) -> 2.777258016 | I67: =IF(OR('Tabel 1 ØJ'!G65<5,'Tabel 2 ØJ'!I67<0.5),"-",IFERROR('Tabel 2 ØJ'!I67/'Tabel 1 ØJ'!G65*100,"-")) -> 1.481481481 | J67: =IF(OR('Tabel 1 ØJ'!G65<5,'Tabel 2 ØJ'!J67<0.5),"-",IFERROR('Tabel 2 ØJ'!J67/'Tabel 1 ØJ'!G65*100,"-")) -> 1.481204275
A68: MA. Ph.d. | C68: =IF(OR('Tabel 1 ØJ'!C66<5,'Tabel 2 ØJ'!C68<0.5),"-",IFERROR('Tabel 2 ØJ'!C68/'Tabel 1 ØJ'!C66*100,"-")) -> - | D68: =IF(OR('Tabel 1 ØJ'!C66<5,'Tabel 2 ØJ'!D68<0.5),"-",IFERROR('Tabel 2 ØJ'!D68/'Tabel 1 ØJ'!C66*100,"-")) -> - | F68: =IF(OR('Tabel 1 ØJ'!E66<5,'Tabel 2 ØJ'!F68<0.5),"-",IFERROR('Tabel 2 ØJ'!F68/'Tabel 1 ØJ'!E66*100,"-")) -> - | G68: =IF(OR('Tabel 1 ØJ'!E66<5,'Tabel 2 ØJ'!G68<0.5),"-",IFERROR('Tabel 2 ØJ'!G68/'Tabel 1 ØJ'!E66*100,"-")) -> - | I68: =IF(OR('Tabel 1 ØJ'!G66<5,'Tabel 2 ØJ'!I68<0.5),"-",IFERROR('Tabel 2 ØJ'!I68/'Tabel 1 ØJ'!G66*100,"-")) -> - | J68: =IF(OR('Tabel 1 ØJ'!G66<5,'Tabel 2 ØJ'!J68<0.5),"-",IFERROR('Tabel 2 ØJ'!J68/'Tabel 1 ØJ'!G66*100,"-")) -> -
A69: MA. Samf. | C69: =IF(OR('Tabel 1 ØJ'!C67<5,'Tabel 2 ØJ'!C69<0.5),"-",IFERROR('Tabel 2 ØJ'!C69/'Tabel 1 ØJ'!C67*100,"-")) -> - | D69: =IF(OR('Tabel 1 ØJ'!C67<5,'Tabel 2 ØJ'!D69<0.5),"-",IFERROR('Tabel 2 ØJ'!D69/'Tabel 1 ØJ'!C67*100,"-")) -> - | F69: =IF(OR('Tabel 1 ØJ'!E67<5,'Tabel 2 ØJ'!F69<0.5),"-",IFERROR('Tabel 2 ØJ'!F69/'Tabel 1 ØJ'!E67*100,"-")) -> 8.333333333 | G69: =IF(OR('Tabel 1 ØJ'!E67<5,'Tabel 2 ØJ'!G69<0.5),"-",IFERROR('Tabel 2 ØJ'!G69/'Tabel 1 ØJ'!E67*100,"-")) -> 8.331774049 | I69: =IF(OR('Tabel 1 ØJ'!G67<5,'Tabel 2 ØJ'!I69<0.5),"-",IFERROR('Tabel 2 ØJ'!I69/'Tabel 1 ØJ'!G67*100,"-")) -> 6.25 | J69: =IF(OR('Tabel 1 ØJ'!G67<5,'Tabel 2 ØJ'!J69<0.5),"-",IFERROR('Tabel 2 ØJ'!J69/'Tabel 1 ØJ'!G67*100,"-")) -> 6.248830537
A70: Øvrige Mag. | C70: =IF(OR('Tabel 1 ØJ'!C68<5,'Tabel 2 ØJ'!C70<0.5),"-",IFERROR('Tabel 2 ØJ'!C70/'Tabel 1 ØJ'!C68*100,"-")) -> 17.64705882 | D70: =IF(OR('Tabel 1 ØJ'!C68<5,'Tabel 2 ØJ'!D70<0.5),"-",IFERROR('Tabel 2 ØJ'!D70/'Tabel 1 ØJ'!C68*100,"-")) -> 11.59740388 | F70: =IF(OR('Tabel 1 ØJ'!E68<5,'Tabel 2 ØJ'!F70<0.5),"-",IFERROR('Tabel 2 ØJ'!F70/'Tabel 1 ØJ'!E68*100,"-")) -> - | G70: =IF(OR('Tabel 1 ØJ'!E68<5,'Tabel 2 ØJ'!G70<0.5),"-",IFERROR('Tabel 2 ØJ'!G70/'Tabel 1 ØJ'!E68*100,"-")) -> - | I70: =IF(OR('Tabel 1 ØJ'!G68<5,'Tabel 2 ØJ'!I70<0.5),"-",IFERROR('Tabel 2 ØJ'!I70/'Tabel 1 ØJ'!G68*100,"-")) -> 10.34482759 | J70: =IF(OR('Tabel 1 ØJ'!G68<5,'Tabel 2 ØJ'!J70<0.5),"-",IFERROR('Tabel 2 ØJ'!J70/'Tabel 1 ØJ'!G68*100,"-")) -> 6.798478139
A71: Agronom | C71: =IF(OR('Tabel 1 ØJ'!C69<5,'Tabel 2 ØJ'!C71<0.5),"-",IFERROR('Tabel 2 ØJ'!C71/'Tabel 1 ØJ'!C69*100,"-")) -> 4.761904762 | D71: =IF(OR('Tabel 1 ØJ'!C69<5,'Tabel 2 ØJ'!D71<0.5),"-",IFERROR('Tabel 2 ØJ'!D71/'Tabel 1 ØJ'!C69*100,"-")) -> 4.761013742 | F71: =IF(OR('Tabel 1 ØJ'!E69<5,'Tabel 2 ØJ'!F71<0.5),"-",IFERROR('Tabel 2 ØJ'!F71/'Tabel 1 ØJ'!E69*100,"-")) -> 6.666666667 | G71: =IF(OR('Tabel 1 ØJ'!E69<5,'Tabel 2 ØJ'!G71<0.5),"-",IFERROR('Tabel 2 ØJ'!G71/'Tabel 1 ØJ'!E69*100,"-")) -> 6.665419239 | I71: =IF(OR('Tabel 1 ØJ'!G69<5,'Tabel 2 ØJ'!I71<0.5),"-",IFERROR('Tabel 2 ØJ'!I71/'Tabel 1 ØJ'!G69*100,"-")) -> 5.555555556 | J71: =IF(OR('Tabel 1 ØJ'!G69<5,'Tabel 2 ØJ'!J71<0.5),"-",IFERROR('Tabel 2 ØJ'!J71/'Tabel 1 ØJ'!G69*100,"-")) -> 5.554516033
A72: Landsk. Arkt. | C72: =IF(OR('Tabel 1 ØJ'!C70<5,'Tabel 2 ØJ'!C72<0.5),"-",IFERROR('Tabel 2 ØJ'!C72/'Tabel 1 ØJ'!C70*100,"-")) -> - | D72: =IF(OR('Tabel 1 ØJ'!C70<5,'Tabel 2 ØJ'!D72<0.5),"-",IFERROR('Tabel 2 ØJ'!D72/'Tabel 1 ØJ'!C70*100,"-")) -> - | F72: =IF(OR('Tabel 1 ØJ'!E70<5,'Tabel 2 ØJ'!F72<0.5),"-",IFERROR('Tabel 2 ØJ'!F72/'Tabel 1 ØJ'!E70*100,"-")) -> - | G72: =IF(OR('Tabel 1 ØJ'!E70<5,'Tabel 2 ØJ'!G72<0.5),"-",IFERROR('Tabel 2 ØJ'!G72/'Tabel 1 ØJ'!E70*100,"-")) -> - | I72: =IF(OR('Tabel 1 ØJ'!G70<5,'Tabel 2 ØJ'!I72<0.5),"-",IFERROR('Tabel 2 ØJ'!I72/'Tabel 1 ØJ'!G70*100,"-")) -> - | J72: =IF(OR('Tabel 1 ØJ'!G70<5,'Tabel 2 ØJ'!J72<0.5),"-",IFERROR('Tabel 2 ØJ'!J72/'Tabel 1 ØJ'!G70*100,"-")) -> -
A73: Hortonom | C73: =IF(OR('Tabel 1 ØJ'!C71<5,'Tabel 2 ØJ'!C73<0.5),"-",IFERROR('Tabel 2 ØJ'!C73/'Tabel 1 ØJ'!C71*100,"-")) -> - | D73: =IF(OR('Tabel 1 ØJ'!C71<5,'Tabel 2 ØJ'!D73<0.5),"-",IFERROR('Tabel 2 ØJ'!D73/'Tabel 1 ØJ'!C71*100,"-")) -> - | F73: =IF(OR('Tabel 1 ØJ'!E71<5,'Tabel 2 ØJ'!F73<0.5),"-",IFERROR('Tabel 2 ØJ'!F73/'Tabel 1 ØJ'!E71*100,"-")) -> - | G73: =IF(OR('Tabel 1 ØJ'!E71<5,'Tabel 2 ØJ'!G73<0.5),"-",IFERROR('Tabel 2 ØJ'!G73/'Tabel 1 ØJ'!E71*100,"-")) -> - | I73: =IF(OR('Tabel 1 ØJ'!G71<5,'Tabel 2 ØJ'!I73<0.5),"-",IFERROR('Tabel 2 ØJ'!I73/'Tabel 1 ØJ'!G71*100,"-")) -> - | J73: =IF(OR('Tabel 1 ØJ'!G71<5,'Tabel 2 ØJ'!J73<0.5),"-",IFERROR('Tabel 2 ØJ'!J73/'Tabel 1 ØJ'!G71*100,"-")) -> -
A74: Forstkand. | C74: =IF(OR('Tabel 1 ØJ'!C72<5,'Tabel 2 ØJ'!C74<0.5),"-",IFERROR('Tabel 2 ØJ'!C74/'Tabel 1 ØJ'!C72*100,"-")) -> - | D74: =IF(OR('Tabel 1 ØJ'!C72<5,'Tabel 2 ØJ'!D74<0.5),"-",IFERROR('Tabel 2 ØJ'!D74/'Tabel 1 ØJ'!C72*100,"-")) -> - | F74: =IF(OR('Tabel 1 ØJ'!E72<5,'Tabel 2 ØJ'!F74<0.5),"-",IFERROR('Tabel 2 ØJ'!F74/'Tabel 1 ØJ'!E72*100,"-")) -> - | G74: =IF(OR('Tabel 1 ØJ'!E72<5,'Tabel 2 ØJ'!G74<0.5),"-",IFERROR('Tabel 2 ØJ'!G74/'Tabel 1 ØJ'!E72*100,"-")) -> - | I74: =IF(OR('Tabel 1 ØJ'!G72<5,'Tabel 2 ØJ'!I74<0.5),"-",IFERROR('Tabel 2 ØJ'!I74/'Tabel 1 ØJ'!G72*100,"-")) -> - | J74: =IF(OR('Tabel 1 ØJ'!G72<5,'Tabel 2 ØJ'!J74<0.5),"-",IFERROR('Tabel 2 ØJ'!J74/'Tabel 1 ØJ'!G72*100,"-")) -> -
A75: Jordbrugsakad. | C75: =IF(OR('Tabel 1 ØJ'!C73<5,'Tabel 2 ØJ'!C75<0.5),"-",IFERROR('Tabel 2 ØJ'!C75/'Tabel 1 ØJ'!C73*100,"-")) -> 3.571428571 | D75: =IF(OR('Tabel 1 ØJ'!C73<5,'Tabel 2 ØJ'!D75<0.5),"-",IFERROR('Tabel 2 ØJ'!D75/'Tabel 1 ØJ'!C73*100,"-")) -> 3.570760307 | F75: =IF(OR('Tabel 1 ØJ'!E73<5,'Tabel 2 ØJ'!F75<0.5),"-",IFERROR('Tabel 2 ØJ'!F75/'Tabel 1 ØJ'!E73*100,"-")) -> 5.882352941 | G75: =IF(OR('Tabel 1 ØJ'!E73<5,'Tabel 2 ØJ'!G75<0.5),"-",IFERROR('Tabel 2 ØJ'!G75/'Tabel 1 ØJ'!E73*100,"-")) -> 5.88125227 | I75: =IF(OR('Tabel 1 ØJ'!G73<5,'Tabel 2 ØJ'!I75<0.5),"-",IFERROR('Tabel 2 ØJ'!I75/'Tabel 1 ØJ'!G73*100,"-")) -> 4.444444444 | J75: =IF(OR('Tabel 1 ØJ'!G73<5,'Tabel 2 ØJ'!J75<0.5),"-",IFERROR('Tabel 2 ØJ'!J75/'Tabel 1 ØJ'!G73*100,"-")) -> 4.443612826
A76: Mejeriing. | C76: =IF(OR('Tabel 1 ØJ'!C74<5,'Tabel 2 ØJ'!C76<0.5),"-",IFERROR('Tabel 2 ØJ'!C76/'Tabel 1 ØJ'!C74*100,"-")) -> - | D76: =IF(OR('Tabel 1 ØJ'!C74<5,'Tabel 2 ØJ'!D76<0.5),"-",IFERROR('Tabel 2 ØJ'!D76/'Tabel 1 ØJ'!C74*100,"-")) -> - | F76: =IF(OR('Tabel 1 ØJ'!E74<5,'Tabel 2 ØJ'!F76<0.5),"-",IFERROR('Tabel 2 ØJ'!F76/'Tabel 1 ØJ'!E74*100,"-")) -> - | G76: =IF(OR('Tabel 1 ØJ'!E74<5,'Tabel 2 ØJ'!G76<0.5),"-",IFERROR('Tabel 2 ØJ'!G76/'Tabel 1 ØJ'!E74*100,"-")) -> - | I76: =IF(OR('Tabel 1 ØJ'!G74<5,'Tabel 2 ØJ'!I76<0.5),"-",IFERROR('Tabel 2 ØJ'!I76/'Tabel 1 ØJ'!G74*100,"-")) -> - | J76: =IF(OR('Tabel 1 ØJ'!G74<5,'Tabel 2 ØJ'!J76<0.5),"-",IFERROR('Tabel 2 ØJ'!J76/'Tabel 1 ØJ'!G74*100,"-")) -> -
A77: Levn.m.kand. | C77: =IF(OR('Tabel 1 ØJ'!C75<5,'Tabel 2 ØJ'!C77<0.5),"-",IFERROR('Tabel 2 ØJ'!C77/'Tabel 1 ØJ'!C75*100,"-")) -> - | D77: =IF(OR('Tabel 1 ØJ'!C75<5,'Tabel 2 ØJ'!D77<0.5),"-",IFERROR('Tabel 2 ØJ'!D77/'Tabel 1 ØJ'!C75*100,"-")) -> - | F77: =IF(OR('Tabel 1 ØJ'!E75<5,'Tabel 2 ØJ'!F77<0.5),"-",IFERROR('Tabel 2 ØJ'!F77/'Tabel 1 ØJ'!E75*100,"-")) -> - | G77: =IF(OR('Tabel 1 ØJ'!E75<5,'Tabel 2 ØJ'!G77<0.5),"-",IFERROR('Tabel 2 ØJ'!G77/'Tabel 1 ØJ'!E75*100,"-")) -> - | I77: =IF(OR('Tabel 1 ØJ'!G75<5,'Tabel 2 ØJ'!I77<0.5),"-",IFERROR('Tabel 2 ØJ'!I77/'Tabel 1 ØJ'!G75*100,"-")) -> - | J77: =IF(OR('Tabel 1 ØJ'!G75<5,'Tabel 2 ØJ'!J77<0.5),"-",IFERROR('Tabel 2 ØJ'!J77/'Tabel 1 ØJ'!G75*100,"-")) -> -
A78: Dyrlæge | C78: =IF(OR('Tabel 1 ØJ'!C76<5,'Tabel 2 ØJ'!C78<0.5),"-",IFERROR('Tabel 2 ØJ'!C78/'Tabel 1 ØJ'!C76*100,"-")) -> - | D78: =IF(OR('Tabel 1 ØJ'!C76<5,'Tabel 2 ØJ'!D78<0.5),"-",IFERROR('Tabel 2 ØJ'!D78/'Tabel 1 ØJ'!C76*100,"-")) -> - | F78: =IF(OR('Tabel 1 ØJ'!E76<5,'Tabel 2 ØJ'!F78<0.5),"-",IFERROR('Tabel 2 ØJ'!F78/'Tabel 1 ØJ'!E76*100,"-")) -> - | G78: =IF(OR('Tabel 1 ØJ'!E76<5,'Tabel 2 ØJ'!G78<0.5),"-",IFERROR('Tabel 2 ØJ'!G78/'Tabel 1 ØJ'!E76*100,"-")) -> - | I78: =IF(OR('Tabel 1 ØJ'!G76<5,'Tabel 2 ØJ'!I78<0.5),"-",IFERROR('Tabel 2 ØJ'!I78/'Tabel 1 ØJ'!G76*100,"-")) -> - | J78: =IF(OR('Tabel 1 ØJ'!G76<5,'Tabel 2 ØJ'!J78<0.5),"-",IFERROR('Tabel 2 ØJ'!J78/'Tabel 1 ØJ'!G76*100,"-")) -> -
A79: Farmaceut | C79: =IF(OR('Tabel 1 ØJ'!C77<5,'Tabel 2 ØJ'!C79<0.5),"-",IFERROR('Tabel 2 ØJ'!C79/'Tabel 1 ØJ'!C77*100,"-")) -> 33.33333333 | D79: =IF(OR('Tabel 1 ØJ'!C77<5,'Tabel 2 ØJ'!D79<0.5),"-",IFERROR('Tabel 2 ØJ'!D79/'Tabel 1 ØJ'!C77*100,"-")) -> 33.3270962 | F79: =IF(OR('Tabel 1 ØJ'!E77<5,'Tabel 2 ØJ'!F79<0.5),"-",IFERROR('Tabel 2 ØJ'!F79/'Tabel 1 ØJ'!E77*100,"-")) -> 11.76470588 | G79: =IF(OR('Tabel 1 ØJ'!E77<5,'Tabel 2 ØJ'!G79<0.5),"-",IFERROR('Tabel 2 ØJ'!G79/'Tabel 1 ØJ'!E77*100,"-")) -> 11.76250454 | I79: =IF(OR('Tabel 1 ØJ'!G77<5,'Tabel 2 ØJ'!I79<0.5),"-",IFERROR('Tabel 2 ØJ'!I79/'Tabel 1 ØJ'!G77*100,"-")) -> 17.39130435 | J79: =IF(OR('Tabel 1 ØJ'!G77<5,'Tabel 2 ØJ'!J79<0.5),"-",IFERROR('Tabel 2 ØJ'!J79/'Tabel 1 ØJ'!G77*100,"-")) -> 17.38805019
A80: Læge | C80: =IF(OR('Tabel 1 ØJ'!C78<5,'Tabel 2 ØJ'!C80<0.5),"-",IFERROR('Tabel 2 ØJ'!C80/'Tabel 1 ØJ'!C78*100,"-")) -> - | D80: =IF(OR('Tabel 1 ØJ'!C78<5,'Tabel 2 ØJ'!D80<0.5),"-",IFERROR('Tabel 2 ØJ'!D80/'Tabel 1 ØJ'!C78*100,"-")) -> - | F80: =IF(OR('Tabel 1 ØJ'!E78<5,'Tabel 2 ØJ'!F80<0.5),"-",IFERROR('Tabel 2 ØJ'!F80/'Tabel 1 ØJ'!E78*100,"-")) -> 3.03030303 | G80: =IF(OR('Tabel 1 ØJ'!E78<5,'Tabel 2 ØJ'!G80<0.5),"-",IFERROR('Tabel 2 ØJ'!G80/'Tabel 1 ØJ'!E78*100,"-")) -> 1.767188507 | I80: =IF(OR('Tabel 1 ØJ'!G78<5,'Tabel 2 ØJ'!I80<0.5),"-",IFERROR('Tabel 2 ØJ'!I80/'Tabel 1 ØJ'!G78*100,"-")) -> 2.247191011 | J80: =IF(OR('Tabel 1 ØJ'!G78<5,'Tabel 2 ØJ'!J80<0.5),"-",IFERROR('Tabel 2 ØJ'!J80/'Tabel 1 ØJ'!G78*100,"-")) -> 1.310499342
A81: Tandlæge | C81: =IF(OR('Tabel 1 ØJ'!C79<5,'Tabel 2 ØJ'!C81<0.5),"-",IFERROR('Tabel 2 ØJ'!C81/'Tabel 1 ØJ'!C79*100,"-")) -> - | D81: =IF(OR('Tabel 1 ØJ'!C79<5,'Tabel 2 ØJ'!D81<0.5),"-",IFERROR('Tabel 2 ØJ'!D81/'Tabel 1 ØJ'!C79*100,"-")) -> - | F81: =IF(OR('Tabel 1 ØJ'!E79<5,'Tabel 2 ØJ'!F81<0.5),"-",IFERROR('Tabel 2 ØJ'!F81/'Tabel 1 ØJ'!E79*100,"-")) -> - | G81: =IF(OR('Tabel 1 ØJ'!E79<5,'Tabel 2 ØJ'!G81<0.5),"-",IFERROR('Tabel 2 ØJ'!G81/'Tabel 1 ØJ'!E79*100,"-")) -> - | I81: =IF(OR('Tabel 1 ØJ'!G79<5,'Tabel 2 ØJ'!I81<0.5),"-",IFERROR('Tabel 2 ØJ'!I81/'Tabel 1 ØJ'!G79*100,"-")) -> - | J81: =IF(OR('Tabel 1 ØJ'!G79<5,'Tabel 2 ØJ'!J81<0.5),"-",IFERROR('Tabel 2 ØJ'!J81/'Tabel 1 ØJ'!G79*100,"-")) -> -
A82: Arkitekt | C82: =IF(OR('Tabel 1 ØJ'!C80<5,'Tabel 2 ØJ'!C82<0.5),"-",IFERROR('Tabel 2 ØJ'!C82/'Tabel 1 ØJ'!C80*100,"-")) -> 2.941176471 | D82: =IF(OR('Tabel 1 ØJ'!C80<5,'Tabel 2 ØJ'!D82<0.5),"-",IFERROR('Tabel 2 ØJ'!D82/'Tabel 1 ØJ'!C80*100,"-")) -> 2.940626135 | F82: =IF(OR('Tabel 1 ØJ'!E80<5,'Tabel 2 ØJ'!F82<0.5),"-",IFERROR('Tabel 2 ØJ'!F82/'Tabel 1 ØJ'!E80*100,"-")) -> 5.882352941 | G82: =IF(OR('Tabel 1 ØJ'!E80<5,'Tabel 2 ØJ'!G82<0.5),"-",IFERROR('Tabel 2 ØJ'!G82/'Tabel 1 ØJ'!E80*100,"-")) -> 5.798701942 | I82: =IF(OR('Tabel 1 ØJ'!G80<5,'Tabel 2 ØJ'!I82<0.5),"-",IFERROR('Tabel 2 ØJ'!I82/'Tabel 1 ØJ'!G80*100,"-")) -> 4.411764706 | J82: =IF(OR('Tabel 1 ØJ'!G80<5,'Tabel 2 ØJ'!J82<0.5),"-",IFERROR('Tabel 2 ØJ'!J82/'Tabel 1 ØJ'!G80*100,"-")) -> 4.369664039
A83: Landinspek. | C83: =IF(OR('Tabel 1 ØJ'!C81<5,'Tabel 2 ØJ'!C83<0.5),"-",IFERROR('Tabel 2 ØJ'!C83/'Tabel 1 ØJ'!C81*100,"-")) -> - | D83: =IF(OR('Tabel 1 ØJ'!C81<5,'Tabel 2 ØJ'!D83<0.5),"-",IFERROR('Tabel 2 ØJ'!D83/'Tabel 1 ØJ'!C81*100,"-")) -> - | F83: =IF(OR('Tabel 1 ØJ'!E81<5,'Tabel 2 ØJ'!F83<0.5),"-",IFERROR('Tabel 2 ØJ'!F83/'Tabel 1 ØJ'!E81*100,"-")) -> - | G83: =IF(OR('Tabel 1 ØJ'!E81<5,'Tabel 2 ØJ'!G83<0.5),"-",IFERROR('Tabel 2 ØJ'!G83/'Tabel 1 ØJ'!E81*100,"-")) -> - | I83: =IF(OR('Tabel 1 ØJ'!G81<5,'Tabel 2 ØJ'!I83<0.5),"-",IFERROR('Tabel 2 ØJ'!I83/'Tabel 1 ØJ'!G81*100,"-")) -> - | J83: =IF(OR('Tabel 1 ØJ'!G81<5,'Tabel 2 ØJ'!J83<0.5),"-",IFERROR('Tabel 2 ØJ'!J83/'Tabel 1 ØJ'!G81*100,"-")) -> -
A84: Bibliotekar | C84: =IF(OR('Tabel 1 ØJ'!C82<5,'Tabel 2 ØJ'!C84<0.5),"-",IFERROR('Tabel 2 ØJ'!C84/'Tabel 1 ØJ'!C82*100,"-")) -> - | D84: =IF(OR('Tabel 1 ØJ'!C82<5,'Tabel 2 ØJ'!D84<0.5),"-",IFERROR('Tabel 2 ØJ'!D84/'Tabel 1 ØJ'!C82*100,"-")) -> - | F84: =IF(OR('Tabel 1 ØJ'!E82<5,'Tabel 2 ØJ'!F84<0.5),"-",IFERROR('Tabel 2 ØJ'!F84/'Tabel 1 ØJ'!E82*100,"-")) -> - | G84: =IF(OR('Tabel 1 ØJ'!E82<5,'Tabel 2 ØJ'!G84<0.5),"-",IFERROR('Tabel 2 ØJ'!G84/'Tabel 1 ØJ'!E82*100,"-")) -> - | I84: =IF(OR('Tabel 1 ØJ'!G82<5,'Tabel 2 ØJ'!I84<0.5),"-",IFERROR('Tabel 2 ØJ'!I84/'Tabel 1 ØJ'!G82*100,"-")) -> - | J84: =IF(OR('Tabel 1 ØJ'!G82<5,'Tabel 2 ØJ'!J84<0.5),"-",IFERROR('Tabel 2 ØJ'!J84/'Tabel 1 ØJ'!G82*100,"-")) -> -
A85: Musikudd. | C85: =IF(OR('Tabel 1 ØJ'!C83<5,'Tabel 2 ØJ'!C85<0.5),"-",IFERROR('Tabel 2 ØJ'!C85/'Tabel 1 ØJ'!C83*100,"-")) -> - | D85: =IF(OR('Tabel 1 ØJ'!C83<5,'Tabel 2 ØJ'!D85<0.5),"-",IFERROR('Tabel 2 ØJ'!D85/'Tabel 1 ØJ'!C83*100,"-")) -> - | F85: =IF(OR('Tabel 1 ØJ'!E83<5,'Tabel 2 ØJ'!F85<0.5),"-",IFERROR('Tabel 2 ØJ'!F85/'Tabel 1 ØJ'!E83*100,"-")) -> - | G85: =IF(OR('Tabel 1 ØJ'!E83<5,'Tabel 2 ØJ'!G85<0.5),"-",IFERROR('Tabel 2 ØJ'!G85/'Tabel 1 ØJ'!E83*100,"-")) -> - | I85: =IF(OR('Tabel 1 ØJ'!G83<5,'Tabel 2 ØJ'!I85<0.5),"-",IFERROR('Tabel 2 ØJ'!I85/'Tabel 1 ØJ'!G83*100,"-")) -> 12.5 | J85: =IF(OR('Tabel 1 ØJ'!G83<5,'Tabel 2 ØJ'!J85<0.5),"-",IFERROR('Tabel 2 ØJ'!J85/'Tabel 1 ØJ'!G83*100,"-")) -> 12.49766107
A86: Teolog | C86: =IF(OR('Tabel 1 ØJ'!C84<5,'Tabel 2 ØJ'!C86<0.5),"-",IFERROR('Tabel 2 ØJ'!C86/'Tabel 1 ØJ'!C84*100,"-")) -> - | D86: =IF(OR('Tabel 1 ØJ'!C84<5,'Tabel 2 ØJ'!D86<0.5),"-",IFERROR('Tabel 2 ØJ'!D86/'Tabel 1 ØJ'!C84*100,"-")) -> - | F86: =IF(OR('Tabel 1 ØJ'!E84<5,'Tabel 2 ØJ'!F86<0.5),"-",IFERROR('Tabel 2 ØJ'!F86/'Tabel 1 ØJ'!E84*100,"-")) -> - | G86: =IF(OR('Tabel 1 ØJ'!E84<5,'Tabel 2 ØJ'!G86<0.5),"-",IFERROR('Tabel 2 ØJ'!G86/'Tabel 1 ØJ'!E84*100,"-")) -> - | I86: =IF(OR('Tabel 1 ØJ'!G84<5,'Tabel 2 ØJ'!I86<0.5),"-",IFERROR('Tabel 2 ØJ'!I86/'Tabel 1 ØJ'!G84*100,"-")) -> - | J86: =IF(OR('Tabel 1 ØJ'!G84<5,'Tabel 2 ØJ'!J86<0.5),"-",IFERROR('Tabel 2 ØJ'!J86/'Tabel 1 ØJ'!G84*100,"-")) -> -
A87: Psykolog | C87: =IF(OR('Tabel 1 ØJ'!C85<5,'Tabel 2 ØJ'!C87<0.5),"-",IFERROR('Tabel 2 ØJ'!C87/'Tabel 1 ØJ'!C85*100,"-")) -> 6.25 | D87: =IF(OR('Tabel 1 ØJ'!C85<5,'Tabel 2 ØJ'!D87<0.5),"-",IFERROR('Tabel 2 ØJ'!D87/'Tabel 1 ØJ'!C85*100,"-")) -> 6.248830537 | F87: =IF(OR('Tabel 1 ØJ'!E85<5,'Tabel 2 ØJ'!F87<0.5),"-",IFERROR('Tabel 2 ØJ'!F87/'Tabel 1 ØJ'!E85*100,"-")) -> 6.493506494 | G87: =IF(OR('Tabel 1 ØJ'!E85<5,'Tabel 2 ØJ'!G87<0.5),"-",IFERROR('Tabel 2 ØJ'!G87/'Tabel 1 ØJ'!E85*100,"-")) -> 6.192584936 | I87: =IF(OR('Tabel 1 ØJ'!G85<5,'Tabel 2 ØJ'!I87<0.5),"-",IFERROR('Tabel 2 ØJ'!I87/'Tabel 1 ØJ'!G85*100,"-")) -> 6.451612903 | J87: =IF(OR('Tabel 1 ØJ'!G85<5,'Tabel 2 ØJ'!J87<0.5),"-",IFERROR('Tabel 2 ØJ'!J87/'Tabel 1 ØJ'!G85*100,"-")) -> 6.202261599
A88: Jurist | C88: =IF(OR('Tabel 1 ØJ'!C86<5,'Tabel 2 ØJ'!C88<0.5),"-",IFERROR('Tabel 2 ØJ'!C88/'Tabel 1 ØJ'!C86*100,"-")) -> 2.272727273 | D88: =IF(OR('Tabel 1 ØJ'!C86<5,'Tabel 2 ØJ'!D88<0.5),"-",IFERROR('Tabel 2 ØJ'!D88/'Tabel 1 ØJ'!C86*100,"-")) -> 1.957610156 | F88: =IF(OR('Tabel 1 ØJ'!E86<5,'Tabel 2 ØJ'!F88<0.5),"-",IFERROR('Tabel 2 ØJ'!F88/'Tabel 1 ØJ'!E86*100,"-")) -> - | G88: =IF(OR('Tabel 1 ØJ'!E86<5,'Tabel 2 ØJ'!G88<0.5),"-",IFERROR('Tabel 2 ØJ'!G88/'Tabel 1 ØJ'!E86*100,"-")) -> - | I88: =IF(OR('Tabel 1 ØJ'!G86<5,'Tabel 2 ØJ'!I88<0.5),"-",IFERROR('Tabel 2 ØJ'!I88/'Tabel 1 ØJ'!G86*100,"-")) -> 0.6944444444 | J88: =IF(OR('Tabel 1 ØJ'!G86<5,'Tabel 2 ØJ'!J88<0.5),"-",IFERROR('Tabel 2 ØJ'!J88/'Tabel 1 ØJ'!G86*100,"-")) -> 0.5981586589
A89: Økonom | C89: =IF(OR('Tabel 1 ØJ'!C87<5,'Tabel 2 ØJ'!C89<0.5),"-",IFERROR('Tabel 2 ØJ'!C89/'Tabel 1 ØJ'!C87*100,"-")) -> - | D89: =IF(OR('Tabel 1 ØJ'!C87<5,'Tabel 2 ØJ'!D89<0.5),"-",IFERROR('Tabel 2 ØJ'!D89/'Tabel 1 ØJ'!C87*100,"-")) -> - | F89: =IF(OR('Tabel 1 ØJ'!E87<5,'Tabel 2 ØJ'!F89<0.5),"-",IFERROR('Tabel 2 ØJ'!F89/'Tabel 1 ØJ'!E87*100,"-")) -> - | G89: =IF(OR('Tabel 1 ØJ'!E87<5,'Tabel 2 ØJ'!G89<0.5),"-",IFERROR('Tabel 2 ØJ'!G89/'Tabel 1 ØJ'!E87*100,"-")) -> - | I89: =IF(OR('Tabel 1 ØJ'!G87<5,'Tabel 2 ØJ'!I89<0.5),"-",IFERROR('Tabel 2 ØJ'!I89/'Tabel 1 ØJ'!G87*100,"-")) -> - | J89: =IF(OR('Tabel 1 ØJ'!G87<5,'Tabel 2 ØJ'!J89<0.5),"-",IFERROR('Tabel 2 ØJ'!J89/'Tabel 1 ØJ'!G87*100,"-")) -> -
A90: Samf. Adm. | C90: =IF(OR('Tabel 1 ØJ'!C88<5,'Tabel 2 ØJ'!C90<0.5),"-",IFERROR('Tabel 2 ØJ'!C90/'Tabel 1 ØJ'!C88*100,"-")) -> 4.054054054 | D90: =IF(OR('Tabel 1 ØJ'!C88<5,'Tabel 2 ØJ'!D90<0.5),"-",IFERROR('Tabel 2 ØJ'!D90/'Tabel 1 ØJ'!C88*100,"-")) -> 4.053295483 | F90: =IF(OR('Tabel 1 ØJ'!E88<5,'Tabel 2 ØJ'!F90<0.5),"-",IFERROR('Tabel 2 ØJ'!F90/'Tabel 1 ØJ'!E88*100,"-")) -> 13.13131313 | G90: =IF(OR('Tabel 1 ØJ'!E88<5,'Tabel 2 ØJ'!G90<0.5),"-",IFERROR('Tabel 2 ØJ'!G90/'Tabel 1 ØJ'!E88*100,"-")) -> 11.97593096 | I90: =IF(OR('Tabel 1 ØJ'!G88<5,'Tabel 2 ØJ'!I90<0.5),"-",IFERROR('Tabel 2 ØJ'!I90/'Tabel 1 ØJ'!G88*100,"-")) -> 9.248554913 | J90: =IF(OR('Tabel 1 ØJ'!G88<5,'Tabel 2 ØJ'!J90<0.5),"-",IFERROR('Tabel 2 ØJ'!J90/'Tabel 1 ØJ'!G88*100,"-")) -> 8.587057979
A91: Cand. Merc. | C91: =IF(OR('Tabel 1 ØJ'!C89<5,'Tabel 2 ØJ'!C91<0.5),"-",IFERROR('Tabel 2 ØJ'!C91/'Tabel 1 ØJ'!C89*100,"-")) -> 3.301886792 | D91: =IF(OR('Tabel 1 ØJ'!C89<5,'Tabel 2 ØJ'!D91<0.5),"-",IFERROR('Tabel 2 ØJ'!D91/'Tabel 1 ØJ'!C89*100,"-")) -> 3.301268963 | F91: =IF(OR('Tabel 1 ØJ'!E89<5,'Tabel 2 ØJ'!F91<0.5),"-",IFERROR('Tabel 2 ØJ'!F91/'Tabel 1 ØJ'!E89*100,"-")) -> 4.583333333 | G91: =IF(OR('Tabel 1 ØJ'!E89<5,'Tabel 2 ØJ'!G91<0.5),"-",IFERROR('Tabel 2 ØJ'!G91/'Tabel 1 ØJ'!E89*100,"-")) -> 3.727988108 | I91: =IF(OR('Tabel 1 ØJ'!G89<5,'Tabel 2 ØJ'!I91<0.5),"-",IFERROR('Tabel 2 ØJ'!I91/'Tabel 1 ØJ'!G89*100,"-")) -> 3.982300885 | J91: =IF(OR('Tabel 1 ØJ'!G89<5,'Tabel 2 ØJ'!J91<0.5),"-",IFERROR('Tabel 2 ØJ'!J91/'Tabel 1 ØJ'!G89*100,"-")) -> 3.5278455
A92: HA | C92: =IF(OR('Tabel 1 ØJ'!C90<5,'Tabel 2 ØJ'!C92<0.5),"-",IFERROR('Tabel 2 ØJ'!C92/'Tabel 1 ØJ'!C90*100,"-")) -> 11.53846154 | D92: =IF(OR('Tabel 1 ØJ'!C90<5,'Tabel 2 ØJ'!D92<0.5),"-",IFERROR('Tabel 2 ØJ'!D92/'Tabel 1 ØJ'!C90*100,"-")) -> 10.99774983 | F92: =IF(OR('Tabel 1 ØJ'!E90<5,'Tabel 2 ØJ'!F92<0.5),"-",IFERROR('Tabel 2 ØJ'!F92/'Tabel 1 ØJ'!E90*100,"-")) -> 15.55555556 | G92: =IF(OR('Tabel 1 ØJ'!E90<5,'Tabel 2 ØJ'!G92<0.5),"-",IFERROR('Tabel 2 ØJ'!G92/'Tabel 1 ØJ'!E90*100,"-")) -> 13.68289015 | I92: =IF(OR('Tabel 1 ØJ'!G90<5,'Tabel 2 ØJ'!I92<0.5),"-",IFERROR('Tabel 2 ØJ'!I92/'Tabel 1 ØJ'!G90*100,"-")) -> 13.40206186 | J92: =IF(OR('Tabel 1 ØJ'!G90<5,'Tabel 2 ØJ'!J92<0.5),"-",IFERROR('Tabel 2 ØJ'!J92/'Tabel 1 ØJ'!G90*100,"-")) -> 12.24343349
A93: HD | C93: =IF(OR('Tabel 1 ØJ'!C91<5,'Tabel 2 ØJ'!C93<0.5),"-",IFERROR('Tabel 2 ØJ'!C93/'Tabel 1 ØJ'!C91*100,"-")) -> 7.894736842 | D93: =IF(OR('Tabel 1 ØJ'!C91<5,'Tabel 2 ØJ'!D93<0.5),"-",IFERROR('Tabel 2 ØJ'!D93/'Tabel 1 ØJ'!C91*100,"-")) -> 7.893259626 | F93: =IF(OR('Tabel 1 ØJ'!E91<5,'Tabel 2 ØJ'!F93<0.5),"-",IFERROR('Tabel 2 ØJ'!F93/'Tabel 1 ØJ'!E91*100,"-")) -> 4.166666667 | G93: =IF(OR('Tabel 1 ØJ'!E91<5,'Tabel 2 ØJ'!G93<0.5),"-",IFERROR('Tabel 2 ØJ'!G93/'Tabel 1 ØJ'!E91*100,"-")) -> 4.165887025 | I93: =IF(OR('Tabel 1 ØJ'!G91<5,'Tabel 2 ØJ'!I93<0.5),"-",IFERROR('Tabel 2 ØJ'!I93/'Tabel 1 ØJ'!G91*100,"-")) -> 6.451612903 | J93: =IF(OR('Tabel 1 ØJ'!G91<5,'Tabel 2 ØJ'!J93<0.5),"-",IFERROR('Tabel 2 ØJ'!J93/'Tabel 1 ØJ'!G91*100,"-")) -> 6.450405716
A94: Komm. og Sprog | C94: =IF(OR('Tabel 1 ØJ'!C92<5,'Tabel 2 ØJ'!C94<0.5),"-",IFERROR('Tabel 2 ØJ'!C94/'Tabel 1 ØJ'!C92*100,"-")) -> 20 | D94: =IF(OR('Tabel 1 ØJ'!C92<5,'Tabel 2 ØJ'!D94<0.5),"-",IFERROR('Tabel 2 ØJ'!D94/'Tabel 1 ØJ'!C92*100,"-")) -> 19.99625772 | F94: =IF(OR('Tabel 1 ØJ'!E92<5,'Tabel 2 ØJ'!F94<0.5),"-",IFERROR('Tabel 2 ØJ'!F94/'Tabel 1 ØJ'!E92*100,"-")) -> 2.816901408 | G94: =IF(OR('Tabel 1 ØJ'!E92<5,'Tabel 2 ØJ'!G94<0.5),"-",IFERROR('Tabel 2 ØJ'!G94/'Tabel 1 ØJ'!E92*100,"-")) -> 2.816374327 | I94: =IF(OR('Tabel 1 ØJ'!G92<5,'Tabel 2 ØJ'!I94<0.5),"-",IFERROR('Tabel 2 ØJ'!I94/'Tabel 1 ØJ'!G92*100,"-")) -> 4.938271605 | J94: =IF(OR('Tabel 1 ØJ'!G92<5,'Tabel 2 ØJ'!J94<0.5),"-",IFERROR('Tabel 2 ØJ'!J94/'Tabel 1 ØJ'!G92*100,"-")) -> 4.937347585
A95: Bygningskonst. | C95: =IF(OR('Tabel 1 ØJ'!C94<5,'Tabel 2 ØJ'!C96<0.5),"-",IFERROR('Tabel 2 ØJ'!C96/'Tabel 1 ØJ'!C94*100,"-")) -> 5.263157895 | D95: =IF(OR('Tabel 1 ØJ'!C94<5,'Tabel 2 ØJ'!D96<0.5),"-",IFERROR('Tabel 2 ØJ'!D96/'Tabel 1 ØJ'!C94*100,"-")) -> 5.262173084 | F95: =IF(OR('Tabel 1 ØJ'!E94<5,'Tabel 2 ØJ'!F96<0.5),"-",IFERROR('Tabel 2 ØJ'!F96/'Tabel 1 ØJ'!E94*100,"-")) -> 21.05263158 | G95: =IF(OR('Tabel 1 ØJ'!E94<5,'Tabel 2 ØJ'!G96<0.5),"-",IFERROR('Tabel 2 ØJ'!G96/'Tabel 1 ØJ'!E94*100,"-")) -> 16.18700903 | I95: =IF(OR('Tabel 1 ØJ'!G94<5,'Tabel 2 ØJ'!I96<0.5),"-",IFERROR('Tabel 2 ØJ'!I96/'Tabel 1 ØJ'!G94*100,"-")) -> 13.15789474 | J95: =IF(OR('Tabel 1 ØJ'!G94<5,'Tabel 2 ØJ'!J96<0.5),"-",IFERROR('Tabel 2 ØJ'!J96/'Tabel 1 ØJ'!G94*100,"-")) -> 10.72459106
A96: Cand. IT. | C96: =IF(OR('Tabel 1 ØJ'!C94<5,'Tabel 2 ØJ'!C96<0.5),"-",IFERROR('Tabel 2 ØJ'!C96/'Tabel 1 ØJ'!C94*100,"-")) -> 5.263157895 | D96: =IF(OR('Tabel 1 ØJ'!C94<5,'Tabel 2 ØJ'!D96<0.5),"-",IFERROR('Tabel 2 ØJ'!D96/'Tabel 1 ØJ'!C94*100,"-")) -> 5.262173084 | F96: =IF(OR('Tabel 1 ØJ'!E94<5,'Tabel 2 ØJ'!F96<0.5),"-",IFERROR('Tabel 2 ØJ'!F96/'Tabel 1 ØJ'!E94*100,"-")) -> 21.05263158 | G96: =IF(OR('Tabel 1 ØJ'!E94<5,'Tabel 2 ØJ'!G96<0.5),"-",IFERROR('Tabel 2 ØJ'!G96/'Tabel 1 ØJ'!E94*100,"-")) -> 16.18700903 | I96: =IF(OR('Tabel 1 ØJ'!G94<5,'Tabel 2 ØJ'!I96<0.5),"-",IFERROR('Tabel 2 ØJ'!I96/'Tabel 1 ØJ'!G94*100,"-")) -> 13.15789474 | J96: =IF(OR('Tabel 1 ØJ'!G94<5,'Tabel 2 ØJ'!J96<0.5),"-",IFERROR('Tabel 2 ØJ'!J96/'Tabel 1 ØJ'!G94*100,"-")) -> 10.72459106
A97: Bac. Samf. | C97: =IF(OR('Tabel 1 ØJ'!C95<5,'Tabel 2 ØJ'!C97<0.5),"-",IFERROR('Tabel 2 ØJ'!C97/'Tabel 1 ØJ'!C95*100,"-")) -> 11.11111111 | D97: =IF(OR('Tabel 1 ØJ'!C95<5,'Tabel 2 ØJ'!D97<0.5),"-",IFERROR('Tabel 2 ØJ'!D97/'Tabel 1 ØJ'!C95*100,"-")) -> 11.10903207 | F97: =IF(OR('Tabel 1 ØJ'!E95<5,'Tabel 2 ØJ'!F97<0.5),"-",IFERROR('Tabel 2 ØJ'!F97/'Tabel 1 ØJ'!E95*100,"-")) -> 16.66666667 | G97: =IF(OR('Tabel 1 ØJ'!E95<5,'Tabel 2 ØJ'!G97<0.5),"-",IFERROR('Tabel 2 ØJ'!G97/'Tabel 1 ØJ'!E95*100,"-")) -> 16.6635481 | I97: =IF(OR('Tabel 1 ØJ'!G95<5,'Tabel 2 ØJ'!I97<0.5),"-",IFERROR('Tabel 2 ØJ'!I97/'Tabel 1 ØJ'!G95*100,"-")) -> 13.33333333 | J97: =IF(OR('Tabel 1 ØJ'!G95<5,'Tabel 2 ØJ'!J97<0.5),"-",IFERROR('Tabel 2 ØJ'!J97/'Tabel 1 ØJ'!G95*100,"-")) -> 13.33083848
A98: Bac. Hum. | C98: =IF(OR('Tabel 1 ØJ'!C96<5,'Tabel 2 ØJ'!C98<0.5),"-",IFERROR('Tabel 2 ØJ'!C98/'Tabel 1 ØJ'!C96*100,"-")) -> 8.333333333 | D98: =IF(OR('Tabel 1 ØJ'!C96<5,'Tabel 2 ØJ'!D98<0.5),"-",IFERROR('Tabel 2 ØJ'!D98/'Tabel 1 ØJ'!C96*100,"-")) -> 8.331774049 | F98: =IF(OR('Tabel 1 ØJ'!E96<5,'Tabel 2 ØJ'!F98<0.5),"-",IFERROR('Tabel 2 ØJ'!F98/'Tabel 1 ØJ'!E96*100,"-")) -> 22.22222222 | G98: =IF(OR('Tabel 1 ØJ'!E96<5,'Tabel 2 ØJ'!G98<0.5),"-",IFERROR('Tabel 2 ØJ'!G98/'Tabel 1 ØJ'!E96*100,"-")) -> 19.36284192 | I98: =IF(OR('Tabel 1 ØJ'!G96<5,'Tabel 2 ØJ'!I98<0.5),"-",IFERROR('Tabel 2 ØJ'!I98/'Tabel 1 ØJ'!G96*100,"-")) -> 17.94871795 | J98: =IF(OR('Tabel 1 ØJ'!G96<5,'Tabel 2 ØJ'!J98<0.5),"-",IFERROR('Tabel 2 ØJ'!J98/'Tabel 1 ØJ'!G96*100,"-")) -> 15.96866719
A99: Bac. Nat. | C99: =IF(OR('Tabel 1 ØJ'!C97<5,'Tabel 2 ØJ'!C99<0.5),"-",IFERROR('Tabel 2 ØJ'!C99/'Tabel 1 ØJ'!C97*100,"-")) -> 27.08333333 | D99: =IF(OR('Tabel 1 ØJ'!C97<5,'Tabel 2 ØJ'!D99<0.5),"-",IFERROR('Tabel 2 ØJ'!D99/'Tabel 1 ØJ'!C97*100,"-")) -> 22.93121998 | F99: =IF(OR('Tabel 1 ØJ'!E97<5,'Tabel 2 ØJ'!F99<0.5),"-",IFERROR('Tabel 2 ØJ'!F99/'Tabel 1 ØJ'!E97*100,"-")) -> 26.08695652 | G99: =IF(OR('Tabel 1 ØJ'!E97<5,'Tabel 2 ØJ'!G99<0.5),"-",IFERROR('Tabel 2 ØJ'!G99/'Tabel 1 ØJ'!E97*100,"-")) -> 26.08207528 | I99: =IF(OR('Tabel 1 ØJ'!G97<5,'Tabel 2 ØJ'!I99<0.5),"-",IFERROR('Tabel 2 ØJ'!I99/'Tabel 1 ØJ'!G97*100,"-")) -> 26.8907563 | J99: =IF(OR('Tabel 1 ØJ'!G97<5,'Tabel 2 ØJ'!J99<0.5),"-",IFERROR('Tabel 2 ØJ'!J99/'Tabel 1 ØJ'!G97*100,"-")) -> 23.54020882
A100: Andre | C100: =IF(OR('Tabel 1 ØJ'!C98<5,'Tabel 2 ØJ'!C100<0.5),"-",IFERROR('Tabel 2 ØJ'!C100/'Tabel 1 ØJ'!C98*100,"-")) -> 9.79020979 | D100: =IF(OR('Tabel 1 ØJ'!C98<5,'Tabel 2 ØJ'!D100<0.5),"-",IFERROR('Tabel 2 ØJ'!D100/'Tabel 1 ØJ'!C98*100,"-")) -> 7.95474718 | F100: =IF(OR('Tabel 1 ØJ'!E98<5,'Tabel 2 ØJ'!F100<0.5),"-",IFERROR('Tabel 2 ØJ'!F100/'Tabel 1 ØJ'!E98*100,"-")) -> 15.68627451 | G100: =IF(OR('Tabel 1 ØJ'!E98<5,'Tabel 2 ØJ'!G100<0.5),"-",IFERROR('Tabel 2 ØJ'!G100/'Tabel 1 ØJ'!E98*100,"-")) -> 14.671945 | I100: =IF(OR('Tabel 1 ØJ'!G98<5,'Tabel 2 ØJ'!I100<0.5),"-",IFERROR('Tabel 2 ØJ'!I100/'Tabel 1 ØJ'!G98*100,"-")) -> 12.24489796 | J100: =IF(OR('Tabel 1 ØJ'!G98<5,'Tabel 2 ØJ'!J100<0.5),"-",IFERROR('Tabel 2 ØJ'!J100/'Tabel 1 ØJ'!G98*100,"-")) -> 10.75129484
A102: Total | C102: =IF(OR('Tabel 1 ØJ'!C100<5,'Tabel 2 ØJ'!C102<0.5),"-",IFERROR('Tabel 2 ØJ'!C102/'Tabel 1 ØJ'!C100*100,"-")) -> 5.175159236 | D102: =IF(OR('Tabel 1 ØJ'!C100<5,'Tabel 2 ØJ'!D102<0.5),"-",IFERROR('Tabel 2 ØJ'!D102/'Tabel 1 ØJ'!C100*100,"-")) -> 4.651269615 | F102: =IF(OR('Tabel 1 ØJ'!E100<5,'Tabel 2 ØJ'!F102<0.5),"-",IFERROR('Tabel 2 ØJ'!F102/'Tabel 1 ØJ'!E100*100,"-")) -> 8.120770432 | G102: =IF(OR('Tabel 1 ØJ'!E100<5,'Tabel 2 ØJ'!G102<0.5),"-",IFERROR('Tabel 2 ØJ'!G102/'Tabel 1 ØJ'!E100*100,"-")) -> 7.14272843 | I102: =IF(OR('Tabel 1 ØJ'!G100<5,'Tabel 2 ØJ'!I102<0.5),"-",IFERROR('Tabel 2 ØJ'!I102/'Tabel 1 ØJ'!G100*100,"-")) -> 6.451612903 | J102: =IF(OR('Tabel 1 ØJ'!G100<5,'Tabel 2 ØJ'!J102<0.5),"-",IFERROR('Tabel 2 ØJ'!J102/'Tabel 1 ØJ'!G100*100,"-")) -> 5.730920502
A104: Ingeniører i alt | C104: =IF(OR('Tabel 1 ØJ'!C102<5,'Tabel 2 ØJ'!C104<0.5),"-",IFERROR('Tabel 2 ØJ'!C104/'Tabel 1 ØJ'!C102*100,"-")) -> 2.558635394 | D104: =IF(OR('Tabel 1 ØJ'!C102<5,'Tabel 2 ØJ'!D104<0.5),"-",IFERROR('Tabel 2 ØJ'!D104/'Tabel 1 ØJ'!C102*100,"-")) -> 2.40256071 | F104: =IF(OR('Tabel 1 ØJ'!E102<5,'Tabel 2 ØJ'!F104<0.5),"-",IFERROR('Tabel 2 ØJ'!F104/'Tabel 1 ØJ'!E102*100,"-")) -> 7.717041801 | G104: =IF(OR('Tabel 1 ØJ'!E102<5,'Tabel 2 ØJ'!G104<0.5),"-",IFERROR('Tabel 2 ØJ'!G104/'Tabel 1 ØJ'!E102*100,"-")) -> 6.536157439 | I104: =IF(OR('Tabel 1 ØJ'!G102<5,'Tabel 2 ØJ'!I104<0.5),"-",IFERROR('Tabel 2 ØJ'!I104/'Tabel 1 ØJ'!G102*100,"-")) -> 3.84307446 | J104: =IF(OR('Tabel 1 ØJ'!G102<5,'Tabel 2 ØJ'!J104<0.5),"-",IFERROR('Tabel 2 ØJ'!J104/'Tabel 1 ØJ'!G102*100,"-")) -> 3.431822986
A105: Magistre i alt | C105: =IF(OR('Tabel 1 ØJ'!C103<5,'Tabel 2 ØJ'!C105<0.5),"-",IFERROR('Tabel 2 ØJ'!C105/'Tabel 1 ØJ'!C103*100,"-")) -> 6.103286385 | D105: =IF(OR('Tabel 1 ØJ'!C103<5,'Tabel 2 ØJ'!D105<0.5),"-",IFERROR('Tabel 2 ØJ'!D105/'Tabel 1 ØJ'!C103*100,"-")) -> 4.568628846 | F105: =IF(OR('Tabel 1 ØJ'!E103<5,'Tabel 2 ØJ'!F105<0.5),"-",IFERROR('Tabel 2 ØJ'!F105/'Tabel 1 ØJ'!E103*100,"-")) -> 9.067357513 | G105: =IF(OR('Tabel 1 ØJ'!E103<5,'Tabel 2 ØJ'!G105<0.5),"-",IFERROR('Tabel 2 ØJ'!G105/'Tabel 1 ØJ'!E103*100,"-")) -> 7.82954457 | I105: =IF(OR('Tabel 1 ØJ'!G103<5,'Tabel 2 ØJ'!I105<0.5),"-",IFERROR('Tabel 2 ØJ'!I105/'Tabel 1 ØJ'!G103*100,"-")) -> 8.013355593 | J105: =IF(OR('Tabel 1 ØJ'!G103<5,'Tabel 2 ØJ'!J105<0.5),"-",IFERROR('Tabel 2 ØJ'!J105/'Tabel 1 ØJ'!G103*100,"-")) -> 6.669986892
A106: DJØF'ere i alt | C106: =IF(OR('Tabel 1 ØJ'!C104<5,'Tabel 2 ØJ'!C106<0.5),"-",IFERROR('Tabel 2 ØJ'!C106/'Tabel 1 ØJ'!C104*100,"-")) -> 4.106280193 | D106: =IF(OR('Tabel 1 ØJ'!C104<5,'Tabel 2 ØJ'!D106<0.5),"-",IFERROR('Tabel 2 ØJ'!D106/'Tabel 1 ØJ'!C104*100,"-")) -> 4.004422039 | F106: =IF(OR('Tabel 1 ØJ'!E104<5,'Tabel 2 ØJ'!F106<0.5),"-",IFERROR('Tabel 2 ØJ'!F106/'Tabel 1 ØJ'!E104*100,"-")) -> 5.984555985 | G106: =IF(OR('Tabel 1 ØJ'!E104<5,'Tabel 2 ØJ'!G106<0.5),"-",IFERROR('Tabel 2 ØJ'!G106/'Tabel 1 ØJ'!E104*100,"-")) -> 5.204757466 | I106: =IF(OR('Tabel 1 ØJ'!G104<5,'Tabel 2 ØJ'!I106<0.5),"-",IFERROR('Tabel 2 ØJ'!I106/'Tabel 1 ØJ'!G104*100,"-")) -> 5.150214592 | J106: =IF(OR('Tabel 1 ØJ'!G104<5,'Tabel 2 ØJ'!J106<0.5),"-",IFERROR('Tabel 2 ØJ'!J106/'Tabel 1 ØJ'!G104*100,"-")) -> 4.671561257
A111: Syddjurs
C113: Mænd | F113: Kvinder | I113: I alt
C114: Ledigheds- berørte | D114: Gns. brutto- ledighed | F114: Ledigheds- berørte | G114: Gns. brutto- ledighed | I114: Ledigheds- berørte | J114: Gns. brutto- ledighed
A117: Civ. ing. | C117: =IF(OR('Tabel 1 ØJ'!C115<5,'Tabel 2 ØJ'!C117<0.5),"-",IFERROR('Tabel 2 ØJ'!C117/'Tabel 1 ØJ'!C115*100,"-")) -> 3.225806452 | D117: =IF(OR('Tabel 1 ØJ'!C115<5,'Tabel 2 ØJ'!D117<0.5),"-",IFERROR('Tabel 2 ØJ'!D117/'Tabel 1 ØJ'!C115*100,"-")) -> 3.225202858 | F117: =IF(OR('Tabel 1 ØJ'!E115<5,'Tabel 2 ØJ'!F117<0.5),"-",IFERROR('Tabel 2 ØJ'!F117/'Tabel 1 ØJ'!E115*100,"-")) -> 1.176470588 | G117: =IF(OR('Tabel 1 ØJ'!E115<5,'Tabel 2 ØJ'!G117<0.5),"-",IFERROR('Tabel 2 ØJ'!G117/'Tabel 1 ØJ'!E115*100,"-")) -> 1.176250454 | I117: =IF(OR('Tabel 1 ØJ'!G115<5,'Tabel 2 ØJ'!I117<0.5),"-",IFERROR('Tabel 2 ØJ'!I117/'Tabel 1 ØJ'!G115*100,"-")) -> 2.040816327 | J117: =IF(OR('Tabel 1 ØJ'!G115<5,'Tabel 2 ØJ'!J117<0.5),"-",IFERROR('Tabel 2 ØJ'!J117/'Tabel 1 ØJ'!G115*100,"-")) -> 2.040434461
A118: Diplom ing. | C118: =IF(OR('Tabel 1 ØJ'!C116<5,'Tabel 2 ØJ'!C118<0.5),"-",IFERROR('Tabel 2 ØJ'!C118/'Tabel 1 ØJ'!C116*100,"-")) -> - | D118: =IF(OR('Tabel 1 ØJ'!C116<5,'Tabel 2 ØJ'!D118<0.5),"-",IFERROR('Tabel 2 ØJ'!D118/'Tabel 1 ØJ'!C116*100,"-")) -> - | F118: =IF(OR('Tabel 1 ØJ'!E116<5,'Tabel 2 ØJ'!F118<0.5),"-",IFERROR('Tabel 2 ØJ'!F118/'Tabel 1 ØJ'!E116*100,"-")) -> - | G118: =IF(OR('Tabel 1 ØJ'!E116<5,'Tabel 2 ØJ'!G118<0.5),"-",IFERROR('Tabel 2 ØJ'!G118/'Tabel 1 ØJ'!E116*100,"-")) -> - | I118: =IF(OR('Tabel 1 ØJ'!G116<5,'Tabel 2 ØJ'!I118<0.5),"-",IFERROR('Tabel 2 ØJ'!I118/'Tabel 1 ØJ'!G116*100,"-")) -> - | J118: =IF(OR('Tabel 1 ØJ'!G116<5,'Tabel 2 ØJ'!J118<0.5),"-",IFERROR('Tabel 2 ØJ'!J118/'Tabel 1 ØJ'!G116*100,"-")) -> -
A119: Cand. Scient. Tek. | C119: =IF(OR('Tabel 1 ØJ'!C117<5,'Tabel 2 ØJ'!C119<0.5),"-",IFERROR('Tabel 2 ØJ'!C119/'Tabel 1 ØJ'!C117*100,"-")) -> 1 | D119: =IF(OR('Tabel 1 ØJ'!C117<5,'Tabel 2 ØJ'!D119<0.5),"-",IFERROR('Tabel 2 ØJ'!D119/'Tabel 1 ØJ'!C117*100,"-")) -> 0.9767354831 | F119: =IF(OR('Tabel 1 ØJ'!E117<5,'Tabel 2 ØJ'!F119<0.5),"-",IFERROR('Tabel 2 ØJ'!F119/'Tabel 1 ØJ'!E117*100,"-")) -> 1.310043668 | G119: =IF(OR('Tabel 1 ØJ'!E117<5,'Tabel 2 ØJ'!G119<0.5),"-",IFERROR('Tabel 2 ØJ'!G119/'Tabel 1 ØJ'!E117*100,"-")) -> 1.309798541 | I119: =IF(OR('Tabel 1 ØJ'!G117<5,'Tabel 2 ØJ'!I119<0.5),"-",IFERROR('Tabel 2 ØJ'!I119/'Tabel 1 ØJ'!G117*100,"-")) -> 1.165501166 | J119: =IF(OR('Tabel 1 ØJ'!G117<5,'Tabel 2 ØJ'!J119<0.5),"-",IFERROR('Tabel 2 ØJ'!J119/'Tabel 1 ØJ'!G117*100,"-")) -> 1.154524388
A120: MA. Hum. | C120: =IF(OR('Tabel 1 ØJ'!C118<5,'Tabel 2 ØJ'!C120<0.5),"-",IFERROR('Tabel 2 ØJ'!C120/'Tabel 1 ØJ'!C118*100,"-")) -> 24.24242424 | D120: =IF(OR('Tabel 1 ØJ'!C118<5,'Tabel 2 ØJ'!D120<0.5),"-",IFERROR('Tabel 2 ØJ'!D120/'Tabel 1 ØJ'!C118*100,"-")) -> 21.68633255 | F120: =IF(OR('Tabel 1 ØJ'!E118<5,'Tabel 2 ØJ'!F120<0.5),"-",IFERROR('Tabel 2 ØJ'!F120/'Tabel 1 ØJ'!E118*100,"-")) -> 30.43478261 | G120: =IF(OR('Tabel 1 ØJ'!E118<5,'Tabel 2 ØJ'!G120<0.5),"-",IFERROR('Tabel 2 ØJ'!G120/'Tabel 1 ØJ'!E118*100,"-")) -> 25.37971955 | I120: =IF(OR('Tabel 1 ØJ'!G118<5,'Tabel 2 ØJ'!I120<0.5),"-",IFERROR('Tabel 2 ØJ'!I120/'Tabel 1 ØJ'!G118*100,"-")) -> 28.43137255 | J120: =IF(OR('Tabel 1 ØJ'!G118<5,'Tabel 2 ØJ'!J120<0.5),"-",IFERROR('Tabel 2 ØJ'!J120/'Tabel 1 ØJ'!G118*100,"-")) -> 24.18480022
A121: MA. Nat. | C121: =IF(OR('Tabel 1 ØJ'!C119<5,'Tabel 2 ØJ'!C121<0.5),"-",IFERROR('Tabel 2 ØJ'!C121/'Tabel 1 ØJ'!C119*100,"-")) -> 4.166666667 | D121: =IF(OR('Tabel 1 ØJ'!C119<5,'Tabel 2 ØJ'!D121<0.5),"-",IFERROR('Tabel 2 ØJ'!D121/'Tabel 1 ØJ'!C119*100,"-")) -> 3.781263644 | F121: =IF(OR('Tabel 1 ØJ'!E119<5,'Tabel 2 ØJ'!F121<0.5),"-",IFERROR('Tabel 2 ØJ'!F121/'Tabel 1 ØJ'!E119*100,"-")) -> 1.204819277 | G121: =IF(OR('Tabel 1 ØJ'!E119<5,'Tabel 2 ØJ'!G121<0.5),"-",IFERROR('Tabel 2 ØJ'!G121/'Tabel 1 ØJ'!E119*100,"-")) -> 0.9841649389 | I121: =IF(OR('Tabel 1 ØJ'!G119<5,'Tabel 2 ØJ'!I121<0.5),"-",IFERROR('Tabel 2 ØJ'!I121/'Tabel 1 ØJ'!G119*100,"-")) -> 1.869158879 | J121: =IF(OR('Tabel 1 ØJ'!G119<5,'Tabel 2 ØJ'!J121<0.5),"-",IFERROR('Tabel 2 ØJ'!J121/'Tabel 1 ØJ'!G119*100,"-")) -> 1.611551564
A122: MA. Ph.d. | C122: =IF(OR('Tabel 1 ØJ'!C120<5,'Tabel 2 ØJ'!C122<0.5),"-",IFERROR('Tabel 2 ØJ'!C122/'Tabel 1 ØJ'!C120*100,"-")) -> 1.449275362 | D122: =IF(OR('Tabel 1 ØJ'!C120<5,'Tabel 2 ØJ'!D122<0.5),"-",IFERROR('Tabel 2 ØJ'!D122/'Tabel 1 ØJ'!C120*100,"-")) -> 1.449004182 | F122: =IF(OR('Tabel 1 ØJ'!E120<5,'Tabel 2 ØJ'!F122<0.5),"-",IFERROR('Tabel 2 ØJ'!F122/'Tabel 1 ØJ'!E120*100,"-")) -> 0.8695652174 | G122: =IF(OR('Tabel 1 ØJ'!E120<5,'Tabel 2 ØJ'!G122<0.5),"-",IFERROR('Tabel 2 ØJ'!G122/'Tabel 1 ØJ'!E120*100,"-")) -> 0.8694025095 | I122: =IF(OR('Tabel 1 ØJ'!G120<5,'Tabel 2 ØJ'!I122<0.5),"-",IFERROR('Tabel 2 ØJ'!I122/'Tabel 1 ØJ'!G120*100,"-")) -> 1.086956522 | J122: =IF(OR('Tabel 1 ØJ'!G120<5,'Tabel 2 ØJ'!J122<0.5),"-",IFERROR('Tabel 2 ØJ'!J122/'Tabel 1 ØJ'!G120*100,"-")) -> 1.086753137
A123: MA. Samf. | C123: =IF(OR('Tabel 1 ØJ'!C121<5,'Tabel 2 ØJ'!C123<0.5),"-",IFERROR('Tabel 2 ØJ'!C123/'Tabel 1 ØJ'!C121*100,"-")) -> 8.333333333 | D123: =IF(OR('Tabel 1 ØJ'!C121<5,'Tabel 2 ØJ'!D123<0.5),"-",IFERROR('Tabel 2 ØJ'!D123/'Tabel 1 ØJ'!C121*100,"-")) -> 8.331774049 | F123: =IF(OR('Tabel 1 ØJ'!E121<5,'Tabel 2 ØJ'!F123<0.5),"-",IFERROR('Tabel 2 ØJ'!F123/'Tabel 1 ØJ'!E121*100,"-")) -> 17.39130435 | G123: =IF(OR('Tabel 1 ØJ'!E121<5,'Tabel 2 ØJ'!G123<0.5),"-",IFERROR('Tabel 2 ØJ'!G123/'Tabel 1 ØJ'!E121*100,"-")) -> 15.48979144 | I123: =IF(OR('Tabel 1 ØJ'!G121<5,'Tabel 2 ØJ'!I123<0.5),"-",IFERROR('Tabel 2 ØJ'!I123/'Tabel 1 ØJ'!G121*100,"-")) -> 14.28571429 | J123: =IF(OR('Tabel 1 ØJ'!G121<5,'Tabel 2 ØJ'!J123<0.5),"-",IFERROR('Tabel 2 ØJ'!J123/'Tabel 1 ØJ'!G121*100,"-")) -> 13.03561405
A124: Øvrige Mag. | C124: =IF(OR('Tabel 1 ØJ'!C122<5,'Tabel 2 ØJ'!C124<0.5),"-",IFERROR('Tabel 2 ØJ'!C124/'Tabel 1 ØJ'!C122*100,"-")) -> - | D124: =IF(OR('Tabel 1 ØJ'!C122<5,'Tabel 2 ØJ'!D124<0.5),"-",IFERROR('Tabel 2 ØJ'!D124/'Tabel 1 ØJ'!C122*100,"-")) -> - | F124: =IF(OR('Tabel 1 ØJ'!E122<5,'Tabel 2 ØJ'!F124<0.5),"-",IFERROR('Tabel 2 ØJ'!F124/'Tabel 1 ØJ'!E122*100,"-")) -> 9.090909091 | G124: =IF(OR('Tabel 1 ØJ'!E122<5,'Tabel 2 ØJ'!G124<0.5),"-",IFERROR('Tabel 2 ØJ'!G124/'Tabel 1 ØJ'!E122*100,"-")) -> 6.818323571 | I124: =IF(OR('Tabel 1 ØJ'!G122<5,'Tabel 2 ØJ'!I124<0.5),"-",IFERROR('Tabel 2 ØJ'!I124/'Tabel 1 ØJ'!G122*100,"-")) -> 12 | J124: =IF(OR('Tabel 1 ØJ'!G122<5,'Tabel 2 ØJ'!J124<0.5),"-",IFERROR('Tabel 2 ØJ'!J124/'Tabel 1 ØJ'!G122*100,"-")) -> 9.999376286
A125: Agronom | C125: =IF(OR('Tabel 1 ØJ'!C123<5,'Tabel 2 ØJ'!C125<0.5),"-",IFERROR('Tabel 2 ØJ'!C125/'Tabel 1 ØJ'!C123*100,"-")) -> - | D125: =IF(OR('Tabel 1 ØJ'!C123<5,'Tabel 2 ØJ'!D125<0.5),"-",IFERROR('Tabel 2 ØJ'!D125/'Tabel 1 ØJ'!C123*100,"-")) -> - | F125: =IF(OR('Tabel 1 ØJ'!E123<5,'Tabel 2 ØJ'!F125<0.5),"-",IFERROR('Tabel 2 ØJ'!F125/'Tabel 1 ØJ'!E123*100,"-")) -> - | G125: =IF(OR('Tabel 1 ØJ'!E123<5,'Tabel 2 ØJ'!G125<0.5),"-",IFERROR('Tabel 2 ØJ'!G125/'Tabel 1 ØJ'!E123*100,"-")) -> - | I125: =IF(OR('Tabel 1 ØJ'!G123<5,'Tabel 2 ØJ'!I125<0.5),"-",IFERROR('Tabel 2 ØJ'!I125/'Tabel 1 ØJ'!G123*100,"-")) -> - | J125: =IF(OR('Tabel 1 ØJ'!G123<5,'Tabel 2 ØJ'!J125<0.5),"-",IFERROR('Tabel 2 ØJ'!J125/'Tabel 1 ØJ'!G123*100,"-")) -> -
A126: Landsk. Arkt. | C126: =IF(OR('Tabel 1 ØJ'!C124<5,'Tabel 2 ØJ'!C126<0.5),"-",IFERROR('Tabel 2 ØJ'!C126/'Tabel 1 ØJ'!C124*100,"-")) -> - | D126: =IF(OR('Tabel 1 ØJ'!C124<5,'Tabel 2 ØJ'!D126<0.5),"-",IFERROR('Tabel 2 ØJ'!D126/'Tabel 1 ØJ'!C124*100,"-")) -> - | F126: =IF(OR('Tabel 1 ØJ'!E124<5,'Tabel 2 ØJ'!F126<0.5),"-",IFERROR('Tabel 2 ØJ'!F126/'Tabel 1 ØJ'!E124*100,"-")) -> - | G126: =IF(OR('Tabel 1 ØJ'!E124<5,'Tabel 2 ØJ'!G126<0.5),"-",IFERROR('Tabel 2 ØJ'!G126/'Tabel 1 ØJ'!E124*100,"-")) -> - | I126: =IF(OR('Tabel 1 ØJ'!G124<5,'Tabel 2 ØJ'!I126<0.5),"-",IFERROR('Tabel 2 ØJ'!I126/'Tabel 1 ØJ'!G124*100,"-")) -> - | J126: =IF(OR('Tabel 1 ØJ'!G124<5,'Tabel 2 ØJ'!J126<0.5),"-",IFERROR('Tabel 2 ØJ'!J126/'Tabel 1 ØJ'!G124*100,"-")) -> -
A127: Hortonom | C127: =IF(OR('Tabel 1 ØJ'!C125<5,'Tabel 2 ØJ'!C127<0.5),"-",IFERROR('Tabel 2 ØJ'!C127/'Tabel 1 ØJ'!C125*100,"-")) -> - | D127: =IF(OR('Tabel 1 ØJ'!C125<5,'Tabel 2 ØJ'!D127<0.5),"-",IFERROR('Tabel 2 ØJ'!D127/'Tabel 1 ØJ'!C125*100,"-")) -> - | F127: =IF(OR('Tabel 1 ØJ'!E125<5,'Tabel 2 ØJ'!F127<0.5),"-",IFERROR('Tabel 2 ØJ'!F127/'Tabel 1 ØJ'!E125*100,"-")) -> - | G127: =IF(OR('Tabel 1 ØJ'!E125<5,'Tabel 2 ØJ'!G127<0.5),"-",IFERROR('Tabel 2 ØJ'!G127/'Tabel 1 ØJ'!E125*100,"-")) -> - | I127: =IF(OR('Tabel 1 ØJ'!G125<5,'Tabel 2 ØJ'!I127<0.5),"-",IFERROR('Tabel 2 ØJ'!I127/'Tabel 1 ØJ'!G125*100,"-")) -> - | J127: =IF(OR('Tabel 1 ØJ'!G125<5,'Tabel 2 ØJ'!J127<0.5),"-",IFERROR('Tabel 2 ØJ'!J127/'Tabel 1 ØJ'!G125*100,"-")) -> -
A128: Forstkand. | C128: =IF(OR('Tabel 1 ØJ'!C126<5,'Tabel 2 ØJ'!C128<0.5),"-",IFERROR('Tabel 2 ØJ'!C128/'Tabel 1 ØJ'!C126*100,"-")) -> - | D128: =IF(OR('Tabel 1 ØJ'!C126<5,'Tabel 2 ØJ'!D128<0.5),"-",IFERROR('Tabel 2 ØJ'!D128/'Tabel 1 ØJ'!C126*100,"-")) -> - | F128: =IF(OR('Tabel 1 ØJ'!E126<5,'Tabel 2 ØJ'!F128<0.5),"-",IFERROR('Tabel 2 ØJ'!F128/'Tabel 1 ØJ'!E126*100,"-")) -> - | G128: =IF(OR('Tabel 1 ØJ'!E126<5,'Tabel 2 ØJ'!G128<0.5),"-",IFERROR('Tabel 2 ØJ'!G128/'Tabel 1 ØJ'!E126*100,"-")) -> - | I128: =IF(OR('Tabel 1 ØJ'!G126<5,'Tabel 2 ØJ'!I128<0.5),"-",IFERROR('Tabel 2 ØJ'!I128/'Tabel 1 ØJ'!G126*100,"-")) -> 16.66666667 | J128: =IF(OR('Tabel 1 ØJ'!G126<5,'Tabel 2 ØJ'!J128<0.5),"-",IFERROR('Tabel 2 ØJ'!J128/'Tabel 1 ØJ'!G126*100,"-")) -> 16.6635481
A129: Jordbrugsakad. | C129: =IF(OR('Tabel 1 ØJ'!C127<5,'Tabel 2 ØJ'!C129<0.5),"-",IFERROR('Tabel 2 ØJ'!C129/'Tabel 1 ØJ'!C127*100,"-")) -> 4.166666667 | D129: =IF(OR('Tabel 1 ØJ'!C127<5,'Tabel 2 ØJ'!D129<0.5),"-",IFERROR('Tabel 2 ØJ'!D129/'Tabel 1 ØJ'!C127*100,"-")) -> 4.165887025 | F129: =IF(OR('Tabel 1 ØJ'!E127<5,'Tabel 2 ØJ'!F129<0.5),"-",IFERROR('Tabel 2 ØJ'!F129/'Tabel 1 ØJ'!E127*100,"-")) -> - | G129: =IF(OR('Tabel 1 ØJ'!E127<5,'Tabel 2 ØJ'!G129<0.5),"-",IFERROR('Tabel 2 ØJ'!G129/'Tabel 1 ØJ'!E127*100,"-")) -> - | I129: =IF(OR('Tabel 1 ØJ'!G127<5,'Tabel 2 ØJ'!I129<0.5),"-",IFERROR('Tabel 2 ØJ'!I129/'Tabel 1 ØJ'!G127*100,"-")) -> 1.234567901 | J129: =IF(OR('Tabel 1 ØJ'!G127<5,'Tabel 2 ØJ'!J129<0.5),"-",IFERROR('Tabel 2 ØJ'!J129/'Tabel 1 ØJ'!G127*100,"-")) -> 1.234336896
A130: Mejeriing. | C130: =IF(OR('Tabel 1 ØJ'!C128<5,'Tabel 2 ØJ'!C130<0.5),"-",IFERROR('Tabel 2 ØJ'!C130/'Tabel 1 ØJ'!C128*100,"-")) -> - | D130: =IF(OR('Tabel 1 ØJ'!C128<5,'Tabel 2 ØJ'!D130<0.5),"-",IFERROR('Tabel 2 ØJ'!D130/'Tabel 1 ØJ'!C128*100,"-")) -> - | F130: =IF(OR('Tabel 1 ØJ'!E128<5,'Tabel 2 ØJ'!F130<0.5),"-",IFERROR('Tabel 2 ØJ'!F130/'Tabel 1 ØJ'!E128*100,"-")) -> - | G130: =IF(OR('Tabel 1 ØJ'!E128<5,'Tabel 2 ØJ'!G130<0.5),"-",IFERROR('Tabel 2 ØJ'!G130/'Tabel 1 ØJ'!E128*100,"-")) -> - | I130: =IF(OR('Tabel 1 ØJ'!G128<5,'Tabel 2 ØJ'!I130<0.5),"-",IFERROR('Tabel 2 ØJ'!I130/'Tabel 1 ØJ'!G128*100,"-")) -> 20 | J130: =IF(OR('Tabel 1 ØJ'!G128<5,'Tabel 2 ØJ'!J130<0.5),"-",IFERROR('Tabel 2 ØJ'!J130/'Tabel 1 ØJ'!G128*100,"-")) -> -
A131: Levn.m.kand. | C131: =IF(OR('Tabel 1 ØJ'!C129<5,'Tabel 2 ØJ'!C131<0.5),"-",IFERROR('Tabel 2 ØJ'!C131/'Tabel 1 ØJ'!C129*100,"-")) -> - | D131: =IF(OR('Tabel 1 ØJ'!C129<5,'Tabel 2 ØJ'!D131<0.5),"-",IFERROR('Tabel 2 ØJ'!D131/'Tabel 1 ØJ'!C129*100,"-")) -> - | F131: =IF(OR('Tabel 1 ØJ'!E129<5,'Tabel 2 ØJ'!F131<0.5),"-",IFERROR('Tabel 2 ØJ'!F131/'Tabel 1 ØJ'!E129*100,"-")) -> - | G131: =IF(OR('Tabel 1 ØJ'!E129<5,'Tabel 2 ØJ'!G131<0.5),"-",IFERROR('Tabel 2 ØJ'!G131/'Tabel 1 ØJ'!E129*100,"-")) -> - | I131: =IF(OR('Tabel 1 ØJ'!G129<5,'Tabel 2 ØJ'!I131<0.5),"-",IFERROR('Tabel 2 ØJ'!I131/'Tabel 1 ØJ'!G129*100,"-")) -> - | J131: =IF(OR('Tabel 1 ØJ'!G129<5,'Tabel 2 ØJ'!J131<0.5),"-",IFERROR('Tabel 2 ØJ'!J131/'Tabel 1 ØJ'!G129*100,"-")) -> -
A132: Dyrlæge | C132: =IF(OR('Tabel 1 ØJ'!C130<5,'Tabel 2 ØJ'!C132<0.5),"-",IFERROR('Tabel 2 ØJ'!C132/'Tabel 1 ØJ'!C130*100,"-")) -> - | D132: =IF(OR('Tabel 1 ØJ'!C130<5,'Tabel 2 ØJ'!D132<0.5),"-",IFERROR('Tabel 2 ØJ'!D132/'Tabel 1 ØJ'!C130*100,"-")) -> - | F132: =IF(OR('Tabel 1 ØJ'!E130<5,'Tabel 2 ØJ'!F132<0.5),"-",IFERROR('Tabel 2 ØJ'!F132/'Tabel 1 ØJ'!E130*100,"-")) -> - | G132: =IF(OR('Tabel 1 ØJ'!E130<5,'Tabel 2 ØJ'!G132<0.5),"-",IFERROR('Tabel 2 ØJ'!G132/'Tabel 1 ØJ'!E130*100,"-")) -> - | I132: =IF(OR('Tabel 1 ØJ'!G130<5,'Tabel 2 ØJ'!I132<0.5),"-",IFERROR('Tabel 2 ØJ'!I132/'Tabel 1 ØJ'!G130*100,"-")) -> - | J132: =IF(OR('Tabel 1 ØJ'!G130<5,'Tabel 2 ØJ'!J132<0.5),"-",IFERROR('Tabel 2 ØJ'!J132/'Tabel 1 ØJ'!G130*100,"-")) -> -
A133: Farmaceut | C133: =IF(OR('Tabel 1 ØJ'!C131<5,'Tabel 2 ØJ'!C133<0.5),"-",IFERROR('Tabel 2 ØJ'!C133/'Tabel 1 ØJ'!C131*100,"-")) -> - | D133: =IF(OR('Tabel 1 ØJ'!C131<5,'Tabel 2 ØJ'!D133<0.5),"-",IFERROR('Tabel 2 ØJ'!D133/'Tabel 1 ØJ'!C131*100,"-")) -> - | F133: =IF(OR('Tabel 1 ØJ'!E131<5,'Tabel 2 ØJ'!F133<0.5),"-",IFERROR('Tabel 2 ØJ'!F133/'Tabel 1 ØJ'!E131*100,"-")) -> - | G133: =IF(OR('Tabel 1 ØJ'!E131<5,'Tabel 2 ØJ'!G133<0.5),"-",IFERROR('Tabel 2 ØJ'!G133/'Tabel 1 ØJ'!E131*100,"-")) -> - | I133: =IF(OR('Tabel 1 ØJ'!G131<5,'Tabel 2 ØJ'!I133<0.5),"-",IFERROR('Tabel 2 ØJ'!I133/'Tabel 1 ØJ'!G131*100,"-")) -> - | J133: =IF(OR('Tabel 1 ØJ'!G131<5,'Tabel 2 ØJ'!J133<0.5),"-",IFERROR('Tabel 2 ØJ'!J133/'Tabel 1 ØJ'!G131*100,"-")) -> -
A134: Læge | C134: =IF(OR('Tabel 1 ØJ'!C132<5,'Tabel 2 ØJ'!C134<0.5),"-",IFERROR('Tabel 2 ØJ'!C134/'Tabel 1 ØJ'!C132*100,"-")) -> - | D134: =IF(OR('Tabel 1 ØJ'!C132<5,'Tabel 2 ØJ'!D134<0.5),"-",IFERROR('Tabel 2 ØJ'!D134/'Tabel 1 ØJ'!C132*100,"-")) -> - | F134: =IF(OR('Tabel 1 ØJ'!E132<5,'Tabel 2 ØJ'!F134<0.5),"-",IFERROR('Tabel 2 ØJ'!F134/'Tabel 1 ØJ'!E132*100,"-")) -> 3.921568627 | G134: =IF(OR('Tabel 1 ØJ'!E132<5,'Tabel 2 ØJ'!G134<0.5),"-",IFERROR('Tabel 2 ØJ'!G134/'Tabel 1 ØJ'!E132*100,"-")) -> 3.920834847 | I134: =IF(OR('Tabel 1 ØJ'!G132<5,'Tabel 2 ØJ'!I134<0.5),"-",IFERROR('Tabel 2 ØJ'!I134/'Tabel 1 ØJ'!G132*100,"-")) -> 3.125 | J134: =IF(OR('Tabel 1 ØJ'!G132<5,'Tabel 2 ØJ'!J134<0.5),"-",IFERROR('Tabel 2 ØJ'!J134/'Tabel 1 ØJ'!G132*100,"-")) -> 3.124415269
A135: Tandlæge | C135: =IF(OR('Tabel 1 ØJ'!C133<5,'Tabel 2 ØJ'!C135<0.5),"-",IFERROR('Tabel 2 ØJ'!C135/'Tabel 1 ØJ'!C133*100,"-")) -> - | D135: =IF(OR('Tabel 1 ØJ'!C133<5,'Tabel 2 ØJ'!D135<0.5),"-",IFERROR('Tabel 2 ØJ'!D135/'Tabel 1 ØJ'!C133*100,"-")) -> - | F135: =IF(OR('Tabel 1 ØJ'!E133<5,'Tabel 2 ØJ'!F135<0.5),"-",IFERROR('Tabel 2 ØJ'!F135/'Tabel 1 ØJ'!E133*100,"-")) -> - | G135: =IF(OR('Tabel 1 ØJ'!E133<5,'Tabel 2 ØJ'!G135<0.5),"-",IFERROR('Tabel 2 ØJ'!G135/'Tabel 1 ØJ'!E133*100,"-")) -> - | I135: =IF(OR('Tabel 1 ØJ'!G133<5,'Tabel 2 ØJ'!I135<0.5),"-",IFERROR('Tabel 2 ØJ'!I135/'Tabel 1 ØJ'!G133*100,"-")) -> - | J135: =IF(OR('Tabel 1 ØJ'!G133<5,'Tabel 2 ØJ'!J135<0.5),"-",IFERROR('Tabel 2 ØJ'!J135/'Tabel 1 ØJ'!G133*100,"-")) -> -
A136: Arkitekt | C136: =IF(OR('Tabel 1 ØJ'!C134<5,'Tabel 2 ØJ'!C136<0.5),"-",IFERROR('Tabel 2 ØJ'!C136/'Tabel 1 ØJ'!C134*100,"-")) -> - | D136: =IF(OR('Tabel 1 ØJ'!C134<5,'Tabel 2 ØJ'!D136<0.5),"-",IFERROR('Tabel 2 ØJ'!D136/'Tabel 1 ØJ'!C134*100,"-")) -> - | F136: =IF(OR('Tabel 1 ØJ'!E134<5,'Tabel 2 ØJ'!F136<0.5),"-",IFERROR('Tabel 2 ØJ'!F136/'Tabel 1 ØJ'!E134*100,"-")) -> 8.219178082 | G136: =IF(OR('Tabel 1 ØJ'!E134<5,'Tabel 2 ØJ'!G136<0.5),"-",IFERROR('Tabel 2 ØJ'!G136/'Tabel 1 ØJ'!E134*100,"-")) -> 7.87331608 | I136: =IF(OR('Tabel 1 ØJ'!G134<5,'Tabel 2 ØJ'!I136<0.5),"-",IFERROR('Tabel 2 ØJ'!I136/'Tabel 1 ØJ'!G134*100,"-")) -> 6.12244898 | J136: =IF(OR('Tabel 1 ØJ'!G134<5,'Tabel 2 ØJ'!J136<0.5),"-",IFERROR('Tabel 2 ØJ'!J136/'Tabel 1 ØJ'!G134*100,"-")) -> 5.86481708
A137: Landinspek. | C137: =IF(OR('Tabel 1 ØJ'!C135<5,'Tabel 2 ØJ'!C137<0.5),"-",IFERROR('Tabel 2 ØJ'!C137/'Tabel 1 ØJ'!C135*100,"-")) -> - | D137: =IF(OR('Tabel 1 ØJ'!C135<5,'Tabel 2 ØJ'!D137<0.5),"-",IFERROR('Tabel 2 ØJ'!D137/'Tabel 1 ØJ'!C135*100,"-")) -> - | F137: =IF(OR('Tabel 1 ØJ'!E135<5,'Tabel 2 ØJ'!F137<0.5),"-",IFERROR('Tabel 2 ØJ'!F137/'Tabel 1 ØJ'!E135*100,"-")) -> - | G137: =IF(OR('Tabel 1 ØJ'!E135<5,'Tabel 2 ØJ'!G137<0.5),"-",IFERROR('Tabel 2 ØJ'!G137/'Tabel 1 ØJ'!E135*100,"-")) -> - | I137: =IF(OR('Tabel 1 ØJ'!G135<5,'Tabel 2 ØJ'!I137<0.5),"-",IFERROR('Tabel 2 ØJ'!I137/'Tabel 1 ØJ'!G135*100,"-")) -> - | J137: =IF(OR('Tabel 1 ØJ'!G135<5,'Tabel 2 ØJ'!J137<0.5),"-",IFERROR('Tabel 2 ØJ'!J137/'Tabel 1 ØJ'!G135*100,"-")) -> -
A138: Bibliotekar | C138: =IF(OR('Tabel 1 ØJ'!C136<5,'Tabel 2 ØJ'!C138<0.5),"-",IFERROR('Tabel 2 ØJ'!C138/'Tabel 1 ØJ'!C136*100,"-")) -> - | D138: =IF(OR('Tabel 1 ØJ'!C136<5,'Tabel 2 ØJ'!D138<0.5),"-",IFERROR('Tabel 2 ØJ'!D138/'Tabel 1 ØJ'!C136*100,"-")) -> - | F138: =IF(OR('Tabel 1 ØJ'!E136<5,'Tabel 2 ØJ'!F138<0.5),"-",IFERROR('Tabel 2 ØJ'!F138/'Tabel 1 ØJ'!E136*100,"-")) -> 14.28571429 | G138: =IF(OR('Tabel 1 ØJ'!E136<5,'Tabel 2 ØJ'!G138<0.5),"-",IFERROR('Tabel 2 ØJ'!G138/'Tabel 1 ØJ'!E136*100,"-")) -> 14.28304123 | I138: =IF(OR('Tabel 1 ØJ'!G136<5,'Tabel 2 ØJ'!I138<0.5),"-",IFERROR('Tabel 2 ØJ'!I138/'Tabel 1 ØJ'!G136*100,"-")) -> 12.5 | J138: =IF(OR('Tabel 1 ØJ'!G136<5,'Tabel 2 ØJ'!J138<0.5),"-",IFERROR('Tabel 2 ØJ'!J138/'Tabel 1 ØJ'!G136*100,"-")) -> 12.49766107
A139: Musikudd. | C139: =IF(OR('Tabel 1 ØJ'!C137<5,'Tabel 2 ØJ'!C139<0.5),"-",IFERROR('Tabel 2 ØJ'!C139/'Tabel 1 ØJ'!C137*100,"-")) -> - | D139: =IF(OR('Tabel 1 ØJ'!C137<5,'Tabel 2 ØJ'!D139<0.5),"-",IFERROR('Tabel 2 ØJ'!D139/'Tabel 1 ØJ'!C137*100,"-")) -> - | F139: =IF(OR('Tabel 1 ØJ'!E137<5,'Tabel 2 ØJ'!F139<0.5),"-",IFERROR('Tabel 2 ØJ'!F139/'Tabel 1 ØJ'!E137*100,"-")) -> - | G139: =IF(OR('Tabel 1 ØJ'!E137<5,'Tabel 2 ØJ'!G139<0.5),"-",IFERROR('Tabel 2 ØJ'!G139/'Tabel 1 ØJ'!E137*100,"-")) -> - | I139: =IF(OR('Tabel 1 ØJ'!G137<5,'Tabel 2 ØJ'!I139<0.5),"-",IFERROR('Tabel 2 ØJ'!I139/'Tabel 1 ØJ'!G137*100,"-")) -> - | J139: =IF(OR('Tabel 1 ØJ'!G137<5,'Tabel 2 ØJ'!J139<0.5),"-",IFERROR('Tabel 2 ØJ'!J139/'Tabel 1 ØJ'!G137*100,"-")) -> -
A140: Teolog | C140: =IF(OR('Tabel 1 ØJ'!C138<5,'Tabel 2 ØJ'!C140<0.5),"-",IFERROR('Tabel 2 ØJ'!C140/'Tabel 1 ØJ'!C138*100,"-")) -> - | D140: =IF(OR('Tabel 1 ØJ'!C138<5,'Tabel 2 ØJ'!D140<0.5),"-",IFERROR('Tabel 2 ØJ'!D140/'Tabel 1 ØJ'!C138*100,"-")) -> - | F140: =IF(OR('Tabel 1 ØJ'!E138<5,'Tabel 2 ØJ'!F140<0.5),"-",IFERROR('Tabel 2 ØJ'!F140/'Tabel 1 ØJ'!E138*100,"-")) -> 5.263157895 | G140: =IF(OR('Tabel 1 ØJ'!E138<5,'Tabel 2 ØJ'!G140<0.5),"-",IFERROR('Tabel 2 ØJ'!G140/'Tabel 1 ØJ'!E138*100,"-")) -> 5.262173084 | I140: =IF(OR('Tabel 1 ØJ'!G138<5,'Tabel 2 ØJ'!I140<0.5),"-",IFERROR('Tabel 2 ØJ'!I140/'Tabel 1 ØJ'!G138*100,"-")) -> 4.347826087 | J140: =IF(OR('Tabel 1 ØJ'!G138<5,'Tabel 2 ØJ'!J140<0.5),"-",IFERROR('Tabel 2 ØJ'!J140/'Tabel 1 ØJ'!G138*100,"-")) -> 4.347012547
A141: Psykolog | C141: =IF(OR('Tabel 1 ØJ'!C139<5,'Tabel 2 ØJ'!C141<0.5),"-",IFERROR('Tabel 2 ØJ'!C141/'Tabel 1 ØJ'!C139*100,"-")) -> - | D141: =IF(OR('Tabel 1 ØJ'!C139<5,'Tabel 2 ØJ'!D141<0.5),"-",IFERROR('Tabel 2 ØJ'!D141/'Tabel 1 ØJ'!C139*100,"-")) -> - | F141: =IF(OR('Tabel 1 ØJ'!E139<5,'Tabel 2 ØJ'!F141<0.5),"-",IFERROR('Tabel 2 ØJ'!F141/'Tabel 1 ØJ'!E139*100,"-")) -> 4.545454545 | G141: =IF(OR('Tabel 1 ØJ'!E139<5,'Tabel 2 ØJ'!G141<0.5),"-",IFERROR('Tabel 2 ØJ'!G141/'Tabel 1 ØJ'!E139*100,"-")) -> 2.71409914 | I141: =IF(OR('Tabel 1 ØJ'!G139<5,'Tabel 2 ØJ'!I141<0.5),"-",IFERROR('Tabel 2 ØJ'!I141/'Tabel 1 ØJ'!G139*100,"-")) -> 3.947368421 | J141: =IF(OR('Tabel 1 ØJ'!G139<5,'Tabel 2 ØJ'!J141<0.5),"-",IFERROR('Tabel 2 ØJ'!J141/'Tabel 1 ØJ'!G139*100,"-")) -> 2.356980832
A142: Jurist | C142: =IF(OR('Tabel 1 ØJ'!C140<5,'Tabel 2 ØJ'!C142<0.5),"-",IFERROR('Tabel 2 ØJ'!C142/'Tabel 1 ØJ'!C140*100,"-")) -> - | D142: =IF(OR('Tabel 1 ØJ'!C140<5,'Tabel 2 ØJ'!D142<0.5),"-",IFERROR('Tabel 2 ØJ'!D142/'Tabel 1 ØJ'!C140*100,"-")) -> - | F142: =IF(OR('Tabel 1 ØJ'!E140<5,'Tabel 2 ØJ'!F142<0.5),"-",IFERROR('Tabel 2 ØJ'!F142/'Tabel 1 ØJ'!E140*100,"-")) -> - | G142: =IF(OR('Tabel 1 ØJ'!E140<5,'Tabel 2 ØJ'!G142<0.5),"-",IFERROR('Tabel 2 ØJ'!G142/'Tabel 1 ØJ'!E140*100,"-")) -> - | I142: =IF(OR('Tabel 1 ØJ'!G140<5,'Tabel 2 ØJ'!I142<0.5),"-",IFERROR('Tabel 2 ØJ'!I142/'Tabel 1 ØJ'!G140*100,"-")) -> - | J142: =IF(OR('Tabel 1 ØJ'!G140<5,'Tabel 2 ØJ'!J142<0.5),"-",IFERROR('Tabel 2 ØJ'!J142/'Tabel 1 ØJ'!G140*100,"-")) -> -
A143: Økonom | C143: =IF(OR('Tabel 1 ØJ'!C141<5,'Tabel 2 ØJ'!C143<0.5),"-",IFERROR('Tabel 2 ØJ'!C143/'Tabel 1 ØJ'!C141*100,"-")) -> 12.5 | D143: =IF(OR('Tabel 1 ØJ'!C141<5,'Tabel 2 ØJ'!D143<0.5),"-",IFERROR('Tabel 2 ØJ'!D143/'Tabel 1 ØJ'!C141*100,"-")) -> 12.49766107 | F143: =IF(OR('Tabel 1 ØJ'!E141<5,'Tabel 2 ØJ'!F143<0.5),"-",IFERROR('Tabel 2 ØJ'!F143/'Tabel 1 ØJ'!E141*100,"-")) -> - | G143: =IF(OR('Tabel 1 ØJ'!E141<5,'Tabel 2 ØJ'!G143<0.5),"-",IFERROR('Tabel 2 ØJ'!G143/'Tabel 1 ØJ'!E141*100,"-")) -> - | I143: =IF(OR('Tabel 1 ØJ'!G141<5,'Tabel 2 ØJ'!I143<0.5),"-",IFERROR('Tabel 2 ØJ'!I143/'Tabel 1 ØJ'!G141*100,"-")) -> 4.761904762 | J143: =IF(OR('Tabel 1 ØJ'!G141<5,'Tabel 2 ØJ'!J143<0.5),"-",IFERROR('Tabel 2 ØJ'!J143/'Tabel 1 ØJ'!G141*100,"-")) -> 4.761013742
A144: Samf. Adm. | C144: =IF(OR('Tabel 1 ØJ'!C142<5,'Tabel 2 ØJ'!C144<0.5),"-",IFERROR('Tabel 2 ØJ'!C144/'Tabel 1 ØJ'!C142*100,"-")) -> 12 | D144: =IF(OR('Tabel 1 ØJ'!C142<5,'Tabel 2 ØJ'!D144<0.5),"-",IFERROR('Tabel 2 ØJ'!D144/'Tabel 1 ØJ'!C142*100,"-")) -> 7.691636001 | F144: =IF(OR('Tabel 1 ØJ'!E142<5,'Tabel 2 ØJ'!F144<0.5),"-",IFERROR('Tabel 2 ØJ'!F144/'Tabel 1 ØJ'!E142*100,"-")) -> 5.555555556 | G144: =IF(OR('Tabel 1 ØJ'!E142<5,'Tabel 2 ØJ'!G144<0.5),"-",IFERROR('Tabel 2 ØJ'!G144/'Tabel 1 ØJ'!E142*100,"-")) -> 5.233996549 | I144: =IF(OR('Tabel 1 ØJ'!G142<5,'Tabel 2 ØJ'!I144<0.5),"-",IFERROR('Tabel 2 ØJ'!I144/'Tabel 1 ØJ'!G142*100,"-")) -> 7.216494845 | J144: =IF(OR('Tabel 1 ØJ'!G142<5,'Tabel 2 ØJ'!J144<0.5),"-",IFERROR('Tabel 2 ØJ'!J144/'Tabel 1 ØJ'!G142*100,"-")) -> 5.867408779
A145: Cand. Merc. | C145: =IF(OR('Tabel 1 ØJ'!C143<5,'Tabel 2 ØJ'!C145<0.5),"-",IFERROR('Tabel 2 ØJ'!C145/'Tabel 1 ØJ'!C143*100,"-")) -> 7.8125 | D145: =IF(OR('Tabel 1 ØJ'!C143<5,'Tabel 2 ØJ'!D145<0.5),"-",IFERROR('Tabel 2 ØJ'!D145/'Tabel 1 ØJ'!C143*100,"-")) -> 7.089869332 | F145: =IF(OR('Tabel 1 ØJ'!E143<5,'Tabel 2 ØJ'!F145<0.5),"-",IFERROR('Tabel 2 ØJ'!F145/'Tabel 1 ØJ'!E143*100,"-")) -> 1.6 | G145: =IF(OR('Tabel 1 ØJ'!E143<5,'Tabel 2 ØJ'!G145<0.5),"-",IFERROR('Tabel 2 ØJ'!G145/'Tabel 1 ØJ'!E143*100,"-")) -> 0.900642425 | I145: =IF(OR('Tabel 1 ØJ'!G143<5,'Tabel 2 ØJ'!I145<0.5),"-",IFERROR('Tabel 2 ØJ'!I145/'Tabel 1 ØJ'!G143*100,"-")) -> 3.703703704 | J145: =IF(OR('Tabel 1 ØJ'!G143<5,'Tabel 2 ØJ'!J145<0.5),"-",IFERROR('Tabel 2 ØJ'!J145/'Tabel 1 ØJ'!G143*100,"-")) -> 2.996465293
A146: HA | C146: =IF(OR('Tabel 1 ØJ'!C144<5,'Tabel 2 ØJ'!C146<0.5),"-",IFERROR('Tabel 2 ØJ'!C146/'Tabel 1 ØJ'!C144*100,"-")) -> 7.142857143 | D146: =IF(OR('Tabel 1 ØJ'!C144<5,'Tabel 2 ØJ'!D146<0.5),"-",IFERROR('Tabel 2 ØJ'!D146/'Tabel 1 ØJ'!C144*100,"-")) -> 7.141520614 | F146: =IF(OR('Tabel 1 ØJ'!E144<5,'Tabel 2 ØJ'!F146<0.5),"-",IFERROR('Tabel 2 ØJ'!F146/'Tabel 1 ØJ'!E144*100,"-")) -> 5.263157895 | G146: =IF(OR('Tabel 1 ØJ'!E144<5,'Tabel 2 ØJ'!G146<0.5),"-",IFERROR('Tabel 2 ØJ'!G146/'Tabel 1 ØJ'!E144*100,"-")) -> 3.954015895 | I146: =IF(OR('Tabel 1 ØJ'!G144<5,'Tabel 2 ØJ'!I146<0.5),"-",IFERROR('Tabel 2 ØJ'!I146/'Tabel 1 ØJ'!G144*100,"-")) -> 5.769230769 | J146: =IF(OR('Tabel 1 ØJ'!G144<5,'Tabel 2 ØJ'!J146<0.5),"-",IFERROR('Tabel 2 ØJ'!J146/'Tabel 1 ØJ'!G144*100,"-")) -> 4.812190242
A147: HD | C147: =IF(OR('Tabel 1 ØJ'!C145<5,'Tabel 2 ØJ'!C147<0.5),"-",IFERROR('Tabel 2 ØJ'!C147/'Tabel 1 ØJ'!C145*100,"-")) -> 8.333333333 | D147: =IF(OR('Tabel 1 ØJ'!C145<5,'Tabel 2 ØJ'!D147<0.5),"-",IFERROR('Tabel 2 ØJ'!D147/'Tabel 1 ØJ'!C145*100,"-")) -> 8.331774049 | F147: =IF(OR('Tabel 1 ØJ'!E145<5,'Tabel 2 ØJ'!F147<0.5),"-",IFERROR('Tabel 2 ØJ'!F147/'Tabel 1 ØJ'!E145*100,"-")) -> - | G147: =IF(OR('Tabel 1 ØJ'!E145<5,'Tabel 2 ØJ'!G147<0.5),"-",IFERROR('Tabel 2 ØJ'!G147/'Tabel 1 ØJ'!E145*100,"-")) -> - | I147: =IF(OR('Tabel 1 ØJ'!G145<5,'Tabel 2 ØJ'!I147<0.5),"-",IFERROR('Tabel 2 ØJ'!I147/'Tabel 1 ØJ'!G145*100,"-")) -> 2.702702703 | J147: =IF(OR('Tabel 1 ØJ'!G145<5,'Tabel 2 ØJ'!J147<0.5),"-",IFERROR('Tabel 2 ØJ'!J147/'Tabel 1 ØJ'!G145*100,"-")) -> 2.702196989
A148: Komm. og Sprog | C148: =IF(OR('Tabel 1 ØJ'!C146<5,'Tabel 2 ØJ'!C148<0.5),"-",IFERROR('Tabel 2 ØJ'!C148/'Tabel 1 ØJ'!C146*100,"-")) -> - | D148: =IF(OR('Tabel 1 ØJ'!C146<5,'Tabel 2 ØJ'!D148<0.5),"-",IFERROR('Tabel 2 ØJ'!D148/'Tabel 1 ØJ'!C146*100,"-")) -> - | F148: =IF(OR('Tabel 1 ØJ'!E146<5,'Tabel 2 ØJ'!F148<0.5),"-",IFERROR('Tabel 2 ØJ'!F148/'Tabel 1 ØJ'!E146*100,"-")) -> 7.317073171 | G148: =IF(OR('Tabel 1 ØJ'!E146<5,'Tabel 2 ØJ'!G148<0.5),"-",IFERROR('Tabel 2 ØJ'!G148/'Tabel 1 ØJ'!E146*100,"-")) -> 6.977985953 | I148: =IF(OR('Tabel 1 ØJ'!G146<5,'Tabel 2 ØJ'!I148<0.5),"-",IFERROR('Tabel 2 ØJ'!I148/'Tabel 1 ØJ'!G146*100,"-")) -> 8.888888889 | J148: =IF(OR('Tabel 1 ØJ'!G146<5,'Tabel 2 ØJ'!J148<0.5),"-",IFERROR('Tabel 2 ØJ'!J148/'Tabel 1 ØJ'!G146*100,"-")) -> 8.579526948
A149: Bygningskonst. | C149: =IF(OR('Tabel 1 ØJ'!C147<5,'Tabel 2 ØJ'!C149<0.5),"-",IFERROR('Tabel 2 ØJ'!C149/'Tabel 1 ØJ'!C147*100,"-")) -> 1.639344262 | D149: =IF(OR('Tabel 1 ØJ'!C147<5,'Tabel 2 ØJ'!D149<0.5),"-",IFERROR('Tabel 2 ØJ'!D149/'Tabel 1 ØJ'!C147*100,"-")) -> 1.639344262 | F149: =IF(OR('Tabel 1 ØJ'!E147<5,'Tabel 2 ØJ'!F149<0.5),"-",IFERROR('Tabel 2 ØJ'!F149/'Tabel 1 ØJ'!E147*100,"-")) -> - | G149: =IF(OR('Tabel 1 ØJ'!E147<5,'Tabel 2 ØJ'!G149<0.5),"-",IFERROR('Tabel 2 ØJ'!G149/'Tabel 1 ØJ'!E147*100,"-")) -> - | I149: =IF(OR('Tabel 1 ØJ'!G147<5,'Tabel 2 ØJ'!I149<0.5),"-",IFERROR('Tabel 2 ØJ'!I149/'Tabel 1 ØJ'!G147*100,"-")) -> 0.7407407407 | J149: =IF(OR('Tabel 1 ØJ'!G147<5,'Tabel 2 ØJ'!J149<0.5),"-",IFERROR('Tabel 2 ØJ'!J149/'Tabel 1 ØJ'!G147*100,"-")) -> 0.7407407407
A150: Cand. IT. | C150: =IF(OR('Tabel 1 ØJ'!C148<5,'Tabel 2 ØJ'!C150<0.5),"-",IFERROR('Tabel 2 ØJ'!C150/'Tabel 1 ØJ'!C148*100,"-")) -> 7.692307692 | D150: =IF(OR('Tabel 1 ØJ'!C148<5,'Tabel 2 ØJ'!D150<0.5),"-",IFERROR('Tabel 2 ØJ'!D150/'Tabel 1 ØJ'!C148*100,"-")) -> 7.690868353 | F150: =IF(OR('Tabel 1 ØJ'!E148<5,'Tabel 2 ØJ'!F150<0.5),"-",IFERROR('Tabel 2 ØJ'!F150/'Tabel 1 ØJ'!E148*100,"-")) -> - | G150: =IF(OR('Tabel 1 ØJ'!E148<5,'Tabel 2 ØJ'!G150<0.5),"-",IFERROR('Tabel 2 ØJ'!G150/'Tabel 1 ØJ'!E148*100,"-")) -> - | I150: =IF(OR('Tabel 1 ØJ'!G148<5,'Tabel 2 ØJ'!I150<0.5),"-",IFERROR('Tabel 2 ØJ'!I150/'Tabel 1 ØJ'!G148*100,"-")) -> 2.941176471 | J150: =IF(OR('Tabel 1 ØJ'!G148<5,'Tabel 2 ØJ'!J150<0.5),"-",IFERROR('Tabel 2 ØJ'!J150/'Tabel 1 ØJ'!G148*100,"-")) -> 2.940626135
A151: Bac. Samf. | C151: =IF(OR('Tabel 1 ØJ'!C149<5,'Tabel 2 ØJ'!C151<0.5),"-",IFERROR('Tabel 2 ØJ'!C151/'Tabel 1 ØJ'!C149*100,"-")) -> - | D151: =IF(OR('Tabel 1 ØJ'!C149<5,'Tabel 2 ØJ'!D151<0.5),"-",IFERROR('Tabel 2 ØJ'!D151/'Tabel 1 ØJ'!C149*100,"-")) -> - | F151: =IF(OR('Tabel 1 ØJ'!E149<5,'Tabel 2 ØJ'!F151<0.5),"-",IFERROR('Tabel 2 ØJ'!F151/'Tabel 1 ØJ'!E149*100,"-")) -> - | G151: =IF(OR('Tabel 1 ØJ'!E149<5,'Tabel 2 ØJ'!G151<0.5),"-",IFERROR('Tabel 2 ØJ'!G151/'Tabel 1 ØJ'!E149*100,"-")) -> - | I151: =IF(OR('Tabel 1 ØJ'!G149<5,'Tabel 2 ØJ'!I151<0.5),"-",IFERROR('Tabel 2 ØJ'!I151/'Tabel 1 ØJ'!G149*100,"-")) -> - | J151: =IF(OR('Tabel 1 ØJ'!G149<5,'Tabel 2 ØJ'!J151<0.5),"-",IFERROR('Tabel 2 ØJ'!J151/'Tabel 1 ØJ'!G149*100,"-")) -> -
A152: Bac. Hum. | C152: =IF(OR('Tabel 1 ØJ'!C150<5,'Tabel 2 ØJ'!C152<0.5),"-",IFERROR('Tabel 2 ØJ'!C152/'Tabel 1 ØJ'!C150*100,"-")) -> 8.333333333 | D152: =IF(OR('Tabel 1 ØJ'!C150<5,'Tabel 2 ØJ'!D152<0.5),"-",IFERROR('Tabel 2 ØJ'!D152/'Tabel 1 ØJ'!C150*100,"-")) -> 8.331774049 | F152: =IF(OR('Tabel 1 ØJ'!E150<5,'Tabel 2 ØJ'!F152<0.5),"-",IFERROR('Tabel 2 ØJ'!F152/'Tabel 1 ØJ'!E150*100,"-")) -> 15.78947368 | G152: =IF(OR('Tabel 1 ØJ'!E150<5,'Tabel 2 ØJ'!G152<0.5),"-",IFERROR('Tabel 2 ØJ'!G152/'Tabel 1 ØJ'!E150*100,"-")) -> 15.26128675 | I152: =IF(OR('Tabel 1 ØJ'!G150<5,'Tabel 2 ØJ'!I152<0.5),"-",IFERROR('Tabel 2 ØJ'!I152/'Tabel 1 ØJ'!G150*100,"-")) -> 12.90322581 | J152: =IF(OR('Tabel 1 ØJ'!G150<5,'Tabel 2 ØJ'!J152<0.5),"-",IFERROR('Tabel 2 ØJ'!J152/'Tabel 1 ØJ'!G150*100,"-")) -> 12.57889474
A153: Bac. Nat. | C153: =IF(OR('Tabel 1 ØJ'!C151<5,'Tabel 2 ØJ'!C153<0.5),"-",IFERROR('Tabel 2 ØJ'!C153/'Tabel 1 ØJ'!C151*100,"-")) -> 10 | D153: =IF(OR('Tabel 1 ØJ'!C151<5,'Tabel 2 ØJ'!D153<0.5),"-",IFERROR('Tabel 2 ØJ'!D153/'Tabel 1 ØJ'!C151*100,"-")) -> 9.998128859 | F153: =IF(OR('Tabel 1 ØJ'!E151<5,'Tabel 2 ØJ'!F153<0.5),"-",IFERROR('Tabel 2 ØJ'!F153/'Tabel 1 ØJ'!E151*100,"-")) -> - | G153: =IF(OR('Tabel 1 ØJ'!E151<5,'Tabel 2 ØJ'!G153<0.5),"-",IFERROR('Tabel 2 ØJ'!G153/'Tabel 1 ØJ'!E151*100,"-")) -> - | I153: =IF(OR('Tabel 1 ØJ'!G151<5,'Tabel 2 ØJ'!I153<0.5),"-",IFERROR('Tabel 2 ØJ'!I153/'Tabel 1 ØJ'!G151*100,"-")) -> 4 | J153: =IF(OR('Tabel 1 ØJ'!G151<5,'Tabel 2 ØJ'!J153<0.5),"-",IFERROR('Tabel 2 ØJ'!J153/'Tabel 1 ØJ'!G151*100,"-")) -> 3.999251544
A154: Andre | C154: =IF(OR('Tabel 1 ØJ'!C152<5,'Tabel 2 ØJ'!C154<0.5),"-",IFERROR('Tabel 2 ØJ'!C154/'Tabel 1 ØJ'!C152*100,"-")) -> 9.615384615 | D154: =IF(OR('Tabel 1 ØJ'!C152<5,'Tabel 2 ØJ'!D154<0.5),"-",IFERROR('Tabel 2 ØJ'!D154/'Tabel 1 ØJ'!C152*100,"-")) -> 9.133805756 | F154: =IF(OR('Tabel 1 ØJ'!E152<5,'Tabel 2 ØJ'!F154<0.5),"-",IFERROR('Tabel 2 ØJ'!F154/'Tabel 1 ØJ'!E152*100,"-")) -> 4.901960784 | G154: =IF(OR('Tabel 1 ØJ'!E152<5,'Tabel 2 ØJ'!G154<0.5),"-",IFERROR('Tabel 2 ØJ'!G154/'Tabel 1 ØJ'!E152*100,"-")) -> 4.414302364 | I154: =IF(OR('Tabel 1 ØJ'!G152<5,'Tabel 2 ØJ'!I154<0.5),"-",IFERROR('Tabel 2 ØJ'!I154/'Tabel 1 ØJ'!G152*100,"-")) -> 6.493506494 | J154: =IF(OR('Tabel 1 ØJ'!G152<5,'Tabel 2 ØJ'!J154<0.5),"-",IFERROR('Tabel 2 ØJ'!J154/'Tabel 1 ØJ'!G152*100,"-")) -> 6.007900912
A156: Total | C156: =IF(OR('Tabel 1 ØJ'!C154<5,'Tabel 2 ØJ'!C156<0.5),"-",IFERROR('Tabel 2 ØJ'!C156/'Tabel 1 ØJ'!C154*100,"-")) -> 5.344418052 | D156: =IF(OR('Tabel 1 ØJ'!C154<5,'Tabel 2 ØJ'!D156<0.5),"-",IFERROR('Tabel 2 ØJ'!D156/'Tabel 1 ØJ'!C154*100,"-")) -> 4.836987786 | F156: =IF(OR('Tabel 1 ØJ'!E154<5,'Tabel 2 ØJ'!F156<0.5),"-",IFERROR('Tabel 2 ØJ'!F156/'Tabel 1 ØJ'!E154*100,"-")) -> 3.986135182 | G156: =IF(OR('Tabel 1 ØJ'!E154<5,'Tabel 2 ØJ'!G156<0.5),"-",IFERROR('Tabel 2 ØJ'!G156/'Tabel 1 ØJ'!E154*100,"-")) -> 3.447035492 | I156: =IF(OR('Tabel 1 ØJ'!G154<5,'Tabel 2 ØJ'!I156<0.5),"-",IFERROR('Tabel 2 ØJ'!I156/'Tabel 1 ØJ'!G154*100,"-")) -> 4.430625729 | J156: =IF(OR('Tabel 1 ØJ'!G154<5,'Tabel 2 ØJ'!J156<0.5),"-",IFERROR('Tabel 2 ØJ'!J156/'Tabel 1 ØJ'!G154*100,"-")) -> 3.901889682
A158: Ingeniører i alt | C158: =IF(OR('Tabel 1 ØJ'!C156<5,'Tabel 2 ØJ'!C158<0.5),"-",IFERROR('Tabel 2 ØJ'!C158/'Tabel 1 ØJ'!C156*100,"-")) -> 8.064516129 | D158: =IF(OR('Tabel 1 ØJ'!C156<5,'Tabel 2 ØJ'!D158<0.5),"-",IFERROR('Tabel 2 ØJ'!D158/'Tabel 1 ØJ'!C156*100,"-")) -> 7.06405941 | F158: =IF(OR('Tabel 1 ØJ'!E156<5,'Tabel 2 ØJ'!F158<0.5),"-",IFERROR('Tabel 2 ØJ'!F158/'Tabel 1 ØJ'!E156*100,"-")) -> 2.352941176 | G158: =IF(OR('Tabel 1 ØJ'!E156<5,'Tabel 2 ØJ'!G158<0.5),"-",IFERROR('Tabel 2 ØJ'!G158/'Tabel 1 ØJ'!E156*100,"-")) -> 1.700903651 | I158: =IF(OR('Tabel 1 ØJ'!G156<5,'Tabel 2 ØJ'!I158<0.5),"-",IFERROR('Tabel 2 ØJ'!I158/'Tabel 1 ØJ'!G156*100,"-")) -> 4.761904762 | J158: =IF(OR('Tabel 1 ØJ'!G156<5,'Tabel 2 ØJ'!J158<0.5),"-",IFERROR('Tabel 2 ØJ'!J158/'Tabel 1 ØJ'!G156*100,"-")) -> 3.962914923
A159: Magistre i alt | C159: =IF(OR('Tabel 1 ØJ'!C157<5,'Tabel 2 ØJ'!C159<0.5),"-",IFERROR('Tabel 2 ØJ'!C159/'Tabel 1 ØJ'!C157*100,"-")) -> 7.407407407 | D159: =IF(OR('Tabel 1 ØJ'!C157<5,'Tabel 2 ØJ'!D159<0.5),"-",IFERROR('Tabel 2 ØJ'!D159/'Tabel 1 ØJ'!C157*100,"-")) -> 6.813988477 | F159: =IF(OR('Tabel 1 ØJ'!E157<5,'Tabel 2 ØJ'!F159<0.5),"-",IFERROR('Tabel 2 ØJ'!F159/'Tabel 1 ØJ'!E157*100,"-")) -> 6.485355649 | G159: =IF(OR('Tabel 1 ØJ'!E157<5,'Tabel 2 ØJ'!G159<0.5),"-",IFERROR('Tabel 2 ØJ'!G159/'Tabel 1 ØJ'!E157*100,"-")) -> 5.444576001 | I159: =IF(OR('Tabel 1 ØJ'!G157<5,'Tabel 2 ØJ'!I159<0.5),"-",IFERROR('Tabel 2 ØJ'!I159/'Tabel 1 ØJ'!G157*100,"-")) -> 6.746626687 | J159: =IF(OR('Tabel 1 ØJ'!G157<5,'Tabel 2 ØJ'!J159<0.5),"-",IFERROR('Tabel 2 ØJ'!J159/'Tabel 1 ØJ'!G157*100,"-")) -> 5.832610421
A160: DJØF'ere i alt | C160: =IF(OR('Tabel 1 ØJ'!C158<5,'Tabel 2 ØJ'!C160<0.5),"-",IFERROR('Tabel 2 ØJ'!C160/'Tabel 1 ØJ'!C158*100,"-")) -> 8.208955224 | D160: =IF(OR('Tabel 1 ØJ'!C158<5,'Tabel 2 ØJ'!D160<0.5),"-",IFERROR('Tabel 2 ØJ'!D160/'Tabel 1 ØJ'!C158*100,"-")) -> 7.059600023 | F160: =IF(OR('Tabel 1 ØJ'!E158<5,'Tabel 2 ØJ'!F160<0.5),"-",IFERROR('Tabel 2 ØJ'!F160/'Tabel 1 ØJ'!E158*100,"-")) -> 2.572347267 | G160: =IF(OR('Tabel 1 ØJ'!E158<5,'Tabel 2 ØJ'!G160<0.5),"-",IFERROR('Tabel 2 ØJ'!G160/'Tabel 1 ØJ'!E158*100,"-")) -> 2.056850992 | I160: =IF(OR('Tabel 1 ØJ'!G158<5,'Tabel 2 ØJ'!I160<0.5),"-",IFERROR('Tabel 2 ØJ'!I160/'Tabel 1 ØJ'!G158*100,"-")) -> 4.269662921 | J160: =IF(OR('Tabel 1 ØJ'!G158<5,'Tabel 2 ØJ'!J160<0.5),"-",IFERROR('Tabel 2 ØJ'!J160/'Tabel 1 ØJ'!G158*100,"-")) -> 3.563296768
A165: Norddjurs
C167: Mænd | F167: Kvinder | I167: I alt
C168: Ledigheds- berørte | D168: Gns. brutto- ledighed | F168: Ledigheds- berørte | G168: Gns. brutto- ledighed | I168: Ledigheds- berørte | J168: Gns. brutto- ledighed
A171: Civ. ing. | C171: =IF(OR('Tabel 1 ØJ'!C169<5,'Tabel 2 ØJ'!C171<0.5),"-",IFERROR('Tabel 2 ØJ'!C171/'Tabel 1 ØJ'!C169*100,"-")) -> - | D171: =IF(OR('Tabel 1 ØJ'!C169<5,'Tabel 2 ØJ'!D171<0.5),"-",IFERROR('Tabel 2 ØJ'!D171/'Tabel 1 ØJ'!C169*100,"-")) -> - | F171: =IF(OR('Tabel 1 ØJ'!E169<5,'Tabel 2 ØJ'!F171<0.5),"-",IFERROR('Tabel 2 ØJ'!F171/'Tabel 1 ØJ'!E169*100,"-")) -> - | G171: =IF(OR('Tabel 1 ØJ'!E169<5,'Tabel 2 ØJ'!G171<0.5),"-",IFERROR('Tabel 2 ØJ'!G171/'Tabel 1 ØJ'!E169*100,"-")) -> - | I171: =IF(OR('Tabel 1 ØJ'!G169<5,'Tabel 2 ØJ'!I171<0.5),"-",IFERROR('Tabel 2 ØJ'!I171/'Tabel 1 ØJ'!G169*100,"-")) -> - | J171: =IF(OR('Tabel 1 ØJ'!G169<5,'Tabel 2 ØJ'!J171<0.5),"-",IFERROR('Tabel 2 ØJ'!J171/'Tabel 1 ØJ'!G169*100,"-")) -> -
A172: Diplom ing. | C172: =IF(OR('Tabel 1 ØJ'!C170<5,'Tabel 2 ØJ'!C172<0.5),"-",IFERROR('Tabel 2 ØJ'!C172/'Tabel 1 ØJ'!C170*100,"-")) -> 1.351351351 | D172: =IF(OR('Tabel 1 ØJ'!C170<5,'Tabel 2 ØJ'!D172<0.5),"-",IFERROR('Tabel 2 ØJ'!D172/'Tabel 1 ØJ'!C170*100,"-")) -> 1.351098494 | F172: =IF(OR('Tabel 1 ØJ'!E170<5,'Tabel 2 ØJ'!F172<0.5),"-",IFERROR('Tabel 2 ØJ'!F172/'Tabel 1 ØJ'!E170*100,"-")) -> - | G172: =IF(OR('Tabel 1 ØJ'!E170<5,'Tabel 2 ØJ'!G172<0.5),"-",IFERROR('Tabel 2 ØJ'!G172/'Tabel 1 ØJ'!E170*100,"-")) -> - | I172: =IF(OR('Tabel 1 ØJ'!G170<5,'Tabel 2 ØJ'!I172<0.5),"-",IFERROR('Tabel 2 ØJ'!I172/'Tabel 1 ØJ'!G170*100,"-")) -> 0.5882352941 | J172: =IF(OR('Tabel 1 ØJ'!G170<5,'Tabel 2 ØJ'!J172<0.5),"-",IFERROR('Tabel 2 ØJ'!J172/'Tabel 1 ØJ'!G170*100,"-")) -> 0.588125227
A173: Cand. Scient. Tek. | C173: =IF(OR('Tabel 1 ØJ'!C171<5,'Tabel 2 ØJ'!C173<0.5),"-",IFERROR('Tabel 2 ØJ'!C173/'Tabel 1 ØJ'!C171*100,"-")) -> 8.333333333 | D173: =IF(OR('Tabel 1 ØJ'!C171<5,'Tabel 2 ØJ'!D173<0.5),"-",IFERROR('Tabel 2 ØJ'!D173/'Tabel 1 ØJ'!C171*100,"-")) -> 8.331774049 | F173: =IF(OR('Tabel 1 ØJ'!E171<5,'Tabel 2 ØJ'!F173<0.5),"-",IFERROR('Tabel 2 ØJ'!F173/'Tabel 1 ØJ'!E171*100,"-")) -> - | G173: =IF(OR('Tabel 1 ØJ'!E171<5,'Tabel 2 ØJ'!G173<0.5),"-",IFERROR('Tabel 2 ØJ'!G173/'Tabel 1 ØJ'!E171*100,"-")) -> - | I173: =IF(OR('Tabel 1 ØJ'!G171<5,'Tabel 2 ØJ'!I173<0.5),"-",IFERROR('Tabel 2 ØJ'!I173/'Tabel 1 ØJ'!G171*100,"-")) -> 3.333333333 | J173: =IF(OR('Tabel 1 ØJ'!G171<5,'Tabel 2 ØJ'!J173<0.5),"-",IFERROR('Tabel 2 ØJ'!J173/'Tabel 1 ØJ'!G171*100,"-")) -> 3.33270962
A174: MA. Hum. | C174: =IF(OR('Tabel 1 ØJ'!C172<5,'Tabel 2 ØJ'!C174<0.5),"-",IFERROR('Tabel 2 ØJ'!C174/'Tabel 1 ØJ'!C172*100,"-")) -> 4 | D174: =IF(OR('Tabel 1 ØJ'!C172<5,'Tabel 2 ØJ'!D174<0.5),"-",IFERROR('Tabel 2 ØJ'!D174/'Tabel 1 ØJ'!C172*100,"-")) -> 3.999251544 | F174: =IF(OR('Tabel 1 ØJ'!E172<5,'Tabel 2 ØJ'!F174<0.5),"-",IFERROR('Tabel 2 ØJ'!F174/'Tabel 1 ØJ'!E172*100,"-")) -> 2.739726027 | G174: =IF(OR('Tabel 1 ØJ'!E172<5,'Tabel 2 ØJ'!G174<0.5),"-",IFERROR('Tabel 2 ØJ'!G174/'Tabel 1 ØJ'!E172*100,"-")) -> 1.855761533 | I174: =IF(OR('Tabel 1 ØJ'!G172<5,'Tabel 2 ØJ'!I174<0.5),"-",IFERROR('Tabel 2 ØJ'!I174/'Tabel 1 ØJ'!G172*100,"-")) -> 3.06122449 | J174: =IF(OR('Tabel 1 ØJ'!G172<5,'Tabel 2 ØJ'!J174<0.5),"-",IFERROR('Tabel 2 ØJ'!J174/'Tabel 1 ØJ'!G172*100,"-")) -> 2.402570209
A175: MA. Nat. | C175: =IF(OR('Tabel 1 ØJ'!C173<5,'Tabel 2 ØJ'!C175<0.5),"-",IFERROR('Tabel 2 ØJ'!C175/'Tabel 1 ØJ'!C173*100,"-")) -> 5.555555556 | D175: =IF(OR('Tabel 1 ØJ'!C173<5,'Tabel 2 ØJ'!D175<0.5),"-",IFERROR('Tabel 2 ØJ'!D175/'Tabel 1 ØJ'!C173*100,"-")) -> 5.554516033 | F175: =IF(OR('Tabel 1 ØJ'!E173<5,'Tabel 2 ØJ'!F175<0.5),"-",IFERROR('Tabel 2 ØJ'!F175/'Tabel 1 ØJ'!E173*100,"-")) -> 6.25 | G175: =IF(OR('Tabel 1 ØJ'!E173<5,'Tabel 2 ØJ'!G175<0.5),"-",IFERROR('Tabel 2 ØJ'!G175/'Tabel 1 ØJ'!E173*100,"-")) -> 4.611582361 | I175: =IF(OR('Tabel 1 ØJ'!G173<5,'Tabel 2 ØJ'!I175<0.5),"-",IFERROR('Tabel 2 ØJ'!I175/'Tabel 1 ØJ'!G173*100,"-")) -> 6 | J175: =IF(OR('Tabel 1 ØJ'!G173<5,'Tabel 2 ØJ'!J175<0.5),"-",IFERROR('Tabel 2 ØJ'!J175/'Tabel 1 ØJ'!G173*100,"-")) -> 4.951038483
A176: MA. Ph.d. | C176: =IF(OR('Tabel 1 ØJ'!C174<5,'Tabel 2 ØJ'!C176<0.5),"-",IFERROR('Tabel 2 ØJ'!C176/'Tabel 1 ØJ'!C174*100,"-")) -> - | D176: =IF(OR('Tabel 1 ØJ'!C174<5,'Tabel 2 ØJ'!D176<0.5),"-",IFERROR('Tabel 2 ØJ'!D176/'Tabel 1 ØJ'!C174*100,"-")) -> - | F176: =IF(OR('Tabel 1 ØJ'!E174<5,'Tabel 2 ØJ'!F176<0.5),"-",IFERROR('Tabel 2 ØJ'!F176/'Tabel 1 ØJ'!E174*100,"-")) -> - | G176: =IF(OR('Tabel 1 ØJ'!E174<5,'Tabel 2 ØJ'!G176<0.5),"-",IFERROR('Tabel 2 ØJ'!G176/'Tabel 1 ØJ'!E174*100,"-")) -> - | I176: =IF(OR('Tabel 1 ØJ'!G174<5,'Tabel 2 ØJ'!I176<0.5),"-",IFERROR('Tabel 2 ØJ'!I176/'Tabel 1 ØJ'!G174*100,"-")) -> 9.090909091 | J176: =IF(OR('Tabel 1 ØJ'!G174<5,'Tabel 2 ØJ'!J176<0.5),"-",IFERROR('Tabel 2 ØJ'!J176/'Tabel 1 ØJ'!G174*100,"-")) -> 9.089208054
A177: MA. Samf. | C177: =IF(OR('Tabel 1 ØJ'!C175<5,'Tabel 2 ØJ'!C177<0.5),"-",IFERROR('Tabel 2 ØJ'!C177/'Tabel 1 ØJ'!C175*100,"-")) -> - | D177: =IF(OR('Tabel 1 ØJ'!C175<5,'Tabel 2 ØJ'!D177<0.5),"-",IFERROR('Tabel 2 ØJ'!D177/'Tabel 1 ØJ'!C175*100,"-")) -> - | F177: =IF(OR('Tabel 1 ØJ'!E175<5,'Tabel 2 ØJ'!F177<0.5),"-",IFERROR('Tabel 2 ØJ'!F177/'Tabel 1 ØJ'!E175*100,"-")) -> - | G177: =IF(OR('Tabel 1 ØJ'!E175<5,'Tabel 2 ØJ'!G177<0.5),"-",IFERROR('Tabel 2 ØJ'!G177/'Tabel 1 ØJ'!E175*100,"-")) -> - | I177: =IF(OR('Tabel 1 ØJ'!G175<5,'Tabel 2 ØJ'!I177<0.5),"-",IFERROR('Tabel 2 ØJ'!I177/'Tabel 1 ØJ'!G175*100,"-")) -> - | J177: =IF(OR('Tabel 1 ØJ'!G175<5,'Tabel 2 ØJ'!J177<0.5),"-",IFERROR('Tabel 2 ØJ'!J177/'Tabel 1 ØJ'!G175*100,"-")) -> -
A178: Øvrige Mag. | C178: =IF(OR('Tabel 1 ØJ'!C176<5,'Tabel 2 ØJ'!C178<0.5),"-",IFERROR('Tabel 2 ØJ'!C178/'Tabel 1 ØJ'!C176*100,"-")) -> - | D178: =IF(OR('Tabel 1 ØJ'!C176<5,'Tabel 2 ØJ'!D178<0.5),"-",IFERROR('Tabel 2 ØJ'!D178/'Tabel 1 ØJ'!C176*100,"-")) -> - | F178: =IF(OR('Tabel 1 ØJ'!E176<5,'Tabel 2 ØJ'!F178<0.5),"-",IFERROR('Tabel 2 ØJ'!F178/'Tabel 1 ØJ'!E176*100,"-")) -> 20 | G178: =IF(OR('Tabel 1 ØJ'!E176<5,'Tabel 2 ØJ'!G178<0.5),"-",IFERROR('Tabel 2 ØJ'!G178/'Tabel 1 ØJ'!E176*100,"-")) -> 19.99625772 | I178: =IF(OR('Tabel 1 ØJ'!G176<5,'Tabel 2 ØJ'!I178<0.5),"-",IFERROR('Tabel 2 ØJ'!I178/'Tabel 1 ØJ'!G176*100,"-")) -> 16.66666667 | J178: =IF(OR('Tabel 1 ØJ'!G176<5,'Tabel 2 ØJ'!J178<0.5),"-",IFERROR('Tabel 2 ØJ'!J178/'Tabel 1 ØJ'!G176*100,"-")) -> 16.6635481
A179: Agronom | C179: =IF(OR('Tabel 1 ØJ'!C177<5,'Tabel 2 ØJ'!C179<0.5),"-",IFERROR('Tabel 2 ØJ'!C179/'Tabel 1 ØJ'!C177*100,"-")) -> - | D179: =IF(OR('Tabel 1 ØJ'!C177<5,'Tabel 2 ØJ'!D179<0.5),"-",IFERROR('Tabel 2 ØJ'!D179/'Tabel 1 ØJ'!C177*100,"-")) -> - | F179: =IF(OR('Tabel 1 ØJ'!E177<5,'Tabel 2 ØJ'!F179<0.5),"-",IFERROR('Tabel 2 ØJ'!F179/'Tabel 1 ØJ'!E177*100,"-")) -> - | G179: =IF(OR('Tabel 1 ØJ'!E177<5,'Tabel 2 ØJ'!G179<0.5),"-",IFERROR('Tabel 2 ØJ'!G179/'Tabel 1 ØJ'!E177*100,"-")) -> - | I179: =IF(OR('Tabel 1 ØJ'!G177<5,'Tabel 2 ØJ'!I179<0.5),"-",IFERROR('Tabel 2 ØJ'!I179/'Tabel 1 ØJ'!G177*100,"-")) -> - | J179: =IF(OR('Tabel 1 ØJ'!G177<5,'Tabel 2 ØJ'!J179<0.5),"-",IFERROR('Tabel 2 ØJ'!J179/'Tabel 1 ØJ'!G177*100,"-")) -> -
A180: Landsk. Arkt. | C180: =IF(OR('Tabel 1 ØJ'!C178<5,'Tabel 2 ØJ'!C180<0.5),"-",IFERROR('Tabel 2 ØJ'!C180/'Tabel 1 ØJ'!C178*100,"-")) -> - | D180: =IF(OR('Tabel 1 ØJ'!C178<5,'Tabel 2 ØJ'!D180<0.5),"-",IFERROR('Tabel 2 ØJ'!D180/'Tabel 1 ØJ'!C178*100,"-")) -> - | F180: =IF(OR('Tabel 1 ØJ'!E178<5,'Tabel 2 ØJ'!F180<0.5),"-",IFERROR('Tabel 2 ØJ'!F180/'Tabel 1 ØJ'!E178*100,"-")) -> - | G180: =IF(OR('Tabel 1 ØJ'!E178<5,'Tabel 2 ØJ'!G180<0.5),"-",IFERROR('Tabel 2 ØJ'!G180/'Tabel 1 ØJ'!E178*100,"-")) -> - | I180: =IF(OR('Tabel 1 ØJ'!G178<5,'Tabel 2 ØJ'!I180<0.5),"-",IFERROR('Tabel 2 ØJ'!I180/'Tabel 1 ØJ'!G178*100,"-")) -> - | J180: =IF(OR('Tabel 1 ØJ'!G178<5,'Tabel 2 ØJ'!J180<0.5),"-",IFERROR('Tabel 2 ØJ'!J180/'Tabel 1 ØJ'!G178*100,"-")) -> -
A181: Hortonom | C181: =IF(OR('Tabel 1 ØJ'!C179<5,'Tabel 2 ØJ'!C181<0.5),"-",IFERROR('Tabel 2 ØJ'!C181/'Tabel 1 ØJ'!C179*100,"-")) -> - | D181: =IF(OR('Tabel 1 ØJ'!C179<5,'Tabel 2 ØJ'!D181<0.5),"-",IFERROR('Tabel 2 ØJ'!D181/'Tabel 1 ØJ'!C179*100,"-")) -> - | F181: =IF(OR('Tabel 1 ØJ'!E179<5,'Tabel 2 ØJ'!F181<0.5),"-",IFERROR('Tabel 2 ØJ'!F181/'Tabel 1 ØJ'!E179*100,"-")) -> - | G181: =IF(OR('Tabel 1 ØJ'!E179<5,'Tabel 2 ØJ'!G181<0.5),"-",IFERROR('Tabel 2 ØJ'!G181/'Tabel 1 ØJ'!E179*100,"-")) -> - | I181: =IF(OR('Tabel 1 ØJ'!G179<5,'Tabel 2 ØJ'!I181<0.5),"-",IFERROR('Tabel 2 ØJ'!I181/'Tabel 1 ØJ'!G179*100,"-")) -> - | J181: =IF(OR('Tabel 1 ØJ'!G179<5,'Tabel 2 ØJ'!J181<0.5),"-",IFERROR('Tabel 2 ØJ'!J181/'Tabel 1 ØJ'!G179*100,"-")) -> -
A182: Forstkand. | C182: =IF(OR('Tabel 1 ØJ'!C180<5,'Tabel 2 ØJ'!C182<0.5),"-",IFERROR('Tabel 2 ØJ'!C182/'Tabel 1 ØJ'!C180*100,"-")) -> - | D182: =IF(OR('Tabel 1 ØJ'!C180<5,'Tabel 2 ØJ'!D182<0.5),"-",IFERROR('Tabel 2 ØJ'!D182/'Tabel 1 ØJ'!C180*100,"-")) -> - | F182: =IF(OR('Tabel 1 ØJ'!E180<5,'Tabel 2 ØJ'!F182<0.5),"-",IFERROR('Tabel 2 ØJ'!F182/'Tabel 1 ØJ'!E180*100,"-")) -> - | G182: =IF(OR('Tabel 1 ØJ'!E180<5,'Tabel 2 ØJ'!G182<0.5),"-",IFERROR('Tabel 2 ØJ'!G182/'Tabel 1 ØJ'!E180*100,"-")) -> - | I182: =IF(OR('Tabel 1 ØJ'!G180<5,'Tabel 2 ØJ'!I182<0.5),"-",IFERROR('Tabel 2 ØJ'!I182/'Tabel 1 ØJ'!G180*100,"-")) -> - | J182: =IF(OR('Tabel 1 ØJ'!G180<5,'Tabel 2 ØJ'!J182<0.5),"-",IFERROR('Tabel 2 ØJ'!J182/'Tabel 1 ØJ'!G180*100,"-")) -> -
A183: Jordbrugsakad. | C183: =IF(OR('Tabel 1 ØJ'!C181<5,'Tabel 2 ØJ'!C183<0.5),"-",IFERROR('Tabel 2 ØJ'!C183/'Tabel 1 ØJ'!C181*100,"-")) -> - | D183: =IF(OR('Tabel 1 ØJ'!C181<5,'Tabel 2 ØJ'!D183<0.5),"-",IFERROR('Tabel 2 ØJ'!D183/'Tabel 1 ØJ'!C181*100,"-")) -> - | F183: =IF(OR('Tabel 1 ØJ'!E181<5,'Tabel 2 ØJ'!F183<0.5),"-",IFERROR('Tabel 2 ØJ'!F183/'Tabel 1 ØJ'!E181*100,"-")) -> - | G183: =IF(OR('Tabel 1 ØJ'!E181<5,'Tabel 2 ØJ'!G183<0.5),"-",IFERROR('Tabel 2 ØJ'!G183/'Tabel 1 ØJ'!E181*100,"-")) -> - | I183: =IF(OR('Tabel 1 ØJ'!G181<5,'Tabel 2 ØJ'!I183<0.5),"-",IFERROR('Tabel 2 ØJ'!I183/'Tabel 1 ØJ'!G181*100,"-")) -> - | J183: =IF(OR('Tabel 1 ØJ'!G181<5,'Tabel 2 ØJ'!J183<0.5),"-",IFERROR('Tabel 2 ØJ'!J183/'Tabel 1 ØJ'!G181*100,"-")) -> -
A184: Mejeriing. | C184: =IF(OR('Tabel 1 ØJ'!C182<5,'Tabel 2 ØJ'!C184<0.5),"-",IFERROR('Tabel 2 ØJ'!C184/'Tabel 1 ØJ'!C182*100,"-")) -> - | D184: =IF(OR('Tabel 1 ØJ'!C182<5,'Tabel 2 ØJ'!D184<0.5),"-",IFERROR('Tabel 2 ØJ'!D184/'Tabel 1 ØJ'!C182*100,"-")) -> - | F184: =IF(OR('Tabel 1 ØJ'!E182<5,'Tabel 2 ØJ'!F184<0.5),"-",IFERROR('Tabel 2 ØJ'!F184/'Tabel 1 ØJ'!E182*100,"-")) -> - | G184: =IF(OR('Tabel 1 ØJ'!E182<5,'Tabel 2 ØJ'!G184<0.5),"-",IFERROR('Tabel 2 ØJ'!G184/'Tabel 1 ØJ'!E182*100,"-")) -> - | I184: =IF(OR('Tabel 1 ØJ'!G182<5,'Tabel 2 ØJ'!I184<0.5),"-",IFERROR('Tabel 2 ØJ'!I184/'Tabel 1 ØJ'!G182*100,"-")) -> - | J184: =IF(OR('Tabel 1 ØJ'!G182<5,'Tabel 2 ØJ'!J184<0.5),"-",IFERROR('Tabel 2 ØJ'!J184/'Tabel 1 ØJ'!G182*100,"-")) -> -
A185: Levn.m.kand. | C185: =IF(OR('Tabel 1 ØJ'!C183<5,'Tabel 2 ØJ'!C185<0.5),"-",IFERROR('Tabel 2 ØJ'!C185/'Tabel 1 ØJ'!C183*100,"-")) -> - | D185: =IF(OR('Tabel 1 ØJ'!C183<5,'Tabel 2 ØJ'!D185<0.5),"-",IFERROR('Tabel 2 ØJ'!D185/'Tabel 1 ØJ'!C183*100,"-")) -> - | F185: =IF(OR('Tabel 1 ØJ'!E183<5,'Tabel 2 ØJ'!F185<0.5),"-",IFERROR('Tabel 2 ØJ'!F185/'Tabel 1 ØJ'!E183*100,"-")) -> - | G185: =IF(OR('Tabel 1 ØJ'!E183<5,'Tabel 2 ØJ'!G185<0.5),"-",IFERROR('Tabel 2 ØJ'!G185/'Tabel 1 ØJ'!E183*100,"-")) -> - | I185: =IF(OR('Tabel 1 ØJ'!G183<5,'Tabel 2 ØJ'!I185<0.5),"-",IFERROR('Tabel 2 ØJ'!I185/'Tabel 1 ØJ'!G183*100,"-")) -> - | J185: =IF(OR('Tabel 1 ØJ'!G183<5,'Tabel 2 ØJ'!J185<0.5),"-",IFERROR('Tabel 2 ØJ'!J185/'Tabel 1 ØJ'!G183*100,"-")) -> -
A186: Dyrlæge | C186: =IF(OR('Tabel 1 ØJ'!C184<5,'Tabel 2 ØJ'!C186<0.5),"-",IFERROR('Tabel 2 ØJ'!C186/'Tabel 1 ØJ'!C184*100,"-")) -> - | D186: =IF(OR('Tabel 1 ØJ'!C184<5,'Tabel 2 ØJ'!D186<0.5),"-",IFERROR('Tabel 2 ØJ'!D186/'Tabel 1 ØJ'!C184*100,"-")) -> - | F186: =IF(OR('Tabel 1 ØJ'!E184<5,'Tabel 2 ØJ'!F186<0.5),"-",IFERROR('Tabel 2 ØJ'!F186/'Tabel 1 ØJ'!E184*100,"-")) -> - | G186: =IF(OR('Tabel 1 ØJ'!E184<5,'Tabel 2 ØJ'!G186<0.5),"-",IFERROR('Tabel 2 ØJ'!G186/'Tabel 1 ØJ'!E184*100,"-")) -> - | I186: =IF(OR('Tabel 1 ØJ'!G184<5,'Tabel 2 ØJ'!I186<0.5),"-",IFERROR('Tabel 2 ØJ'!I186/'Tabel 1 ØJ'!G184*100,"-")) -> - | J186: =IF(OR('Tabel 1 ØJ'!G184<5,'Tabel 2 ØJ'!J186<0.5),"-",IFERROR('Tabel 2 ØJ'!J186/'Tabel 1 ØJ'!G184*100,"-")) -> -
A187: Farmaceut | C187: =IF(OR('Tabel 1 ØJ'!C185<5,'Tabel 2 ØJ'!C187<0.5),"-",IFERROR('Tabel 2 ØJ'!C187/'Tabel 1 ØJ'!C185*100,"-")) -> - | D187: =IF(OR('Tabel 1 ØJ'!C185<5,'Tabel 2 ØJ'!D187<0.5),"-",IFERROR('Tabel 2 ØJ'!D187/'Tabel 1 ØJ'!C185*100,"-")) -> - | F187: =IF(OR('Tabel 1 ØJ'!E185<5,'Tabel 2 ØJ'!F187<0.5),"-",IFERROR('Tabel 2 ØJ'!F187/'Tabel 1 ØJ'!E185*100,"-")) -> - | G187: =IF(OR('Tabel 1 ØJ'!E185<5,'Tabel 2 ØJ'!G187<0.5),"-",IFERROR('Tabel 2 ØJ'!G187/'Tabel 1 ØJ'!E185*100,"-")) -> - | I187: =IF(OR('Tabel 1 ØJ'!G185<5,'Tabel 2 ØJ'!I187<0.5),"-",IFERROR('Tabel 2 ØJ'!I187/'Tabel 1 ØJ'!G185*100,"-")) -> - | J187: =IF(OR('Tabel 1 ØJ'!G185<5,'Tabel 2 ØJ'!J187<0.5),"-",IFERROR('Tabel 2 ØJ'!J187/'Tabel 1 ØJ'!G185*100,"-")) -> -
A188: Læge | C188: =IF(OR('Tabel 1 ØJ'!C186<5,'Tabel 2 ØJ'!C188<0.5),"-",IFERROR('Tabel 2 ØJ'!C188/'Tabel 1 ØJ'!C186*100,"-")) -> - | D188: =IF(OR('Tabel 1 ØJ'!C186<5,'Tabel 2 ØJ'!D188<0.5),"-",IFERROR('Tabel 2 ØJ'!D188/'Tabel 1 ØJ'!C186*100,"-")) -> - | F188: =IF(OR('Tabel 1 ØJ'!E186<5,'Tabel 2 ØJ'!F188<0.5),"-",IFERROR('Tabel 2 ØJ'!F188/'Tabel 1 ØJ'!E186*100,"-")) -> - | G188: =IF(OR('Tabel 1 ØJ'!E186<5,'Tabel 2 ØJ'!G188<0.5),"-",IFERROR('Tabel 2 ØJ'!G188/'Tabel 1 ØJ'!E186*100,"-")) -> - | I188: =IF(OR('Tabel 1 ØJ'!G186<5,'Tabel 2 ØJ'!I188<0.5),"-",IFERROR('Tabel 2 ØJ'!I188/'Tabel 1 ØJ'!G186*100,"-")) -> - | J188: =IF(OR('Tabel 1 ØJ'!G186<5,'Tabel 2 ØJ'!J188<0.5),"-",IFERROR('Tabel 2 ØJ'!J188/'Tabel 1 ØJ'!G186*100,"-")) -> -
A189: Tandlæge | C189: =IF(OR('Tabel 1 ØJ'!C187<5,'Tabel 2 ØJ'!C189<0.5),"-",IFERROR('Tabel 2 ØJ'!C189/'Tabel 1 ØJ'!C187*100,"-")) -> - | D189: =IF(OR('Tabel 1 ØJ'!C187<5,'Tabel 2 ØJ'!D189<0.5),"-",IFERROR('Tabel 2 ØJ'!D189/'Tabel 1 ØJ'!C187*100,"-")) -> - | F189: =IF(OR('Tabel 1 ØJ'!E187<5,'Tabel 2 ØJ'!F189<0.5),"-",IFERROR('Tabel 2 ØJ'!F189/'Tabel 1 ØJ'!E187*100,"-")) -> - | G189: =IF(OR('Tabel 1 ØJ'!E187<5,'Tabel 2 ØJ'!G189<0.5),"-",IFERROR('Tabel 2 ØJ'!G189/'Tabel 1 ØJ'!E187*100,"-")) -> - | I189: =IF(OR('Tabel 1 ØJ'!G187<5,'Tabel 2 ØJ'!I189<0.5),"-",IFERROR('Tabel 2 ØJ'!I189/'Tabel 1 ØJ'!G187*100,"-")) -> - | J189: =IF(OR('Tabel 1 ØJ'!G187<5,'Tabel 2 ØJ'!J189<0.5),"-",IFERROR('Tabel 2 ØJ'!J189/'Tabel 1 ØJ'!G187*100,"-")) -> -
A190: Arkitekt | C190: =IF(OR('Tabel 1 ØJ'!C188<5,'Tabel 2 ØJ'!C190<0.5),"-",IFERROR('Tabel 2 ØJ'!C190/'Tabel 1 ØJ'!C188*100,"-")) -> - | D190: =IF(OR('Tabel 1 ØJ'!C188<5,'Tabel 2 ØJ'!D190<0.5),"-",IFERROR('Tabel 2 ØJ'!D190/'Tabel 1 ØJ'!C188*100,"-")) -> - | F190: =IF(OR('Tabel 1 ØJ'!E188<5,'Tabel 2 ØJ'!F190<0.5),"-",IFERROR('Tabel 2 ØJ'!F190/'Tabel 1 ØJ'!E188*100,"-")) -> 11.11111111 | G190: =IF(OR('Tabel 1 ØJ'!E188<5,'Tabel 2 ØJ'!G190<0.5),"-",IFERROR('Tabel 2 ØJ'!G190/'Tabel 1 ØJ'!E188*100,"-")) -> 8.177578189 | I190: =IF(OR('Tabel 1 ØJ'!G188<5,'Tabel 2 ØJ'!I190<0.5),"-",IFERROR('Tabel 2 ØJ'!I190/'Tabel 1 ØJ'!G188*100,"-")) -> 7.692307692 | J190: =IF(OR('Tabel 1 ØJ'!G188<5,'Tabel 2 ØJ'!J190<0.5),"-",IFERROR('Tabel 2 ØJ'!J190/'Tabel 1 ØJ'!G188*100,"-")) -> 5.661400285
A191: Landinspek. | C191: =IF(OR('Tabel 1 ØJ'!C189<5,'Tabel 2 ØJ'!C191<0.5),"-",IFERROR('Tabel 2 ØJ'!C191/'Tabel 1 ØJ'!C189*100,"-")) -> - | D191: =IF(OR('Tabel 1 ØJ'!C189<5,'Tabel 2 ØJ'!D191<0.5),"-",IFERROR('Tabel 2 ØJ'!D191/'Tabel 1 ØJ'!C189*100,"-")) -> - | F191: =IF(OR('Tabel 1 ØJ'!E189<5,'Tabel 2 ØJ'!F191<0.5),"-",IFERROR('Tabel 2 ØJ'!F191/'Tabel 1 ØJ'!E189*100,"-")) -> - | G191: =IF(OR('Tabel 1 ØJ'!E189<5,'Tabel 2 ØJ'!G191<0.5),"-",IFERROR('Tabel 2 ØJ'!G191/'Tabel 1 ØJ'!E189*100,"-")) -> - | I191: =IF(OR('Tabel 1 ØJ'!G189<5,'Tabel 2 ØJ'!I191<0.5),"-",IFERROR('Tabel 2 ØJ'!I191/'Tabel 1 ØJ'!G189*100,"-")) -> - | J191: =IF(OR('Tabel 1 ØJ'!G189<5,'Tabel 2 ØJ'!J191<0.5),"-",IFERROR('Tabel 2 ØJ'!J191/'Tabel 1 ØJ'!G189*100,"-")) -> -
A192: Bibliotekar | C192: =IF(OR('Tabel 1 ØJ'!C190<5,'Tabel 2 ØJ'!C192<0.5),"-",IFERROR('Tabel 2 ØJ'!C192/'Tabel 1 ØJ'!C190*100,"-")) -> - | D192: =IF(OR('Tabel 1 ØJ'!C190<5,'Tabel 2 ØJ'!D192<0.5),"-",IFERROR('Tabel 2 ØJ'!D192/'Tabel 1 ØJ'!C190*100,"-")) -> - | F192: =IF(OR('Tabel 1 ØJ'!E190<5,'Tabel 2 ØJ'!F192<0.5),"-",IFERROR('Tabel 2 ØJ'!F192/'Tabel 1 ØJ'!E190*100,"-")) -> - | G192: =IF(OR('Tabel 1 ØJ'!E190<5,'Tabel 2 ØJ'!G192<0.5),"-",IFERROR('Tabel 2 ØJ'!G192/'Tabel 1 ØJ'!E190*100,"-")) -> - | I192: =IF(OR('Tabel 1 ØJ'!G190<5,'Tabel 2 ØJ'!I192<0.5),"-",IFERROR('Tabel 2 ØJ'!I192/'Tabel 1 ØJ'!G190*100,"-")) -> - | J192: =IF(OR('Tabel 1 ØJ'!G190<5,'Tabel 2 ØJ'!J192<0.5),"-",IFERROR('Tabel 2 ØJ'!J192/'Tabel 1 ØJ'!G190*100,"-")) -> -
A193: Musikudd. | C193: =IF(OR('Tabel 1 ØJ'!C191<5,'Tabel 2 ØJ'!C193<0.5),"-",IFERROR('Tabel 2 ØJ'!C193/'Tabel 1 ØJ'!C191*100,"-")) -> - | D193: =IF(OR('Tabel 1 ØJ'!C191<5,'Tabel 2 ØJ'!D193<0.5),"-",IFERROR('Tabel 2 ØJ'!D193/'Tabel 1 ØJ'!C191*100,"-")) -> - | F193: =IF(OR('Tabel 1 ØJ'!E191<5,'Tabel 2 ØJ'!F193<0.5),"-",IFERROR('Tabel 2 ØJ'!F193/'Tabel 1 ØJ'!E191*100,"-")) -> - | G193: =IF(OR('Tabel 1 ØJ'!E191<5,'Tabel 2 ØJ'!G193<0.5),"-",IFERROR('Tabel 2 ØJ'!G193/'Tabel 1 ØJ'!E191*100,"-")) -> - | I193: =IF(OR('Tabel 1 ØJ'!G191<5,'Tabel 2 ØJ'!I193<0.5),"-",IFERROR('Tabel 2 ØJ'!I193/'Tabel 1 ØJ'!G191*100,"-")) -> - | J193: =IF(OR('Tabel 1 ØJ'!G191<5,'Tabel 2 ØJ'!J193<0.5),"-",IFERROR('Tabel 2 ØJ'!J193/'Tabel 1 ØJ'!G191*100,"-")) -> -
A194: Teolog | C194: =IF(OR('Tabel 1 ØJ'!C192<5,'Tabel 2 ØJ'!C194<0.5),"-",IFERROR('Tabel 2 ØJ'!C194/'Tabel 1 ØJ'!C192*100,"-")) -> - | D194: =IF(OR('Tabel 1 ØJ'!C192<5,'Tabel 2 ØJ'!D194<0.5),"-",IFERROR('Tabel 2 ØJ'!D194/'Tabel 1 ØJ'!C192*100,"-")) -> - | F194: =IF(OR('Tabel 1 ØJ'!E192<5,'Tabel 2 ØJ'!F194<0.5),"-",IFERROR('Tabel 2 ØJ'!F194/'Tabel 1 ØJ'!E192*100,"-")) -> 8.333333333 | G194: =IF(OR('Tabel 1 ØJ'!E192<5,'Tabel 2 ØJ'!G194<0.5),"-",IFERROR('Tabel 2 ØJ'!G194/'Tabel 1 ØJ'!E192*100,"-")) -> 6.938813697 | I194: =IF(OR('Tabel 1 ØJ'!G192<5,'Tabel 2 ØJ'!I194<0.5),"-",IFERROR('Tabel 2 ØJ'!I194/'Tabel 1 ØJ'!G192*100,"-")) -> 5.882352941 | J194: =IF(OR('Tabel 1 ØJ'!G192<5,'Tabel 2 ØJ'!J194<0.5),"-",IFERROR('Tabel 2 ØJ'!J194/'Tabel 1 ØJ'!G192*100,"-")) -> 4.897986139
A195: Psykolog | C195: =IF(OR('Tabel 1 ØJ'!C193<5,'Tabel 2 ØJ'!C195<0.5),"-",IFERROR('Tabel 2 ØJ'!C195/'Tabel 1 ØJ'!C193*100,"-")) -> - | D195: =IF(OR('Tabel 1 ØJ'!C193<5,'Tabel 2 ØJ'!D195<0.5),"-",IFERROR('Tabel 2 ØJ'!D195/'Tabel 1 ØJ'!C193*100,"-")) -> - | F195: =IF(OR('Tabel 1 ØJ'!E193<5,'Tabel 2 ØJ'!F195<0.5),"-",IFERROR('Tabel 2 ØJ'!F195/'Tabel 1 ØJ'!E193*100,"-")) -> 14.28571429 | G195: =IF(OR('Tabel 1 ØJ'!E193<5,'Tabel 2 ØJ'!G195<0.5),"-",IFERROR('Tabel 2 ØJ'!G195/'Tabel 1 ØJ'!E193*100,"-")) -> 14.28304123 | I195: =IF(OR('Tabel 1 ØJ'!G193<5,'Tabel 2 ØJ'!I195<0.5),"-",IFERROR('Tabel 2 ØJ'!I195/'Tabel 1 ØJ'!G193*100,"-")) -> 13.33333333 | J195: =IF(OR('Tabel 1 ØJ'!G193<5,'Tabel 2 ØJ'!J195<0.5),"-",IFERROR('Tabel 2 ØJ'!J195/'Tabel 1 ØJ'!G193*100,"-")) -> 13.33083848
A196: Jurist | C196: =IF(OR('Tabel 1 ØJ'!C194<5,'Tabel 2 ØJ'!C196<0.5),"-",IFERROR('Tabel 2 ØJ'!C196/'Tabel 1 ØJ'!C194*100,"-")) -> - | D196: =IF(OR('Tabel 1 ØJ'!C194<5,'Tabel 2 ØJ'!D196<0.5),"-",IFERROR('Tabel 2 ØJ'!D196/'Tabel 1 ØJ'!C194*100,"-")) -> - | F196: =IF(OR('Tabel 1 ØJ'!E194<5,'Tabel 2 ØJ'!F196<0.5),"-",IFERROR('Tabel 2 ØJ'!F196/'Tabel 1 ØJ'!E194*100,"-")) -> - | G196: =IF(OR('Tabel 1 ØJ'!E194<5,'Tabel 2 ØJ'!G196<0.5),"-",IFERROR('Tabel 2 ØJ'!G196/'Tabel 1 ØJ'!E194*100,"-")) -> - | I196: =IF(OR('Tabel 1 ØJ'!G194<5,'Tabel 2 ØJ'!I196<0.5),"-",IFERROR('Tabel 2 ØJ'!I196/'Tabel 1 ØJ'!G194*100,"-")) -> - | J196: =IF(OR('Tabel 1 ØJ'!G194<5,'Tabel 2 ØJ'!J196<0.5),"-",IFERROR('Tabel 2 ØJ'!J196/'Tabel 1 ØJ'!G194*100,"-")) -> -
A197: Økonom | C197: =IF(OR('Tabel 1 ØJ'!C195<5,'Tabel 2 ØJ'!C197<0.5),"-",IFERROR('Tabel 2 ØJ'!C197/'Tabel 1 ØJ'!C195*100,"-")) -> - | D197: =IF(OR('Tabel 1 ØJ'!C195<5,'Tabel 2 ØJ'!D197<0.5),"-",IFERROR('Tabel 2 ØJ'!D197/'Tabel 1 ØJ'!C195*100,"-")) -> - | F197: =IF(OR('Tabel 1 ØJ'!E195<5,'Tabel 2 ØJ'!F197<0.5),"-",IFERROR('Tabel 2 ØJ'!F197/'Tabel 1 ØJ'!E195*100,"-")) -> - | G197: =IF(OR('Tabel 1 ØJ'!E195<5,'Tabel 2 ØJ'!G197<0.5),"-",IFERROR('Tabel 2 ØJ'!G197/'Tabel 1 ØJ'!E195*100,"-")) -> - | I197: =IF(OR('Tabel 1 ØJ'!G195<5,'Tabel 2 ØJ'!I197<0.5),"-",IFERROR('Tabel 2 ØJ'!I197/'Tabel 1 ØJ'!G195*100,"-")) -> - | J197: =IF(OR('Tabel 1 ØJ'!G195<5,'Tabel 2 ØJ'!J197<0.5),"-",IFERROR('Tabel 2 ØJ'!J197/'Tabel 1 ØJ'!G195*100,"-")) -> -
A198: Samf. Adm. | C198: =IF(OR('Tabel 1 ØJ'!C196<5,'Tabel 2 ØJ'!C198<0.5),"-",IFERROR('Tabel 2 ØJ'!C198/'Tabel 1 ØJ'!C196*100,"-")) -> 7.692307692 | D198: =IF(OR('Tabel 1 ØJ'!C196<5,'Tabel 2 ØJ'!D198<0.5),"-",IFERROR('Tabel 2 ØJ'!D198/'Tabel 1 ØJ'!C196*100,"-")) -> - | F198: =IF(OR('Tabel 1 ØJ'!E196<5,'Tabel 2 ØJ'!F198<0.5),"-",IFERROR('Tabel 2 ØJ'!F198/'Tabel 1 ØJ'!E196*100,"-")) -> - | G198: =IF(OR('Tabel 1 ØJ'!E196<5,'Tabel 2 ØJ'!G198<0.5),"-",IFERROR('Tabel 2 ØJ'!G198/'Tabel 1 ØJ'!E196*100,"-")) -> - | I198: =IF(OR('Tabel 1 ØJ'!G196<5,'Tabel 2 ØJ'!I198<0.5),"-",IFERROR('Tabel 2 ØJ'!I198/'Tabel 1 ØJ'!G196*100,"-")) -> 3.03030303 | J198: =IF(OR('Tabel 1 ØJ'!G196<5,'Tabel 2 ØJ'!J198<0.5),"-",IFERROR('Tabel 2 ØJ'!J198/'Tabel 1 ØJ'!G196*100,"-")) -> -
A199: Cand. Merc. | C199: =IF(OR('Tabel 1 ØJ'!C197<5,'Tabel 2 ØJ'!C199<0.5),"-",IFERROR('Tabel 2 ØJ'!C199/'Tabel 1 ØJ'!C197*100,"-")) -> - | D199: =IF(OR('Tabel 1 ØJ'!C197<5,'Tabel 2 ØJ'!D199<0.5),"-",IFERROR('Tabel 2 ØJ'!D199/'Tabel 1 ØJ'!C197*100,"-")) -> - | F199: =IF(OR('Tabel 1 ØJ'!E197<5,'Tabel 2 ØJ'!F199<0.5),"-",IFERROR('Tabel 2 ØJ'!F199/'Tabel 1 ØJ'!E197*100,"-")) -> - | G199: =IF(OR('Tabel 1 ØJ'!E197<5,'Tabel 2 ØJ'!G199<0.5),"-",IFERROR('Tabel 2 ØJ'!G199/'Tabel 1 ØJ'!E197*100,"-")) -> - | I199: =IF(OR('Tabel 1 ØJ'!G197<5,'Tabel 2 ØJ'!I199<0.5),"-",IFERROR('Tabel 2 ØJ'!I199/'Tabel 1 ØJ'!G197*100,"-")) -> - | J199: =IF(OR('Tabel 1 ØJ'!G197<5,'Tabel 2 ØJ'!J199<0.5),"-",IFERROR('Tabel 2 ØJ'!J199/'Tabel 1 ØJ'!G197*100,"-")) -> -
A200: HA | C200: =IF(OR('Tabel 1 ØJ'!C198<5,'Tabel 2 ØJ'!C200<0.5),"-",IFERROR('Tabel 2 ØJ'!C200/'Tabel 1 ØJ'!C198*100,"-")) -> - | D200: =IF(OR('Tabel 1 ØJ'!C198<5,'Tabel 2 ØJ'!D200<0.5),"-",IFERROR('Tabel 2 ØJ'!D200/'Tabel 1 ØJ'!C198*100,"-")) -> - | F200: =IF(OR('Tabel 1 ØJ'!E198<5,'Tabel 2 ØJ'!F200<0.5),"-",IFERROR('Tabel 2 ØJ'!F200/'Tabel 1 ØJ'!E198*100,"-")) -> - | G200: =IF(OR('Tabel 1 ØJ'!E198<5,'Tabel 2 ØJ'!G200<0.5),"-",IFERROR('Tabel 2 ØJ'!G200/'Tabel 1 ØJ'!E198*100,"-")) -> - | I200: =IF(OR('Tabel 1 ØJ'!G198<5,'Tabel 2 ØJ'!I200<0.5),"-",IFERROR('Tabel 2 ØJ'!I200/'Tabel 1 ØJ'!G198*100,"-")) -> - | J200: =IF(OR('Tabel 1 ØJ'!G198<5,'Tabel 2 ØJ'!J200<0.5),"-",IFERROR('Tabel 2 ØJ'!J200/'Tabel 1 ØJ'!G198*100,"-")) -> -
A201: HD | C201: =IF(OR('Tabel 1 ØJ'!C199<5,'Tabel 2 ØJ'!C201<0.5),"-",IFERROR('Tabel 2 ØJ'!C201/'Tabel 1 ØJ'!C199*100,"-")) -> - | D201: =IF(OR('Tabel 1 ØJ'!C199<5,'Tabel 2 ØJ'!D201<0.5),"-",IFERROR('Tabel 2 ØJ'!D201/'Tabel 1 ØJ'!C199*100,"-")) -> - | F201: =IF(OR('Tabel 1 ØJ'!E199<5,'Tabel 2 ØJ'!F201<0.5),"-",IFERROR('Tabel 2 ØJ'!F201/'Tabel 1 ØJ'!E199*100,"-")) -> - | G201: =IF(OR('Tabel 1 ØJ'!E199<5,'Tabel 2 ØJ'!G201<0.5),"-",IFERROR('Tabel 2 ØJ'!G201/'Tabel 1 ØJ'!E199*100,"-")) -> - | I201: =IF(OR('Tabel 1 ØJ'!G199<5,'Tabel 2 ØJ'!I201<0.5),"-",IFERROR('Tabel 2 ØJ'!I201/'Tabel 1 ØJ'!G199*100,"-")) -> - | J201: =IF(OR('Tabel 1 ØJ'!G199<5,'Tabel 2 ØJ'!J201<0.5),"-",IFERROR('Tabel 2 ØJ'!J201/'Tabel 1 ØJ'!G199*100,"-")) -> -
A202: Komm. og Sprog | C202: =IF(OR('Tabel 1 ØJ'!C200<5,'Tabel 2 ØJ'!C202<0.5),"-",IFERROR('Tabel 2 ØJ'!C202/'Tabel 1 ØJ'!C200*100,"-")) -> - | D202: =IF(OR('Tabel 1 ØJ'!C200<5,'Tabel 2 ØJ'!D202<0.5),"-",IFERROR('Tabel 2 ØJ'!D202/'Tabel 1 ØJ'!C200*100,"-")) -> - | F202: =IF(OR('Tabel 1 ØJ'!E200<5,'Tabel 2 ØJ'!F202<0.5),"-",IFERROR('Tabel 2 ØJ'!F202/'Tabel 1 ØJ'!E200*100,"-")) -> - | G202: =IF(OR('Tabel 1 ØJ'!E200<5,'Tabel 2 ØJ'!G202<0.5),"-",IFERROR('Tabel 2 ØJ'!G202/'Tabel 1 ØJ'!E200*100,"-")) -> - | I202: =IF(OR('Tabel 1 ØJ'!G200<5,'Tabel 2 ØJ'!I202<0.5),"-",IFERROR('Tabel 2 ØJ'!I202/'Tabel 1 ØJ'!G200*100,"-")) -> - | J202: =IF(OR('Tabel 1 ØJ'!G200<5,'Tabel 2 ØJ'!J202<0.5),"-",IFERROR('Tabel 2 ØJ'!J202/'Tabel 1 ØJ'!G200*100,"-")) -> -
A203: Bygningskonst. | C203: =IF(OR('Tabel 1 ØJ'!C201<5,'Tabel 2 ØJ'!C203<0.5),"-",IFERROR('Tabel 2 ØJ'!C203/'Tabel 1 ØJ'!C201*100,"-")) -> 6.666666667 | D203: =IF(OR('Tabel 1 ØJ'!C201<5,'Tabel 2 ØJ'!D203<0.5),"-",IFERROR('Tabel 2 ØJ'!D203/'Tabel 1 ØJ'!C201*100,"-")) -> 6.666666667 | F203: =IF(OR('Tabel 1 ØJ'!E201<5,'Tabel 2 ØJ'!F203<0.5),"-",IFERROR('Tabel 2 ØJ'!F203/'Tabel 1 ØJ'!E201*100,"-")) -> - | G203: =IF(OR('Tabel 1 ØJ'!E201<5,'Tabel 2 ØJ'!G203<0.5),"-",IFERROR('Tabel 2 ØJ'!G203/'Tabel 1 ØJ'!E201*100,"-")) -> - | I203: =IF(OR('Tabel 1 ØJ'!G201<5,'Tabel 2 ØJ'!I203<0.5),"-",IFERROR('Tabel 2 ØJ'!I203/'Tabel 1 ØJ'!G201*100,"-")) -> 3.174603175 | J203: =IF(OR('Tabel 1 ØJ'!G201<5,'Tabel 2 ØJ'!J203<0.5),"-",IFERROR('Tabel 2 ØJ'!J203/'Tabel 1 ØJ'!G201*100,"-")) -> 3.174603175
A204: Cand. IT. | C204: =IF(OR('Tabel 1 ØJ'!C202<5,'Tabel 2 ØJ'!C204<0.5),"-",IFERROR('Tabel 2 ØJ'!C204/'Tabel 1 ØJ'!C202*100,"-")) -> - | D204: =IF(OR('Tabel 1 ØJ'!C202<5,'Tabel 2 ØJ'!D204<0.5),"-",IFERROR('Tabel 2 ØJ'!D204/'Tabel 1 ØJ'!C202*100,"-")) -> - | F204: =IF(OR('Tabel 1 ØJ'!E202<5,'Tabel 2 ØJ'!F204<0.5),"-",IFERROR('Tabel 2 ØJ'!F204/'Tabel 1 ØJ'!E202*100,"-")) -> - | G204: =IF(OR('Tabel 1 ØJ'!E202<5,'Tabel 2 ØJ'!G204<0.5),"-",IFERROR('Tabel 2 ØJ'!G204/'Tabel 1 ØJ'!E202*100,"-")) -> - | I204: =IF(OR('Tabel 1 ØJ'!G202<5,'Tabel 2 ØJ'!I204<0.5),"-",IFERROR('Tabel 2 ØJ'!I204/'Tabel 1 ØJ'!G202*100,"-")) -> - | J204: =IF(OR('Tabel 1 ØJ'!G202<5,'Tabel 2 ØJ'!J204<0.5),"-",IFERROR('Tabel 2 ØJ'!J204/'Tabel 1 ØJ'!G202*100,"-")) -> -
A205: Bac. Samf. | C205: =IF(OR('Tabel 1 ØJ'!C203<5,'Tabel 2 ØJ'!C205<0.5),"-",IFERROR('Tabel 2 ØJ'!C205/'Tabel 1 ØJ'!C203*100,"-")) -> - | D205: =IF(OR('Tabel 1 ØJ'!C203<5,'Tabel 2 ØJ'!D205<0.5),"-",IFERROR('Tabel 2 ØJ'!D205/'Tabel 1 ØJ'!C203*100,"-")) -> - | F205: =IF(OR('Tabel 1 ØJ'!E203<5,'Tabel 2 ØJ'!F205<0.5),"-",IFERROR('Tabel 2 ØJ'!F205/'Tabel 1 ØJ'!E203*100,"-")) -> - | G205: =IF(OR('Tabel 1 ØJ'!E203<5,'Tabel 2 ØJ'!G205<0.5),"-",IFERROR('Tabel 2 ØJ'!G205/'Tabel 1 ØJ'!E203*100,"-")) -> - | I205: =IF(OR('Tabel 1 ØJ'!G203<5,'Tabel 2 ØJ'!I205<0.5),"-",IFERROR('Tabel 2 ØJ'!I205/'Tabel 1 ØJ'!G203*100,"-")) -> - | J205: =IF(OR('Tabel 1 ØJ'!G203<5,'Tabel 2 ØJ'!J205<0.5),"-",IFERROR('Tabel 2 ØJ'!J205/'Tabel 1 ØJ'!G203*100,"-")) -> -
A206: Bac. Hum. | C206: =IF(OR('Tabel 1 ØJ'!C204<5,'Tabel 2 ØJ'!C206<0.5),"-",IFERROR('Tabel 2 ØJ'!C206/'Tabel 1 ØJ'!C204*100,"-")) -> - | D206: =IF(OR('Tabel 1 ØJ'!C204<5,'Tabel 2 ØJ'!D206<0.5),"-",IFERROR('Tabel 2 ØJ'!D206/'Tabel 1 ØJ'!C204*100,"-")) -> - | F206: =IF(OR('Tabel 1 ØJ'!E204<5,'Tabel 2 ØJ'!F206<0.5),"-",IFERROR('Tabel 2 ØJ'!F206/'Tabel 1 ØJ'!E204*100,"-")) -> 22.22222222 | G206: =IF(OR('Tabel 1 ØJ'!E204<5,'Tabel 2 ØJ'!G206<0.5),"-",IFERROR('Tabel 2 ØJ'!G206/'Tabel 1 ØJ'!E204*100,"-")) -> 22.21806413 | I206: =IF(OR('Tabel 1 ØJ'!G204<5,'Tabel 2 ØJ'!I206<0.5),"-",IFERROR('Tabel 2 ØJ'!I206/'Tabel 1 ØJ'!G204*100,"-")) -> 27.27272727 | J206: =IF(OR('Tabel 1 ØJ'!G204<5,'Tabel 2 ØJ'!J206<0.5),"-",IFERROR('Tabel 2 ØJ'!J206/'Tabel 1 ØJ'!G204*100,"-")) -> 27.26762416
A207: Bac. Nat. | C207: =IF(OR('Tabel 1 ØJ'!C205<5,'Tabel 2 ØJ'!C207<0.5),"-",IFERROR('Tabel 2 ØJ'!C207/'Tabel 1 ØJ'!C205*100,"-")) -> - | D207: =IF(OR('Tabel 1 ØJ'!C205<5,'Tabel 2 ØJ'!D207<0.5),"-",IFERROR('Tabel 2 ØJ'!D207/'Tabel 1 ØJ'!C205*100,"-")) -> - | F207: =IF(OR('Tabel 1 ØJ'!E205<5,'Tabel 2 ØJ'!F207<0.5),"-",IFERROR('Tabel 2 ØJ'!F207/'Tabel 1 ØJ'!E205*100,"-")) -> - | G207: =IF(OR('Tabel 1 ØJ'!E205<5,'Tabel 2 ØJ'!G207<0.5),"-",IFERROR('Tabel 2 ØJ'!G207/'Tabel 1 ØJ'!E205*100,"-")) -> - | I207: =IF(OR('Tabel 1 ØJ'!G205<5,'Tabel 2 ØJ'!I207<0.5),"-",IFERROR('Tabel 2 ØJ'!I207/'Tabel 1 ØJ'!G205*100,"-")) -> - | J207: =IF(OR('Tabel 1 ØJ'!G205<5,'Tabel 2 ØJ'!J207<0.5),"-",IFERROR('Tabel 2 ØJ'!J207/'Tabel 1 ØJ'!G205*100,"-")) -> -
A208: Andre | C208: =IF(OR('Tabel 1 ØJ'!C206<5,'Tabel 2 ØJ'!C208<0.5),"-",IFERROR('Tabel 2 ØJ'!C208/'Tabel 1 ØJ'!C206*100,"-")) -> 8.333333333 | D208: =IF(OR('Tabel 1 ØJ'!C206<5,'Tabel 2 ØJ'!D208<0.5),"-",IFERROR('Tabel 2 ØJ'!D208/'Tabel 1 ØJ'!C206*100,"-")) -> 8.162851619 | F208: =IF(OR('Tabel 1 ØJ'!E206<5,'Tabel 2 ØJ'!F208<0.5),"-",IFERROR('Tabel 2 ØJ'!F208/'Tabel 1 ØJ'!E206*100,"-")) -> 2.702702703 | G208: =IF(OR('Tabel 1 ØJ'!E206<5,'Tabel 2 ØJ'!G208<0.5),"-",IFERROR('Tabel 2 ØJ'!G208/'Tabel 1 ØJ'!E206*100,"-")) -> 2.702196989 | I208: =IF(OR('Tabel 1 ØJ'!G206<5,'Tabel 2 ØJ'!I208<0.5),"-",IFERROR('Tabel 2 ØJ'!I208/'Tabel 1 ØJ'!G206*100,"-")) -> 4.918032787 | J208: =IF(OR('Tabel 1 ØJ'!G206<5,'Tabel 2 ØJ'!J208<0.5),"-",IFERROR('Tabel 2 ØJ'!J208/'Tabel 1 ØJ'!G206*100,"-")) -> 4.850651269
A210: Total | C210: =IF(OR('Tabel 1 ØJ'!C208<5,'Tabel 2 ØJ'!C210<0.5),"-",IFERROR('Tabel 2 ØJ'!C210/'Tabel 1 ØJ'!C208*100,"-")) -> 3.754266212 | D210: =IF(OR('Tabel 1 ØJ'!C208<5,'Tabel 2 ØJ'!D210<0.5),"-",IFERROR('Tabel 2 ØJ'!D210/'Tabel 1 ØJ'!C208*100,"-")) -> 3.514423856 | F210: =IF(OR('Tabel 1 ØJ'!E208<5,'Tabel 2 ØJ'!F210<0.5),"-",IFERROR('Tabel 2 ØJ'!F210/'Tabel 1 ØJ'!E208*100,"-")) -> 2.434456929 | G210: =IF(OR('Tabel 1 ØJ'!E208<5,'Tabel 2 ØJ'!G210<0.5),"-",IFERROR('Tabel 2 ØJ'!G210/'Tabel 1 ØJ'!E208*100,"-")) -> 2.022046757 | I210: =IF(OR('Tabel 1 ØJ'!G208<5,'Tabel 2 ØJ'!I210<0.5),"-",IFERROR('Tabel 2 ØJ'!I210/'Tabel 1 ØJ'!G208*100,"-")) -> 2.902055623 | J210: =IF(OR('Tabel 1 ØJ'!G208<5,'Tabel 2 ØJ'!J210<0.5),"-",IFERROR('Tabel 2 ØJ'!J210/'Tabel 1 ØJ'!G208*100,"-")) -> 2.550784955
A212: Ingeniører i alt | C212: =IF(OR('Tabel 1 ØJ'!C210<5,'Tabel 2 ØJ'!C212<0.5),"-",IFERROR('Tabel 2 ØJ'!C212/'Tabel 1 ØJ'!C210*100,"-")) -> 1.123595506 | D212: =IF(OR('Tabel 1 ØJ'!C210<5,'Tabel 2 ØJ'!D212<0.5),"-",IFERROR('Tabel 2 ØJ'!D212/'Tabel 1 ØJ'!C210*100,"-")) -> 1.123385265 | F212: =IF(OR('Tabel 1 ØJ'!E210<5,'Tabel 2 ØJ'!F212<0.5),"-",IFERROR('Tabel 2 ØJ'!F212/'Tabel 1 ØJ'!E210*100,"-")) -> - | G212: =IF(OR('Tabel 1 ØJ'!E210<5,'Tabel 2 ØJ'!G212<0.5),"-",IFERROR('Tabel 2 ØJ'!G212/'Tabel 1 ØJ'!E210*100,"-")) -> - | I212: =IF(OR('Tabel 1 ØJ'!G210<5,'Tabel 2 ØJ'!I212<0.5),"-",IFERROR('Tabel 2 ØJ'!I212/'Tabel 1 ØJ'!G210*100,"-")) -> 0.4807692308 | J212: =IF(OR('Tabel 1 ØJ'!G210<5,'Tabel 2 ØJ'!J212<0.5),"-",IFERROR('Tabel 2 ØJ'!J212/'Tabel 1 ØJ'!G210*100,"-")) -> 0.4806792721
A213: Magistre i alt | C213: =IF(OR('Tabel 1 ØJ'!C211<5,'Tabel 2 ØJ'!C213<0.5),"-",IFERROR('Tabel 2 ØJ'!C213/'Tabel 1 ØJ'!C211*100,"-")) -> 6.12244898 | D213: =IF(OR('Tabel 1 ØJ'!C211<5,'Tabel 2 ØJ'!D213<0.5),"-",IFERROR('Tabel 2 ØJ'!D213/'Tabel 1 ØJ'!C211*100,"-")) -> 6.121303383 | F213: =IF(OR('Tabel 1 ØJ'!E211<5,'Tabel 2 ØJ'!F213<0.5),"-",IFERROR('Tabel 2 ØJ'!F213/'Tabel 1 ØJ'!E211*100,"-")) -> 4.201680672 | G213: =IF(OR('Tabel 1 ØJ'!E211<5,'Tabel 2 ØJ'!G213<0.5),"-",IFERROR('Tabel 2 ØJ'!G213/'Tabel 1 ØJ'!E211*100,"-")) -> 3.218676606 | I213: =IF(OR('Tabel 1 ØJ'!G211<5,'Tabel 2 ØJ'!I213<0.5),"-",IFERROR('Tabel 2 ØJ'!I213/'Tabel 1 ØJ'!G211*100,"-")) -> 4.761904762 | J213: =IF(OR('Tabel 1 ØJ'!G211<5,'Tabel 2 ØJ'!J213<0.5),"-",IFERROR('Tabel 2 ØJ'!J213/'Tabel 1 ØJ'!G211*100,"-")) -> 4.065276082
A214: DJØF'ere i alt | C214: =IF(OR('Tabel 1 ØJ'!C212<5,'Tabel 2 ØJ'!C214<0.5),"-",IFERROR('Tabel 2 ØJ'!C214/'Tabel 1 ØJ'!C212*100,"-")) -> 2.040816327 | D214: =IF(OR('Tabel 1 ØJ'!C212<5,'Tabel 2 ØJ'!D214<0.5),"-",IFERROR('Tabel 2 ØJ'!D214/'Tabel 1 ØJ'!C212*100,"-")) -> - | F214: =IF(OR('Tabel 1 ØJ'!E212<5,'Tabel 2 ØJ'!F214<0.5),"-",IFERROR('Tabel 2 ØJ'!F214/'Tabel 1 ØJ'!E212*100,"-")) -> - | G214: =IF(OR('Tabel 1 ØJ'!E212<5,'Tabel 2 ØJ'!G214<0.5),"-",IFERROR('Tabel 2 ØJ'!G214/'Tabel 1 ØJ'!E212*100,"-")) -> - | I214: =IF(OR('Tabel 1 ØJ'!G212<5,'Tabel 2 ØJ'!I214<0.5),"-",IFERROR('Tabel 2 ØJ'!I214/'Tabel 1 ØJ'!G212*100,"-")) -> 0.7194244604 | J214: =IF(OR('Tabel 1 ØJ'!G212<5,'Tabel 2 ØJ'!J214<0.5),"-",IFERROR('Tabel 2 ØJ'!J214/'Tabel 1 ØJ'!G212*100,"-")) -> -
A219: Favrskov
C221: Mænd | F221: Kvinder | I221: I alt
C222: Ledigheds- berørte | D222: Gns. brutto- ledighed | F222: Ledigheds- berørte | G222: Gns. brutto- ledighed | I222: Ledigheds- berørte | J222: Gns. brutto- ledighed
A225: Civ. ing. | C225: =IF(OR('Tabel 1 ØJ'!C223<5,'Tabel 2 ØJ'!C225<0.5),"-",IFERROR('Tabel 2 ØJ'!C225/'Tabel 1 ØJ'!C223*100,"-")) -> 0.4651162791 | D225: =IF(OR('Tabel 1 ØJ'!C223<5,'Tabel 2 ØJ'!D225<0.5),"-",IFERROR('Tabel 2 ØJ'!D225/'Tabel 1 ØJ'!C223*100,"-")) -> 0.4650292493 | F225: =IF(OR('Tabel 1 ØJ'!E223<5,'Tabel 2 ØJ'!F225<0.5),"-",IFERROR('Tabel 2 ØJ'!F225/'Tabel 1 ØJ'!E223*100,"-")) -> 4.545454545 | G225: =IF(OR('Tabel 1 ØJ'!E223<5,'Tabel 2 ØJ'!G225<0.5),"-",IFERROR('Tabel 2 ØJ'!G225/'Tabel 1 ØJ'!E223*100,"-")) -> 3.785752492 | I225: =IF(OR('Tabel 1 ØJ'!G223<5,'Tabel 2 ØJ'!I225<0.5),"-",IFERROR('Tabel 2 ØJ'!I225/'Tabel 1 ØJ'!G223*100,"-")) -> 1.423487544 | J225: =IF(OR('Tabel 1 ØJ'!G223<5,'Tabel 2 ØJ'!J225<0.5),"-",IFERROR('Tabel 2 ØJ'!J225/'Tabel 1 ØJ'!G223*100,"-")) -> 1.244985598
A226: Diplom ing. | C226: =IF(OR('Tabel 1 ØJ'!C224<5,'Tabel 2 ØJ'!C226<0.5),"-",IFERROR('Tabel 2 ØJ'!C226/'Tabel 1 ØJ'!C224*100,"-")) -> 0.8426966292 | D226: =IF(OR('Tabel 1 ØJ'!C224<5,'Tabel 2 ØJ'!D226<0.5),"-",IFERROR('Tabel 2 ØJ'!D226/'Tabel 1 ØJ'!C224*100,"-")) -> 0.6617320877 | F226: =IF(OR('Tabel 1 ØJ'!E224<5,'Tabel 2 ØJ'!F226<0.5),"-",IFERROR('Tabel 2 ØJ'!F226/'Tabel 1 ØJ'!E224*100,"-")) -> 3.389830508 | G226: =IF(OR('Tabel 1 ØJ'!E224<5,'Tabel 2 ØJ'!G226<0.5),"-",IFERROR('Tabel 2 ØJ'!G226/'Tabel 1 ØJ'!E224*100,"-")) -> 3.389196223 | I226: =IF(OR('Tabel 1 ØJ'!G224<5,'Tabel 2 ØJ'!I226<0.5),"-",IFERROR('Tabel 2 ØJ'!I226/'Tabel 1 ØJ'!G224*100,"-")) -> 1.204819277 | J226: =IF(OR('Tabel 1 ØJ'!G224<5,'Tabel 2 ØJ'!J226<0.5),"-",IFERROR('Tabel 2 ØJ'!J226/'Tabel 1 ØJ'!G224*100,"-")) -> 1.049492049
A227: Cand. Scient. Tek. | C227: =IF(OR('Tabel 1 ØJ'!C225<5,'Tabel 2 ØJ'!C227<0.5),"-",IFERROR('Tabel 2 ØJ'!C227/'Tabel 1 ØJ'!C225*100,"-")) -> 2.941176471 | D227: =IF(OR('Tabel 1 ØJ'!C225<5,'Tabel 2 ØJ'!D227<0.5),"-",IFERROR('Tabel 2 ØJ'!D227/'Tabel 1 ØJ'!C225*100,"-")) -> 2.804876706 | F227: =IF(OR('Tabel 1 ØJ'!E225<5,'Tabel 2 ØJ'!F227<0.5),"-",IFERROR('Tabel 2 ØJ'!F227/'Tabel 1 ØJ'!E225*100,"-")) -> 3.225806452 | G227: =IF(OR('Tabel 1 ØJ'!E225<5,'Tabel 2 ØJ'!G227<0.5),"-",IFERROR('Tabel 2 ØJ'!G227/'Tabel 1 ØJ'!E225*100,"-")) -> 2.331884038 | I227: =IF(OR('Tabel 1 ØJ'!G225<5,'Tabel 2 ØJ'!I227<0.5),"-",IFERROR('Tabel 2 ØJ'!I227/'Tabel 1 ØJ'!G225*100,"-")) -> 3.076923077 | J227: =IF(OR('Tabel 1 ØJ'!G225<5,'Tabel 2 ØJ'!J227<0.5),"-",IFERROR('Tabel 2 ØJ'!J227/'Tabel 1 ØJ'!G225*100,"-")) -> 2.579295587
A228: MA. Hum. | C228: =IF(OR('Tabel 1 ØJ'!C226<5,'Tabel 2 ØJ'!C228<0.5),"-",IFERROR('Tabel 2 ØJ'!C228/'Tabel 1 ØJ'!C226*100,"-")) -> 5.681818182 | D228: =IF(OR('Tabel 1 ØJ'!C226<5,'Tabel 2 ØJ'!D228<0.5),"-",IFERROR('Tabel 2 ØJ'!D228/'Tabel 1 ØJ'!C226*100,"-")) -> 5.523409105 | F228: =IF(OR('Tabel 1 ØJ'!E226<5,'Tabel 2 ØJ'!F228<0.5),"-",IFERROR('Tabel 2 ØJ'!F228/'Tabel 1 ØJ'!E226*100,"-")) -> 8.835341365 | G228: =IF(OR('Tabel 1 ØJ'!E226<5,'Tabel 2 ØJ'!G228<0.5),"-",IFERROR('Tabel 2 ØJ'!G228/'Tabel 1 ØJ'!E226*100,"-")) -> 7.700483215 | I228: =IF(OR('Tabel 1 ØJ'!G226<5,'Tabel 2 ØJ'!I228<0.5),"-",IFERROR('Tabel 2 ØJ'!I228/'Tabel 1 ØJ'!G226*100,"-")) -> 8.011869436 | J228: =IF(OR('Tabel 1 ØJ'!G226<5,'Tabel 2 ØJ'!J228<0.5),"-",IFERROR('Tabel 2 ØJ'!J228/'Tabel 1 ØJ'!G226*100,"-")) -> 7.131989086
A229: MA. Nat. | C229: =IF(OR('Tabel 1 ØJ'!C227<5,'Tabel 2 ØJ'!C229<0.5),"-",IFERROR('Tabel 2 ØJ'!C229/'Tabel 1 ØJ'!C227*100,"-")) -> 1.030927835 | D229: =IF(OR('Tabel 1 ØJ'!C227<5,'Tabel 2 ØJ'!D229<0.5),"-",IFERROR('Tabel 2 ØJ'!D229/'Tabel 1 ØJ'!C227*100,"-")) -> 1.030734934 | F229: =IF(OR('Tabel 1 ØJ'!E227<5,'Tabel 2 ØJ'!F229<0.5),"-",IFERROR('Tabel 2 ØJ'!F229/'Tabel 1 ØJ'!E227*100,"-")) -> 3.896103896 | G229: =IF(OR('Tabel 1 ØJ'!E227<5,'Tabel 2 ØJ'!G229<0.5),"-",IFERROR('Tabel 2 ØJ'!G229/'Tabel 1 ØJ'!E227*100,"-")) -> 3.652369585 | I229: =IF(OR('Tabel 1 ØJ'!G227<5,'Tabel 2 ØJ'!I229<0.5),"-",IFERROR('Tabel 2 ØJ'!I229/'Tabel 1 ØJ'!G227*100,"-")) -> 2.298850575 | J229: =IF(OR('Tabel 1 ØJ'!G227<5,'Tabel 2 ØJ'!J229<0.5),"-",IFERROR('Tabel 2 ØJ'!J229/'Tabel 1 ØJ'!G227*100,"-")) -> 2.190883601
A230: MA. Ph.d. | C230: =IF(OR('Tabel 1 ØJ'!C228<5,'Tabel 2 ØJ'!C230<0.5),"-",IFERROR('Tabel 2 ØJ'!C230/'Tabel 1 ØJ'!C228*100,"-")) -> 9.090909091 | D230: =IF(OR('Tabel 1 ØJ'!C228<5,'Tabel 2 ØJ'!D230<0.5),"-",IFERROR('Tabel 2 ØJ'!D230/'Tabel 1 ØJ'!C228*100,"-")) -> 9.089208054 | F230: =IF(OR('Tabel 1 ØJ'!E228<5,'Tabel 2 ØJ'!F230<0.5),"-",IFERROR('Tabel 2 ØJ'!F230/'Tabel 1 ØJ'!E228*100,"-")) -> 25 | G230: =IF(OR('Tabel 1 ØJ'!E228<5,'Tabel 2 ØJ'!G230<0.5),"-",IFERROR('Tabel 2 ØJ'!G230/'Tabel 1 ØJ'!E228*100,"-")) -> 24.99532215 | I230: =IF(OR('Tabel 1 ØJ'!G228<5,'Tabel 2 ØJ'!I230<0.5),"-",IFERROR('Tabel 2 ØJ'!I230/'Tabel 1 ØJ'!G228*100,"-")) -> 15.78947368 | J230: =IF(OR('Tabel 1 ØJ'!G228<5,'Tabel 2 ØJ'!J230<0.5),"-",IFERROR('Tabel 2 ØJ'!J230/'Tabel 1 ØJ'!G228*100,"-")) -> 15.78651925
A231: MA. Samf. | C231: =IF(OR('Tabel 1 ØJ'!C229<5,'Tabel 2 ØJ'!C231<0.5),"-",IFERROR('Tabel 2 ØJ'!C231/'Tabel 1 ØJ'!C229*100,"-")) -> 16.66666667 | D231: =IF(OR('Tabel 1 ØJ'!C229<5,'Tabel 2 ØJ'!D231<0.5),"-",IFERROR('Tabel 2 ØJ'!D231/'Tabel 1 ØJ'!C229*100,"-")) -> 16.6635481 | F231: =IF(OR('Tabel 1 ØJ'!E229<5,'Tabel 2 ØJ'!F231<0.5),"-",IFERROR('Tabel 2 ØJ'!F231/'Tabel 1 ØJ'!E229*100,"-")) -> - | G231: =IF(OR('Tabel 1 ØJ'!E229<5,'Tabel 2 ØJ'!G231<0.5),"-",IFERROR('Tabel 2 ØJ'!G231/'Tabel 1 ØJ'!E229*100,"-")) -> - | I231: =IF(OR('Tabel 1 ØJ'!G229<5,'Tabel 2 ØJ'!I231<0.5),"-",IFERROR('Tabel 2 ØJ'!I231/'Tabel 1 ØJ'!G229*100,"-")) -> 5.263157895 | J231: =IF(OR('Tabel 1 ØJ'!G229<5,'Tabel 2 ØJ'!J231<0.5),"-",IFERROR('Tabel 2 ØJ'!J231/'Tabel 1 ØJ'!G229*100,"-")) -> 5.262173084
A232: Øvrige Mag. | C232: =IF(OR('Tabel 1 ØJ'!C230<5,'Tabel 2 ØJ'!C232<0.5),"-",IFERROR('Tabel 2 ØJ'!C232/'Tabel 1 ØJ'!C230*100,"-")) -> - | D232: =IF(OR('Tabel 1 ØJ'!C230<5,'Tabel 2 ØJ'!D232<0.5),"-",IFERROR('Tabel 2 ØJ'!D232/'Tabel 1 ØJ'!C230*100,"-")) -> - | F232: =IF(OR('Tabel 1 ØJ'!E230<5,'Tabel 2 ØJ'!F232<0.5),"-",IFERROR('Tabel 2 ØJ'!F232/'Tabel 1 ØJ'!E230*100,"-")) -> 15.38461538 | G232: =IF(OR('Tabel 1 ØJ'!E230<5,'Tabel 2 ØJ'!G232<0.5),"-",IFERROR('Tabel 2 ØJ'!G232/'Tabel 1 ØJ'!E230*100,"-")) -> 15.38173671 | I232: =IF(OR('Tabel 1 ØJ'!G230<5,'Tabel 2 ØJ'!I232<0.5),"-",IFERROR('Tabel 2 ØJ'!I232/'Tabel 1 ØJ'!G230*100,"-")) -> 9.090909091 | J232: =IF(OR('Tabel 1 ØJ'!G230<5,'Tabel 2 ØJ'!J232<0.5),"-",IFERROR('Tabel 2 ØJ'!J232/'Tabel 1 ØJ'!G230*100,"-")) -> 9.089208054
A233: Agronom | C233: =IF(OR('Tabel 1 ØJ'!C231<5,'Tabel 2 ØJ'!C233<0.5),"-",IFERROR('Tabel 2 ØJ'!C233/'Tabel 1 ØJ'!C231*100,"-")) -> 3.333333333 | D233: =IF(OR('Tabel 1 ØJ'!C231<5,'Tabel 2 ØJ'!D233<0.5),"-",IFERROR('Tabel 2 ØJ'!D233/'Tabel 1 ØJ'!C231*100,"-")) -> - | F233: =IF(OR('Tabel 1 ØJ'!E231<5,'Tabel 2 ØJ'!F233<0.5),"-",IFERROR('Tabel 2 ØJ'!F233/'Tabel 1 ØJ'!E231*100,"-")) -> - | G233: =IF(OR('Tabel 1 ØJ'!E231<5,'Tabel 2 ØJ'!G233<0.5),"-",IFERROR('Tabel 2 ØJ'!G233/'Tabel 1 ØJ'!E231*100,"-")) -> - | I233: =IF(OR('Tabel 1 ØJ'!G231<5,'Tabel 2 ØJ'!I233<0.5),"-",IFERROR('Tabel 2 ØJ'!I233/'Tabel 1 ØJ'!G231*100,"-")) -> 1.960784314 | J233: =IF(OR('Tabel 1 ØJ'!G231<5,'Tabel 2 ØJ'!J233<0.5),"-",IFERROR('Tabel 2 ØJ'!J233/'Tabel 1 ØJ'!G231*100,"-")) -> -
A234: Landsk. Arkt. | C234: =IF(OR('Tabel 1 ØJ'!C232<5,'Tabel 2 ØJ'!C234<0.5),"-",IFERROR('Tabel 2 ØJ'!C234/'Tabel 1 ØJ'!C232*100,"-")) -> - | D234: =IF(OR('Tabel 1 ØJ'!C232<5,'Tabel 2 ØJ'!D234<0.5),"-",IFERROR('Tabel 2 ØJ'!D234/'Tabel 1 ØJ'!C232*100,"-")) -> - | F234: =IF(OR('Tabel 1 ØJ'!E232<5,'Tabel 2 ØJ'!F234<0.5),"-",IFERROR('Tabel 2 ØJ'!F234/'Tabel 1 ØJ'!E232*100,"-")) -> - | G234: =IF(OR('Tabel 1 ØJ'!E232<5,'Tabel 2 ØJ'!G234<0.5),"-",IFERROR('Tabel 2 ØJ'!G234/'Tabel 1 ØJ'!E232*100,"-")) -> - | I234: =IF(OR('Tabel 1 ØJ'!G232<5,'Tabel 2 ØJ'!I234<0.5),"-",IFERROR('Tabel 2 ØJ'!I234/'Tabel 1 ØJ'!G232*100,"-")) -> - | J234: =IF(OR('Tabel 1 ØJ'!G232<5,'Tabel 2 ØJ'!J234<0.5),"-",IFERROR('Tabel 2 ØJ'!J234/'Tabel 1 ØJ'!G232*100,"-")) -> -
A235: Hortonom | C235: =IF(OR('Tabel 1 ØJ'!C233<5,'Tabel 2 ØJ'!C235<0.5),"-",IFERROR('Tabel 2 ØJ'!C235/'Tabel 1 ØJ'!C233*100,"-")) -> - | D235: =IF(OR('Tabel 1 ØJ'!C233<5,'Tabel 2 ØJ'!D235<0.5),"-",IFERROR('Tabel 2 ØJ'!D235/'Tabel 1 ØJ'!C233*100,"-")) -> - | F235: =IF(OR('Tabel 1 ØJ'!E233<5,'Tabel 2 ØJ'!F235<0.5),"-",IFERROR('Tabel 2 ØJ'!F235/'Tabel 1 ØJ'!E233*100,"-")) -> - | G235: =IF(OR('Tabel 1 ØJ'!E233<5,'Tabel 2 ØJ'!G235<0.5),"-",IFERROR('Tabel 2 ØJ'!G235/'Tabel 1 ØJ'!E233*100,"-")) -> - | I235: =IF(OR('Tabel 1 ØJ'!G233<5,'Tabel 2 ØJ'!I235<0.5),"-",IFERROR('Tabel 2 ØJ'!I235/'Tabel 1 ØJ'!G233*100,"-")) -> - | J235: =IF(OR('Tabel 1 ØJ'!G233<5,'Tabel 2 ØJ'!J235<0.5),"-",IFERROR('Tabel 2 ØJ'!J235/'Tabel 1 ØJ'!G233*100,"-")) -> -
A236: Forstkand. | C236: =IF(OR('Tabel 1 ØJ'!C234<5,'Tabel 2 ØJ'!C236<0.5),"-",IFERROR('Tabel 2 ØJ'!C236/'Tabel 1 ØJ'!C234*100,"-")) -> - | D236: =IF(OR('Tabel 1 ØJ'!C234<5,'Tabel 2 ØJ'!D236<0.5),"-",IFERROR('Tabel 2 ØJ'!D236/'Tabel 1 ØJ'!C234*100,"-")) -> - | F236: =IF(OR('Tabel 1 ØJ'!E234<5,'Tabel 2 ØJ'!F236<0.5),"-",IFERROR('Tabel 2 ØJ'!F236/'Tabel 1 ØJ'!E234*100,"-")) -> - | G236: =IF(OR('Tabel 1 ØJ'!E234<5,'Tabel 2 ØJ'!G236<0.5),"-",IFERROR('Tabel 2 ØJ'!G236/'Tabel 1 ØJ'!E234*100,"-")) -> - | I236: =IF(OR('Tabel 1 ØJ'!G234<5,'Tabel 2 ØJ'!I236<0.5),"-",IFERROR('Tabel 2 ØJ'!I236/'Tabel 1 ØJ'!G234*100,"-")) -> - | J236: =IF(OR('Tabel 1 ØJ'!G234<5,'Tabel 2 ØJ'!J236<0.5),"-",IFERROR('Tabel 2 ØJ'!J236/'Tabel 1 ØJ'!G234*100,"-")) -> -
A237: Jordbrugsakad. | C237: =IF(OR('Tabel 1 ØJ'!C235<5,'Tabel 2 ØJ'!C237<0.5),"-",IFERROR('Tabel 2 ØJ'!C237/'Tabel 1 ØJ'!C235*100,"-")) -> 2.702702703 | D237: =IF(OR('Tabel 1 ØJ'!C235<5,'Tabel 2 ØJ'!D237<0.5),"-",IFERROR('Tabel 2 ØJ'!D237/'Tabel 1 ØJ'!C235*100,"-")) -> - | F237: =IF(OR('Tabel 1 ØJ'!E235<5,'Tabel 2 ØJ'!F237<0.5),"-",IFERROR('Tabel 2 ØJ'!F237/'Tabel 1 ØJ'!E235*100,"-")) -> - | G237: =IF(OR('Tabel 1 ØJ'!E235<5,'Tabel 2 ØJ'!G237<0.5),"-",IFERROR('Tabel 2 ØJ'!G237/'Tabel 1 ØJ'!E235*100,"-")) -> - | I237: =IF(OR('Tabel 1 ØJ'!G235<5,'Tabel 2 ØJ'!I237<0.5),"-",IFERROR('Tabel 2 ØJ'!I237/'Tabel 1 ØJ'!G235*100,"-")) -> 1.587301587 | J237: =IF(OR('Tabel 1 ØJ'!G235<5,'Tabel 2 ØJ'!J237<0.5),"-",IFERROR('Tabel 2 ØJ'!J237/'Tabel 1 ØJ'!G235*100,"-")) -> -
A238: Mejeriing. | C238: =IF(OR('Tabel 1 ØJ'!C236<5,'Tabel 2 ØJ'!C238<0.5),"-",IFERROR('Tabel 2 ØJ'!C238/'Tabel 1 ØJ'!C236*100,"-")) -> - | D238: =IF(OR('Tabel 1 ØJ'!C236<5,'Tabel 2 ØJ'!D238<0.5),"-",IFERROR('Tabel 2 ØJ'!D238/'Tabel 1 ØJ'!C236*100,"-")) -> - | F238: =IF(OR('Tabel 1 ØJ'!E236<5,'Tabel 2 ØJ'!F238<0.5),"-",IFERROR('Tabel 2 ØJ'!F238/'Tabel 1 ØJ'!E236*100,"-")) -> - | G238: =IF(OR('Tabel 1 ØJ'!E236<5,'Tabel 2 ØJ'!G238<0.5),"-",IFERROR('Tabel 2 ØJ'!G238/'Tabel 1 ØJ'!E236*100,"-")) -> - | I238: =IF(OR('Tabel 1 ØJ'!G236<5,'Tabel 2 ØJ'!I238<0.5),"-",IFERROR('Tabel 2 ØJ'!I238/'Tabel 1 ØJ'!G236*100,"-")) -> - | J238: =IF(OR('Tabel 1 ØJ'!G236<5,'Tabel 2 ØJ'!J238<0.5),"-",IFERROR('Tabel 2 ØJ'!J238/'Tabel 1 ØJ'!G236*100,"-")) -> -
A239: Levn.m.kand. | C239: =IF(OR('Tabel 1 ØJ'!C237<5,'Tabel 2 ØJ'!C239<0.5),"-",IFERROR('Tabel 2 ØJ'!C239/'Tabel 1 ØJ'!C237*100,"-")) -> - | D239: =IF(OR('Tabel 1 ØJ'!C237<5,'Tabel 2 ØJ'!D239<0.5),"-",IFERROR('Tabel 2 ØJ'!D239/'Tabel 1 ØJ'!C237*100,"-")) -> - | F239: =IF(OR('Tabel 1 ØJ'!E237<5,'Tabel 2 ØJ'!F239<0.5),"-",IFERROR('Tabel 2 ØJ'!F239/'Tabel 1 ØJ'!E237*100,"-")) -> - | G239: =IF(OR('Tabel 1 ØJ'!E237<5,'Tabel 2 ØJ'!G239<0.5),"-",IFERROR('Tabel 2 ØJ'!G239/'Tabel 1 ØJ'!E237*100,"-")) -> - | I239: =IF(OR('Tabel 1 ØJ'!G237<5,'Tabel 2 ØJ'!I239<0.5),"-",IFERROR('Tabel 2 ØJ'!I239/'Tabel 1 ØJ'!G237*100,"-")) -> - | J239: =IF(OR('Tabel 1 ØJ'!G237<5,'Tabel 2 ØJ'!J239<0.5),"-",IFERROR('Tabel 2 ØJ'!J239/'Tabel 1 ØJ'!G237*100,"-")) -> -
A240: Dyrlæge | C240: =IF(OR('Tabel 1 ØJ'!C238<5,'Tabel 2 ØJ'!C240<0.5),"-",IFERROR('Tabel 2 ØJ'!C240/'Tabel 1 ØJ'!C238*100,"-")) -> - | D240: =IF(OR('Tabel 1 ØJ'!C238<5,'Tabel 2 ØJ'!D240<0.5),"-",IFERROR('Tabel 2 ØJ'!D240/'Tabel 1 ØJ'!C238*100,"-")) -> - | F240: =IF(OR('Tabel 1 ØJ'!E238<5,'Tabel 2 ØJ'!F240<0.5),"-",IFERROR('Tabel 2 ØJ'!F240/'Tabel 1 ØJ'!E238*100,"-")) -> - | G240: =IF(OR('Tabel 1 ØJ'!E238<5,'Tabel 2 ØJ'!G240<0.5),"-",IFERROR('Tabel 2 ØJ'!G240/'Tabel 1 ØJ'!E238*100,"-")) -> - | I240: =IF(OR('Tabel 1 ØJ'!G238<5,'Tabel 2 ØJ'!I240<0.5),"-",IFERROR('Tabel 2 ØJ'!I240/'Tabel 1 ØJ'!G238*100,"-")) -> - | J240: =IF(OR('Tabel 1 ØJ'!G238<5,'Tabel 2 ØJ'!J240<0.5),"-",IFERROR('Tabel 2 ØJ'!J240/'Tabel 1 ØJ'!G238*100,"-")) -> -
... 341 more rows

Sheet Tabel 4F ØJ
A1: ='[1]Tabel 4F H DATA'!L1 -> Tabel 4. Antal forsikrede - aldersfordelt
A3: ='[1]Tabel 4F H DATA'!L3 -> Østjylland
C5: ='[1]Tabel 4F H DATA'!N5 -> Under 30 år | D5: ='[1]Tabel 4F H DATA'!O5 -> 30 - 39 år | E5: ='[1]Tabel 4F H DATA'!P5 -> 40 - 49 år | F5: ='[1]Tabel 4F H DATA'!Q5 -> 50 - 59 år | G5: ='[1]Tabel 4F H DATA'!R5 -> Over 60 år | I5: ='[1]Tabel 4F H DATA'!T5 -> I alt
A7: ='[1]Tabel 4F H DATA'!L7 -> Civ. ing. | C7: ='[1]Tabel 4F H DATA'!N7 -> 813 | D7: ='[1]Tabel 4F H DATA'!O7 -> 1647 | E7: ='[1]Tabel 4F H DATA'!P7 -> 958 | F7: ='[1]Tabel 4F H DATA'!Q7 -> 629 | G7: ='[1]Tabel 4F H DATA'!R7 -> 176 | I7: ='[1]Tabel 4F H DATA'!T7 -> 4223
A8: ='[1]Tabel 4F H DATA'!L8 -> Diplom ing. | C8: ='[1]Tabel 4F H DATA'!N8 -> 949 | D8: ='[1]Tabel 4F H DATA'!O8 -> 1441 | E8: ='[1]Tabel 4F H DATA'!P8 -> 1759 | F8: ='[1]Tabel 4F H DATA'!Q8 -> 2121 | G8: ='[1]Tabel 4F H DATA'!R8 -> 770 | I8: ='[1]Tabel 4F H DATA'!T8 -> 7040
A9: ='[1]Tabel 4F H DATA'!L9 -> Cand. Scient. Tek. | C9: ='[1]Tabel 4F H DATA'!N9 -> 993 | D9: ='[1]Tabel 4F H DATA'!O9 -> 1497 | E9: ='[1]Tabel 4F H DATA'!P9 -> 378 | F9: ='[1]Tabel 4F H DATA'!Q9 -> 120 | G9: ='[1]Tabel 4F H DATA'!R9 -> 21 | I9: ='[1]Tabel 4F H DATA'!T9 -> 3009
A10: ='[1]Tabel 4F H DATA'!L10 -> MA. Hum. | C10: ='[1]Tabel 4F H DATA'!N10 -> 1277 | D10: ='[1]Tabel 4F H DATA'!O10 -> 2840 | E10: ='[1]Tabel 4F H DATA'!P10 -> 2585 | F10: ='[1]Tabel 4F H DATA'!Q10 -> 1088 | G10: ='[1]Tabel 4F H DATA'!R10 -> 483 | I10: ='[1]Tabel 4F H DATA'!T10 -> 8273
A11: ='[1]Tabel 4F H DATA'!L11 -> MA. Nat. | C11: ='[1]Tabel 4F H DATA'!N11 -> 260 | D11: ='[1]Tabel 4F H DATA'!O11 -> 622 | E11: ='[1]Tabel 4F H DATA'!P11 -> 903 | F11: ='[1]Tabel 4F H DATA'!Q11 -> 796 | G11: ='[1]Tabel 4F H DATA'!R11 -> 331 | I11: ='[1]Tabel 4F H DATA'!T11 -> 2912
A12: ='[1]Tabel 4F H DATA'!L12 -> MA. Ph.d. | C12: ='[1]Tabel 4F H DATA'!N12 -> 18 | D12: ='[1]Tabel 4F H DATA'!O12 -> 206 | E12: ='[1]Tabel 4F H DATA'!P12 -> 225 | F12: ='[1]Tabel 4F H DATA'!Q12 -> 113 | G12: ='[1]Tabel 4F H DATA'!R12 -> 24 | I12: ='[1]Tabel 4F H DATA'!T12 -> 586
A13: ='[1]Tabel 4F H DATA'!L13 -> MA. Samf. | C13: ='[1]Tabel 4F H DATA'!N13 -> 238 | D13: ='[1]Tabel 4F H DATA'!O13 -> 433 | E13: ='[1]Tabel 4F H DATA'!P13 -> 54 | F13: ='[1]Tabel 4F H DATA'!Q13 -> 19 | G13: ='[1]Tabel 4F H DATA'!R13 -> 4 | I13: ='[1]Tabel 4F H DATA'!T13 -> 748
A14: ='[1]Tabel 4F H DATA'!L14 -> Øvrige Mag. | C14: ='[1]Tabel 4F H DATA'!N14 -> 65 | D14: ='[1]Tabel 4F H DATA'!O14 -> 130 | E14: ='[1]Tabel 4F H DATA'!P14 -> 145 | F14: ='[1]Tabel 4F H DATA'!Q14 -> 159 | G14: ='[1]Tabel 4F H DATA'!R14 -> 72 | I14: ='[1]Tabel 4F H DATA'!T14 -> 571
A15: ='[1]Tabel 4F H DATA'!L15 -> Agronom | C15: ='[1]Tabel 4F H DATA'!N15 -> 24 | D15: ='[1]Tabel 4F H DATA'!O15 -> 28 | E15: ='[1]Tabel 4F H DATA'!P15 -> 87 | F15: ='[1]Tabel 4F H DATA'!Q15 -> 142 | G15: ='[1]Tabel 4F H DATA'!R15 -> 64 | I15: ='[1]Tabel 4F H DATA'!T15 -> 345
A16: ='[1]Tabel 4F H DATA'!L16 -> Landsk. Arkt. | C16: ='[1]Tabel 4F H DATA'!N16 -> 1 | D16: ='[1]Tabel 4F H DATA'!O16 -> 11 | E16: ='[1]Tabel 4F H DATA'!P16 -> 16 | F16: ='[1]Tabel 4F H DATA'!Q16 -> 11 | G16: ='[1]Tabel 4F H DATA'!R16 -> 1 | I16: ='[1]Tabel 4F H DATA'!T16 -> 40
A17: ='[1]Tabel 4F H DATA'!L17 -> Hortonom | C17: ='[1]Tabel 4F H DATA'!N17 -> 0 | D17: ='[1]Tabel 4F H DATA'!O17 -> 2 | E17: ='[1]Tabel 4F H DATA'!P17 -> 6 | F17: ='[1]Tabel 4F H DATA'!Q17 -> 13 | G17: ='[1]Tabel 4F H DATA'!R17 -> 7 | I17: ='[1]Tabel 4F H DATA'!T17 -> 28
A18: ='[1]Tabel 4F H DATA'!L18 -> Forstkand. | C18: ='[1]Tabel 4F H DATA'!N18 -> 2 | D18: ='[1]Tabel 4F H DATA'!O18 -> 8 | E18: ='[1]Tabel 4F H DATA'!P18 -> 27 | F18: ='[1]Tabel 4F H DATA'!Q18 -> 9 | G18: ='[1]Tabel 4F H DATA'!R18 -> 8 | I18: ='[1]Tabel 4F H DATA'!T18 -> 54
A19: ='[1]Tabel 4F H DATA'!L19 -> Jordbrugsakad. | C19: ='[1]Tabel 4F H DATA'!N19 -> 27 | D19: ='[1]Tabel 4F H DATA'!O19 -> 49 | E19: ='[1]Tabel 4F H DATA'!P19 -> 136 | F19: ='[1]Tabel 4F H DATA'!Q19 -> 175 | G19: ='[1]Tabel 4F H DATA'!R19 -> 80 | I19: ='[1]Tabel 4F H DATA'!T19 -> 467
A20: ='[1]Tabel 4F H DATA'!L20 -> Mejeriing. | C20: ='[1]Tabel 4F H DATA'!N20 -> 2 | D20: ='[1]Tabel 4F H DATA'!O20 -> 9 | E20: ='[1]Tabel 4F H DATA'!P20 -> 12 | F20: ='[1]Tabel 4F H DATA'!Q20 -> 38 | G20: ='[1]Tabel 4F H DATA'!R20 -> 22 | I20: ='[1]Tabel 4F H DATA'!T20 -> 83
A21: ='[1]Tabel 4F H DATA'!L21 -> Levn.m.kand. | C21: ='[1]Tabel 4F H DATA'!N21 -> 4 | D21: ='[1]Tabel 4F H DATA'!O21 -> 13 | E21: ='[1]Tabel 4F H DATA'!P21 -> 9 | F21: ='[1]Tabel 4F H DATA'!Q21 -> 2 | G21: ='[1]Tabel 4F H DATA'!R21 -> 0 | I21: ='[1]Tabel 4F H DATA'!T21 -> 28
A22: ='[1]Tabel 4F H DATA'!L22 -> Dyrlæge | C22: ='[1]Tabel 4F H DATA'!N22 -> 23 | D22: ='[1]Tabel 4F H DATA'!O22 -> 91 | E22: ='[1]Tabel 4F H DATA'!P22 -> 62 | F22: ='[1]Tabel 4F H DATA'!Q22 -> 47 | G22: ='[1]Tabel 4F H DATA'!R22 -> 14 | I22: ='[1]Tabel 4F H DATA'!T22 -> 237
A23: ='[1]Tabel 4F H DATA'!L23 -> Farmaceut | C23: ='[1]Tabel 4F H DATA'!N23 -> 103 | D23: ='[1]Tabel 4F H DATA'!O23 -> 113 | E23: ='[1]Tabel 4F H DATA'!P23 -> 47 | F23: ='[1]Tabel 4F H DATA'!Q23 -> 45 | G23: ='[1]Tabel 4F H DATA'!R23 -> 17 | I23: ='[1]Tabel 4F H DATA'!T23 -> 325
A24: ='[1]Tabel 4F H DATA'!L24 -> Læge | C24: ='[1]Tabel 4F H DATA'!N24 -> 480 | D24: ='[1]Tabel 4F H DATA'!O24 -> 1200 | E24: ='[1]Tabel 4F H DATA'!P24 -> 518 | F24: ='[1]Tabel 4F H DATA'!Q24 -> 300 | G24: ='[1]Tabel 4F H DATA'!R24 -> 154 | I24: ='[1]Tabel 4F H DATA'!T24 -> 2652
A25: ='[1]Tabel 4F H DATA'!L25 -> Tandlæge | C25: ='[1]Tabel 4F H DATA'!N25 -> 94 | D25: ='[1]Tabel 4F H DATA'!O25 -> 152 | E25: ='[1]Tabel 4F H DATA'!P25 -> 99 | F25: ='[1]Tabel 4F H DATA'!Q25 -> 76 | G25: ='[1]Tabel 4F H DATA'!R25 -> 61 | I25: ='[1]Tabel 4F H DATA'!T25 -> 482
A26: ='[1]Tabel 4F H DATA'!L26 -> Arkitekt | C26: ='[1]Tabel 4F H DATA'!N26 -> 151 | D26: ='[1]Tabel 4F H DATA'!O26 -> 464 | E26: ='[1]Tabel 4F H DATA'!P26 -> 520 | F26: ='[1]Tabel 4F H DATA'!Q26 -> 265 | G26: ='[1]Tabel 4F H DATA'!R26 -> 174 | I26: ='[1]Tabel 4F H DATA'!T26 -> 1574
A27: ='[1]Tabel 4F H DATA'!L27 -> Landinspek. | C27: ='[1]Tabel 4F H DATA'!N27 -> 9 | D27: ='[1]Tabel 4F H DATA'!O27 -> 37 | E27: ='[1]Tabel 4F H DATA'!P27 -> 39 | F27: ='[1]Tabel 4F H DATA'!Q27 -> 29 | G27: ='[1]Tabel 4F H DATA'!R27 -> 22 | I27: ='[1]Tabel 4F H DATA'!T27 -> 136
A28: ='[1]Tabel 4F H DATA'!L28 -> Bibliotekar | C28: ='[1]Tabel 4F H DATA'!N28 -> 4 | D28: ='[1]Tabel 4F H DATA'!O28 -> 80 | E28: ='[1]Tabel 4F H DATA'!P28 -> 119 | F28: ='[1]Tabel 4F H DATA'!Q28 -> 92 | G28: ='[1]Tabel 4F H DATA'!R28 -> 59 | I28: ='[1]Tabel 4F H DATA'!T28 -> 354
A29: ='[1]Tabel 4F H DATA'!L29 -> Musikudd. | C29: ='[1]Tabel 4F H DATA'!N29 -> 5 | D29: ='[1]Tabel 4F H DATA'!O29 -> 16 | E29: ='[1]Tabel 4F H DATA'!P29 -> 31 | F29: ='[1]Tabel 4F H DATA'!Q29 -> 56 | G29: ='[1]Tabel 4F H DATA'!R29 -> 38 | I29: ='[1]Tabel 4F H DATA'!T29 -> 146
A30: ='[1]Tabel 4F H DATA'!L30 -> Teolog | C30: ='[1]Tabel 4F H DATA'!N30 -> 18 | D30: ='[1]Tabel 4F H DATA'!O30 -> 63 | E30: ='[1]Tabel 4F H DATA'!P30 -> 123 | F30: ='[1]Tabel 4F H DATA'!Q30 -> 97 | G30: ='[1]Tabel 4F H DATA'!R30 -> 33 | I30: ='[1]Tabel 4F H DATA'!T30 -> 334
A31: ='[1]Tabel 4F H DATA'!L31 -> Psykolog | C31: ='[1]Tabel 4F H DATA'!N31 -> 344 | D31: ='[1]Tabel 4F H DATA'!O31 -> 733 | E31: ='[1]Tabel 4F H DATA'!P31 -> 477 | F31: ='[1]Tabel 4F H DATA'!Q31 -> 247 | G31: ='[1]Tabel 4F H DATA'!R31 -> 124 | I31: ='[1]Tabel 4F H DATA'!T31 -> 1925
A32: ='[1]Tabel 4F H DATA'!L32 -> Jurist | C32: ='[1]Tabel 4F H DATA'!N32 -> 566 | D32: ='[1]Tabel 4F H DATA'!O32 -> 824 | E32: ='[1]Tabel 4F H DATA'!P32 -> 520 | F32: ='[1]Tabel 4F H DATA'!Q32 -> 337 | G32: ='[1]Tabel 4F H DATA'!R32 -> 100 | I32: ='[1]Tabel 4F H DATA'!T32 -> 2347
A33: ='[1]Tabel 4F H DATA'!L33 -> Økonom | C33: ='[1]Tabel 4F H DATA'!N33 -> 295 | D33: ='[1]Tabel 4F H DATA'!O33 -> 474 | E33: ='[1]Tabel 4F H DATA'!P33 -> 331 | F33: ='[1]Tabel 4F H DATA'!Q33 -> 271 | G33: ='[1]Tabel 4F H DATA'!R33 -> 77 | I33: ='[1]Tabel 4F H DATA'!T33 -> 1448
A34: ='[1]Tabel 4F H DATA'!L34 -> Samf. Adm. | C34: ='[1]Tabel 4F H DATA'!N34 -> 682 | D34: ='[1]Tabel 4F H DATA'!O34 -> 1312 | E34: ='[1]Tabel 4F H DATA'!P34 -> 750 | F34: ='[1]Tabel 4F H DATA'!Q34 -> 412 | G34: ='[1]Tabel 4F H DATA'!R34 -> 87 | I34: ='[1]Tabel 4F H DATA'!T34 -> 3243
A35: ='[1]Tabel 4F H DATA'!L35 -> Cand. Merc. | C35: ='[1]Tabel 4F H DATA'!N35 -> 1574 | D35: ='[1]Tabel 4F H DATA'!O35 -> 2887 | E35: ='[1]Tabel 4F H DATA'!P35 -> 1345 | F35: ='[1]Tabel 4F H DATA'!Q35 -> 913 | G35: ='[1]Tabel 4F H DATA'!R35 -> 138 | I35: ='[1]Tabel 4F H DATA'!T35 -> 6857
A36: ='[1]Tabel 4F H DATA'!L36 -> HA | C36: ='[1]Tabel 4F H DATA'!N36 -> 297 | D36: ='[1]Tabel 4F H DATA'!O36 -> 276 | E36: ='[1]Tabel 4F H DATA'!P36 -> 160 | F36: ='[1]Tabel 4F H DATA'!Q36 -> 304 | G36: ='[1]Tabel 4F H DATA'!R36 -> 71 | I36: ='[1]Tabel 4F H DATA'!T36 -> 1108
A37: ='[1]Tabel 4F H DATA'!L37 -> HD | C37: ='[1]Tabel 4F H DATA'!N37 -> 147 | D37: ='[1]Tabel 4F H DATA'!O37 -> 210 | E37: ='[1]Tabel 4F H DATA'!P37 -> 148 | F37: ='[1]Tabel 4F H DATA'!Q37 -> 276 | G37: ='[1]Tabel 4F H DATA'!R37 -> 86 | I37: ='[1]Tabel 4F H DATA'!T37 -> 867
A38: ='[1]Tabel 4F H DATA'!L38 -> Komm. og Sprog | C38: ='[1]Tabel 4F H DATA'!N38 -> 198 | D38: ='[1]Tabel 4F H DATA'!O38 -> 251 | E38: ='[1]Tabel 4F H DATA'!P38 -> 391 | F38: ='[1]Tabel 4F H DATA'!Q38 -> 328 | G38: ='[1]Tabel 4F H DATA'!R38 -> 134 | I38: ='[1]Tabel 4F H DATA'!T38 -> 1302
A39: ='[1]Tabel 4F H DATA'!L39 -> Bygningskonst. | C39: ='[1]Tabel 4F H DATA'!N39 -> 508 | D39: ='[1]Tabel 4F H DATA'!O39 -> 940 | E39: ='[1]Tabel 4F H DATA'!P39 -> 502 | F39: ='[1]Tabel 4F H DATA'!Q39 -> 230 | G39: ='[1]Tabel 4F H DATA'!R39 -> 63 | I39: ='[1]Tabel 4F H DATA'!T39 -> 2243
A40: ='[1]Tabel 4F H DATA'!L40 -> Cand. IT. | C40: ='[1]Tabel 4F H DATA'!N40 -> 284 | D40: ='[1]Tabel 4F H DATA'!O40 -> 494 | E40: ='[1]Tabel 4F H DATA'!P40 -> 151 | F40: ='[1]Tabel 4F H DATA'!Q40 -> 18 | G40: ='[1]Tabel 4F H DATA'!R40 -> 2 | I40: ='[1]Tabel 4F H DATA'!T40 -> 949
A41: ='[1]Tabel 4F H DATA'!L41 -> Bac. Samf. | C41: ='[1]Tabel 4F H DATA'!N41 -> 61 | D41: ='[1]Tabel 4F H DATA'!O41 -> 38 | E41: ='[1]Tabel 4F H DATA'!P41 -> 51 | F41: ='[1]Tabel 4F H DATA'!Q41 -> 35 | G41: ='[1]Tabel 4F H DATA'!R41 -> 11 | I41: ='[1]Tabel 4F H DATA'!T41 -> 196
A42: ='[1]Tabel 4F H DATA'!L42 -> Bac. Hum. | C42: ='[1]Tabel 4F H DATA'!N42 -> 369 | D42: ='[1]Tabel 4F H DATA'!O42 -> 168 | E42: ='[1]Tabel 4F H DATA'!P42 -> 157 | F42: ='[1]Tabel 4F H DATA'!Q42 -> 110 | G42: ='[1]Tabel 4F H DATA'!R42 -> 38 | I42: ='[1]Tabel 4F H DATA'!T42 -> 842
A43: ='[1]Tabel 4F H DATA'!L43 -> Bac. Nat. | C43: ='[1]Tabel 4F H DATA'!N43 -> 321 | D43: ='[1]Tabel 4F H DATA'!O43 -> 227 | E43: ='[1]Tabel 4F H DATA'!P43 -> 83 | F43: ='[1]Tabel 4F H DATA'!Q43 -> 23 | G43: ='[1]Tabel 4F H DATA'!R43 -> 2 | I43: ='[1]Tabel 4F H DATA'!T43 -> 656
A44: ='[1]Tabel 4F H DATA'!L44 -> Andre | C44: ='[1]Tabel 4F H DATA'!N44 -> 505 | D44: ='[1]Tabel 4F H DATA'!O44 -> 1132 | E44: ='[1]Tabel 4F H DATA'!P44 -> 782 | F44: ='[1]Tabel 4F H DATA'!Q44 -> 461 | G44: ='[1]Tabel 4F H DATA'!R44 -> 255 | I44: ='[1]Tabel 4F H DATA'!T44 -> 3135
A46: ='[1]Tabel 4F H DATA'!L46 -> Total | C46: ='[1]Tabel 4F H DATA'!N46 -> 11684 | D46: ='[1]Tabel 4F H DATA'!O46 -> 21069 | E46: ='[1]Tabel 4F H DATA'!P46 -> 14570 | F46: ='[1]Tabel 4F H DATA'!Q46 -> 10232 | G46: ='[1]Tabel 4F H DATA'!R46 -> 3743 | I46: ='[1]Tabel 4F H DATA'!T46 -> 61298
A48: ='[1]Tabel 4F H DATA'!L48 -> Ingeniører i alt | C48: ='[1]Tabel 4F H DATA'!N48 -> 1762 | D48: ='[1]Tabel 4F H DATA'!O48 -> 3088 | E48: ='[1]Tabel 4F H DATA'!P48 -> 2717 | F48: ='[1]Tabel 4F H DATA'!Q48 -> 2750 | G48: ='[1]Tabel 4F H DATA'!R48 -> 946 | I48: ='[1]Tabel 4F H DATA'!T48 -> 11263
A49: ='[1]Tabel 4F H DATA'!L49 -> Magistre i alt | C49: ='[1]Tabel 4F H DATA'!N49 -> 1858 | D49: ='[1]Tabel 4F H DATA'!O49 -> 4231 | E49: ='[1]Tabel 4F H DATA'!P49 -> 3912 | F49: ='[1]Tabel 4F H DATA'!Q49 -> 2175 | G49: ='[1]Tabel 4F H DATA'!R49 -> 914 | I49: ='[1]Tabel 4F H DATA'!T49 -> 13090
A50: ='[1]Tabel 4F H DATA'!L50 -> DJØF'ere i alt | C50: ='[1]Tabel 4F H DATA'!N50 -> 3414 | D50: ='[1]Tabel 4F H DATA'!O50 -> 5773 | E50: ='[1]Tabel 4F H DATA'!P50 -> 3106 | F50: ='[1]Tabel 4F H DATA'!Q50 -> 2237 | G50: ='[1]Tabel 4F H DATA'!R50 -> 473 | I50: ='[1]Tabel 4F H DATA'!T50 -> 15003
A57: ='[1]Tabel 4F H DATA'!L55 -> Horsens
C59: ='[1]Tabel 4F H DATA'!N57 -> Under 30 år | D59: ='[1]Tabel 4F H DATA'!O57 -> 30 - 39 år | E59: ='[1]Tabel 4F H DATA'!P57 -> 40 - 49 år | F59: ='[1]Tabel 4F H DATA'!Q57 -> 50 - 59 år | G59: ='[1]Tabel 4F H DATA'!R57 -> Over 60 år | I59: ='[1]Tabel 4F H DATA'!T57 -> I alt
A61: ='[1]Tabel 4F H DATA'!L59 -> Civ. ing. | C61: ='[1]Tabel 4F H DATA'!N59 -> 46 | D61: ='[1]Tabel 4F H DATA'!O59 -> 121 | E61: ='[1]Tabel 4F H DATA'!P59 -> 86 | F61: ='[1]Tabel 4F H DATA'!Q59 -> 40 | G61: ='[1]Tabel 4F H DATA'!R59 -> 6 | I61: ='[1]Tabel 4F H DATA'!T59 -> 299
A62: ='[1]Tabel 4F H DATA'!L60 -> Diplom ing. | C62: ='[1]Tabel 4F H DATA'!N60 -> 103 | D62: ='[1]Tabel 4F H DATA'!O60 -> 225 | E62: ='[1]Tabel 4F H DATA'!P60 -> 305 | F62: ='[1]Tabel 4F H DATA'!Q60 -> 237 | G62: ='[1]Tabel 4F H DATA'!R60 -> 80 | I62: ='[1]Tabel 4F H DATA'!T60 -> 950
A63: ='[1]Tabel 4F H DATA'!L61 -> Cand. Scient. Tek. | C63: ='[1]Tabel 4F H DATA'!N61 -> 30 | D63: ='[1]Tabel 4F H DATA'!O61 -> 79 | E63: ='[1]Tabel 4F H DATA'!P61 -> 29 | F63: ='[1]Tabel 4F H DATA'!Q61 -> 1 | G63: ='[1]Tabel 4F H DATA'!R61 -> 0 | I63: ='[1]Tabel 4F H DATA'!T61 -> 139
A64: ='[1]Tabel 4F H DATA'!L62 -> MA. Hum. | C64: ='[1]Tabel 4F H DATA'!N62 -> 43 | D64: ='[1]Tabel 4F H DATA'!O62 -> 135 | E64: ='[1]Tabel 4F H DATA'!P62 -> 150 | F64: ='[1]Tabel 4F H DATA'!Q62 -> 45 | G64: ='[1]Tabel 4F H DATA'!R62 -> 21 | I64: ='[1]Tabel 4F H DATA'!T62 -> 394
A65: ='[1]Tabel 4F H DATA'!L63 -> MA. Nat. | C65: ='[1]Tabel 4F H DATA'!N63 -> 4 | D65: ='[1]Tabel 4F H DATA'!O63 -> 29 | E65: ='[1]Tabel 4F H DATA'!P63 -> 56 | F65: ='[1]Tabel 4F H DATA'!Q63 -> 40 | G65: ='[1]Tabel 4F H DATA'!R63 -> 6 | I65: ='[1]Tabel 4F H DATA'!T63 -> 135
A66: ='[1]Tabel 4F H DATA'!L64 -> MA. Ph.d. | C66: ='[1]Tabel 4F H DATA'!N64 -> 0 | D66: ='[1]Tabel 4F H DATA'!O64 -> 3 | E66: ='[1]Tabel 4F H DATA'!P64 -> 3 | F66: ='[1]Tabel 4F H DATA'!Q64 -> 3 | G66: ='[1]Tabel 4F H DATA'!R64 -> 0 | I66: ='[1]Tabel 4F H DATA'!T64 -> 9
A67: ='[1]Tabel 4F H DATA'!L65 -> MA. Samf. | C67: ='[1]Tabel 4F H DATA'!N65 -> 4 | D67: ='[1]Tabel 4F H DATA'!O65 -> 22 | E67: ='[1]Tabel 4F H DATA'!P65 -> 5 | F67: ='[1]Tabel 4F H DATA'!Q65 -> 1 | G67: ='[1]Tabel 4F H DATA'!R65 -> 0 | I67: ='[1]Tabel 4F H DATA'!T65 -> 32
A68: ='[1]Tabel 4F H DATA'!L66 -> Øvrige Mag. | C68: ='[1]Tabel 4F H DATA'!N66 -> 0 | D68: ='[1]Tabel 4F H DATA'!O66 -> 9 | E68: ='[1]Tabel 4F H DATA'!P66 -> 9 | F68: ='[1]Tabel 4F H DATA'!Q66 -> 6 | G68: ='[1]Tabel 4F H DATA'!R66 -> 5 | I68: ='[1]Tabel 4F H DATA'!T66 -> 29
A69: ='[1]Tabel 4F H DATA'!L67 -> Agronom | C69: ='[1]Tabel 4F H DATA'!N67 -> 1 | D69: ='[1]Tabel 4F H DATA'!O67 -> 3 | E69: ='[1]Tabel 4F H DATA'!P67 -> 10 | F69: ='[1]Tabel 4F H DATA'!Q67 -> 14 | G69: ='[1]Tabel 4F H DATA'!R67 -> 8 | I69: ='[1]Tabel 4F H DATA'!T67 -> 36
A70: ='[1]Tabel 4F H DATA'!L68 -> Landsk. Arkt. | C70: ='[1]Tabel 4F H DATA'!N68 -> 0 | D70: ='[1]Tabel 4F H DATA'!O68 -> 1 | E70: ='[1]Tabel 4F H DATA'!P68 -> 1 | F70: ='[1]Tabel 4F H DATA'!Q68 -> 0 | G70: ='[1]Tabel 4F H DATA'!R68 -> 0 | I70: ='[1]Tabel 4F H DATA'!T68 -> 2
A71: ='[1]Tabel 4F H DATA'!L69 -> Hortonom | C71: ='[1]Tabel 4F H DATA'!N69 -> 0 | D71: ='[1]Tabel 4F H DATA'!O69 -> 0 | E71: ='[1]Tabel 4F H DATA'!P69 -> 1 | F71: ='[1]Tabel 4F H DATA'!Q69 -> 0 | G71: ='[1]Tabel 4F H DATA'!R69 -> 0 | I71: ='[1]Tabel 4F H DATA'!T69 -> 1
A72: ='[1]Tabel 4F H DATA'!L70 -> Forstkand. | C72: ='[1]Tabel 4F H DATA'!N70 -> 0 | D72: ='[1]Tabel 4F H DATA'!O70 -> 1 | E72: ='[1]Tabel 4F H DATA'!P70 -> 3 | F72: ='[1]Tabel 4F H DATA'!Q70 -> 1 | G72: ='[1]Tabel 4F H DATA'!R70 -> 1 | I72: ='[1]Tabel 4F H DATA'!T70 -> 6
A73: ='[1]Tabel 4F H DATA'!L71 -> Jordbrugsakad. | C73: ='[1]Tabel 4F H DATA'!N71 -> 1 | D73: ='[1]Tabel 4F H DATA'!O71 -> 5 | E73: ='[1]Tabel 4F H DATA'!P71 -> 15 | F73: ='[1]Tabel 4F H DATA'!Q71 -> 15 | G73: ='[1]Tabel 4F H DATA'!R71 -> 9 | I73: ='[1]Tabel 4F H DATA'!T71 -> 45
A74: ='[1]Tabel 4F H DATA'!L72 -> Mejeriing. | C74: ='[1]Tabel 4F H DATA'!N72 -> 0 | D74: ='[1]Tabel 4F H DATA'!O72 -> 2 | E74: ='[1]Tabel 4F H DATA'!P72 -> 0 | F74: ='[1]Tabel 4F H DATA'!Q72 -> 4 | G74: ='[1]Tabel 4F H DATA'!R72 -> 0 | I74: ='[1]Tabel 4F H DATA'!T72 -> 6
A75: ='[1]Tabel 4F H DATA'!L73 -> Levn.m.kand. | C75: ='[1]Tabel 4F H DATA'!N73 -> 0 | D75: ='[1]Tabel 4F H DATA'!O73 -> 1 | E75: ='[1]Tabel 4F H DATA'!P73 -> 0 | F75: ='[1]Tabel 4F H DATA'!Q73 -> 0 | G75: ='[1]Tabel 4F H DATA'!R73 -> 0 | I75: ='[1]Tabel 4F H DATA'!T73 -> 1
A76: ='[1]Tabel 4F H DATA'!L74 -> Dyrlæge | C76: ='[1]Tabel 4F H DATA'!N74 -> 2 | D76: ='[1]Tabel 4F H DATA'!O74 -> 8 | E76: ='[1]Tabel 4F H DATA'!P74 -> 6 | F76: ='[1]Tabel 4F H DATA'!Q74 -> 5 | G76: ='[1]Tabel 4F H DATA'!R74 -> 1 | I76: ='[1]Tabel 4F H DATA'!T74 -> 22
A77: ='[1]Tabel 4F H DATA'!L75 -> Farmaceut | C77: ='[1]Tabel 4F H DATA'!N75 -> 8 | D77: ='[1]Tabel 4F H DATA'!O75 -> 5 | E77: ='[1]Tabel 4F H DATA'!P75 -> 7 | F77: ='[1]Tabel 4F H DATA'!Q75 -> 2 | G77: ='[1]Tabel 4F H DATA'!R75 -> 1 | I77: ='[1]Tabel 4F H DATA'!T75 -> 23
A78: ='[1]Tabel 4F H DATA'!L76 -> Læge | C78: ='[1]Tabel 4F H DATA'!N76 -> 15 | D78: ='[1]Tabel 4F H DATA'!O76 -> 43 | E78: ='[1]Tabel 4F H DATA'!P76 -> 18 | F78: ='[1]Tabel 4F H DATA'!Q76 -> 10 | G78: ='[1]Tabel 4F H DATA'!R76 -> 3 | I78: ='[1]Tabel 4F H DATA'!T76 -> 89
A79: ='[1]Tabel 4F H DATA'!L77 -> Tandlæge | C79: ='[1]Tabel 4F H DATA'!N77 -> 3 | D79: ='[1]Tabel 4F H DATA'!O77 -> 11 | E79: ='[1]Tabel 4F H DATA'!P77 -> 5 | F79: ='[1]Tabel 4F H DATA'!Q77 -> 2 | G79: ='[1]Tabel 4F H DATA'!R77 -> 3 | I79: ='[1]Tabel 4F H DATA'!T77 -> 24
A80: ='[1]Tabel 4F H DATA'!L78 -> Arkitekt | C80: ='[1]Tabel 4F H DATA'!N78 -> 8 | D80: ='[1]Tabel 4F H DATA'!O78 -> 15 | E80: ='[1]Tabel 4F H DATA'!P78 -> 27 | F80: ='[1]Tabel 4F H DATA'!Q78 -> 10 | G80: ='[1]Tabel 4F H DATA'!R78 -> 8 | I80: ='[1]Tabel 4F H DATA'!T78 -> 68
A81: ='[1]Tabel 4F H DATA'!L79 -> Landinspek. | C81: ='[1]Tabel 4F H DATA'!N79 -> 1 | D81: ='[1]Tabel 4F H DATA'!O79 -> 7 | E81: ='[1]Tabel 4F H DATA'!P79 -> 7 | F81: ='[1]Tabel 4F H DATA'!Q79 -> 2 | G81: ='[1]Tabel 4F H DATA'!R79 -> 3 | I81: ='[1]Tabel 4F H DATA'!T79 -> 20
A82: ='[1]Tabel 4F H DATA'!L80 -> Bibliotekar | C82: ='[1]Tabel 4F H DATA'!N80 -> 1 | D82: ='[1]Tabel 4F H DATA'!O80 -> 6 | E82: ='[1]Tabel 4F H DATA'!P80 -> 14 | F82: ='[1]Tabel 4F H DATA'!Q80 -> 9 | G82: ='[1]Tabel 4F H DATA'!R80 -> 4 | I82: ='[1]Tabel 4F H DATA'!T80 -> 34
A83: ='[1]Tabel 4F H DATA'!L81 -> Musikudd. | C83: ='[1]Tabel 4F H DATA'!N81 -> 0 | D83: ='[1]Tabel 4F H DATA'!O81 -> 0 | E83: ='[1]Tabel 4F H DATA'!P81 -> 1 | F83: ='[1]Tabel 4F H DATA'!Q81 -> 5 | G83: ='[1]Tabel 4F H DATA'!R81 -> 2 | I83: ='[1]Tabel 4F H DATA'!T81 -> 8
A84: ='[1]Tabel 4F H DATA'!L82 -> Teolog | C84: ='[1]Tabel 4F H DATA'!N82 -> 1 | D84: ='[1]Tabel 4F H DATA'!O82 -> 3 | E84: ='[1]Tabel 4F H DATA'!P82 -> 3 | F84: ='[1]Tabel 4F H DATA'!Q82 -> 6 | G84: ='[1]Tabel 4F H DATA'!R82 -> 3 | I84: ='[1]Tabel 4F H DATA'!T82 -> 16
A85: ='[1]Tabel 4F H DATA'!L83 -> Psykolog | C85: ='[1]Tabel 4F H DATA'!N83 -> 14 | D85: ='[1]Tabel 4F H DATA'!O83 -> 35 | E85: ='[1]Tabel 4F H DATA'!P83 -> 32 | F85: ='[1]Tabel 4F H DATA'!Q83 -> 7 | G85: ='[1]Tabel 4F H DATA'!R83 -> 5 | I85: ='[1]Tabel 4F H DATA'!T83 -> 93
A86: ='[1]Tabel 4F H DATA'!L84 -> Jurist | C86: ='[1]Tabel 4F H DATA'!N84 -> 23 | D86: ='[1]Tabel 4F H DATA'!O84 -> 56 | E86: ='[1]Tabel 4F H DATA'!P84 -> 42 | F86: ='[1]Tabel 4F H DATA'!Q84 -> 16 | G86: ='[1]Tabel 4F H DATA'!R84 -> 7 | I86: ='[1]Tabel 4F H DATA'!T84 -> 144
A87: ='[1]Tabel 4F H DATA'!L85 -> Økonom | C87: ='[1]Tabel 4F H DATA'!N85 -> 10 | D87: ='[1]Tabel 4F H DATA'!O85 -> 24 | E87: ='[1]Tabel 4F H DATA'!P85 -> 18 | F87: ='[1]Tabel 4F H DATA'!Q85 -> 11 | G87: ='[1]Tabel 4F H DATA'!R85 -> 3 | I87: ='[1]Tabel 4F H DATA'!T85 -> 66
A88: ='[1]Tabel 4F H DATA'!L86 -> Samf. Adm. | C88: ='[1]Tabel 4F H DATA'!N86 -> 22 | D88: ='[1]Tabel 4F H DATA'!O86 -> 76 | E88: ='[1]Tabel 4F H DATA'!P86 -> 57 | F88: ='[1]Tabel 4F H DATA'!Q86 -> 15 | G88: ='[1]Tabel 4F H DATA'!R86 -> 3 | I88: ='[1]Tabel 4F H DATA'!T86 -> 173
A89: ='[1]Tabel 4F H DATA'!L87 -> Cand. Merc. | C89: ='[1]Tabel 4F H DATA'!N87 -> 81 | D89: ='[1]Tabel 4F H DATA'!O87 -> 196 | E89: ='[1]Tabel 4F H DATA'!P87 -> 106 | F89: ='[1]Tabel 4F H DATA'!Q87 -> 65 | G89: ='[1]Tabel 4F H DATA'!R87 -> 4 | I89: ='[1]Tabel 4F H DATA'!T87 -> 452
A90: ='[1]Tabel 4F H DATA'!L88 -> HA | C90: ='[1]Tabel 4F H DATA'!N88 -> 30 | D90: ='[1]Tabel 4F H DATA'!O88 -> 16 | E90: ='[1]Tabel 4F H DATA'!P88 -> 21 | F90: ='[1]Tabel 4F H DATA'!Q88 -> 22 | G90: ='[1]Tabel 4F H DATA'!R88 -> 8 | I90: ='[1]Tabel 4F H DATA'!T88 -> 97
A91: ='[1]Tabel 4F H DATA'!L89 -> HD | C91: ='[1]Tabel 4F H DATA'!N89 -> 6 | D91: ='[1]Tabel 4F H DATA'!O89 -> 13 | E91: ='[1]Tabel 4F H DATA'!P89 -> 12 | F91: ='[1]Tabel 4F H DATA'!Q89 -> 24 | G91: ='[1]Tabel 4F H DATA'!R89 -> 7 | I91: ='[1]Tabel 4F H DATA'!T89 -> 62
A92: ='[1]Tabel 4F H DATA'!L90 -> Komm. og Sprog | C92: ='[1]Tabel 4F H DATA'!N90 -> 12 | D92: ='[1]Tabel 4F H DATA'!O90 -> 13 | E92: ='[1]Tabel 4F H DATA'!P90 -> 28 | F92: ='[1]Tabel 4F H DATA'!Q90 -> 20 | G92: ='[1]Tabel 4F H DATA'!R90 -> 8 | I92: ='[1]Tabel 4F H DATA'!T90 -> 81
A93: ='[1]Tabel 4F H DATA'!L91 -> Bygningskonst. | C93: ='[1]Tabel 4F H DATA'!N91 -> 92 | D93: ='[1]Tabel 4F H DATA'!O91 -> 181 | E93: ='[1]Tabel 4F H DATA'!P91 -> 131 | F93: ='[1]Tabel 4F H DATA'!Q91 -> 50 | G93: ='[1]Tabel 4F H DATA'!R91 -> 12 | I93: ='[1]Tabel 4F H DATA'!T91 -> 466
A94: ='[1]Tabel 4F H DATA'!L92 -> Cand. IT. | C94: ='[1]Tabel 4F H DATA'!N92 -> 8 | D94: ='[1]Tabel 4F H DATA'!O92 -> 18 | E94: ='[1]Tabel 4F H DATA'!P92 -> 12 | F94: ='[1]Tabel 4F H DATA'!Q92 -> 0 | G94: ='[1]Tabel 4F H DATA'!R92 -> 0 | I94: ='[1]Tabel 4F H DATA'!T92 -> 38
A95: ='[1]Tabel 4F H DATA'!L93 -> Bac. Samf. | C95: ='[1]Tabel 4F H DATA'!N93 -> 4 | D95: ='[1]Tabel 4F H DATA'!O93 -> 2 | E95: ='[1]Tabel 4F H DATA'!P93 -> 6 | F95: ='[1]Tabel 4F H DATA'!Q93 -> 1 | G95: ='[1]Tabel 4F H DATA'!R93 -> 2 | I95: ='[1]Tabel 4F H DATA'!T93 -> 15
A96: ='[1]Tabel 4F H DATA'!L94 -> Bac. Hum. | C96: ='[1]Tabel 4F H DATA'!N94 -> 7 | D96: ='[1]Tabel 4F H DATA'!O94 -> 9 | E96: ='[1]Tabel 4F H DATA'!P94 -> 14 | F96: ='[1]Tabel 4F H DATA'!Q94 -> 6 | G96: ='[1]Tabel 4F H DATA'!R94 -> 3 | I96: ='[1]Tabel 4F H DATA'!T94 -> 39
A97: ='[1]Tabel 4F H DATA'!L95 -> Bac. Nat. | C97: ='[1]Tabel 4F H DATA'!N95 -> 68 | D97: ='[1]Tabel 4F H DATA'!O95 -> 37 | E97: ='[1]Tabel 4F H DATA'!P95 -> 12 | F97: ='[1]Tabel 4F H DATA'!Q95 -> 2 | G97: ='[1]Tabel 4F H DATA'!R95 -> 0 | I97: ='[1]Tabel 4F H DATA'!T95 -> 119
A98: ='[1]Tabel 4F H DATA'!L96 -> Andre | C98: ='[1]Tabel 4F H DATA'!N96 -> 63 | D98: ='[1]Tabel 4F H DATA'!O96 -> 92 | E98: ='[1]Tabel 4F H DATA'!P96 -> 50 | F98: ='[1]Tabel 4F H DATA'!Q96 -> 30 | G98: ='[1]Tabel 4F H DATA'!R96 -> 10 | I98: ='[1]Tabel 4F H DATA'!T96 -> 245
A100: ='[1]Tabel 4F H DATA'!L98 -> Total | C100: ='[1]Tabel 4F H DATA'!N98 -> 710 | D100: ='[1]Tabel 4F H DATA'!O98 -> 1497 | E100: ='[1]Tabel 4F H DATA'!P98 -> 1287 | F100: ='[1]Tabel 4F H DATA'!Q98 -> 712 | G100: ='[1]Tabel 4F H DATA'!R98 -> 227 | I100: ='[1]Tabel 4F H DATA'!T98 -> 4433
A102: ='[1]Tabel 4F H DATA'!L100 -> Ingeniører i alt | C102: ='[1]Tabel 4F H DATA'!N100 -> 149 | D102: ='[1]Tabel 4F H DATA'!O100 -> 346 | E102: ='[1]Tabel 4F H DATA'!P100 -> 391 | F102: ='[1]Tabel 4F H DATA'!Q100 -> 277 | G102: ='[1]Tabel 4F H DATA'!R100 -> 86 | I102: ='[1]Tabel 4F H DATA'!T100 -> 1249
A103: ='[1]Tabel 4F H DATA'!L101 -> Magistre i alt | C103: ='[1]Tabel 4F H DATA'!N101 -> 51 | D103: ='[1]Tabel 4F H DATA'!O101 -> 198 | E103: ='[1]Tabel 4F H DATA'!P101 -> 223 | F103: ='[1]Tabel 4F H DATA'!Q101 -> 95 | G103: ='[1]Tabel 4F H DATA'!R101 -> 32 | I103: ='[1]Tabel 4F H DATA'!T101 -> 599
A104: ='[1]Tabel 4F H DATA'!L102 -> DJØF'ere i alt | C104: ='[1]Tabel 4F H DATA'!N102 -> 166 | D104: ='[1]Tabel 4F H DATA'!O102 -> 368 | E104: ='[1]Tabel 4F H DATA'!P102 -> 244 | F104: ='[1]Tabel 4F H DATA'!Q102 -> 129 | G104: ='[1]Tabel 4F H DATA'!R102 -> 25 | I104: ='[1]Tabel 4F H DATA'!T102 -> 932
A111: ='[1]Tabel 4F H DATA'!L107 -> Syddjurs
C113: ='[1]Tabel 4F H DATA'!N109 -> Under 30 år | D113: ='[1]Tabel 4F H DATA'!O109 -> 30 - 39 år | E113: ='[1]Tabel 4F H DATA'!P109 -> 40 - 49 år | F113: ='[1]Tabel 4F H DATA'!Q109 -> 50 - 59 år | G113: ='[1]Tabel 4F H DATA'!R109 -> Over 60 år | I113: ='[1]Tabel 4F H DATA'!T109 -> I alt
A115: ='[1]Tabel 4F H DATA'!L111 -> Civ. ing. | C115: ='[1]Tabel 4F H DATA'!N111 -> 3 | D115: ='[1]Tabel 4F H DATA'!O111 -> 26 | E115: ='[1]Tabel 4F H DATA'!P111 -> 22 | F115: ='[1]Tabel 4F H DATA'!Q111 -> 28 | G115: ='[1]Tabel 4F H DATA'!R111 -> 6 | I115: ='[1]Tabel 4F H DATA'!T111 -> 85
A116: ='[1]Tabel 4F H DATA'!L112 -> Diplom ing. | C116: ='[1]Tabel 4F H DATA'!N112 -> 12 | D116: ='[1]Tabel 4F H DATA'!O112 -> 30 | E116: ='[1]Tabel 4F H DATA'!P112 -> 68 | F116: ='[1]Tabel 4F H DATA'!Q112 -> 91 | G116: ='[1]Tabel 4F H DATA'!R112 -> 28 | I116: ='[1]Tabel 4F H DATA'!T112 -> 229
A117: ='[1]Tabel 4F H DATA'!L113 -> Cand. Scient. Tek. | C117: ='[1]Tabel 4F H DATA'!N113 -> 12 | D117: ='[1]Tabel 4F H DATA'!O113 -> 37 | E117: ='[1]Tabel 4F H DATA'!P113 -> 17 | F117: ='[1]Tabel 4F H DATA'!Q113 -> 3 | G117: ='[1]Tabel 4F H DATA'!R113 -> 0 | I117: ='[1]Tabel 4F H DATA'!T113 -> 69
A118: ='[1]Tabel 4F H DATA'!L114 -> MA. Hum. | C118: ='[1]Tabel 4F H DATA'!N114 -> 6 | D118: ='[1]Tabel 4F H DATA'!O114 -> 85 | E118: ='[1]Tabel 4F H DATA'!P114 -> 88 | F118: ='[1]Tabel 4F H DATA'!Q114 -> 50 | G118: ='[1]Tabel 4F H DATA'!R114 -> 20 | I118: ='[1]Tabel 4F H DATA'!T114 -> 249
A119: ='[1]Tabel 4F H DATA'!L115 -> MA. Nat. | C119: ='[1]Tabel 4F H DATA'!N115 -> 2 | D119: ='[1]Tabel 4F H DATA'!O115 -> 20 | E119: ='[1]Tabel 4F H DATA'!P115 -> 35 | F119: ='[1]Tabel 4F H DATA'!Q115 -> 39 | G119: ='[1]Tabel 4F H DATA'!R115 -> 19 | I119: ='[1]Tabel 4F H DATA'!T115 -> 115
A120: ='[1]Tabel 4F H DATA'!L116 -> MA. Ph.d. | C120: ='[1]Tabel 4F H DATA'!N116 -> 0 | D120: ='[1]Tabel 4F H DATA'!O116 -> 6 | E120: ='[1]Tabel 4F H DATA'!P116 -> 11 | F120: ='[1]Tabel 4F H DATA'!Q116 -> 6 | G120: ='[1]Tabel 4F H DATA'!R116 -> 0 | I120: ='[1]Tabel 4F H DATA'!T116 -> 23
A121: ='[1]Tabel 4F H DATA'!L117 -> MA. Samf. | C121: ='[1]Tabel 4F H DATA'!N117 -> 0 | D121: ='[1]Tabel 4F H DATA'!O117 -> 22 | E121: ='[1]Tabel 4F H DATA'!P117 -> 0 | F121: ='[1]Tabel 4F H DATA'!Q117 -> 0 | G121: ='[1]Tabel 4F H DATA'!R117 -> 0 | I121: ='[1]Tabel 4F H DATA'!T117 -> 22
A122: ='[1]Tabel 4F H DATA'!L118 -> Øvrige Mag. | C122: ='[1]Tabel 4F H DATA'!N118 -> 0 | D122: ='[1]Tabel 4F H DATA'!O118 -> 7 | E122: ='[1]Tabel 4F H DATA'!P118 -> 5 | F122: ='[1]Tabel 4F H DATA'!Q118 -> 6 | G122: ='[1]Tabel 4F H DATA'!R118 -> 3 | I122: ='[1]Tabel 4F H DATA'!T118 -> 21
A123: ='[1]Tabel 4F H DATA'!L119 -> Agronom | C123: ='[1]Tabel 4F H DATA'!N119 -> 1 | D123: ='[1]Tabel 4F H DATA'!O119 -> 4 | E123: ='[1]Tabel 4F H DATA'!P119 -> 4 | F123: ='[1]Tabel 4F H DATA'!Q119 -> 13 | G123: ='[1]Tabel 4F H DATA'!R119 -> 6 | I123: ='[1]Tabel 4F H DATA'!T119 -> 28
A124: ='[1]Tabel 4F H DATA'!L120 -> Landsk. Arkt. | C124: ='[1]Tabel 4F H DATA'!N120 -> 0 | D124: ='[1]Tabel 4F H DATA'!O120 -> 1 | E124: ='[1]Tabel 4F H DATA'!P120 -> 2 | F124: ='[1]Tabel 4F H DATA'!Q120 -> 1 | G124: ='[1]Tabel 4F H DATA'!R120 -> 0 | I124: ='[1]Tabel 4F H DATA'!T120 -> 4
A125: ='[1]Tabel 4F H DATA'!L121 -> Hortonom | C125: ='[1]Tabel 4F H DATA'!N121 -> 0 | D125: ='[1]Tabel 4F H DATA'!O121 -> 0 | E125: ='[1]Tabel 4F H DATA'!P121 -> 1 | F125: ='[1]Tabel 4F H DATA'!Q121 -> 2 | G125: ='[1]Tabel 4F H DATA'!R121 -> 1 | I125: ='[1]Tabel 4F H DATA'!T121 -> 4
A126: ='[1]Tabel 4F H DATA'!L122 -> Forstkand. | C126: ='[1]Tabel 4F H DATA'!N122 -> 0 | D126: ='[1]Tabel 4F H DATA'!O122 -> 0 | E126: ='[1]Tabel 4F H DATA'!P122 -> 2 | F126: ='[1]Tabel 4F H DATA'!Q122 -> 0 | G126: ='[1]Tabel 4F H DATA'!R122 -> 2 | I126: ='[1]Tabel 4F H DATA'!T122 -> 4
A127: ='[1]Tabel 4F H DATA'!L123 -> Jordbrugsakad. | C127: ='[1]Tabel 4F H DATA'!N123 -> 1 | D127: ='[1]Tabel 4F H DATA'!O123 -> 5 | E127: ='[1]Tabel 4F H DATA'!P123 -> 9 | F127: ='[1]Tabel 4F H DATA'!Q123 -> 16 | G127: ='[1]Tabel 4F H DATA'!R123 -> 9 | I127: ='[1]Tabel 4F H DATA'!T123 -> 40
A128: ='[1]Tabel 4F H DATA'!L124 -> Mejeriing. | C128: ='[1]Tabel 4F H DATA'!N124 -> 1 | D128: ='[1]Tabel 4F H DATA'!O124 -> 0 | E128: ='[1]Tabel 4F H DATA'!P124 -> 1 | F128: ='[1]Tabel 4F H DATA'!Q124 -> 0 | G128: ='[1]Tabel 4F H DATA'!R124 -> 1 | I128: ='[1]Tabel 4F H DATA'!T124 -> 3
A129: ='[1]Tabel 4F H DATA'!L125 -> Levn.m.kand. | C129: ='[1]Tabel 4F H DATA'!N125 -> 0 | D129: ='[1]Tabel 4F H DATA'!O125 -> 0 | E129: ='[1]Tabel 4F H DATA'!P125 -> 0 | F129: ='[1]Tabel 4F H DATA'!Q125 -> 0 | G129: ='[1]Tabel 4F H DATA'!R125 -> 0 | I129: ='[1]Tabel 4F H DATA'!T125 -> 0
A130: ='[1]Tabel 4F H DATA'!L126 -> Dyrlæge | C130: ='[1]Tabel 4F H DATA'!N126 -> 0 | D130: ='[1]Tabel 4F H DATA'!O126 -> 6 | E130: ='[1]Tabel 4F H DATA'!P126 -> 1 | F130: ='[1]Tabel 4F H DATA'!Q126 -> 3 | G130: ='[1]Tabel 4F H DATA'!R126 -> 0 | I130: ='[1]Tabel 4F H DATA'!T126 -> 10
A131: ='[1]Tabel 4F H DATA'!L127 -> Farmaceut | C131: ='[1]Tabel 4F H DATA'!N127 -> 2 | D131: ='[1]Tabel 4F H DATA'!O127 -> 4 | E131: ='[1]Tabel 4F H DATA'!P127 -> 3 | F131: ='[1]Tabel 4F H DATA'!Q127 -> 0 | G131: ='[1]Tabel 4F H DATA'!R127 -> 0 | I131: ='[1]Tabel 4F H DATA'!T127 -> 9
A132: ='[1]Tabel 4F H DATA'!L128 -> Læge | C132: ='[1]Tabel 4F H DATA'!N128 -> 5 | D132: ='[1]Tabel 4F H DATA'!O128 -> 25 | E132: ='[1]Tabel 4F H DATA'!P128 -> 8 | F132: ='[1]Tabel 4F H DATA'!Q128 -> 8 | G132: ='[1]Tabel 4F H DATA'!R128 -> 5 | I132: ='[1]Tabel 4F H DATA'!T128 -> 51
A133: ='[1]Tabel 4F H DATA'!L129 -> Tandlæge | C133: ='[1]Tabel 4F H DATA'!N129 -> 2 | D133: ='[1]Tabel 4F H DATA'!O129 -> 4 | E133: ='[1]Tabel 4F H DATA'!P129 -> 4 | F133: ='[1]Tabel 4F H DATA'!Q129 -> 5 | G133: ='[1]Tabel 4F H DATA'!R129 -> 2 | I133: ='[1]Tabel 4F H DATA'!T129 -> 17
A134: ='[1]Tabel 4F H DATA'!L130 -> Arkitekt | C134: ='[1]Tabel 4F H DATA'!N130 -> 2 | D134: ='[1]Tabel 4F H DATA'!O130 -> 21 | E134: ='[1]Tabel 4F H DATA'!P130 -> 22 | F134: ='[1]Tabel 4F H DATA'!Q130 -> 16 | G134: ='[1]Tabel 4F H DATA'!R130 -> 12 | I134: ='[1]Tabel 4F H DATA'!T130 -> 73
A135: ='[1]Tabel 4F H DATA'!L131 -> Landinspek. | C135: ='[1]Tabel 4F H DATA'!N131 -> 0 | D135: ='[1]Tabel 4F H DATA'!O131 -> 2 | E135: ='[1]Tabel 4F H DATA'!P131 -> 2 | F135: ='[1]Tabel 4F H DATA'!Q131 -> 0 | G135: ='[1]Tabel 4F H DATA'!R131 -> 1 | I135: ='[1]Tabel 4F H DATA'!T131 -> 5
A136: ='[1]Tabel 4F H DATA'!L132 -> Bibliotekar | C136: ='[1]Tabel 4F H DATA'!N132 -> 0 | D136: ='[1]Tabel 4F H DATA'!O132 -> 3 | E136: ='[1]Tabel 4F H DATA'!P132 -> 6 | F136: ='[1]Tabel 4F H DATA'!Q132 -> 3 | G136: ='[1]Tabel 4F H DATA'!R132 -> 2 | I136: ='[1]Tabel 4F H DATA'!T132 -> 14
A137: ='[1]Tabel 4F H DATA'!L133 -> Musikudd. | C137: ='[1]Tabel 4F H DATA'!N133 -> 0 | D137: ='[1]Tabel 4F H DATA'!O133 -> 1 | E137: ='[1]Tabel 4F H DATA'!P133 -> 0 | F137: ='[1]Tabel 4F H DATA'!Q133 -> 4 | G137: ='[1]Tabel 4F H DATA'!R133 -> 1 | I137: ='[1]Tabel 4F H DATA'!T133 -> 6
A138: ='[1]Tabel 4F H DATA'!L134 -> Teolog | C138: ='[1]Tabel 4F H DATA'!N134 -> 1 | D138: ='[1]Tabel 4F H DATA'!O134 -> 3 | E138: ='[1]Tabel 4F H DATA'!P134 -> 9 | F138: ='[1]Tabel 4F H DATA'!Q134 -> 3 | G138: ='[1]Tabel 4F H DATA'!R134 -> 3 | I138: ='[1]Tabel 4F H DATA'!T134 -> 19
A139: ='[1]Tabel 4F H DATA'!L135 -> Psykolog | C139: ='[1]Tabel 4F H DATA'!N135 -> 5 | D139: ='[1]Tabel 4F H DATA'!O135 -> 20 | E139: ='[1]Tabel 4F H DATA'!P135 -> 14 | F139: ='[1]Tabel 4F H DATA'!Q135 -> 18 | G139: ='[1]Tabel 4F H DATA'!R135 -> 9 | I139: ='[1]Tabel 4F H DATA'!T135 -> 66
A140: ='[1]Tabel 4F H DATA'!L136 -> Jurist | C140: ='[1]Tabel 4F H DATA'!N136 -> 3 | D140: ='[1]Tabel 4F H DATA'!O136 -> 18 | E140: ='[1]Tabel 4F H DATA'!P136 -> 14 | F140: ='[1]Tabel 4F H DATA'!Q136 -> 11 | G140: ='[1]Tabel 4F H DATA'!R136 -> 4 | I140: ='[1]Tabel 4F H DATA'!T136 -> 50
A141: ='[1]Tabel 4F H DATA'!L137 -> Økonom | C141: ='[1]Tabel 4F H DATA'!N137 -> 0 | D141: ='[1]Tabel 4F H DATA'!O137 -> 6 | E141: ='[1]Tabel 4F H DATA'!P137 -> 8 | F141: ='[1]Tabel 4F H DATA'!Q137 -> 11 | G141: ='[1]Tabel 4F H DATA'!R137 -> 1 | I141: ='[1]Tabel 4F H DATA'!T137 -> 26
A142: ='[1]Tabel 4F H DATA'!L138 -> Samf. Adm. | C142: ='[1]Tabel 4F H DATA'!N138 -> 5 | D142: ='[1]Tabel 4F H DATA'!O138 -> 31 | E142: ='[1]Tabel 4F H DATA'!P138 -> 17 | F142: ='[1]Tabel 4F H DATA'!Q138 -> 13 | G142: ='[1]Tabel 4F H DATA'!R138 -> 6 | I142: ='[1]Tabel 4F H DATA'!T138 -> 72
A143: ='[1]Tabel 4F H DATA'!L139 -> Cand. Merc. | C143: ='[1]Tabel 4F H DATA'!N139 -> 11 | D143: ='[1]Tabel 4F H DATA'!O139 -> 57 | E143: ='[1]Tabel 4F H DATA'!P139 -> 29 | F143: ='[1]Tabel 4F H DATA'!Q139 -> 26 | G143: ='[1]Tabel 4F H DATA'!R139 -> 2 | I143: ='[1]Tabel 4F H DATA'!T139 -> 125
A144: ='[1]Tabel 4F H DATA'!L140 -> HA | C144: ='[1]Tabel 4F H DATA'!N140 -> 3 | D144: ='[1]Tabel 4F H DATA'!O140 -> 4 | E144: ='[1]Tabel 4F H DATA'!P140 -> 16 | F144: ='[1]Tabel 4F H DATA'!Q140 -> 11 | G144: ='[1]Tabel 4F H DATA'!R140 -> 4 | I144: ='[1]Tabel 4F H DATA'!T140 -> 38
A145: ='[1]Tabel 4F H DATA'!L141 -> HD | C145: ='[1]Tabel 4F H DATA'!N141 -> 2 | D145: ='[1]Tabel 4F H DATA'!O141 -> 5 | E145: ='[1]Tabel 4F H DATA'!P141 -> 4 | F145: ='[1]Tabel 4F H DATA'!Q141 -> 10 | G145: ='[1]Tabel 4F H DATA'!R141 -> 4 | I145: ='[1]Tabel 4F H DATA'!T141 -> 25
A146: ='[1]Tabel 4F H DATA'!L142 -> Komm. og Sprog | C146: ='[1]Tabel 4F H DATA'!N142 -> 1 | D146: ='[1]Tabel 4F H DATA'!O142 -> 8 | E146: ='[1]Tabel 4F H DATA'!P142 -> 10 | F146: ='[1]Tabel 4F H DATA'!Q142 -> 12 | G146: ='[1]Tabel 4F H DATA'!R142 -> 10 | I146: ='[1]Tabel 4F H DATA'!T142 -> 41
A147: ='[1]Tabel 4F H DATA'!L143 -> Bygningskonst. | C147: ='[1]Tabel 4F H DATA'!N143 -> 7 | D147: ='[1]Tabel 4F H DATA'!O143 -> 36 | E147: ='[1]Tabel 4F H DATA'!P143 -> 20 | F147: ='[1]Tabel 4F H DATA'!Q143 -> 6 | G147: ='[1]Tabel 4F H DATA'!R143 -> 5 | I147: ='[1]Tabel 4F H DATA'!T143 -> 74
A148: ='[1]Tabel 4F H DATA'!L144 -> Cand. IT. | C148: ='[1]Tabel 4F H DATA'!N144 -> 3 | D148: ='[1]Tabel 4F H DATA'!O144 -> 14 | E148: ='[1]Tabel 4F H DATA'!P144 -> 4 | F148: ='[1]Tabel 4F H DATA'!Q144 -> 0 | G148: ='[1]Tabel 4F H DATA'!R144 -> 0 | I148: ='[1]Tabel 4F H DATA'!T144 -> 21
A149: ='[1]Tabel 4F H DATA'!L145 -> Bac. Samf. | C149: ='[1]Tabel 4F H DATA'!N145 -> 0 | D149: ='[1]Tabel 4F H DATA'!O145 -> 0 | E149: ='[1]Tabel 4F H DATA'!P145 -> 1 | F149: ='[1]Tabel 4F H DATA'!Q145 -> 0 | G149: ='[1]Tabel 4F H DATA'!R145 -> 0 | I149: ='[1]Tabel 4F H DATA'!T145 -> 1
A150: ='[1]Tabel 4F H DATA'!L146 -> Bac. Hum. | C150: ='[1]Tabel 4F H DATA'!N146 -> 1 | D150: ='[1]Tabel 4F H DATA'!O146 -> 7 | E150: ='[1]Tabel 4F H DATA'!P146 -> 6 | F150: ='[1]Tabel 4F H DATA'!Q146 -> 3 | G150: ='[1]Tabel 4F H DATA'!R146 -> 2 | I150: ='[1]Tabel 4F H DATA'!T146 -> 19
A151: ='[1]Tabel 4F H DATA'!L147 -> Bac. Nat. | C151: ='[1]Tabel 4F H DATA'!N147 -> 4 | D151: ='[1]Tabel 4F H DATA'!O147 -> 7 | E151: ='[1]Tabel 4F H DATA'!P147 -> 3 | F151: ='[1]Tabel 4F H DATA'!Q147 -> 1 | G151: ='[1]Tabel 4F H DATA'!R147 -> 0 | I151: ='[1]Tabel 4F H DATA'!T147 -> 15
A152: ='[1]Tabel 4F H DATA'!L148 -> Andre | C152: ='[1]Tabel 4F H DATA'!N148 -> 1 | D152: ='[1]Tabel 4F H DATA'!O148 -> 35 | E152: ='[1]Tabel 4F H DATA'!P148 -> 28 | F152: ='[1]Tabel 4F H DATA'!Q148 -> 26 | G152: ='[1]Tabel 4F H DATA'!R148 -> 12 | I152: ='[1]Tabel 4F H DATA'!T148 -> 102
A154: ='[1]Tabel 4F H DATA'!L150 -> Total | C154: ='[1]Tabel 4F H DATA'!N150 -> 95 | D154: ='[1]Tabel 4F H DATA'!O150 -> 555 | E154: ='[1]Tabel 4F H DATA'!P150 -> 485 | F154: ='[1]Tabel 4F H DATA'!Q150 -> 429 | G154: ='[1]Tabel 4F H DATA'!R150 -> 171 | I154: ='[1]Tabel 4F H DATA'!T150 -> 1735
A156: ='[1]Tabel 4F H DATA'!L152 -> Ingeniører i alt | C156: ='[1]Tabel 4F H DATA'!N152 -> 15 | D156: ='[1]Tabel 4F H DATA'!O152 -> 56 | E156: ='[1]Tabel 4F H DATA'!P152 -> 90 | F156: ='[1]Tabel 4F H DATA'!Q152 -> 119 | G156: ='[1]Tabel 4F H DATA'!R152 -> 34 | I156: ='[1]Tabel 4F H DATA'!T152 -> 314
A157: ='[1]Tabel 4F H DATA'!L153 -> Magistre i alt | C157: ='[1]Tabel 4F H DATA'!N153 -> 8 | D157: ='[1]Tabel 4F H DATA'!O153 -> 140 | E157: ='[1]Tabel 4F H DATA'!P153 -> 139 | F157: ='[1]Tabel 4F H DATA'!Q153 -> 101 | G157: ='[1]Tabel 4F H DATA'!R153 -> 42 | I157: ='[1]Tabel 4F H DATA'!T153 -> 430
A158: ='[1]Tabel 4F H DATA'!L154 -> DJØF'ere i alt | C158: ='[1]Tabel 4F H DATA'!N154 -> 22 | D158: ='[1]Tabel 4F H DATA'!O154 -> 116 | E158: ='[1]Tabel 4F H DATA'!P154 -> 84 | F158: ='[1]Tabel 4F H DATA'!Q154 -> 72 | G158: ='[1]Tabel 4F H DATA'!R154 -> 17 | I158: ='[1]Tabel 4F H DATA'!T154 -> 311
A165: ='[1]Tabel 4F H DATA'!L159 -> Norddjurs
C167: ='[1]Tabel 4F H DATA'!N161 -> Under 30 år | D167: ='[1]Tabel 4F H DATA'!O161 -> 30 - 39 år | E167: ='[1]Tabel 4F H DATA'!P161 -> 40 - 49 år | F167: ='[1]Tabel 4F H DATA'!Q161 -> 50 - 59 år | G167: ='[1]Tabel 4F H DATA'!R161 -> Over 60 år | I167: ='[1]Tabel 4F H DATA'!T161 -> I alt
A169: ='[1]Tabel 4F H DATA'!L163 -> Civ. ing. | C169: ='[1]Tabel 4F H DATA'!N163 -> 9 | D169: ='[1]Tabel 4F H DATA'!O163 -> 7 | E169: ='[1]Tabel 4F H DATA'!P163 -> 3 | F169: ='[1]Tabel 4F H DATA'!Q163 -> 2 | G169: ='[1]Tabel 4F H DATA'!R163 -> 2 | I169: ='[1]Tabel 4F H DATA'!T163 -> 23
A170: ='[1]Tabel 4F H DATA'!L164 -> Diplom ing. | C170: ='[1]Tabel 4F H DATA'!N164 -> 2 | D170: ='[1]Tabel 4F H DATA'!O164 -> 15 | E170: ='[1]Tabel 4F H DATA'!P164 -> 17 | F170: ='[1]Tabel 4F H DATA'!Q164 -> 48 | G170: ='[1]Tabel 4F H DATA'!R164 -> 14 | I170: ='[1]Tabel 4F H DATA'!T164 -> 96
A171: ='[1]Tabel 4F H DATA'!L165 -> Cand. Scient. Tek. | C171: ='[1]Tabel 4F H DATA'!N165 -> 2 | D171: ='[1]Tabel 4F H DATA'!O165 -> 8 | E171: ='[1]Tabel 4F H DATA'!P165 -> 6 | F171: ='[1]Tabel 4F H DATA'!Q165 -> 2 | G171: ='[1]Tabel 4F H DATA'!R165 -> 0 | I171: ='[1]Tabel 4F H DATA'!T165 -> 18
A172: ='[1]Tabel 4F H DATA'!L166 -> MA. Hum. | C172: ='[1]Tabel 4F H DATA'!N166 -> 6 | D172: ='[1]Tabel 4F H DATA'!O166 -> 21 | E172: ='[1]Tabel 4F H DATA'!P166 -> 27 | F172: ='[1]Tabel 4F H DATA'!Q166 -> 14 | G172: ='[1]Tabel 4F H DATA'!R166 -> 5 | I172: ='[1]Tabel 4F H DATA'!T166 -> 73
A173: ='[1]Tabel 4F H DATA'!L167 -> MA. Nat. | C173: ='[1]Tabel 4F H DATA'!N167 -> 2 | D173: ='[1]Tabel 4F H DATA'!O167 -> 5 | E173: ='[1]Tabel 4F H DATA'!P167 -> 13 | F173: ='[1]Tabel 4F H DATA'!Q167 -> 10 | G173: ='[1]Tabel 4F H DATA'!R167 -> 2 | I173: ='[1]Tabel 4F H DATA'!T167 -> 32
A174: ='[1]Tabel 4F H DATA'!L168 -> MA. Ph.d. | C174: ='[1]Tabel 4F H DATA'!N168 -> 0 | D174: ='[1]Tabel 4F H DATA'!O168 -> 2 | E174: ='[1]Tabel 4F H DATA'!P168 -> 4 | F174: ='[1]Tabel 4F H DATA'!Q168 -> 0 | G174: ='[1]Tabel 4F H DATA'!R168 -> 1 | I174: ='[1]Tabel 4F H DATA'!T168 -> 7
A175: ='[1]Tabel 4F H DATA'!L169 -> MA. Samf. | C175: ='[1]Tabel 4F H DATA'!N169 -> 1 | D175: ='[1]Tabel 4F H DATA'!O169 -> 0 | E175: ='[1]Tabel 4F H DATA'!P169 -> 1 | F175: ='[1]Tabel 4F H DATA'!Q169 -> 0 | G175: ='[1]Tabel 4F H DATA'!R169 -> 0 | I175: ='[1]Tabel 4F H DATA'!T169 -> 2
A176: ='[1]Tabel 4F H DATA'!L170 -> Øvrige Mag. | C176: ='[1]Tabel 4F H DATA'!N170 -> 0 | D176: ='[1]Tabel 4F H DATA'!O170 -> 0 | E176: ='[1]Tabel 4F H DATA'!P170 -> 3 | F176: ='[1]Tabel 4F H DATA'!Q170 -> 2 | G176: ='[1]Tabel 4F H DATA'!R170 -> 0 | I176: ='[1]Tabel 4F H DATA'!T170 -> 5
A177: ='[1]Tabel 4F H DATA'!L171 -> Agronom | C177: ='[1]Tabel 4F H DATA'!N171 -> 0 | D177: ='[1]Tabel 4F H DATA'!O171 -> 4 | E177: ='[1]Tabel 4F H DATA'!P171 -> 1 | F177: ='[1]Tabel 4F H DATA'!Q171 -> 1 | G177: ='[1]Tabel 4F H DATA'!R171 -> 2 | I177: ='[1]Tabel 4F H DATA'!T171 -> 8
A178: ='[1]Tabel 4F H DATA'!L172 -> Landsk. Arkt. | C178: ='[1]Tabel 4F H DATA'!N172 -> 0 | D178: ='[1]Tabel 4F H DATA'!O172 -> 0 | E178: ='[1]Tabel 4F H DATA'!P172 -> 0 | F178: ='[1]Tabel 4F H DATA'!Q172 -> 0 | G178: ='[1]Tabel 4F H DATA'!R172 -> 0 | I178: ='[1]Tabel 4F H DATA'!T172 -> 0
A179: ='[1]Tabel 4F H DATA'!L173 -> Hortonom | C179: ='[1]Tabel 4F H DATA'!N173 -> 0 | D179: ='[1]Tabel 4F H DATA'!O173 -> 0 | E179: ='[1]Tabel 4F H DATA'!P173 -> 1 | F179: ='[1]Tabel 4F H DATA'!Q173 -> 0 | G179: ='[1]Tabel 4F H DATA'!R173 -> 0 | I179: ='[1]Tabel 4F H DATA'!T173 -> 1
A180: ='[1]Tabel 4F H DATA'!L174 -> Forstkand. | C180: ='[1]Tabel 4F H DATA'!N174 -> 0 | D180: ='[1]Tabel 4F H DATA'!O174 -> 0 | E180: ='[1]Tabel 4F H DATA'!P174 -> 2 | F180: ='[1]Tabel 4F H DATA'!Q174 -> 0 | G180: ='[1]Tabel 4F H DATA'!R174 -> 0 | I180: ='[1]Tabel 4F H DATA'!T174 -> 2
A181: ='[1]Tabel 4F H DATA'!L175 -> Jordbrugsakad. | C181: ='[1]Tabel 4F H DATA'!N175 -> 0 | D181: ='[1]Tabel 4F H DATA'!O175 -> 4 | E181: ='[1]Tabel 4F H DATA'!P175 -> 4 | F181: ='[1]Tabel 4F H DATA'!Q175 -> 1 | G181: ='[1]Tabel 4F H DATA'!R175 -> 2 | I181: ='[1]Tabel 4F H DATA'!T175 -> 11
A182: ='[1]Tabel 4F H DATA'!L176 -> Mejeriing. | C182: ='[1]Tabel 4F H DATA'!N176 -> 0 | D182: ='[1]Tabel 4F H DATA'!O176 -> 0 | E182: ='[1]Tabel 4F H DATA'!P176 -> 0 | F182: ='[1]Tabel 4F H DATA'!Q176 -> 0 | G182: ='[1]Tabel 4F H DATA'!R176 -> 0 | I182: ='[1]Tabel 4F H DATA'!T176 -> 0
A183: ='[1]Tabel 4F H DATA'!L177 -> Levn.m.kand. | C183: ='[1]Tabel 4F H DATA'!N177 -> 1 | D183: ='[1]Tabel 4F H DATA'!O177 -> 0 | E183: ='[1]Tabel 4F H DATA'!P177 -> 1 | F183: ='[1]Tabel 4F H DATA'!Q177 -> 0 | G183: ='[1]Tabel 4F H DATA'!R177 -> 0 | I183: ='[1]Tabel 4F H DATA'!T177 -> 2
A184: ='[1]Tabel 4F H DATA'!L178 -> Dyrlæge | C184: ='[1]Tabel 4F H DATA'!N178 -> 2 | D184: ='[1]Tabel 4F H DATA'!O178 -> 2 | E184: ='[1]Tabel 4F H DATA'!P178 -> 2 | F184: ='[1]Tabel 4F H DATA'!Q178 -> 2 | G184: ='[1]Tabel 4F H DATA'!R178 -> 0 | I184: ='[1]Tabel 4F H DATA'!T178 -> 8
A185: ='[1]Tabel 4F H DATA'!L179 -> Farmaceut | C185: ='[1]Tabel 4F H DATA'!N179 -> 1 | D185: ='[1]Tabel 4F H DATA'!O179 -> 0 | E185: ='[1]Tabel 4F H DATA'!P179 -> 0 | F185: ='[1]Tabel 4F H DATA'!Q179 -> 2 | G185: ='[1]Tabel 4F H DATA'!R179 -> 0 | I185: ='[1]Tabel 4F H DATA'!T179 -> 3
A186: ='[1]Tabel 4F H DATA'!L180 -> Læge | C186: ='[1]Tabel 4F H DATA'!N180 -> 0 | D186: ='[1]Tabel 4F H DATA'!O180 -> 0 | E186: ='[1]Tabel 4F H DATA'!P180 -> 0 | F186: ='[1]Tabel 4F H DATA'!Q180 -> 2 | G186: ='[1]Tabel 4F H DATA'!R180 -> 1 | I186: ='[1]Tabel 4F H DATA'!T180 -> 3
A187: ='[1]Tabel 4F H DATA'!L181 -> Tandlæge | C187: ='[1]Tabel 4F H DATA'!N181 -> 0 | D187: ='[1]Tabel 4F H DATA'!O181 -> 0 | E187: ='[1]Tabel 4F H DATA'!P181 -> 2 | F187: ='[1]Tabel 4F H DATA'!Q181 -> 2 | G187: ='[1]Tabel 4F H DATA'!R181 -> 1 | I187: ='[1]Tabel 4F H DATA'!T181 -> 5
A188: ='[1]Tabel 4F H DATA'!L182 -> Arkitekt | C188: ='[1]Tabel 4F H DATA'!N182 -> 0 | D188: ='[1]Tabel 4F H DATA'!O182 -> 3 | E188: ='[1]Tabel 4F H DATA'!P182 -> 0 | F188: ='[1]Tabel 4F H DATA'!Q182 -> 3 | G188: ='[1]Tabel 4F H DATA'!R182 -> 3 | I188: ='[1]Tabel 4F H DATA'!T182 -> 9
A189: ='[1]Tabel 4F H DATA'!L183 -> Landinspek. | C189: ='[1]Tabel 4F H DATA'!N183 -> 1 | D189: ='[1]Tabel 4F H DATA'!O183 -> 0 | E189: ='[1]Tabel 4F H DATA'!P183 -> 0 | F189: ='[1]Tabel 4F H DATA'!Q183 -> 1 | G189: ='[1]Tabel 4F H DATA'!R183 -> 0 | I189: ='[1]Tabel 4F H DATA'!T183 -> 2
A190: ='[1]Tabel 4F H DATA'!L184 -> Bibliotekar | C190: ='[1]Tabel 4F H DATA'!N184 -> 0 | D190: ='[1]Tabel 4F H DATA'!O184 -> 1 | E190: ='[1]Tabel 4F H DATA'!P184 -> 2 | F190: ='[1]Tabel 4F H DATA'!Q184 -> 3 | G190: ='[1]Tabel 4F H DATA'!R184 -> 0 | I190: ='[1]Tabel 4F H DATA'!T184 -> 6
A191: ='[1]Tabel 4F H DATA'!L185 -> Musikudd. | C191: ='[1]Tabel 4F H DATA'!N185 -> 0 | D191: ='[1]Tabel 4F H DATA'!O185 -> 1 | E191: ='[1]Tabel 4F H DATA'!P185 -> 1 | F191: ='[1]Tabel 4F H DATA'!Q185 -> 1 | G191: ='[1]Tabel 4F H DATA'!R185 -> 0 | I191: ='[1]Tabel 4F H DATA'!T185 -> 3
A192: ='[1]Tabel 4F H DATA'!L186 -> Teolog | C192: ='[1]Tabel 4F H DATA'!N186 -> 0 | D192: ='[1]Tabel 4F H DATA'!O186 -> 3 | E192: ='[1]Tabel 4F H DATA'!P186 -> 3 | F192: ='[1]Tabel 4F H DATA'!Q186 -> 4 | G192: ='[1]Tabel 4F H DATA'!R186 -> 2 | I192: ='[1]Tabel 4F H DATA'!T186 -> 12
A193: ='[1]Tabel 4F H DATA'!L187 -> Psykolog | C193: ='[1]Tabel 4F H DATA'!N187 -> 0 | D193: ='[1]Tabel 4F H DATA'!O187 -> 5 | E193: ='[1]Tabel 4F H DATA'!P187 -> 5 | F193: ='[1]Tabel 4F H DATA'!Q187 -> 1 | G193: ='[1]Tabel 4F H DATA'!R187 -> 3 | I193: ='[1]Tabel 4F H DATA'!T187 -> 14
A194: ='[1]Tabel 4F H DATA'!L188 -> Jurist | C194: ='[1]Tabel 4F H DATA'!N188 -> 0 | D194: ='[1]Tabel 4F H DATA'!O188 -> 2 | E194: ='[1]Tabel 4F H DATA'!P188 -> 3 | F194: ='[1]Tabel 4F H DATA'!Q188 -> 3 | G194: ='[1]Tabel 4F H DATA'!R188 -> 1 | I194: ='[1]Tabel 4F H DATA'!T188 -> 9
A195: ='[1]Tabel 4F H DATA'!L189 -> Økonom | C195: ='[1]Tabel 4F H DATA'!N189 -> 0 | D195: ='[1]Tabel 4F H DATA'!O189 -> 1 | E195: ='[1]Tabel 4F H DATA'!P189 -> 2 | F195: ='[1]Tabel 4F H DATA'!Q189 -> 3 | G195: ='[1]Tabel 4F H DATA'!R189 -> 0 | I195: ='[1]Tabel 4F H DATA'!T189 -> 6
A196: ='[1]Tabel 4F H DATA'!L190 -> Samf. Adm. | C196: ='[1]Tabel 4F H DATA'!N190 -> 1 | D196: ='[1]Tabel 4F H DATA'!O190 -> 4 | E196: ='[1]Tabel 4F H DATA'!P190 -> 5 | F196: ='[1]Tabel 4F H DATA'!Q190 -> 8 | G196: ='[1]Tabel 4F H DATA'!R190 -> 2 | I196: ='[1]Tabel 4F H DATA'!T190 -> 20
A197: ='[1]Tabel 4F H DATA'!L191 -> Cand. Merc. | C197: ='[1]Tabel 4F H DATA'!N191 -> 4 | D197: ='[1]Tabel 4F H DATA'!O191 -> 22 | E197: ='[1]Tabel 4F H DATA'!P191 -> 6 | F197: ='[1]Tabel 4F H DATA'!Q191 -> 4 | G197: ='[1]Tabel 4F H DATA'!R191 -> 4 | I197: ='[1]Tabel 4F H DATA'!T191 -> 40
A198: ='[1]Tabel 4F H DATA'!L192 -> HA | C198: ='[1]Tabel 4F H DATA'!N192 -> 2 | D198: ='[1]Tabel 4F H DATA'!O192 -> 2 | E198: ='[1]Tabel 4F H DATA'!P192 -> 1 | F198: ='[1]Tabel 4F H DATA'!Q192 -> 9 | G198: ='[1]Tabel 4F H DATA'!R192 -> 1 | I198: ='[1]Tabel 4F H DATA'!T192 -> 15
A199: ='[1]Tabel 4F H DATA'!L193 -> HD | C199: ='[1]Tabel 4F H DATA'!N193 -> 0 | D199: ='[1]Tabel 4F H DATA'!O193 -> 2 | E199: ='[1]Tabel 4F H DATA'!P193 -> 4 | F199: ='[1]Tabel 4F H DATA'!Q193 -> 2 | G199: ='[1]Tabel 4F H DATA'!R193 -> 3 | I199: ='[1]Tabel 4F H DATA'!T193 -> 11
A200: ='[1]Tabel 4F H DATA'!L194 -> Komm. og Sprog | C200: ='[1]Tabel 4F H DATA'!N194 -> 1 | D200: ='[1]Tabel 4F H DATA'!O194 -> 2 | E200: ='[1]Tabel 4F H DATA'!P194 -> 3 | F200: ='[1]Tabel 4F H DATA'!Q194 -> 5 | G200: ='[1]Tabel 4F H DATA'!R194 -> 1 | I200: ='[1]Tabel 4F H DATA'!T194 -> 12
A201: ='[1]Tabel 4F H DATA'!L195 -> Bygningskonst. | C201: ='[1]Tabel 4F H DATA'!N195 -> 7 | D201: ='[1]Tabel 4F H DATA'!O195 -> 16 | E201: ='[1]Tabel 4F H DATA'!P195 -> 4 | F201: ='[1]Tabel 4F H DATA'!Q195 -> 4 | G201: ='[1]Tabel 4F H DATA'!R195 -> 2 | I201: ='[1]Tabel 4F H DATA'!T195 -> 33
A202: ='[1]Tabel 4F H DATA'!L196 -> Cand. IT. | C202: ='[1]Tabel 4F H DATA'!N196 -> 0 | D202: ='[1]Tabel 4F H DATA'!O196 -> 1 | E202: ='[1]Tabel 4F H DATA'!P196 -> 1 | F202: ='[1]Tabel 4F H DATA'!Q196 -> 0 | G202: ='[1]Tabel 4F H DATA'!R196 -> 0 | I202: ='[1]Tabel 4F H DATA'!T196 -> 2
A203: ='[1]Tabel 4F H DATA'!L197 -> Bac. Samf. | C203: ='[1]Tabel 4F H DATA'!N197 -> 1 | D203: ='[1]Tabel 4F H DATA'!O197 -> 0 | E203: ='[1]Tabel 4F H DATA'!P197 -> 0 | F203: ='[1]Tabel 4F H DATA'!Q197 -> 2 | G203: ='[1]Tabel 4F H DATA'!R197 -> 0 | I203: ='[1]Tabel 4F H DATA'!T197 -> 3
A204: ='[1]Tabel 4F H DATA'!L198 -> Bac. Hum. | C204: ='[1]Tabel 4F H DATA'!N198 -> 2 | D204: ='[1]Tabel 4F H DATA'!O198 -> 1 | E204: ='[1]Tabel 4F H DATA'!P198 -> 1 | F204: ='[1]Tabel 4F H DATA'!Q198 -> 3 | G204: ='[1]Tabel 4F H DATA'!R198 -> 2 | I204: ='[1]Tabel 4F H DATA'!T198 -> 9
A205: ='[1]Tabel 4F H DATA'!L199 -> Bac. Nat. | C205: ='[1]Tabel 4F H DATA'!N199 -> 1 | D205: ='[1]Tabel 4F H DATA'!O199 -> 0 | E205: ='[1]Tabel 4F H DATA'!P199 -> 2 | F205: ='[1]Tabel 4F H DATA'!Q199 -> 0 | G205: ='[1]Tabel 4F H DATA'!R199 -> 0 | I205: ='[1]Tabel 4F H DATA'!T199 -> 3
A206: ='[1]Tabel 4F H DATA'!L200 -> Andre | C206: ='[1]Tabel 4F H DATA'!N200 -> 3 | D206: ='[1]Tabel 4F H DATA'!O200 -> 8 | E206: ='[1]Tabel 4F H DATA'!P200 -> 10 | F206: ='[1]Tabel 4F H DATA'!Q200 -> 9 | G206: ='[1]Tabel 4F H DATA'!R200 -> 7 | I206: ='[1]Tabel 4F H DATA'!T200 -> 37
A208: ='[1]Tabel 4F H DATA'!L202 -> Total | C208: ='[1]Tabel 4F H DATA'!N202 -> 49 | D208: ='[1]Tabel 4F H DATA'!O202 -> 138 | E208: ='[1]Tabel 4F H DATA'!P202 -> 136 | F208: ='[1]Tabel 4F H DATA'!Q202 -> 152 | G208: ='[1]Tabel 4F H DATA'!R202 -> 59 | I208: ='[1]Tabel 4F H DATA'!T202 -> 534
A210: ='[1]Tabel 4F H DATA'!L204 -> Ingeniører i alt | C210: ='[1]Tabel 4F H DATA'!N204 -> 11 | D210: ='[1]Tabel 4F H DATA'!O204 -> 22 | E210: ='[1]Tabel 4F H DATA'!P204 -> 20 | F210: ='[1]Tabel 4F H DATA'!Q204 -> 50 | G210: ='[1]Tabel 4F H DATA'!R204 -> 16 | I210: ='[1]Tabel 4F H DATA'!T204 -> 119
A211: ='[1]Tabel 4F H DATA'!L205 -> Magistre i alt | C211: ='[1]Tabel 4F H DATA'!N205 -> 9 | D211: ='[1]Tabel 4F H DATA'!O205 -> 28 | E211: ='[1]Tabel 4F H DATA'!P205 -> 48 | F211: ='[1]Tabel 4F H DATA'!Q205 -> 26 | G211: ='[1]Tabel 4F H DATA'!R205 -> 8 | I211: ='[1]Tabel 4F H DATA'!T205 -> 119
A212: ='[1]Tabel 4F H DATA'!L206 -> DJØF'ere i alt | C212: ='[1]Tabel 4F H DATA'!N206 -> 7 | D212: ='[1]Tabel 4F H DATA'!O206 -> 31 | E212: ='[1]Tabel 4F H DATA'!P206 -> 17 | F212: ='[1]Tabel 4F H DATA'!Q206 -> 27 | G212: ='[1]Tabel 4F H DATA'!R206 -> 8 | I212: ='[1]Tabel 4F H DATA'!T206 -> 90
A219: ='[1]Tabel 4F H DATA'!L211 -> Favrskov
C221: ='[1]Tabel 4F H DATA'!N213 -> Under 30 år | D221: ='[1]Tabel 4F H DATA'!O213 -> 30 - 39 år | E221: ='[1]Tabel 4F H DATA'!P213 -> 40 - 49 år | F221: ='[1]Tabel 4F H DATA'!Q213 -> 50 - 59 år | G221: ='[1]Tabel 4F H DATA'!R213 -> Over 60 år | I221: ='[1]Tabel 4F H DATA'!T213 -> I alt
A223: ='[1]Tabel 4F H DATA'!L215 -> Civ. ing. | C223: ='[1]Tabel 4F H DATA'!N215 -> 20 | D223: ='[1]Tabel 4F H DATA'!O215 -> 109 | E223: ='[1]Tabel 4F H DATA'!P215 -> 97 | F223: ='[1]Tabel 4F H DATA'!Q215 -> 46 | G223: ='[1]Tabel 4F H DATA'!R215 -> 9 | I223: ='[1]Tabel 4F H DATA'!T215 -> 281
A224: ='[1]Tabel 4F H DATA'!L216 -> Diplom ing. | C224: ='[1]Tabel 4F H DATA'!N216 -> 14 | D224: ='[1]Tabel 4F H DATA'!O216 -> 61 | E224: ='[1]Tabel 4F H DATA'!P216 -> 150 | F224: ='[1]Tabel 4F H DATA'!Q216 -> 146 | G224: ='[1]Tabel 4F H DATA'!R216 -> 44 | I224: ='[1]Tabel 4F H DATA'!T216 -> 415
A225: ='[1]Tabel 4F H DATA'!L217 -> Cand. Scient. Tek. | C225: ='[1]Tabel 4F H DATA'!N217 -> 24 | D225: ='[1]Tabel 4F H DATA'!O217 -> 69 | E225: ='[1]Tabel 4F H DATA'!P217 -> 23 | F225: ='[1]Tabel 4F H DATA'!Q217 -> 14 | G225: ='[1]Tabel 4F H DATA'!R217 -> 0 | I225: ='[1]Tabel 4F H DATA'!T217 -> 130
A226: ='[1]Tabel 4F H DATA'!L218 -> MA. Hum. | C226: ='[1]Tabel 4F H DATA'!N218 -> 29 | D226: ='[1]Tabel 4F H DATA'!O218 -> 116 | E226: ='[1]Tabel 4F H DATA'!P218 -> 139 | F226: ='[1]Tabel 4F H DATA'!Q218 -> 39 | G226: ='[1]Tabel 4F H DATA'!R218 -> 14 | I226: ='[1]Tabel 4F H DATA'!T218 -> 337
A227: ='[1]Tabel 4F H DATA'!L219 -> MA. Nat. | C227: ='[1]Tabel 4F H DATA'!N219 -> 5 | D227: ='[1]Tabel 4F H DATA'!O219 -> 36 | E227: ='[1]Tabel 4F H DATA'!P219 -> 62 | F227: ='[1]Tabel 4F H DATA'!Q219 -> 56 | G227: ='[1]Tabel 4F H DATA'!R219 -> 15 | I227: ='[1]Tabel 4F H DATA'!T219 -> 174
A228: ='[1]Tabel 4F H DATA'!L220 -> MA. Ph.d. | C228: ='[1]Tabel 4F H DATA'!N220 -> 0 | D228: ='[1]Tabel 4F H DATA'!O220 -> 9 | E228: ='[1]Tabel 4F H DATA'!P220 -> 8 | F228: ='[1]Tabel 4F H DATA'!Q220 -> 1 | G228: ='[1]Tabel 4F H DATA'!R220 -> 1 | I228: ='[1]Tabel 4F H DATA'!T220 -> 19
A229: ='[1]Tabel 4F H DATA'!L221 -> MA. Samf. | C229: ='[1]Tabel 4F H DATA'!N221 -> 2 | D229: ='[1]Tabel 4F H DATA'!O221 -> 14 | E229: ='[1]Tabel 4F H DATA'!P221 -> 3 | F229: ='[1]Tabel 4F H DATA'!Q221 -> 0 | G229: ='[1]Tabel 4F H DATA'!R221 -> 0 | I229: ='[1]Tabel 4F H DATA'!T221 -> 19
A230: ='[1]Tabel 4F H DATA'!L222 -> Øvrige Mag. | C230: ='[1]Tabel 4F H DATA'!N222 -> 0 | D230: ='[1]Tabel 4F H DATA'!O222 -> 3 | E230: ='[1]Tabel 4F H DATA'!P222 -> 6 | F230: ='[1]Tabel 4F H DATA'!Q222 -> 12 | G230: ='[1]Tabel 4F H DATA'!R222 -> 1 | I230: ='[1]Tabel 4F H DATA'!T222 -> 22
A231: ='[1]Tabel 4F H DATA'!L223 -> Agronom | C231: ='[1]Tabel 4F H DATA'!N223 -> 3 | D231: ='[1]Tabel 4F H DATA'!O223 -> 3 | E231: ='[1]Tabel 4F H DATA'!P223 -> 13 | F231: ='[1]Tabel 4F H DATA'!Q223 -> 22 | G231: ='[1]Tabel 4F H DATA'!R223 -> 10 | I231: ='[1]Tabel 4F H DATA'!T223 -> 51
A232: ='[1]Tabel 4F H DATA'!L224 -> Landsk. Arkt. | C232: ='[1]Tabel 4F H DATA'!N224 -> 1 | D232: ='[1]Tabel 4F H DATA'!O224 -> 0 | E232: ='[1]Tabel 4F H DATA'!P224 -> 2 | F232: ='[1]Tabel 4F H DATA'!Q224 -> 0 | G232: ='[1]Tabel 4F H DATA'!R224 -> 0 | I232: ='[1]Tabel 4F H DATA'!T224 -> 3
A233: ='[1]Tabel 4F H DATA'!L225 -> Hortonom | C233: ='[1]Tabel 4F H DATA'!N225 -> 0 | D233: ='[1]Tabel 4F H DATA'!O225 -> 0 | E233: ='[1]Tabel 4F H DATA'!P225 -> 0 | F233: ='[1]Tabel 4F H DATA'!Q225 -> 1 | G233: ='[1]Tabel 4F H DATA'!R225 -> 3 | I233: ='[1]Tabel 4F H DATA'!T225 -> 4
A234: ='[1]Tabel 4F H DATA'!L226 -> Forstkand. | C234: ='[1]Tabel 4F H DATA'!N226 -> 0 | D234: ='[1]Tabel 4F H DATA'!O226 -> 2 | E234: ='[1]Tabel 4F H DATA'!P226 -> 1 | F234: ='[1]Tabel 4F H DATA'!Q226 -> 0 | G234: ='[1]Tabel 4F H DATA'!R226 -> 2 | I234: ='[1]Tabel 4F H DATA'!T226 -> 5
A235: ='[1]Tabel 4F H DATA'!L227 -> Jordbrugsakad. | C235: ='[1]Tabel 4F H DATA'!N227 -> 4 | D235: ='[1]Tabel 4F H DATA'!O227 -> 5 | E235: ='[1]Tabel 4F H DATA'!P227 -> 16 | F235: ='[1]Tabel 4F H DATA'!Q227 -> 23 | G235: ='[1]Tabel 4F H DATA'!R227 -> 15 | I235: ='[1]Tabel 4F H DATA'!T227 -> 63
A236: ='[1]Tabel 4F H DATA'!L228 -> Mejeriing. | C236: ='[1]Tabel 4F H DATA'!N228 -> 0 | D236: ='[1]Tabel 4F H DATA'!O228 -> 0 | E236: ='[1]Tabel 4F H DATA'!P228 -> 1 | F236: ='[1]Tabel 4F H DATA'!Q228 -> 1 | G236: ='[1]Tabel 4F H DATA'!R228 -> 2 | I236: ='[1]Tabel 4F H DATA'!T228 -> 4
A237: ='[1]Tabel 4F H DATA'!L229 -> Levn.m.kand. | C237: ='[1]Tabel 4F H DATA'!N229 -> 0 | D237: ='[1]Tabel 4F H DATA'!O229 -> 1 | E237: ='[1]Tabel 4F H DATA'!P229 -> 0 | F237: ='[1]Tabel 4F H DATA'!Q229 -> 0 | G237: ='[1]Tabel 4F H DATA'!R229 -> 0 | I237: ='[1]Tabel 4F H DATA'!T229 -> 1
A238: ='[1]Tabel 4F H DATA'!L230 -> Dyrlæge | C238: ='[1]Tabel 4F H DATA'!N230 -> 4 | D238: ='[1]Tabel 4F H DATA'!O230 -> 7 | E238: ='[1]Tabel 4F H DATA'!P230 -> 6 | F238: ='[1]Tabel 4F H DATA'!Q230 -> 4 | G238: ='[1]Tabel 4F H DATA'!R230 -> 2 | I238: ='[1]Tabel 4F H DATA'!T230 -> 23
A239: ='[1]Tabel 4F H DATA'!L231 -> Farmaceut | C239: ='[1]Tabel 4F H DATA'!N231 -> 0 | D239: ='[1]Tabel 4F H DATA'!O231 -> 4 | E239: ='[1]Tabel 4F H DATA'!P231 -> 1 | F239: ='[1]Tabel 4F H DATA'!Q231 -> 4 | G239: ='[1]Tabel 4F H DATA'!R231 -> 1 | I239: ='[1]Tabel 4F H DATA'!T231 -> 10
A240: ='[1]Tabel 4F H DATA'!L232 -> Læge | C240: ='[1]Tabel 4F H DATA'!N232 -> 5 | D240: ='[1]Tabel 4F H DATA'!O232 -> 51 | E240: ='[1]Tabel 4F H DATA'!P232 -> 41 | F240: ='[1]Tabel 4F H DATA'!Q232 -> 17 | G240: ='[1]Tabel 4F H DATA'!R232 -> 5 | I240: ='[1]Tabel 4F H DATA'!T232 -> 119
A241: ='[1]Tabel 4F H DATA'!L233 -> Tandlæge | C241: ='[1]Tabel 4F H DATA'!N233 -> 3 | D241: ='[1]Tabel 4F H DATA'!O233 -> 5 | E241: ='[1]Tabel 4F H DATA'!P233 -> 9 | F241: ='[1]Tabel 4F H DATA'!Q233 -> 2 | G241: ='[1]Tabel 4F H DATA'!R233 -> 3 | I241: ='[1]Tabel 4F H DATA'!T233 -> 22
A242: ='[1]Tabel 4F H DATA'!L234 -> Arkitekt | C242: ='[1]Tabel 4F H DATA'!N234 -> 2 | D242: ='[1]Tabel 4F H DATA'!O234 -> 17 | E242: ='[1]Tabel 4F H DATA'!P234 -> 12 | F242: ='[1]Tabel 4F H DATA'!Q234 -> 4 | G242: ='[1]Tabel 4F H DATA'!R234 -> 1 | I242: ='[1]Tabel 4F H DATA'!T234 -> 36
A243: ='[1]Tabel 4F H DATA'!L235 -> Landinspek. | C243: ='[1]Tabel 4F H DATA'!N235 -> 1 | D243: ='[1]Tabel 4F H DATA'!O235 -> 1 | E243: ='[1]Tabel 4F H DATA'!P235 -> 6 | F243: ='[1]Tabel 4F H DATA'!Q235 -> 3 | G243: ='[1]Tabel 4F H DATA'!R235 -> 1 | I243: ='[1]Tabel 4F H DATA'!T235 -> 12
... 329 more rows

Sheet Tabel 4 ØJ
A1: ='[1]Tabel 4 H DATA'!I1 -> Tabel 4. Ledighedsberørte - aldersfordelt
A3: ='[1]Tabel 4 H DATA'!I2 -> Østjylland
C5: ='[1]Tabel 4 H DATA'!K4 -> Under 30 år | D5: ='[1]Tabel 4 H DATA'!L4 -> 30 - 39 år | E5: ='[1]Tabel 4 H DATA'!M4 -> 40 - 49 år | F5: ='[1]Tabel 4 H DATA'!N4 -> 50 - 59 år | G5: ='[1]Tabel 4 H DATA'!O4 -> Over 60 år | I5: ='[1]Tabel 4 H DATA'!Q4 -> I alt
A7: ='[1]Tabel 4 H DATA'!I6 -> Civ. ing. | C7: ='[1]Tabel 4 H DATA'!K6 -> 97 | D7: ='[1]Tabel 4 H DATA'!L6 -> 42 | E7: ='[1]Tabel 4 H DATA'!M6 -> 16 | F7: ='[1]Tabel 4 H DATA'!N6 -> 13 | G7: ='[1]Tabel 4 H DATA'!O6 -> 4 | I7: ='[1]Tabel 4 H DATA'!Q6 -> 172
A8: ='[1]Tabel 4 H DATA'!I7 -> Diplom ing. | C8: ='[1]Tabel 4 H DATA'!K7 -> 156 | D8: ='[1]Tabel 4 H DATA'!L7 -> 45 | E8: ='[1]Tabel 4 H DATA'!M7 -> 17 | F8: ='[1]Tabel 4 H DATA'!N7 -> 42 | G8: ='[1]Tabel 4 H DATA'!O7 -> 29 | I8: ='[1]Tabel 4 H DATA'!Q7 -> 289
A9: ='[1]Tabel 4 H DATA'!I8 -> Cand. Scient. Tek | C9: ='[1]Tabel 4 H DATA'!K8 -> 169 | D9: ='[1]Tabel 4 H DATA'!L8 -> 100 | E9: ='[1]Tabel 4 H DATA'!M8 -> 9 | F9: ='[1]Tabel 4 H DATA'!N8 -> 5 | G9: ='[1]Tabel 4 H DATA'!O8 -> 3 | I9: ='[1]Tabel 4 H DATA'!Q8 -> 286
A10: ='[1]Tabel 4 H DATA'!I9 -> MA. Hum. | C10: ='[1]Tabel 4 H DATA'!K9 -> 507 | D10: ='[1]Tabel 4 H DATA'!L9 -> 433 | E10: ='[1]Tabel 4 H DATA'!M9 -> 138 | F10: ='[1]Tabel 4 H DATA'!N9 -> 77 | G10: ='[1]Tabel 4 H DATA'!O9 -> 51 | I10: ='[1]Tabel 4 H DATA'!Q9 -> 1206
A11: ='[1]Tabel 4 H DATA'!I10 -> MA. Nat. | C11: ='[1]Tabel 4 H DATA'!K10 -> 44 | D11: ='[1]Tabel 4 H DATA'!L10 -> 37 | E11: ='[1]Tabel 4 H DATA'!M10 -> 21 | F11: ='[1]Tabel 4 H DATA'!N10 -> 13 | G11: ='[1]Tabel 4 H DATA'!O10 -> 15 | I11: ='[1]Tabel 4 H DATA'!Q10 -> 130
A12: ='[1]Tabel 4 H DATA'!I11 -> MA. Ph.d. | C12: ='[1]Tabel 4 H DATA'!K11 -> 3 | D12: ='[1]Tabel 4 H DATA'!L11 -> 10 | E12: ='[1]Tabel 4 H DATA'!M11 -> 11 | F12: ='[1]Tabel 4 H DATA'!N11 -> 2 | G12: ='[1]Tabel 4 H DATA'!O11 -> 1 | I12: ='[1]Tabel 4 H DATA'!Q11 -> 27
A13: ='[1]Tabel 4 H DATA'!I12 -> MA. Samf. | C13: ='[1]Tabel 4 H DATA'!K12 -> 74 | D13: ='[1]Tabel 4 H DATA'!L12 -> 59 | E13: ='[1]Tabel 4 H DATA'!M12 -> 4 | F13: ='[1]Tabel 4 H DATA'!N12 -> 0 | G13: ='[1]Tabel 4 H DATA'!O12 -> 0 | I13: ='[1]Tabel 4 H DATA'!Q12 -> 137
A14: ='[1]Tabel 4 H DATA'!I13 -> Øvrige Mag. | C14: ='[1]Tabel 4 H DATA'!K13 -> 24 | D14: ='[1]Tabel 4 H DATA'!L13 -> 22 | E14: ='[1]Tabel 4 H DATA'!M13 -> 18 | F14: ='[1]Tabel 4 H DATA'!N13 -> 7 | G14: ='[1]Tabel 4 H DATA'!O13 -> 4 | I14: ='[1]Tabel 4 H DATA'!Q13 -> 75
A15: ='[1]Tabel 4 H DATA'!I14 -> Agronom | C15: ='[1]Tabel 4 H DATA'!K14 -> 3 | D15: ='[1]Tabel 4 H DATA'!L14 -> 1 | E15: ='[1]Tabel 4 H DATA'!M14 -> 4 | F15: ='[1]Tabel 4 H DATA'!N14 -> 3 | G15: ='[1]Tabel 4 H DATA'!O14 -> 2 | I15: ='[1]Tabel 4 H DATA'!Q14 -> 13
A16: ='[1]Tabel 4 H DATA'!I15 -> Landsk. Arkt. | C16: ='[1]Tabel 4 H DATA'!K15 -> 0 | D16: ='[1]Tabel 4 H DATA'!L15 -> 1 | E16: ='[1]Tabel 4 H DATA'!M15 -> 0 | F16: ='[1]Tabel 4 H DATA'!N15 -> 0 | G16: ='[1]Tabel 4 H DATA'!O15 -> 0 | I16: ='[1]Tabel 4 H DATA'!Q15 -> 1
A17: ='[1]Tabel 4 H DATA'!I16 -> Hortonom | C17: ='[1]Tabel 4 H DATA'!K16 -> 0 | D17: ='[1]Tabel 4 H DATA'!L16 -> 0 | E17: ='[1]Tabel 4 H DATA'!M16 -> 0 | F17: ='[1]Tabel 4 H DATA'!N16 -> 0 | G17: ='[1]Tabel 4 H DATA'!O16 -> 0 | I17: ='[1]Tabel 4 H DATA'!Q16 -> 0
A18: ='[1]Tabel 4 H DATA'!I17 -> Forstkand. | C18: ='[1]Tabel 4 H DATA'!K17 -> 1 | D18: ='[1]Tabel 4 H DATA'!L17 -> 0 | E18: ='[1]Tabel 4 H DATA'!M17 -> 0 | F18: ='[1]Tabel 4 H DATA'!N17 -> 0 | G18: ='[1]Tabel 4 H DATA'!O17 -> 1 | I18: ='[1]Tabel 4 H DATA'!Q17 -> 2
A19: ='[1]Tabel 4 H DATA'!I18 -> Jordbrugsakad. | C19: ='[1]Tabel 4 H DATA'!K18 -> 4 | D19: ='[1]Tabel 4 H DATA'!L18 -> 2 | E19: ='[1]Tabel 4 H DATA'!M18 -> 4 | F19: ='[1]Tabel 4 H DATA'!N18 -> 3 | G19: ='[1]Tabel 4 H DATA'!O18 -> 3 | I19: ='[1]Tabel 4 H DATA'!Q18 -> 16
A20: ='[1]Tabel 4 H DATA'!I19 -> Mejeriing. | C20: ='[1]Tabel 4 H DATA'!K19 -> 1 | D20: ='[1]Tabel 4 H DATA'!L19 -> 0 | E20: ='[1]Tabel 4 H DATA'!M19 -> 0 | F20: ='[1]Tabel 4 H DATA'!N19 -> 0 | G20: ='[1]Tabel 4 H DATA'!O19 -> 2 | I20: ='[1]Tabel 4 H DATA'!Q19 -> 3
A21: ='[1]Tabel 4 H DATA'!I20 -> Levn.m.kand. | C21: ='[1]Tabel 4 H DATA'!K20 -> 2 | D21: ='[1]Tabel 4 H DATA'!L20 -> 0 | E21: ='[1]Tabel 4 H DATA'!M20 -> 0 | F21: ='[1]Tabel 4 H DATA'!N20 -> 0 | G21: ='[1]Tabel 4 H DATA'!O20 -> 0 | I21: ='[1]Tabel 4 H DATA'!Q20 -> 2
A22: ='[1]Tabel 4 H DATA'!I21 -> Dyrlæge | C22: ='[1]Tabel 4 H DATA'!K21 -> 0 | D22: ='[1]Tabel 4 H DATA'!L21 -> 0 | E22: ='[1]Tabel 4 H DATA'!M21 -> 0 | F22: ='[1]Tabel 4 H DATA'!N21 -> 0 | G22: ='[1]Tabel 4 H DATA'!O21 -> 0 | I22: ='[1]Tabel 4 H DATA'!Q21 -> 0
A23: ='[1]Tabel 4 H DATA'!I22 -> Farmaceut | C23: ='[1]Tabel 4 H DATA'!K22 -> 11 | D23: ='[1]Tabel 4 H DATA'!L22 -> 7 | E23: ='[1]Tabel 4 H DATA'!M22 -> 0 | F23: ='[1]Tabel 4 H DATA'!N22 -> 1 | G23: ='[1]Tabel 4 H DATA'!O22 -> 2 | I23: ='[1]Tabel 4 H DATA'!Q22 -> 21
A24: ='[1]Tabel 4 H DATA'!I23 -> Læge | C24: ='[1]Tabel 4 H DATA'!K23 -> 27 | D24: ='[1]Tabel 4 H DATA'!L23 -> 32 | E24: ='[1]Tabel 4 H DATA'!M23 -> 2 | F24: ='[1]Tabel 4 H DATA'!N23 -> 0 | G24: ='[1]Tabel 4 H DATA'!O23 -> 0 | I24: ='[1]Tabel 4 H DATA'!Q23 -> 61
A25: ='[1]Tabel 4 H DATA'!I24 -> Tandlæge | C25: ='[1]Tabel 4 H DATA'!K24 -> 4 | D25: ='[1]Tabel 4 H DATA'!L24 -> 2 | E25: ='[1]Tabel 4 H DATA'!M24 -> 1 | F25: ='[1]Tabel 4 H DATA'!N24 -> 1 | G25: ='[1]Tabel 4 H DATA'!O24 -> 1 | I25: ='[1]Tabel 4 H DATA'!Q24 -> 9
A26: ='[1]Tabel 4 H DATA'!I25 -> Arkitekt | C26: ='[1]Tabel 4 H DATA'!K25 -> 45 | D26: ='[1]Tabel 4 H DATA'!L25 -> 51 | E26: ='[1]Tabel 4 H DATA'!M25 -> 20 | F26: ='[1]Tabel 4 H DATA'!N25 -> 11 | G26: ='[1]Tabel 4 H DATA'!O25 -> 17 | I26: ='[1]Tabel 4 H DATA'!Q25 -> 144
A27: ='[1]Tabel 4 H DATA'!I26 -> Landinspek. | C27: ='[1]Tabel 4 H DATA'!K26 -> 1 | D27: ='[1]Tabel 4 H DATA'!L26 -> 0 | E27: ='[1]Tabel 4 H DATA'!M26 -> 0 | F27: ='[1]Tabel 4 H DATA'!N26 -> 0 | G27: ='[1]Tabel 4 H DATA'!O26 -> 0 | I27: ='[1]Tabel 4 H DATA'!Q26 -> 1
A28: ='[1]Tabel 4 H DATA'!I27 -> Bibliotekar | C28: ='[1]Tabel 4 H DATA'!K27 -> 1 | D28: ='[1]Tabel 4 H DATA'!L27 -> 11 | E28: ='[1]Tabel 4 H DATA'!M27 -> 4 | F28: ='[1]Tabel 4 H DATA'!N27 -> 3 | G28: ='[1]Tabel 4 H DATA'!O27 -> 1 | I28: ='[1]Tabel 4 H DATA'!Q27 -> 20
A29: ='[1]Tabel 4 H DATA'!I28 -> Musikudd. | C29: ='[1]Tabel 4 H DATA'!K28 -> 2 | D29: ='[1]Tabel 4 H DATA'!L28 -> 2 | E29: ='[1]Tabel 4 H DATA'!M28 -> 1 | F29: ='[1]Tabel 4 H DATA'!N28 -> 3 | G29: ='[1]Tabel 4 H DATA'!O28 -> 2 | I29: ='[1]Tabel 4 H DATA'!Q28 -> 10
A30: ='[1]Tabel 4 H DATA'!I29 -> Teolog | C30: ='[1]Tabel 4 H DATA'!K29 -> 10 | D30: ='[1]Tabel 4 H DATA'!L29 -> 4 | E30: ='[1]Tabel 4 H DATA'!M29 -> 4 | F30: ='[1]Tabel 4 H DATA'!N29 -> 3 | G30: ='[1]Tabel 4 H DATA'!O29 -> 3 | I30: ='[1]Tabel 4 H DATA'!Q29 -> 24
A31: ='[1]Tabel 4 H DATA'!I30 -> Psykolog | C31: ='[1]Tabel 4 H DATA'!K30 -> 65 | D31: ='[1]Tabel 4 H DATA'!L30 -> 50 | E31: ='[1]Tabel 4 H DATA'!M30 -> 13 | F31: ='[1]Tabel 4 H DATA'!N30 -> 8 | G31: ='[1]Tabel 4 H DATA'!O30 -> 5 | I31: ='[1]Tabel 4 H DATA'!Q30 -> 141
A32: ='[1]Tabel 4 H DATA'!I31 -> Jurist | C32: ='[1]Tabel 4 H DATA'!K31 -> 34 | D32: ='[1]Tabel 4 H DATA'!L31 -> 18 | E32: ='[1]Tabel 4 H DATA'!M31 -> 6 | F32: ='[1]Tabel 4 H DATA'!N31 -> 6 | G32: ='[1]Tabel 4 H DATA'!O31 -> 3 | I32: ='[1]Tabel 4 H DATA'!Q31 -> 67
A33: ='[1]Tabel 4 H DATA'!I32 -> Økonom | C33: ='[1]Tabel 4 H DATA'!K32 -> 17 | D33: ='[1]Tabel 4 H DATA'!L32 -> 15 | E33: ='[1]Tabel 4 H DATA'!M32 -> 1 | F33: ='[1]Tabel 4 H DATA'!N32 -> 12 | G33: ='[1]Tabel 4 H DATA'!O32 -> 2 | I33: ='[1]Tabel 4 H DATA'!Q32 -> 47
A34: ='[1]Tabel 4 H DATA'!I33 -> Samf. Adm. | C34: ='[1]Tabel 4 H DATA'!K33 -> 145 | D34: ='[1]Tabel 4 H DATA'!L33 -> 102 | E34: ='[1]Tabel 4 H DATA'!M33 -> 28 | F34: ='[1]Tabel 4 H DATA'!N33 -> 9 | G34: ='[1]Tabel 4 H DATA'!O33 -> 4 | I34: ='[1]Tabel 4 H DATA'!Q33 -> 288
A35: ='[1]Tabel 4 H DATA'!I34 -> Cand. Merc. | C35: ='[1]Tabel 4 H DATA'!K34 -> 152 | D35: ='[1]Tabel 4 H DATA'!L34 -> 100 | E35: ='[1]Tabel 4 H DATA'!M34 -> 23 | F35: ='[1]Tabel 4 H DATA'!N34 -> 31 | G35: ='[1]Tabel 4 H DATA'!O34 -> 6 | I35: ='[1]Tabel 4 H DATA'!Q34 -> 312
A36: ='[1]Tabel 4 H DATA'!I35 -> HA | C36: ='[1]Tabel 4 H DATA'!K35 -> 55 | D36: ='[1]Tabel 4 H DATA'!L35 -> 15 | E36: ='[1]Tabel 4 H DATA'!M35 -> 7 | F36: ='[1]Tabel 4 H DATA'!N35 -> 17 | G36: ='[1]Tabel 4 H DATA'!O35 -> 6 | I36: ='[1]Tabel 4 H DATA'!Q35 -> 100
A37: ='[1]Tabel 4 H DATA'!I36 -> HD | C37: ='[1]Tabel 4 H DATA'!K36 -> 27 | D37: ='[1]Tabel 4 H DATA'!L36 -> 16 | E37: ='[1]Tabel 4 H DATA'!M36 -> 1 | F37: ='[1]Tabel 4 H DATA'!N36 -> 8 | G37: ='[1]Tabel 4 H DATA'!O36 -> 3 | I37: ='[1]Tabel 4 H DATA'!Q36 -> 55
A38: ='[1]Tabel 4 H DATA'!I37 -> Komm. og Sprog | C38: ='[1]Tabel 4 H DATA'!K37 -> 50 | D38: ='[1]Tabel 4 H DATA'!L37 -> 26 | E38: ='[1]Tabel 4 H DATA'!M37 -> 22 | F38: ='[1]Tabel 4 H DATA'!N37 -> 17 | G38: ='[1]Tabel 4 H DATA'!O37 -> 13 | I38: ='[1]Tabel 4 H DATA'!Q37 -> 128
A39: ='[1]Tabel 4 H DATA'!I38 -> Bygningskonst. | C39: ='[1]Tabel 4 H DATA'!K38 -> 91 | D39: ='[1]Tabel 4 H DATA'!L38 -> 36 | E39: ='[1]Tabel 4 H DATA'!M38 -> 11 | F39: ='[1]Tabel 4 H DATA'!N38 -> 7 | G39: ='[1]Tabel 4 H DATA'!O38 -> 3 | I39: ='[1]Tabel 4 H DATA'!Q38 -> 148
A40: ='[1]Tabel 4 H DATA'!I39 -> Cand. IT. | C40: ='[1]Tabel 4 H DATA'!K39 -> 46 | D40: ='[1]Tabel 4 H DATA'!L39 -> 30 | E40: ='[1]Tabel 4 H DATA'!M39 -> 5 | F40: ='[1]Tabel 4 H DATA'!N39 -> 0 | G40: ='[1]Tabel 4 H DATA'!O39 -> 0 | I40: ='[1]Tabel 4 H DATA'!Q39 -> 81
A41: ='[1]Tabel 4 H DATA'!I40 -> Bac. Samf. | C41: ='[1]Tabel 4 H DATA'!K40 -> 15 | D41: ='[1]Tabel 4 H DATA'!L40 -> 3 | E41: ='[1]Tabel 4 H DATA'!M40 -> 4 | F41: ='[1]Tabel 4 H DATA'!N40 -> 1 | G41: ='[1]Tabel 4 H DATA'!O40 -> 0 | I41: ='[1]Tabel 4 H DATA'!Q40 -> 23
A42: ='[1]Tabel 4 H DATA'!I41 -> Bac. Hum. | C42: ='[1]Tabel 4 H DATA'!K41 -> 156 | D42: ='[1]Tabel 4 H DATA'!L41 -> 36 | E42: ='[1]Tabel 4 H DATA'!M41 -> 11 | F42: ='[1]Tabel 4 H DATA'!N41 -> 8 | G42: ='[1]Tabel 4 H DATA'!O41 -> 4 | I42: ='[1]Tabel 4 H DATA'!Q41 -> 215
A43: ='[1]Tabel 4 H DATA'!I42 -> Bac. Nat. | C43: ='[1]Tabel 4 H DATA'!K42 -> 90 | D43: ='[1]Tabel 4 H DATA'!L42 -> 19 | E43: ='[1]Tabel 4 H DATA'!M42 -> 9 | F43: ='[1]Tabel 4 H DATA'!N42 -> 3 | G43: ='[1]Tabel 4 H DATA'!O42 -> 0 | I43: ='[1]Tabel 4 H DATA'!Q42 -> 121
A44: ='[1]Tabel 4 H DATA'!I43 -> Andre | C44: ='[1]Tabel 4 H DATA'!K43 -> 87 | D44: ='[1]Tabel 4 H DATA'!L43 -> 89 | E44: ='[1]Tabel 4 H DATA'!M43 -> 55 | F44: ='[1]Tabel 4 H DATA'!N43 -> 31 | G44: ='[1]Tabel 4 H DATA'!O43 -> 26 | I44: ='[1]Tabel 4 H DATA'!Q43 -> 288
A46: ='[1]Tabel 4 H DATA'!I45 -> Total | C46: ='[1]Tabel 4 H DATA'!K45 -> 2212 | D46: ='[1]Tabel 4 H DATA'!L45 -> 1414 | E46: ='[1]Tabel 4 H DATA'!M45 -> 466 | F46: ='[1]Tabel 4 H DATA'!N45 -> 342 | G46: ='[1]Tabel 4 H DATA'!O45 -> 213 | I46: ='[1]Tabel 4 H DATA'!Q45 -> 4647
A48: ='[1]Tabel 4 H DATA'!I47 -> Ingeniører i alt | C48: ='[1]Tabel 4 H DATA'!K47 -> 253 | D48: ='[1]Tabel 4 H DATA'!L47 -> 87 | E48: ='[1]Tabel 4 H DATA'!M47 -> 33 | F48: ='[1]Tabel 4 H DATA'!N47 -> 55 | G48: ='[1]Tabel 4 H DATA'!O47 -> 33 | I48: ='[1]Tabel 4 H DATA'!Q47 -> 461
A49: ='[1]Tabel 4 H DATA'!I48 -> Magistre i alt | C49: ='[1]Tabel 4 H DATA'!K48 -> 652 | D49: ='[1]Tabel 4 H DATA'!L48 -> 561 | E49: ='[1]Tabel 4 H DATA'!M48 -> 192 | F49: ='[1]Tabel 4 H DATA'!N48 -> 99 | G49: ='[1]Tabel 4 H DATA'!O48 -> 71 | I49: ='[1]Tabel 4 H DATA'!Q48 -> 1575
A50: ='[1]Tabel 4 H DATA'!I49 -> DJØF'ere i alt | C50: ='[1]Tabel 4 H DATA'!K49 -> 403 | D50: ='[1]Tabel 4 H DATA'!L49 -> 250 | E50: ='[1]Tabel 4 H DATA'!M49 -> 65 | F50: ='[1]Tabel 4 H DATA'!N49 -> 75 | G50: ='[1]Tabel 4 H DATA'!O49 -> 21 | I50: ='[1]Tabel 4 H DATA'!Q49 -> 814
A57: ='[1]Tabel 4 H DATA'!I54 -> Horsens
C59: ='[1]Tabel 4 H DATA'!K56 -> Under 30 år | D59: ='[1]Tabel 4 H DATA'!L56 -> 30 - 39 år | E59: ='[1]Tabel 4 H DATA'!M56 -> 40 - 49 år | F59: ='[1]Tabel 4 H DATA'!N56 -> 50 - 59 år | G59: ='[1]Tabel 4 H DATA'!O56 -> Over 60 år | I59: ='[1]Tabel 4 H DATA'!Q56 -> I alt
A61: ='[1]Tabel 4 H DATA'!I58 -> Civ. ing. | C61: ='[1]Tabel 4 H DATA'!K58 -> 7 | D61: ='[1]Tabel 4 H DATA'!L58 -> 6 | E61: ='[1]Tabel 4 H DATA'!M58 -> 0 | F61: ='[1]Tabel 4 H DATA'!N58 -> 0 | G61: ='[1]Tabel 4 H DATA'!O58 -> 0 | I61: ='[1]Tabel 4 H DATA'!Q58 -> 13
A62: ='[1]Tabel 4 H DATA'!I59 -> Diplom ing. | C62: ='[1]Tabel 4 H DATA'!K59 -> 19 | D62: ='[1]Tabel 4 H DATA'!L59 -> 11 | E62: ='[1]Tabel 4 H DATA'!M59 -> 1 | F62: ='[1]Tabel 4 H DATA'!N59 -> 2 | G62: ='[1]Tabel 4 H DATA'!O59 -> 2 | I62: ='[1]Tabel 4 H DATA'!Q59 -> 35
A63: ='[1]Tabel 4 H DATA'!I60 -> Cand. Scient. Tek | C63: ='[1]Tabel 4 H DATA'!K60 -> 3 | D63: ='[1]Tabel 4 H DATA'!L60 -> 2 | E63: ='[1]Tabel 4 H DATA'!M60 -> 2 | F63: ='[1]Tabel 4 H DATA'!N60 -> 0 | G63: ='[1]Tabel 4 H DATA'!O60 -> 0 | I63: ='[1]Tabel 4 H DATA'!Q60 -> 7
A64: ='[1]Tabel 4 H DATA'!I61 -> MA. Hum. | C64: ='[1]Tabel 4 H DATA'!K61 -> 13 | D64: ='[1]Tabel 4 H DATA'!L61 -> 20 | E64: ='[1]Tabel 4 H DATA'!M61 -> 6 | F64: ='[1]Tabel 4 H DATA'!N61 -> 1 | G64: ='[1]Tabel 4 H DATA'!O61 -> 1 | I64: ='[1]Tabel 4 H DATA'!Q61 -> 41
A65: ='[1]Tabel 4 H DATA'!I62 -> MA. Nat. | C65: ='[1]Tabel 4 H DATA'!K62 -> 1 | D65: ='[1]Tabel 4 H DATA'!L62 -> 1 | E65: ='[1]Tabel 4 H DATA'!M62 -> 0 | F65: ='[1]Tabel 4 H DATA'!N62 -> 0 | G65: ='[1]Tabel 4 H DATA'!O62 -> 0 | I65: ='[1]Tabel 4 H DATA'!Q62 -> 2
A66: ='[1]Tabel 4 H DATA'!I63 -> MA. Ph.d. | C66: ='[1]Tabel 4 H DATA'!K63 -> 0 | D66: ='[1]Tabel 4 H DATA'!L63 -> 0 | E66: ='[1]Tabel 4 H DATA'!M63 -> 0 | F66: ='[1]Tabel 4 H DATA'!N63 -> 0 | G66: ='[1]Tabel 4 H DATA'!O63 -> 0 | I66: ='[1]Tabel 4 H DATA'!Q63 -> 0
A67: ='[1]Tabel 4 H DATA'!I64 -> MA. Samf. | C67: ='[1]Tabel 4 H DATA'!K64 -> 0 | D67: ='[1]Tabel 4 H DATA'!L64 -> 2 | E67: ='[1]Tabel 4 H DATA'!M64 -> 0 | F67: ='[1]Tabel 4 H DATA'!N64 -> 0 | G67: ='[1]Tabel 4 H DATA'!O64 -> 0 | I67: ='[1]Tabel 4 H DATA'!Q64 -> 2
A68: ='[1]Tabel 4 H DATA'!I65 -> Øvrige Mag. | C68: ='[1]Tabel 4 H DATA'!K65 -> 0 | D68: ='[1]Tabel 4 H DATA'!L65 -> 1 | E68: ='[1]Tabel 4 H DATA'!M65 -> 1 | F68: ='[1]Tabel 4 H DATA'!N65 -> 0 | G68: ='[1]Tabel 4 H DATA'!O65 -> 1 | I68: ='[1]Tabel 4 H DATA'!Q65 -> 3
A69: ='[1]Tabel 4 H DATA'!I66 -> Agronom | C69: ='[1]Tabel 4 H DATA'!K66 -> 0 | D69: ='[1]Tabel 4 H DATA'!L66 -> 0 | E69: ='[1]Tabel 4 H DATA'!M66 -> 1 | F69: ='[1]Tabel 4 H DATA'!N66 -> 1 | G69: ='[1]Tabel 4 H DATA'!O66 -> 0 | I69: ='[1]Tabel 4 H DATA'!Q66 -> 2
